Workbook

Sheet Cover

Sheet Model Index
B9: A. | E9: B. | H9: C. | K9: D.
B11: A. | E11: B. | H11: C. | K11: D.
B13: A. | E13: B. | H13: C.
B15: A. | E15: B. | H15: C. | K15: E.
H17: C.
B20: Version | D20: Date | F20: Description | L20: Approved By:
B21: 1 | D21: 2019-01-02 | F21: Final | L21: Ausgrid

Sheet A. Summary
A1: Asset Summary Information
A3: Data Inputs
B5: Data Inputs
B6: Population | C6: ='A. Age Profile'!L4 -> 700
B7: Object Types | C7: TOWER - Tower
B8: Conditional & Function Failures (count) | C8: 206
B9: Analysis Period (Years) | C9: 6
B10: Asset RAB Life (Years) | C10: ='D. Risk Index Parameters'!E23 -> 54.5
B11: Planned Replacement Cost | C11: ='D. Risk Index Parameters'!$E$22 -> 333811.5
B12: WACC | C12: ='D. Risk Index Parameters'!$E$21 -> 0.039
B15: Loss of Supply Consequence Information
B16: ='C. PoC Summary Stats & Para'!C16 -> Proportion Failures Resulting in Unserved Energy | C16: ='C. PoC Summary Stats & Para'!E16 -> 0.00015
B17: Value of Customer Reliability (VCR) per kWh | C17: ='C. PoC Summary Stats & Para'!F14 -> 40.729
B18: Outage Type (HV / LV / CBD) | C18: ='C. PoC Summary Stats & Para'!E18 -> ST
B19: Automatic Protection Time (minutes) | C19: ='C. PoC Summary Stats & Para'!E19 -> 0
B20: Switching Time (hours) | C20: ='C. PoC Summary Stats & Para'!E20 -> 0
B21: Restoration/Repair Time (hours) | C21: ='C. PoC Summary Stats & Para'!E21 -> 24
B22: Automatic Protection (% load) | C22: ='C. PoC Summary Stats & Para'!E22 -> 0
B23: Switching (% load) | C23: ='C. PoC Summary Stats & Para'!E23 -> 0
B24: Restoration/Repair (% load) | C24: ='C. PoC Summary Stats & Para'!E24 -> 1
B25: Time without Supply (hours) | C25: ='C. PoC Summary Stats & Para'!E25 -> 0.0036
B26: Avg. Value of Energy Unserved (per asset per event) | C26: =AVERAGE('C. Reliability Consequence'!H6:$H$1048576) -> 5215.729608
B29: Finance Consequence Information
B30: Reactive Replacement Cost | C30: ='C. PoC Summary Stats & Para'!E31 -> 400573.8
B31: Repair Cost | C31: ='C. PoC Summary Stats & Para'!E33 -> 9615.564189
B32: Proportion Replacement | C32: ='C. PoC Summary Stats & Para'!E32 -> 0.01
B33: ='C. PoC Summary Stats & Para'!C35 -> Weighted Replacement / Repair Cost | C33: ='C. PoC Summary Stats & Para'!E35 -> 9669.768298
B34: Maintenance original asset per annum | C34: ='C. PoC Summary Stats & Para'!E38 -> 200
B35: Maintenance replacement asset per annum | C35: ='C. PoC Summary Stats & Para'!E39 -> 40
B36: Maintenance benefit per asset per annum | C36: ='C. PoC Summary Stats & Para'!E40 -> 160
A39: Failure Model Parameters
B41: Weibull Parameters | E41: Crow-AMSAA Parameters
B42: βgood | C42: =IF('B. PoF Summary Stats & Params'!$C$12="C", "Not Applicable", 'B. PoF Summary Stats & Params'!M12) -> 13.88984439 | E42: βgood | F42: =IF('B. PoF Summary Stats & Params'!$C$12="W", "Not Applicable", 'B. PoF Summary Stats & Params'!I12) -> Not Applicable
B43: ηgood | C43: =IF('B. PoF Summary Stats & Params'!$C$12="C", "Not Applicable", 'B. PoF Summary Stats & Params'!O12) -> 70.07178095 | E43: βaverage | F43: =IF('B. PoF Summary Stats & Params'!$C$12="W", "Not Applicable", 'B. PoF Summary Stats & Params'!I6) -> Not Applicable
B44: βaverage | C44: =IF('B. PoF Summary Stats & Params'!$C$12="C", "Not Applicable", 'B. PoF Summary Stats & Params'!M6) -> 14.27799845 | E44: βpoor | F44: =IF('B. PoF Summary Stats & Params'!$C$12="W", "Not Applicable", 'B. PoF Summary Stats & Params'!I10) -> Not Applicable
B45: ηaverage | C45: =IF('B. PoF Summary Stats & Params'!$C$12="C", "Not Applicable", 'B. PoF Summary Stats & Params'!M8) -> 62.42681864 | E45: λaverage | F45: =IF('B. PoF Summary Stats & Params'!$C$12="W", "Not Applicable", 'B. PoF Summary Stats & Params'!I8) -> Not Applicable
B46: βpoor | C46: =IF('B. PoF Summary Stats & Params'!$C$12="C", "Not Applicable", 'B. PoF Summary Stats & Params'!M14) -> 14.6661525
B47: ηpoor | C47: =IF('B. PoF Summary Stats & Params'!$C$12="C", "Not Applicable", 'B. PoF Summary Stats & Params'!O14) -> 55.95706796
B48: b (intercept) | C48: =IF('B. PoF Summary Stats & Params'!$C$12="C", "Not Applicable", 'B. PoF Summary Stats & Params'!M10) -> -59.02517375
A51: Adjustments to Probability of Failure (PoF)
B53: PoF Adjustment Fators
B54: =IF(ISBLANK('A. Population Info'!G5), "", 'A. Population Info'!G5) -> DS4
B55: =IF(ISBLANK('A. Population Info'!H5), "", 'A. Population Info'!H5) -> 
B56: =IF(ISBLANK('A. Population Info'!I5), "", 'A. Population Info'!I5) -> Utilisation
B57: =IF(ISBLANK('A. Population Info'!J5), "", 'A. Population Info'!J5) -> Proximity to Saltwater
B58: =IF(ISBLANK('A. Population Info'!K5), "", 'A. Population Info'!K5) -> M7's Completed in last 7 years
A61: Adjustments to Probability of Consequence (PoC)
B63: PoC Adjustment Factors
B64: =IF(ISBLANK('A. Population Info'!L5), "", 'A. Population Info'!L5) -> Feeder_Criticality
B65: =IF(ISBLANK('A. Population Info'!M5), "", 'A. Population Info'!M5) -> 
B66: =IF(ISBLANK('A. Population Info'!N5), "", 'A. Population Info'!N5) -> Traffic
B67: =IF(ISBLANK('A. Population Info'!O5), "", 'A. Population Info'!O5) -> BushFire Area
B68: =IF(ISBLANK('A. Population Info'!P5), "", 'A. Population Info'!P5) -> 
A71: Model Calculated Failures
E73: Financial Year | F73: FY19 | G73: FY20 | H73: FY21 | I73: FY22 | J73: FY23 | K73: FY24
E74: Model Calculated Failures | F74: ='B. Asset PoF & Health Index'!J4 -> 35.67619996 | G74: ='B. Asset PoF & Health Index'!K4 -> 44.97683195 | H74: ='B. Asset PoF & Health Index'!L4 -> 56.48618621 | I74: ='B. Asset PoF & Health Index'!M4 -> 70.67918172 | J74: ='B. Asset PoF & Health Index'!N4 -> 88.12252391 | K74: ='B. Asset PoF & Health Index'!O4 -> 109.4905086
A79: Asset Health Index
A118: Asset Risk Index

Sheet A. Population Info
C1: Asset Population Information
A4: Asset Identifier | B4: Asset Age | C4: Asset Length or Number within Asset ID | D4: Reliability Asset ID | E4: Average Energy Usage (kW) | F4: Reliability Asset Voltage | G4: PoF Factor 1 | H4: PoF Factor 2 | I4: PoF Factor 3 | J4: PoF Factor 4 | K4: PoF Factor 5 | L4: Consequence Factor 1 | M4: Consequence Factor 2 | N4: Consequence Factor 3 | O4: Consequence Factor 4 | P4: Consequence Factor 5 | Q4: CommonModeFailure
G5: DS4 | I5: Utilisation | J5: Proximity to Saltwater | K5: M7's Completed in last 7 years | L5: Feeder_Criticality | N5: Traffic | O5: BushFire Area | Q5: This field determines if redundant feeder on same tower
A6: T.F.000203/00.T01.SUP | B6: 47 | C6: 1 | D6: RP23008 | E6: 0 | F6: ST | G6: DTO | I6: 0 | J6: 18.18991309 | K6: 2 | L6: Medium | N6: none | O6: Not in Bushfire Area
A7: T.F.000203/00.T01.SUP | B7: 47 | C7: 1 | D7: RP23010 | E7: 0 | F7: ST | G7: DTO | I7: 0 | J7: 17.93998344 | K7: 4 | L7: Medium | N7: within 10m | O7: Not in Bushfire Area
A8: T.F.000204/00.T01.SUP | B8: 46 | C8: 1 | D8: RP23002 | E8: 0 | F8: ST | G8: DTD | I8: 0 | J8: 18.09756834 | K8: 0 | L8: Medium | N8: within 10m | O8: Not in Bushfire Area
A9: T.F.000204/00.T01.SUP | B9: 46 | C9: 1 | D9: RP23003 | E9: 0 | F9: ST | G9: DSC | I9: 0 | J9: 17.96287326 | K9: 0 | L9: Medium | N9: none | O9: Not in Bushfire Area
A10: T.F.000204/00.T01.SUP | B10: 47 | C10: 1 | D10: RP23001 | E10: 0 | F10: ST | G10: DTO | I10: 0 | J10: 18.3212292 | K10: 0 | L10: Medium | N10: none | O10: Not in Bushfire Area
A11: T.F.000240/00.T01.SUP | B11: 45 | C11: 1 | D11: RP23034 | E11: 0 | F11: ST | G11: DSM | I11: 0 | J11: 19.00175135 | K11: 1 | L11: High | N11: none | O11: Not in Bushfire Area
A12: T.F.000240/00.T01.SUP | B12: 45 | C12: 1 | D12: RP23036 | E12: 0 | F12: ST | G12: DTO | I12: 0 | J12: 19.55857975 | K12: 0 | L12: High | N12: none | O12: Not in Bushfire Area
A13: T.F.000240/00.T01.SUP | B13: 45 | C13: 1 | D13: RP23037 | E13: 0 | F13: ST | G13: DTO | I13: 0 | J13: 19.90743733 | K13: 0 | L13: High | N13: none | O13: Not in Bushfire Area
A14: T.F.000240/00.T01.SUP | B14: 45 | C14: 1 | D14: RP23038 | E14: 0 | F14: ST | G14: DTO | I14: 0 | J14: 20.2228928 | K14: 1 | L14: High | N14: none | O14: Not in Bushfire Area
A15: T.F.000240/00.T01.SUP | B15: 45 | C15: 1 | D15: RP23032 | E15: 0 | F15: ST | G15: DTO | I15: 0 | J15: 18.77024702 | K15: 0 | L15: High | N15: none | O15: Not in Bushfire Area
A16: T.F.000241/00.T01.SUP | B16: 45 | C16: 1 | D16: RP23030 | E16: 0 | F16: ST | G16: DTN | I16: 0 | J16: 18.43283798 | K16: 0 | L16: High | N16: none | O16: Not in Bushfire Area
A17: T.F.000241/00.T01.SUP | B17: 45 | C17: 1 | D17: RP23035 | E17: 0 | F17: ST | G17: DSM | I17: 0 | J17: 19.28718182 | K17: 0 | L17: High | N17: none | O17: Not in Bushfire Area
A18: T.F.000241/00.T01.SUP | B18: 45 | C18: 1 | D18: RP23039 | E18: 0 | F18: ST | G18: DTO | I18: 0 | J18: 19.99117503 | K18: 0 | L18: High | N18: none | O18: Not in Bushfire Area
A19: T.F.000241/00.T01.SUP | B19: 45 | C19: 1 | D19: RP23033 | E19: 0 | F19: ST | G19: DTO | I19: 0 | J19: 18.71673335 | K19: 0 | L19: High | N19: none | O19: Not in Bushfire Area
A20: T.F.000241/00.T01.SUP | B20: 45 | C20: 1 | D20: RP23029 | E20: 0 | F20: ST | G20: DTO | I20: 0 | J20: 18.43841952 | K20: 0 | L20: High | N20: none | O20: Not in Bushfire Area
A21: T.F.000241/00.T01.SUP | B21: 45 | C21: 1 | D21: RP23031 | E21: 0 | F21: ST | G21: DTO | I21: 0 | J21: 18.34089489 | K21: 1 | L21: High | N21: none | O21: Not in Bushfire Area
A22: T.F.000251/00.T01.SUP | B22: 40 | C22: 1 | D22: EP03109 | E22: 0 | F22: ST | G22: DTO2 | I22: 0 | J22: 24.0802887 | K22: 0 | L22: High | N22: none | O22: Not in Bushfire Area
A23: T.F.000251/00.T01.SUP | B23: 40 | C23: 1 | D23: DU21674 | E23: 0 | F23: ST | G23: DTM2 | I23: 0 | J23: 23.83016101 | K23: 0 | L23: High | N23: within 10m | O23: Not in Bushfire Area
A24: T.F.000251/00.T01.SUP | B24: 40 | C24: 1 | D24: DU21672 | E24: 0 | F24: ST | G24: DTN2 | I24: 0 | J24: 23.52188104 | K24: 0 | L24: High | N24: none | O24: Buffer
A25: T.F.000251/00.T01.SUP | B25: 40 | C25: 1 | D25: DU21670 | E25: 0 | F25: ST | G25: DTN2 | I25: 0 | J25: 23.6492653 | K25: 0 | L25: High | N25: none | O25: Cat 1
A26: T.F.000251/00.T01.SUP | B26: 40 | C26: 1 | D26: DU21668 | E26: 0 | F26: ST | G26: DSM2 | I26: 0 | J26: 23.67107942 | K26: 0 | L26: High | N26: none | O26: Buffer
A27: T.F.000251/00.T01.SUP | B27: 40 | C27: 1 | D27: DU21666 | E27: 0 | F27: ST | G27: DSM2 | I27: 0 | J27: 23.86385792 | K27: 0 | L27: High | N27: none | O27: Buffer
A28: T.F.000251/00.T01.SUP | B28: 40 | C28: 1 | D28: DU21664 | E28: 0 | F28: ST | G28: DTM2 | I28: 0 | J28: 24.12471489 | K28: 0 | L28: High | N28: none | O28: Buffer
A29: T.F.000251/00.T01.SUP | B29: 40 | C29: 1 | D29: DU21662 | E29: 0 | F29: ST | G29: DSM2 | I29: 0 | J29: 24.28172634 | K29: 0 | L29: High | N29: within 10m | O29: Buffer
A30: T.F.000251/00.T01.SUP | B30: 40 | C30: 1 | D30: DU21659 | E30: 0 | F30: ST | G30: DSM2 | I30: 0 | J30: 24.8241436 | K30: 0 | L30: High | N30: none | O30: Not in Bushfire Area
A31: T.F.000251/00.T01.SUP | B31: 40 | C31: 1 | D31: DU21657 | E31: 0 | F31: ST | G31: DSM2 | I31: 0 | J31: 25.29056646 | K31: 0 | L31: High | N31: none | O31: Not in Bushfire Area
A32: T.F.000251/00.T01.SUP | B32: 40 | C32: 1 | D32: DU21655 | E32: 0 | F32: ST | G32: DTN2 | I32: 0 | J32: 25.52530762 | K32: 0 | L32: High | N32: none | O32: Buffer
A33: T.F.000251/00.T01.SUP | B33: 40 | C33: 1 | D33: DU21632 | E33: 0 | F33: ST | G33: DSM2 | I33: 0 | J33: 25.62086087 | K33: 0 | L33: High | N33: none | O33: Buffer
A34: T.F.000251/00.T01.SUP | B34: 40 | C34: 1 | D34: DU21630 | E34: 0 | F34: ST | G34: DTO2 | I34: 0 | J34: 25.81743607 | K34: 0 | L34: High | N34: none | O34: Buffer
A35: T.F.000284/00.T01.SUP | B35: 31 | C35: 1 | D35: SU12486 | E35: 0 | F35: ST | G35: R | I35: 0 | J35: 12.25396223 | K35: 0 | L35: High | N35: none | O35: Buffer
A36: T.F.000284/00.T01.SUP | B36: 31 | C36: 1 | D36: SU12478 | E36: 0 | F36: ST | G36: R | I36: 0 | J36: 12.31218075 | K36: 0 | L36: High | N36: within corridor | O36: Not in Bushfire Area
A37: T.F.000284/00.T01.SUP | B37: 31 | C37: 1 | D37: SU12480 | E37: 0 | F37: ST | G37: N | I37: 0 | J37: 12.11051278 | K37: 0 | L37: High | N37: none | O37: Buffer
A38: T.F.000284/00.T01.SUP | B38: 31 | C38: 1 | D38: SU12482 | E38: 0 | F38: ST | G38: T | I38: 0 | J38: 11.80213251 | K38: 1 | L38: High | N38: within 10m | O38: Cat 1
A39: T.F.000284/00.T01.SUP | B39: 31 | C39: 1 | D39: SU12484 | E39: 0 | F39: ST | G39: N | I39: 0 | J39: 11.9736288 | K39: 1 | L39: High | N39: none | O39: Buffer
A40: T.F.000284/00.T01.SUP | B40: 57 | C40: 1 | D40: PE26302 | E40: 0 | F40: ST | G40: DT6 | I40: 0 | J40: 15.23576661 | K40: 0 | L40: High | N40: none | O40: Cat 1
A41: T.F.000284/00.T01.SUP | B41: 57 | C41: 1 | D41: PE26304 | E41: 0 | F41: ST | G41: DS4 | I41: 0 | J41: 14.4417815 | K41: 1 | L41: High | N41: none | O41: Buffer
A42: T.F.000284/00.T01.SUP | B42: 57 | C42: 1 | D42: PE26306 | E42: 0 | F42: ST | G42: DT6 | I42: 0 | J42: 13.86907822 | K42: 0 | L42: High | N42: within 10m | O42: Cat 1
A43: T.F.000284/00.T01.SUP | B43: 57 | C43: 1 | D43: SU12476 | E43: 0 | F43: ST | G43: DT6 | I43: 0 | J43: 12.6531829 | K43: 0 | L43: High | N43: none | O43: Buffer
A44: T.F.000285/00.T04.SUP | B44: 58 | C44: 1 | D44: WO00201 | E44: 55224 | F44: ST | G44: R | I44: 0 | J44: 13.6090118 | K44: 0 | L44: High | N44: none | O44: Cat 1 | Q44: TRUE
A45: T.F.000285/00.T04.SUP | B45: 58 | C45: 1 | D45: SU12492 | E45: 55224 | F45: ST | G45: N | I45: 0 | J45: 13.28406731 | K45: 0 | L45: High | N45: none | O45: Buffer | Q45: TRUE
A46: T.F.000285/00.T04.SUP | B46: 58 | C46: 1 | D46: SU12494 | E46: 55224 | F46: ST | G46: P | I46: 0 | J46: 13.43253551 | K46: 0 | L46: High | N46: none | O46: Not in Bushfire Area | Q46: TRUE
A47: T.F.000285/00.T04.SUP | B47: 58 | C47: 1 | D47: SU12496 | E47: 55224 | F47: ST | G47: P | I47: 0 | J47: 13.59050085 | K47: 0 | L47: High | N47: none | O47: Not in Bushfire Area | Q47: TRUE
A48: T.F.000285/00.T04.SUP | B48: 58 | C48: 1 | D48: SU12498 | E48: 55224 | F48: ST | G48: T | I48: 0 | J48: 13.77399825 | K48: 0 | L48: High | N48: none | O48: Buffer | Q48: TRUE
A49: T.F.000285/00.T04.SUP | B49: 58 | C49: 1 | D49: HF00159 | E49: 55224 | F49: ST | G49: R | I49: 0 | J49: 14.43221093 | K49: 0 | L49: High | N49: none | O49: Cat 1 | Q49: TRUE
A50: T.F.000285/00.T04.SUP | B50: 58 | C50: 1 | D50: SU12491 | E50: 0 | F50: ST | G50: T | I50: 0 | J50: 13.24095863 | K50: 0 | L50: High | N50: within 10m | O50: Buffer
A51: T.F.000286/00.T01.SUP | B51: 58 | C51: 1 | D51: WO00204 | E51: 0 | F51: ST | G51: R | I51: 0 | J51: 12.7128338 | K51: 0 | L51: Low | N51: within 10m | O51: Buffer
A52: T.F.000286/00.T01.SUP | B52: 58 | C52: 1 | D52: WO00205 | E52: 0 | F52: ST | G52: P | I52: 0 | J52: 12.24533666 | K52: 0 | L52: Low | N52: none | O52: Cat 1
A53: T.F.000286/00.T01.SUP | B53: 58 | C53: 1 | D53: WO00206 | E53: 0 | F53: ST | G53: N | I53: 0 | J53: 12.11008748 | K53: 0 | L53: Low | N53: none | O53: Cat 1
A54: T.F.000286/00.T01.SUP | B54: 58 | C54: 1 | D54: WO00208 | E54: 0 | F54: ST | G54: R | I54: 0 | J54: 11.75427807 | K54: 0 | L54: Low | N54: none | O54: Buffer
A55: T.F.000286/00.T01.SUP | B55: 58 | C55: 1 | D55: WO00209 | E55: 0 | F55: ST | G55: R | I55: 0 | J55: 11.41061684 | K55: 0 | L55: Low | N55: within corridor | O55: Buffer
A56: T.F.000286/00.T01.SUP | B56: 58 | C56: 1 | D56: WO00210 | E56: 0 | F56: ST | G56: R | I56: 0 | J56: 11.30782036 | K56: 1 | L56: Low | N56: within 10m | O56: Cat 1
A57: T.F.000286/00.T01.SUP | B57: 58 | C57: 1 | D57: WO00211 | E57: 0 | F57: ST | G57: R | I57: 0 | J57: 11.22171356 | K57: 0 | L57: Low | N57: none | O57: Cat 1
A58: T.F.000286/00.T01.SUP | B58: 58 | C58: 1 | D58: WO00213 | E58: 0 | F58: ST | G58: N | I58: 0 | J58: 10.85833359 | K58: 0 | L58: Low | N58: none | O58: Cat 1
A59: T.F.000286/00.T01.SUP | B59: 58 | C59: 1 | D59: WO00212 | E59: 0 | F59: ST | G59: R | I59: 0 | J59: 10.97025911 | K59: 0 | L59: Low | N59: none | O59: Cat 1
A60: T.F.000286/00.T01.SUP | B60: 58 | C60: 1 | D60: WO00214 | E60: 0 | F60: ST | G60: N | I60: 0 | J60: 10.73195752 | K60: 0 | L60: Low | N60: none | O60: Cat 1
A61: T.F.000286/00.T01.SUP | B61: 58 | C61: 1 | D61: WO00215 | E61: 0 | F61: ST | G61: R | I61: 0 | J61: 10.52882432 | K61: 1 | L61: Low | N61: none | O61: Cat 1
A62: T.F.000286/00.T01.SUP | B62: 58 | C62: 1 | D62: WO00203 | E62: 0 | F62: ST | G62: N | I62: 0 | J62: 13.01846038 | K62: 0 | L62: Low | N62: within 10m | O62: Buffer
A63: T.F.000286/00.T01.SUP | B63: 58 | C63: 1 | D63: EN00202 | E63: 0 | F63: ST | G63: T | I63: 0 | J63: 13.12008341 | K63: 0 | L63: Low | N63: none | O63: Buffer
A64: T.F.000289/00.T03.SUP | B64: 58 | C64: 1 | D64: SU15062 | E64: 0 | F64: ST | G64: R | I64: 117 | J64: 7.499103636 | K64: 0 | L64: Medium | N64: none | O64: Not in Bushfire Area
A65: T.F.000747/00.T04.SUP | B65: 54 | C65: 1 | D65: WO00217 | E65: 0 | F65: ST | G65: R | I65: 0 | J65: 10.1438843 | K65: 0 | L65: Low | N65: none | O65: Cat 1
A66: T.F.000747/00.T04.SUP | B66: 54 | C66: 1 | D66: WO00218 | E66: 0 | F66: ST | G66: P | I66: 0 | J66: 9.901556087 | K66: 0 | L66: Low | N66: none | O66: Cat 1
A67: T.F.000747/00.T04.SUP | B67: 54 | C67: 1 | D67: WO00219 | E67: 0 | F67: ST | G67: N | I67: 0 | J67: 9.63207967 | K67: 0 | L67: Low | N67: none | O67: Cat 1
A68: T.F.000747/00.T04.SUP | B68: 54 | C68: 1 | D68: WO00220 | E68: 0 | F68: ST | G68: N | I68: 0 | J68: 9.481724586 | K68: 1 | L68: Low | N68: none | O68: Cat 1
A69: T.F.000747/00.T04.SUP | B69: 54 | C69: 1 | D69: WO00221 | E69: 0 | F69: ST | G69: P | I69: 0 | J69: 9.2310991 | K69: 0 | L69: Low | N69: none | O69: Cat 1
A70: T.F.000747/00.T04.SUP | B70: 54 | C70: 1 | D70: WO00222 | E70: 0 | F70: ST | G70: N | I70: 0 | J70: 9.014919197 | K70: 0 | L70: Low | N70: none | O70: Cat 1
A71: T.F.000747/00.T04.SUP | B71: 54 | C71: 1 | D71: WO00223 | E71: 0 | F71: ST | G71: R | I71: 0 | J71: 8.847505123 | K71: 0 | L71: Low | N71: none | O71: Cat 1
A72: T.F.000747/00.T04.SUP | B72: 54 | C72: 1 | D72: HE00501 | E72: 0 | F72: ST | G72: P | I72: 0 | J72: 8.481745878 | K72: 1 | L72: Low | N72: none | O72: Cat 1
A73: T.F.000747/00.T04.SUP | B73: 54 | C73: 1 | D73: HE00502 | E73: 0 | F73: ST | G73: N | I73: 0 | J73: 8.250864014 | K73: 0 | L73: Low | N73: none | O73: Buffer
A74: T.F.000747/00.T04.SUP | B74: 54 | C74: 1 | D74: HE00503 | E74: 0 | F74: ST | G74: P | I74: 0 | J74: 8.102047335 | K74: 0 | L74: Low | N74: none | O74: Cat 1
A75: T.F.000747/00.T04.SUP | B75: 54 | C75: 1 | D75: HE00504 | E75: 0 | F75: ST | G75: P | I75: 0 | J75: 7.745987658 | K75: 0 | L75: Low | N75: none | O75: Cat 2
A76: T.F.000747/00.T04.SUP | B76: 54 | C76: 1 | D76: HE00505 | E76: 0 | F76: ST | G76: T | I76: 0 | J76: 7.593329421 | K76: 0 | L76: Low | N76: none | O76: Buffer
A77: T.F.000747/00.T04.SUP | B77: 54 | C77: 1 | D77: HE00506 | E77: 0 | F77: ST | G77: R | I77: 0 | J77: 7.535961662 | K77: 0 | L77: Low | N77: none | O77: Cat 1
A78: T.F.000747/00.T04.SUP | B78: 54 | C78: 1 | D78: HE00507 | E78: 0 | F78: ST | G78: R | I78: 0 | J78: 7.390527201 | K78: 0 | L78: Low | N78: none | O78: Cat 1
A79: T.F.000747/00.T04.SUP | B79: 54 | C79: 1 | D79: HE00508 | E79: 0 | F79: ST | G79: N | I79: 0 | J79: 7.287335864 | K79: 0 | L79: Low | N79: none | O79: Cat 1
A80: T.F.000747/00.T04.SUP | B80: 54 | C80: 1 | D80: HE00509 | E80: 0 | F80: ST | G80: T | I80: 0 | J80: 7.261295831 | K80: 0 | L80: Low | N80: none | O80: Cat 1
A81: T.F.000747/00.T04.SUP | B81: 54 | C81: 1 | D81: HE00512 | E81: 0 | F81: ST | G81: RS | I81: 0 | J81: 7.081413687 | K81: 0 | L81: Low | N81: none | O81: Cat 1
A82: T.F.000747/00.T04.SUP | B82: 54 | C82: 1 | D82: HE00510 | E82: 0 | F82: ST | G82: R | I82: 0 | J82: 7.241274637 | K82: 0 | L82: Low | N82: none | O82: Cat 1
A83: T.F.000747/00.T04.SUP | B83: 54 | C83: 1 | D83: HE00511 | E83: 0 | F83: ST | G83: P | I83: 0 | J83: 7.188834959 | K83: 0 | L83: Low | N83: none | O83: Cat 1
A84: T.F.000747/00.T04.SUP | B84: 54 | C84: 1 | D84: HE00513 | E84: 0 | F84: ST | G84: P | I84: 107 | J84: 7.016621349 | K84: 0 | L84: Low | N84: none | O84: Cat 1
A85: T.F.000747/00.T04.SUP | B85: 54 | C85: 1 | D85: WO00216 | E85: 0 | F85: ST | G85: P | I85: 0 | J85: 10.24628359 | K85: 1 | L85: Low | N85: none | O85: Cat 1
A86: T.F.000747/00.T06.SUP | B86: 54 | C86: 1 | D86: HE00514 | E86: 0 | F86: ST | G86: RS | I86: 0 | J86: 6.986844273 | K86: 0 | L86: Low | N86: none | O86: Cat 1
A87: T.F.00090F/00.T01.SUP | B87: 46 | C87: 1 | D87: RP23028 | E87: 0 | F87: ST | G87: DTO | I87: 104 | J87: 18.45663079 | K87: 1 | L87: High | N87: none | O87: Not in Bushfire Area
A88: T.F.00090F/00.T01.SUP | B88: 46 | C88: 1 | D88: RP23026 | E88: 0 | F88: ST | G88: DTO | I88: 0 | J88: 18.76675666 | K88: 0 | L88: High | N88: none | O88: Not in Bushfire Area
A89: T.F.00090F/00.T01.SUP | B89: 46 | C89: 1 | D89: RP23024 | E89: 0 | F89: ST | G89: DSM | I89: 0 | J89: 18.75632683 | K89: 1 | L89: High | N89: none | O89: Not in Bushfire Area
A90: T.F.00090F/00.T01.SUP | B90: 46 | C90: 1 | D90: RP23022 | E90: 0 | F90: ST | G90: DTO | I90: 0 | J90: 18.75523197 | K90: 0 | L90: High | N90: none | O90: Not in Bushfire Area
A91: T.F.00090F/00.T01.SUP | B91: 46 | C91: 1 | D91: RP23020 | E91: 0 | F91: ST | G91: DTZ | I91: 0 | J91: 19.28190492 | K91: 0 | L91: High | N91: within 10m | O91: Not in Bushfire Area
A92: T.F.00090F/00.T01.SUP | B92: 46 | C92: 1 | D92: RP23016 | E92: 0 | F92: ST | G92: DTO | I92: 0 | J92: 18.77787444 | K92: 0 | L92: High | N92: none | O92: Not in Bushfire Area
A93: T.F.00090F/00.T01.SUP | B93: 46 | C93: 1 | D93: RP23014 | E93: 0 | F93: ST | G93: DTO | I93: 0 | J93: 18.73385085 | K93: 0 | L93: High | N93: none | O93: Not in Bushfire Area
A94: T.F.00090F/00.T01.SUP | B94: 46 | C94: 1 | D94: RP23012 | E94: 0 | F94: ST | G94: DTO | I94: 0 | J94: 18.41814919 | K94: 0 | L94: High | N94: none | O94: Not in Bushfire Area
A95: T.F.00090F/00.T01.SUP | B95: 46 | C95: 1 | D95: RP18074 | E95: 0 | F95: ST | G95: DTO | I95: 0 | J95: 19.09480122 | K95: 0 | L95: High | N95: none | O95: Not in Bushfire Area
A96: T.F.00090J/00.T01.SUP | B96: 46 | C96: 1 | D96: RP23027 | E96: 0 | F96: ST | G96: DTO | I96: 0 | J96: 18.7443445 | K96: 0 | L96: High | N96: none | O96: Not in Bushfire Area
A97: T.F.00090J/00.T01.SUP | B97: 46 | C97: 1 | D97: RP23025 | E97: 0 | F97: ST | G97: DSM | I97: 0 | J97: 18.75891318 | K97: 1 | L97: High | N97: none | O97: Not in Bushfire Area
A98: T.F.00090J/00.T01.SUP | B98: 46 | C98: 1 | D98: RP23023 | E98: 0 | F98: ST | G98: DTO | I98: 0 | J98: 18.75440461 | K98: 1 | L98: High | N98: none | O98: Not in Bushfire Area
A99: T.F.00090J/00.T01.SUP | B99: 46 | C99: 1 | D99: RP23021 | E99: 0 | F99: ST | G99: DTO | I99: 0 | J99: 19.00869013 | K99: 0 | L99: High | N99: none | O99: Not in Bushfire Area
A100: T.F.00090J/00.T01.SUP | B100: 46 | C100: 1 | D100: RP23019 | E100: 0 | F100: ST | G100: DTZ | I100: 0 | J100: 19.25255889 | K100: 0 | L100: High | N100: none | O100: Not in Bushfire Area
A101: T.F.00090J/00.T01.SUP | B101: 46 | C101: 1 | D101: RP23015 | E101: 0 | F101: ST | G101: DSM | I101: 0 | J101: 18.75291678 | K101: 0 | L101: High | N101: none | O101: Not in Bushfire Area
A102: T.F.00090J/00.T01.SUP | B102: 46 | C102: 1 | D102: RP23013 | E102: 0 | F102: ST | G102: DTO | I102: 0 | J102: 18.70581688 | K102: 0 | L102: High | N102: none | O102: Not in Bushfire Area
A103: T.F.00090J/00.T01.SUP | B103: 46 | C103: 1 | D103: RP23017 | E103: 0 | F103: ST | G103: DTO | I103: 0 | J103: 18.88218386 | K103: 1 | L103: High | N103: within corridor | O103: Not in Bushfire Area
A104: T.F.00090J/00.T01.SUP | B104: 46 | C104: 1 | D104: RP23018 | E104: 0 | F104: ST | G104: DTO | I104: 0 | J104: 19.03627014 | K104: 0 | L104: High | N104: none | O104: Not in Bushfire Area
A105: T.F.000910/00.T01.SUP | B105: 58 | C105: 1 | D105: RP23187 | E105: 0 | F105: ST | G105: K | I105: 0 | J105: 18.343903 | K105: 1 | L105: High | N105: none | O105: Not in Bushfire Area
A106: T.F.000910/00.T01.SUP | B106: 58 | C106: 1 | D106: RP23185 | E106: 0 | F106: ST | G106: B | I106: 0 | J106: 18.62541586 | K106: 0 | L106: High | N106: within corridor | O106: Not in Bushfire Area
A107: T.F.000910/00.T01.SUP | B107: 58 | C107: 1 | D107: RP23183 | E107: 0 | F107: ST | G107: A | I107: 0 | J107: 18.75772547 | K107: 0 | L107: High | N107: none | O107: Not in Bushfire Area
A108: T.F.000910/00.T01.SUP | B108: 58 | C108: 1 | D108: RP23180 | E108: 0 | F108: ST | G108: B | I108: 0 | J108: 18.76033004 | K108: 0 | L108: High | N108: none | O108: Not in Bushfire Area
A109: T.F.000910/00.T01.SUP | B109: 58 | C109: 1 | D109: RP23179 | E109: 0 | F109: ST | G109: B | I109: 0 | J109: 18.7353955 | K109: 0 | L109: High | N109: none | O109: Not in Bushfire Area
A110: T.F.000910/00.T01.SUP | B110: 58 | C110: 1 | D110: RP23178 | E110: 0 | F110: ST | G110: B | I110: 0 | J110: 18.55969005 | K110: 0 | L110: High | N110: within 10m | O110: Not in Bushfire Area
A111: T.F.000910/00.T01.SUP | B111: 58 | C111: 1 | D111: RP23177 | E111: 0 | F111: ST | G111: B | I111: 0 | J111: 18.39467845 | K111: 1 | L111: High | N111: none | O111: Not in Bushfire Area
A112: T.F.000910/00.T01.SUP | B112: 58 | C112: 1 | D112: RP23174 | E112: 0 | F112: ST | G112: B | I112: 0 | J112: 17.96526525 | K112: 0 | L112: High | N112: none | O112: Not in Bushfire Area
A113: T.F.000910/00.T01.SUP | B113: 58 | C113: 1 | D113: RP23171 | E113: 0 | F113: ST | G113: A | I113: 0 | J113: 17.912607 | K113: 0 | L113: High | N113: none | O113: Not in Bushfire Area
A114: T.F.000910/00.T01.SUP | B114: 58 | C114: 1 | D114: RP23167 | E114: 0 | F114: ST | G114: B | I114: 101 | J114: 17.874554 | K114: 0 | L114: High | N114: none | O114: Not in Bushfire Area
A115: T.F.000910/00.T01.SUP | B115: 58 | C115: 1 | D115: RP23168 | E115: 0 | F115: ST | G115: B | I115: 117 | J115: 17.84832824 | K115: 0 | L115: High | N115: none | O115: Not in Bushfire Area
A116: T.F.000910/00.T01.SUP | B116: 58 | C116: 1 | D116: RP23164 | E116: 0 | F116: ST | G116: B | I116: 0 | J116: 17.6194408 | K116: 0 | L116: High | N116: none | O116: Not in Bushfire Area
A117: T.F.000910/00.T01.SUP | B117: 58 | C117: 1 | D117: RP23162 | E117: 0 | F117: ST | G117: B | I117: 0 | J117: 17.3859282 | K117: 0 | L117: High | N117: none | O117: Not in Bushfire Area
A118: T.F.000910/00.T01.SUP | B118: 58 | C118: 1 | D118: PE25178 | E118: 0 | F118: ST | G118: B | I118: 113 | J118: 16.98016149 | K118: 0 | L118: High | N118: none | O118: Not in Bushfire Area
A119: T.F.000910/00.T01.SUP | B119: 58 | C119: 1 | D119: PE25179 | E119: 0 | F119: ST | G119: B | I119: 0 | J119: 17.01210878 | K119: 0 | L119: High | N119: within 10m | O119: Not in Bushfire Area
A120: T.F.000910/00.T01.SUP | B120: 58 | C120: 1 | D120: PE25158 | E120: 0 | F120: ST | G120: B | I120: 0 | J120: 14.25315875 | K120: 0 | L120: High | N120: within 10m | O120: Not in Bushfire Area
A121: T.F.000910/00.T01.SUP | B121: 57 | C121: 1 | D121: PE25155 | E121: 0 | F121: ST | G121: DT6 | I121: 0 | J121: 14.23227655 | K121: 0 | L121: High | N121: within 10m | O121: Cat 1
A122: T.F.000910/00.T01.SUP | B122: 57 | C122: 1 | D122: PE25149 | E122: 0 | F122: ST | G122: DS4 | I122: 0 | J122: 15.43196761 | K122: 1 | L122: High | N122: none | O122: Cat 1
A123: T.F.000910/00.T01.SUP | B123: 57 | C123: 1 | D123: PE25153 | E123: 0 | F123: ST | G123: DS4 | I123: 0 | J123: 14.71467707 | K123: 0 | L123: High | N123: none | O123: Cat 1
A124: T.F.000910/00.T01.SUP | B124: 58 | C124: 1 | D124: PE25159 | E124: 0 | F124: ST | G124: A | I124: 0 | J124: 14.34354724 | K124: 0 | L124: High | N124: none | O124: Not in Bushfire Area
A125: T.F.000910/00.T01.SUP | B125: 57 | C125: 1 | D125: PE25161 | E125: 0 | F125: ST | G125: DS4X | I125: 0 | J125: 14.49775487 | K125: 0 | L125: High | N125: none | O125: Not in Bushfire Area
A126: T.F.000910/00.T01.SUP | B126: 57 | C126: 1 | D126: PE25163 | E126: 0 | F126: ST | G126: DS4X | I126: 0 | J126: 14.81913462 | K126: 0 | L126: High | N126: none | O126: Not in Bushfire Area
A127: T.F.000910/00.T01.SUP | B127: 57 | C127: 1 | D127: PE25165 | E127: 0 | F127: ST | G127: DT6X | I127: 0 | J127: 15.12379073 | K127: 1 | L127: High | N127: none | O127: Not in Bushfire Area
A128: T.F.000910/00.T01.SUP | B128: 57 | C128: 1 | D128: PE25167 | E128: 0 | F128: ST | G128: DT6 | I128: 0 | J128: 15.54636135 | K128: 0 | L128: High | N128: none | O128: Not in Bushfire Area
A129: T.F.000910/00.T01.SUP | B129: 58 | C129: 1 | D129: PE25172 | E129: 0 | F129: ST | G129: B | I129: 0 | J129: 16.46824475 | K129: 1 | L129: High | N129: none | O129: Not in Bushfire Area
A130: T.F.000910/00.T01.SUP | B130: 57 | C130: 1 | D130: PE25170 | E130: 0 | F130: ST | G130: DT6 | I130: 0 | J130: 16.22726265 | K130: 0 | L130: High | N130: none | O130: Not in Bushfire Area
A131: T.F.000910/00.T01.SUP | B131: 58 | C131: 1 | D131: PE25176 | E131: 0 | F131: ST | G131: B | I131: 0 | J131: 16.70125984 | K131: 1 | L131: High | N131: none | O131: Not in Bushfire Area
A132: T.F.000910/00.T01.SUP | B132: 58 | C132: 1 | D132: PE25174 | E132: 0 | F132: ST | G132: B | I132: 0 | J132: 16.54624865 | K132: 0 | L132: High | N132: none | O132: Not in Bushfire Area
A133: T.F.000910/00.T01.SUP | B133: 58 | C133: 1 | D133: RP23169 | E133: 0 | F133: ST | G133: B | I133: 0 | J133: 17.96144209 | K133: 0 | L133: High | N133: none | O133: Not in Bushfire Area
A134: T.F.000910/00.T01.SUP | B134: 58 | C134: 1 | D134: RP23170 | E134: 0 | F134: ST | G134: C | I134: 100 | J134: 18.05707581 | K134: 1 | L134: High | N134: none | O134: Not in Bushfire Area
A135: T.F.000910/00.T01.SUP | B135: 57 | C135: 1 | D135: PE25151 | E135: 0 | F135: ST | G135: DS4 | I135: 0 | J135: 15.15698626 | K135: 0 | L135: High | N135: none | O135: Cat 1
A136: T.F.000910/00.T02.SUP | B136: 22 | C136: 1 | D136: RP23040 | E136: 0 | F136: ST | G136: DTN2 | I136: 0 | J136: 17.99419066 | K136: 0 | L136: High | N136: none | O136: Not in Bushfire Area
A137: T.F.000910/00.T02.SUP | B137: 58 | C137: 1 | D137: RP23042 | E137: 0 | F137: ST | G137: E | I137: 0 | J137: 17.72818435 | K137: 0 | L137: High | N137: none | O137: Not in Bushfire Area
A138: T.F.000910/00.T02.SUP | B138: 58 | C138: 1 | D138: RP23044 | E138: 0 | F138: ST | G138: A | I138: 0 | J138: 17.37278046 | K138: 1 | L138: High | N138: none | O138: Not in Bushfire Area
A139: T.F.000910/00.T02.SUP | B139: 58 | C139: 1 | D139: RP23046 | E139: 0 | F139: ST | G139: N | I139: 0 | J139: 16.95921321 | K139: 1 | L139: High | N139: within 10m | O139: Not in Bushfire Area
A140: T.F.000910/00.T02.SUP | B140: 58 | C140: 1 | D140: RP23049 | E140: 0 | F140: ST | G140: E | I140: 0 | J140: 16.18743911 | K140: 1 | L140: High | N140: within 10m | O140: Not in Bushfire Area
A141: T.F.000910/00.T02.SUP | B141: 58 | C141: 1 | D141: RP23052 | E141: 0 | F141: ST | G141: A | I141: 0 | J141: 15.51000659 | K141: 1 | L141: High | N141: none | O141: Not in Bushfire Area
A142: T.F.000910/00.T02.SUP | B142: 58 | C142: 1 | D142: LE35903 | E142: 0 | F142: ST | G142: E | I142: 0 | J142: 14.2587059 | K142: 0 | L142: High | N142: none | O142: Not in Bushfire Area
A143: T.F.000910/00.T02.SUP | B143: 58 | C143: 1 | D143: RP23054 | E143: 0 | F143: ST | G143: E | I143: 0 | J143: 15.00209196 | K143: 1 | L143: High | N143: none | O143: Not in Bushfire Area
A144: T.F.000910/00.T02.SUP | B144: 58 | C144: 1 | D144: LE35902 | E144: 0 | F144: ST | G144: E | I144: 0 | J144: 14.57132657 | K144: 2 | L144: High | N144: within 10m | O144: Not in Bushfire Area
A145: T.F.000910/00.T02.SUP | B145: 58 | C145: 1 | D145: LE35906 | E145: 0 | F145: ST | G145: N | I145: 0 | J145: 13.67226052 | K145: 1 | L145: High | N145: none | O145: Not in Bushfire Area
A146: T.F.000910/00.T02.SUP | B146: 58 | C146: 1 | D146: LE35908 | E146: 0 | F146: ST | G146: E | I146: 0 | J146: 13.26250305 | K146: 2 | L146: High | N146: none | O146: Not in Bushfire Area
A147: T.F.000910/00.T02.SUP | B147: 58 | C147: 1 | D147: LE35912 | E147: 0 | F147: ST | G147: E | I147: 0 | J147: 12.69913349 | K147: 0 | L147: High | N147: none | O147: Not in Bushfire Area
A148: T.F.000910/00.T02.SUP | B148: 58 | C148: 1 | D148: LE35914 | E148: 0 | F148: ST | G148: A | I148: 0 | J148: 12.99994175 | K148: 1 | L148: High | N148: within 10m | O148: Not in Bushfire Area
A149: T.F.000910/00.T02.SUP | B149: 58 | C149: 1 | D149: LE35915 | E149: 0 | F149: ST | G149: A | I149: 0 | J149: 13.14191076 | K149: 0 | L149: High | N149: none | O149: Not in Bushfire Area
A150: T.F.000910/00.T03.SUP | B150: 45 | C150: 1 | D150: RP23192 | E150: 0 | F150: ST | G150: DTN | I150: 0 | J150: 18.42263727 | K150: 0 | L150: High | N150: none | O150: Not in Bushfire Area
A151: T.F.000910/00.T03.SUP | B151: 58 | C151: 1 | D151: RP23189 | E151: 0 | F151: ST | G151: B | I151: 129 | J151: 18.486771 | K151: 0 | L151: High | N151: none | O151: Not in Bushfire Area
A152: T.F.000910/00.T03.SUP | B152: 45 | C152: 1 | D152: RP23191 | E152: 0 | F152: ST | G152: DTO | I152: 0 | J152: 18.70940432 | K152: 1 | L152: High | N152: none | O152: Not in Bushfire Area
A153: T.F.000911/00.T01.SUP | B153: 57 | C153: 1 | D153: RP23188 | E153: 0 | F153: ST | G153: DT6 | I153: 0 | J153: 18.29721123 | K153: 1 | L153: High | N153: none | O153: Not in Bushfire Area
A154: T.F.000911/00.T01.SUP | B154: 58 | C154: 1 | D154: RP23186 | E154: 0 | F154: ST | G154: B | I154: 0 | J154: 18.46211037 | K154: 0 | L154: High | N154: within 10m | O154: Not in Bushfire Area
A155: T.F.000911/00.T01.SUP | B155: 58 | C155: 1 | D155: RP23184 | E155: 0 | F155: ST | G155: B | I155: 144 | J155: 18.75656464 | K155: 0 | L155: High | N155: within corridor | O155: Not in Bushfire Area
A156: T.F.000911/00.T01.SUP | B156: 58 | C156: 1 | D156: RP23182 | E156: 0 | F156: ST | G156: A | I156: 0 | J156: 18.75713005 | K156: 0 | L156: High | N156: within 10m | O156: Not in Bushfire Area
A157: T.F.000911/00.T01.SUP | B157: 58 | C157: 1 | D157: RP23181 | E157: 0 | F157: ST | G157: A | I157: 0 | J157: 18.75723745 | K157: 0 | L157: High | N157: none | O157: Not in Bushfire Area
A158: T.F.000911/00.T01.SUP | B158: 58 | C158: 1 | D158: RP23176 | E158: 0 | F158: ST | G158: B | I158: 0 | J158: 18.25793722 | K158: 0 | L158: High | N158: none | O158: Not in Bushfire Area
A159: T.F.000911/00.T01.SUP | B159: 58 | C159: 1 | D159: RP23175 | E159: 0 | F159: ST | G159: B | I159: 0 | J159: 18.08825881 | K159: 0 | L159: High | N159: within 10m | O159: Not in Bushfire Area
A160: T.F.000911/00.T01.SUP | B160: 58 | C160: 1 | D160: RP23173 | E160: 0 | F160: ST | G160: A | I160: 0 | J160: 17.88395216 | K160: 0 | L160: High | N160: none | O160: Not in Bushfire Area
A161: T.F.000911/00.T01.SUP | B161: 58 | C161: 1 | D161: RP23172 | E161: 0 | F161: ST | G161: C | I161: 100 | J161: 17.80946524 | K161: 0 | L161: High | N161: none | O161: Not in Bushfire Area
A162: T.F.000911/00.T01.SUP | B162: 58 | C162: 1 | D162: RP23166 | E162: 0 | F162: ST | G162: A | I162: 0 | J162: 17.80997114 | K162: 0 | L162: High | N162: none | O162: Not in Bushfire Area
A163: T.F.000911/00.T01.SUP | B163: 58 | C163: 1 | D163: RP23165 | E163: 0 | F163: ST | G163: B | I163: 111 | J163: 17.73218597 | K163: 0 | L163: High | N163: none | O163: Not in Bushfire Area
A164: T.F.000911/00.T01.SUP | B164: 58 | C164: 1 | D164: RP23163 | E164: 0 | F164: ST | G164: B | I164: 0 | J164: 17.4966943 | K164: 0 | L164: High | N164: within 10m | O164: Not in Bushfire Area
A165: T.F.000911/00.T01.SUP | B165: 58 | C165: 1 | D165: RP23161 | E165: 0 | F165: ST | G165: C | I165: 0 | J165: 17.27427325 | K165: 0 | L165: High | N165: none | O165: Not in Bushfire Area
A166: T.F.000911/00.T01.SUP | B166: 58 | C166: 1 | D166: PE25180 | E166: 0 | F166: ST | G166: C | I166: 0 | J166: 17.10712296 | K166: 0 | L166: High | N166: none | O166: Not in Bushfire Area
A167: T.F.000911/00.T01.SUP | B167: 58 | C167: 1 | D167: PE25177 | E167: 0 | F167: ST | G167: A | I167: 0 | J167: 16.84154933 | K167: 1 | L167: High | N167: none | O167: Not in Bushfire Area
A168: T.F.000911/00.T01.SUP | B168: 58 | C168: 1 | D168: PE25157 | E168: 0 | F168: ST | G168: K | I168: 0 | J168: 14.09241587 | K168: 0 | L168: High | N168: none | O168: Buffer
A169: T.F.000911/00.T01.SUP | B169: 57 | C169: 1 | D169: PE25148 | E169: 0 | F169: ST | G169: DT6 | I169: 0 | J169: 15.47902723 | K169: 0 | L169: High | N169: none | O169: Buffer
A170: T.F.000911/00.T01.SUP | B170: 57 | C170: 1 | D170: PE25150 | E170: 0 | F170: ST | G170: DT6 | I170: 0 | J170: 15.35135643 | K170: 0 | L170: High | N170: none | O170: Buffer
A171: T.F.000911/00.T01.SUP | B171: 57 | C171: 1 | D171: PE25152 | E171: 0 | F171: ST | G171: DT6 | I171: 0 | J171: 14.89527121 | K171: 0 | L171: High | N171: none | O171: Cat 1
A172: T.F.000911/00.T01.SUP | B172: 57 | C172: 1 | D172: PE25154 | E172: 0 | F172: ST | G172: DS4 | I172: 0 | J172: 14.49692423 | K172: 0 | L172: High | N172: within corridor | O172: Buffer
A173: T.F.000911/00.T01.SUP | B173: 45 | C173: 1 | D173: PE25160 | E173: 0 | F173: ST | G173: DTN | I173: 0 | J173: 14.42684256 | K173: 0 | L173: High | N173: none | O173: Not in Bushfire Area
A174: T.F.000911/00.T01.SUP | B174: 57 | C174: 1 | D174: PE25162 | E174: 0 | F174: ST | G174: DS4X | I174: 0 | J174: 14.68362361 | K174: 0 | L174: High | N174: none | O174: Not in Bushfire Area
A175: T.F.000911/00.T01.SUP | B175: 57 | C175: 1 | D175: PE25164 | E175: 0 | F175: ST | G175: DT6 | I175: 0 | J175: 15.02145855 | K175: 1 | L175: High | N175: none | O175: Not in Bushfire Area
A176: T.F.000911/00.T01.SUP | B176: 57 | C176: 1 | D176: PE25166 | E176: 0 | F176: ST | G176: DT6X | I176: 0 | J176: 15.28778649 | K176: 1 | L176: High | N176: none | O176: Not in Bushfire Area
A177: T.F.000911/00.T01.SUP | B177: 57 | C177: 1 | D177: PE25168 | E177: 0 | F177: ST | G177: DT6 | I177: 0 | J177: 15.82932481 | K177: 2 | L177: High | N177: within 10m | O177: Not in Bushfire Area
A178: T.F.000911/00.T01.SUP | B178: 58 | C178: 1 | D178: PE25171 | E178: 0 | F178: ST | G178: B | I178: 135 | J178: 16.4282273 | K178: 1 | L178: High | N178: none | O178: Not in Bushfire Area
A179: T.F.000911/00.T01.SUP | B179: 57 | C179: 1 | D179: PE25169 | E179: 0 | F179: ST | G179: DS4X | I179: 0 | J179: 16.03308096 | K179: 0 | L179: High | N179: none | O179: Not in Bushfire Area
A180: T.F.000911/00.T01.SUP | B180: 58 | C180: 1 | D180: PE25175 | E180: 0 | F180: ST | G180: B | I180: 0 | J180: 16.61439076 | K180: 0 | L180: High | N180: none | O180: Not in Bushfire Area
A181: T.F.000911/00.T01.SUP | B181: 58 | C181: 1 | D181: PE25173 | E181: 0 | F181: ST | G181: B | I181: 0 | J181: 16.49510711 | K181: 0 | L181: High | N181: none | O181: Not in Bushfire Area
A182: T.F.000911/00.T02.SUP | B182: 58 | C182: 1 | D182: RP23043 | E182: 0 | F182: ST | G182: N | I182: 0 | J182: 17.5327737 | K182: 0 | L182: High | N182: within 10m | O182: Not in Bushfire Area
A183: T.F.000911/00.T02.SUP | B183: 58 | C183: 1 | D183: RP23045 | E183: 0 | F183: ST | G183: N | I183: 0 | J183: 17.17617091 | K183: 1 | L183: High | N183: none | O183: Not in Bushfire Area
A184: T.F.000911/00.T02.SUP | B184: 58 | C184: 1 | D184: RP23047 | E184: 0 | F184: ST | G184: N | I184: 0 | J184: 16.70611445 | K184: 1 | L184: High | N184: within 10m | O184: Not in Bushfire Area
A185: T.F.000911/00.T02.SUP | B185: 58 | C185: 1 | D185: RP23048 | E185: 0 | F185: ST | G185: A | I185: 0 | J185: 16.43928395 | K185: 2 | L185: High | N185: within 10m | O185: Not in Bushfire Area
A186: T.F.000911/00.T02.SUP | B186: 58 | C186: 1 | D186: RP23050 | E186: 0 | F186: ST | G186: A | I186: 0 | J186: 15.84449455 | K186: 0 | L186: High | N186: none | O186: Not in Bushfire Area
A187: T.F.000911/00.T02.SUP | B187: 58 | C187: 1 | D187: RP23051 | E187: 0 | F187: ST | G187: A | I187: 0 | J187: 15.70966816 | K187: 1 | L187: High | N187: none | O187: Not in Bushfire Area
A188: T.F.000911/00.T02.SUP | B188: 58 | C188: 1 | D188: RP23053 | E188: 0 | F188: ST | G188: A | I188: 0 | J188: 15.28517061 | K188: 0 | L188: High | N188: within 10m | O188: Not in Bushfire Area
A189: T.F.000911/00.T02.SUP | B189: 58 | C189: 1 | D189: LE35904 | E189: 0 | F189: ST | G189: A | I189: 0 | J189: 14.01448136 | K189: 0 | L189: High | N189: none | O189: Not in Bushfire Area
A190: T.F.000911/00.T02.SUP | B190: 58 | C190: 1 | D190: LE35901 | E190: 0 | F190: ST | G190: A | I190: 0 | J190: 14.72692212 | K190: 0 | L190: High | N190: none | O190: Not in Bushfire Area
A191: T.F.000911/00.T02.SUP | B191: 58 | C191: 1 | D191: LE35905 | E191: 0 | F191: ST | G191: A | I191: 0 | J191: 13.80986027 | K191: 0 | L191: High | N191: within 10m | O191: Not in Bushfire Area
A192: T.F.000911/00.T02.SUP | B192: 58 | C192: 1 | D192: LE35907 | E192: 0 | F192: ST | G192: A | I192: 0 | J192: 13.48282992 | K192: 0 | L192: High | N192: within corridor | O192: Not in Bushfire Area
A193: T.F.000911/00.T02.SUP | B193: 58 | C193: 1 | D193: LE35909 | E193: 0 | F193: ST | G193: A | I193: 0 | J193: 13.28200211 | K193: 1 | L193: High | N193: none | O193: Not in Bushfire Area
A194: T.F.000911/00.T02.SUP | B194: 58 | C194: 1 | D194: LE35910 | E194: 0 | F194: ST | G194: A | I194: 0 | J194: 13.13414124 | K194: 0 | L194: High | N194: none | O194: Not in Bushfire Area
A195: T.F.000911/00.T02.SUP | B195: 58 | C195: 1 | D195: LE35913 | E195: 0 | F195: ST | G195: N | I195: 0 | J195: 12.84919226 | K195: 0 | L195: High | N195: within 10m | O195: Not in Bushfire Area
A196: T.F.000911/00.T02.SUP | B196: 58 | C196: 1 | D196: LE35911 | E196: 0 | F196: ST | G196: E | I196: 0 | J196: 12.88965764 | K196: 1 | L196: High | N196: none | O196: Not in Bushfire Area
A197: T.F.000911/00.T02.SUP | B197: 58 | C197: 1 | D197: LE35916 | E197: 0 | F197: ST | G197: E | I197: 0 | J197: 13.16733491 | K197: 2 | L197: High | N197: none | O197: Not in Bushfire Area
A198: T.F.000911/00.T02.SUP | B198: 22 | C198: 1 | D198: RP23041 | E198: 0 | F198: ST | G198: DTN2 | I198: 0 | J198: 17.8888606 | K198: 0 | L198: High | N198: none | O198: Not in Bushfire Area
A199: T.F.000911/00.T03.SUP | B199: 46 | C199: 1 | D199: RP23190 | E199: 0 | F199: ST | G199: DTO | I199: 0 | J199: 18.66976429 | K199: 0 | L199: High | N199: none | O199: Not in Bushfire Area
A200: T.F.000911/00.T03.SUP | B200: 45 | C200: 1 | D200: RP23193 | E200: 0 | F200: ST | G200: DTO | I200: 0 | J200: 18.30789413 | K200: 0 | L200: High | N200: none | O200: Not in Bushfire Area
A201: T.F.000912/00.T01.SUP | B201: 57 | C201: 1 | D201: SU12477 | E201: 0 | F201: ST | G201: D | I201: 0 | J201: 12.60741713 | K201: 1 | L201: High | N201: within 10m | O201: Buffer
A202: T.F.000912/00.T01.SUP | B202: 57 | C202: 1 | D202: SU12479 | E202: 0 | F202: ST | G202: T | I202: 0 | J202: 12.22214528 | K202: 1 | L202: High | N202: none | O202: Not in Bushfire Area
... 503 more rows

Sheet A. Age Profile
C1: Asset Population Age Profile
A3: Asset Age | B3: Median Age (x) | C3: Freq. of x (f) | D3: Cumulative Freq. of x (F) | E3: f.x | G3: E(f) | H3: Asset Units | K3: Summary Statisitics | N3: Additional Information for Graph
A4: 0 | B4: 0.5 | C4: =COUNTIF('A. Population Info'!$B:$B, 'A. Age Profile'!A4) -> 0 | D4: =SUM($C$4:C4) -> 0 | E4: =B4*C4 -> 0 | F4: =(B4-$L$6)^2*C4 -> 0 | G4: =_xlfn.NORM.DIST(B4,$L$6,$L$7,FALSE)*$L$4 -> 1.215275154e-15 | H4: =SUMIF('A. Population Info'!$B:$B, A4,'A. Population Info'!$C:$C) -> 0 | K4: Population Bins (n) | L4: =SUM(C:C) -> 700
A5: 1 | B5: 1.5 | C5: =COUNTIF('A. Population Info'!$B:$B, 'A. Age Profile'!A5) -> 0 | D5: =SUM($C$4:C5) -> 0 | E5: =B5*C5 -> 0 | F5: 0 | G5: =_xlfn.NORM.DIST(B5,$L$6,$L$7,FALSE)*$L$4 -> 5.204628508e-15 | H5: =SUMIF('A. Population Info'!$B:$B, A5,'A. Population Info'!$C:$C) -> 0 | K5: No. of Asset Units | L5: =SUM(H:H) -> 700
A6: 2 | B6: 2.5 | C6: =COUNTIF('A. Population Info'!$B:$B, 'A. Age Profile'!A6) -> 0 | D6: =SUM($C$4:C6) -> 0 | E6: =B6*C6 -> 0 | F6: 0 | G6: 2.166908543e-14 | H6: =SUMIF('A. Population Info'!$B:$B, A6,'A. Population Info'!$C:$C) -> 0 | K6: Mean Age | L6: =SUM(E:E)/SUM(C:C) -> 52.50857143 | N6: Mean Marker | O6: =MATCH(L6,$A$4:$A$104,1) -> 53 | P6: =P8 -> 98
A7: 3 | B7: 3.5 | C7: =COUNTIF('A. Population Info'!$B:$B, 'A. Age Profile'!A7) -> 0 | D7: =SUM($C$4:C7) -> 0 | E7: 0 | F7: 0 | G7: 8.770556601e-14 | H7: =SUMIF('A. Population Info'!$B:$B, A7,'A. Population Info'!$C:$C) -> 0 | K7: Standard Deviation | L7: =(SUM(F:F)/SUM(C:C))^0.5 -> 5.95074408
A8: 4 | B8: 4.5 | C8: =COUNTIF('A. Population Info'!$B:$B, 'A. Age Profile'!A8) -> 0 | D8: =SUM($C$4:C8) -> 0 | E8: 0 | F8: 0 | G8: 3.451035745e-13 | H8: =SUMIF('A. Population Info'!$B:$B, A8,'A. Population Info'!$C:$C) -> 0 | K8: Median Age | L8: =L13+(((L4/2)-L10)/L11)*L12 -> 53.55913978 | N8: Median Marker | O8: =MATCH(L8,$A$4:$A$104,1) -> 54 | P8: =INDEX($C$4:$C$104,O8)+5 -> 98
A9: 5 | B9: 5.5 | C9: =COUNTIF('A. Population Info'!$B:$B, 'A. Age Profile'!A9) -> 0 | D9: =SUM($C$4:C9) -> 0 | E9: 0 | F9: 0 | G9: 1.320101997e-12 | H9: =SUMIF('A. Population Info'!$B:$B, A9,'A. Population Info'!$C:$C) -> 0 | K9: Mode Age | L9: =MATCH(MAX(C4:C104),C4:C104,0) -> 54
A10: 6 | B10: 6.5 | C10: =COUNTIF('A. Population Info'!$B:$B, 'A. Age Profile'!A10) -> 0 | D10: =SUM($C$4:C10) -> 0 | E10: 0 | F10: 0 | G10: 4.909092852e-12 | H10: =SUMIF('A. Population Info'!$B:$B, A10,'A. Population Info'!$C:$C) -> 0 | K10: F | L10: =INDEX(D4:D104,MATCH(L4/2,$D$4:$D$104,1)) -> 298
A11: 7 | B11: 7.5 | C11: =COUNTIF('A. Population Info'!$B:$B, 'A. Age Profile'!A11) -> 0 | D11: =SUM($C$4:C11) -> 0 | E11: 0 | F11: 0 | G11: 1.774723636e-11 | H11: =SUMIF('A. Population Info'!$B:$B, A11,'A. Population Info'!$C:$C) -> 0 | K11: fm | L11: =INDEX(C4:C104,MATCH(L4/2,$D$4:$D$104,1)+1) -> 93
A12: 8 | B12: 8.5 | C12: =COUNTIF('A. Population Info'!$B:$B, 'A. Age Profile'!A12) -> 0 | D12: =SUM($C$4:C12) -> 0 | E12: 0 | F12: 0 | G12: 6.237290167e-11 | H12: =SUMIF('A. Population Info'!$B:$B, A12,'A. Population Info'!$C:$C) -> 0 | K12: i | L12: =B6-B5 -> 1
A13: 9 | B13: 9.5 | C13: =COUNTIF('A. Population Info'!$B:$B, 'A. Age Profile'!A13) -> 0 | D13: =SUM($C$4:C13) -> 0 | E13: 0 | F13: 0 | G13: 2.131065959e-10 | H13: =SUMIF('A. Population Info'!$B:$B, A13,'A. Population Info'!$C:$C) -> 0 | K13: Lm | L13: =INDEX(B4:B104,MATCH(L4/2,$D$4:$D$104,1))+L12/2 -> 53
A14: 10 | B14: 10.5 | C14: =COUNTIF('A. Population Info'!$B:$B, 'A. Age Profile'!A14) -> 0 | D14: =SUM($C$4:C14) -> 0 | E14: 0 | F14: 0 | G14: 7.078374939e-10 | H14: =SUMIF('A. Population Info'!$B:$B, A14,'A. Population Info'!$C:$C) -> 0
A15: 11 | B15: 11.5 | C15: =COUNTIF('A. Population Info'!$B:$B, 'A. Age Profile'!A15) -> 0 | D15: =SUM($C$4:C15) -> 0 | E15: 0 | F15: 0 | G15: 2.285630187e-09 | H15: =SUMIF('A. Population Info'!$B:$B, A15,'A. Population Info'!$C:$C) -> 0
A16: 12 | B16: 12.5 | C16: =COUNTIF('A. Population Info'!$B:$B, 'A. Age Profile'!A16) -> 1 | D16: =SUM($C$4:C16) -> 1 | E16: 12.5 | F16: 1600.685788 | G16: 7.174870904e-09 | H16: =SUMIF('A. Population Info'!$B:$B, A16,'A. Population Info'!$C:$C) -> 1
A17: 13 | B17: 13.5 | C17: =COUNTIF('A. Population Info'!$B:$B, 'A. Age Profile'!A17) -> 0 | D17: =SUM($C$4:C17) -> 1 | E17: 0 | F17: 0 | G17: 2.189565531e-08 | H17: =SUMIF('A. Population Info'!$B:$B, A17,'A. Population Info'!$C:$C) -> 0
A18: 14 | B18: 14.5 | C18: =COUNTIF('A. Population Info'!$B:$B, 'A. Age Profile'!A18) -> 0 | D18: =SUM($C$4:C18) -> 1 | E18: 0 | F18: 0 | G18: 6.495873101e-08 | H18: =SUMIF('A. Population Info'!$B:$B, A18,'A. Population Info'!$C:$C) -> 0
A19: 15 | B19: 15.5 | C19: =COUNTIF('A. Population Info'!$B:$B, 'A. Age Profile'!A19) -> 0 | D19: =SUM($C$4:C19) -> 1 | E19: 0 | F19: 0 | G19: 1.873496323e-07 | H19: =SUMIF('A. Population Info'!$B:$B, A19,'A. Population Info'!$C:$C) -> 0
A20: 16 | B20: 16.5 | C20: =COUNTIF('A. Population Info'!$B:$B, 'A. Age Profile'!A20) -> 0 | D20: =SUM($C$4:C20) -> 1 | E20: 0 | F20: 0 | G20: 5.252957489e-07 | H20: =SUMIF('A. Population Info'!$B:$B, A20,'A. Population Info'!$C:$C) -> 0
A21: 17 | B21: 17.5 | C21: =COUNTIF('A. Population Info'!$B:$B, 'A. Age Profile'!A21) -> 0 | D21: =SUM($C$4:C21) -> 1 | E21: 0 | F21: 0 | G21: 1.431827356e-06 | H21: =SUMIF('A. Population Info'!$B:$B, A21,'A. Population Info'!$C:$C) -> 0
A22: 18 | B22: 18.5 | C22: =COUNTIF('A. Population Info'!$B:$B, 'A. Age Profile'!A22) -> 0 | D22: =SUM($C$4:C22) -> 1 | E22: 0 | F22: 0 | G22: 3.794138263e-06 | H22: =SUMIF('A. Population Info'!$B:$B, A22,'A. Population Info'!$C:$C) -> 0
A23: 19 | B23: 19.5 | C23: =COUNTIF('A. Population Info'!$B:$B, 'A. Age Profile'!A23) -> 0 | D23: =SUM($C$4:C23) -> 1 | E23: 0 | F23: 0 | G23: 9.773978491e-06 | H23: =SUMIF('A. Population Info'!$B:$B, A23,'A. Population Info'!$C:$C) -> 0
A24: 20 | B24: 20.5 | C24: =COUNTIF('A. Population Info'!$B:$B, 'A. Age Profile'!A24) -> 0 | D24: =SUM($C$4:C24) -> 1 | E24: 0 | F24: 0 | G24: 2.447740271e-05 | H24: =SUMIF('A. Population Info'!$B:$B, A24,'A. Population Info'!$C:$C) -> 0
A25: 21 | B25: 21.5 | C25: =COUNTIF('A. Population Info'!$B:$B, 'A. Age Profile'!A25) -> 0 | D25: =SUM($C$4:C25) -> 1 | E25: 0 | F25: 0 | G25: 5.959296795e-05 | H25: =SUMIF('A. Population Info'!$B:$B, A25,'A. Population Info'!$C:$C) -> 0
A26: 22 | B26: 22.5 | C26: =COUNTIF('A. Population Info'!$B:$B, 'A. Age Profile'!A26) -> 2 | D26: =SUM($C$4:C26) -> 3 | E26: 45 | F26: 1801.028718 | G26: 0.0001410458869 | H26: =SUMIF('A. Population Info'!$B:$B, A26,'A. Population Info'!$C:$C) -> 2
A27: 23 | B27: 23.5 | C27: =COUNTIF('A. Population Info'!$B:$B, 'A. Age Profile'!A27) -> 1 | D27: =SUM($C$4:C27) -> 4 | E27: 23.5 | F27: 841.4972163 | G27: 0.000324535018 | H27: =SUMIF('A. Population Info'!$B:$B, A27,'A. Population Info'!$C:$C) -> 1
A28: 24 | B28: 24.5 | C28: =COUNTIF('A. Population Info'!$B:$B, 'A. Age Profile'!A28) -> 0 | D28: =SUM($C$4:C28) -> 4 | E28: 0 | F28: 0 | G28: 0.0007259361637 | H28: =SUMIF('A. Population Info'!$B:$B, A28,'A. Population Info'!$C:$C) -> 0
A29: 25 | B29: 25.5 | C29: =COUNTIF('A. Population Info'!$B:$B, 'A. Age Profile'!A29) -> 0 | D29: =SUM($C$4:C29) -> 4 | E29: 0 | F29: 0 | G29: 0.001578596107 | H29: =SUMIF('A. Population Info'!$B:$B, A29,'A. Population Info'!$C:$C) -> 0
A30: 26 | B30: 26.5 | C30: =COUNTIF('A. Population Info'!$B:$B, 'A. Age Profile'!A30) -> 1 | D30: =SUM($C$4:C30) -> 5 | E30: 26.5 | F30: 676.4457878 | G30: 0.00333717784 | H30: =SUMIF('A. Population Info'!$B:$B, A30,'A. Population Info'!$C:$C) -> 1
A31: 27 | B31: 27.5 | C31: =COUNTIF('A. Population Info'!$B:$B, 'A. Age Profile'!A31) -> 0 | D31: =SUM($C$4:C31) -> 5 | E31: 0 | F31: 0 | G31: 0.006858409352 | H31: =SUMIF('A. Population Info'!$B:$B, A31,'A. Population Info'!$C:$C) -> 0
A32: 28 | B32: 28.5 | C32: =COUNTIF('A. Population Info'!$B:$B, 'A. Age Profile'!A32) -> 0 | D32: =SUM($C$4:C32) -> 5 | E32: 0 | F32: 0 | G32: 0.0137026064 | H32: =SUMIF('A. Population Info'!$B:$B, A32,'A. Population Info'!$C:$C) -> 0
A33: 29 | B33: 29.5 | C33: =COUNTIF('A. Population Info'!$B:$B, 'A. Age Profile'!A33) -> 0 | D33: =SUM($C$4:C33) -> 5 | E33: 0 | F33: 0 | G33: 0.02661452328 | H33: =SUMIF('A. Population Info'!$B:$B, A33,'A. Population Info'!$C:$C) -> 0
A34: 30 | B34: 30.5 | C34: =COUNTIF('A. Population Info'!$B:$B, 'A. Age Profile'!A34) -> 0 | D34: =SUM($C$4:C34) -> 5 | E34: 0 | F34: 0 | G34: 0.05025391815 | H34: =SUMIF('A. Population Info'!$B:$B, A34,'A. Population Info'!$C:$C) -> 0
A35: 31 | B35: 31.5 | C35: =COUNTIF('A. Population Info'!$B:$B, 'A. Age Profile'!A35) -> 5 | D35: =SUM($C$4:C35) -> 10 | E35: 157.5 | F35: 2206.800367 | G35: 0.09224798594 | H35: =SUMIF('A. Population Info'!$B:$B, A35,'A. Population Info'!$C:$C) -> 5
A36: 32 | B36: 32.5 | C36: =COUNTIF('A. Population Info'!$B:$B, 'A. Age Profile'!A36) -> 0 | D36: =SUM($C$4:C36) -> 10 | E36: 0 | F36: =(B36-$L$6)^2*C36 -> 0 | G36: 0.1646188586 | H36: =SUMIF('A. Population Info'!$B:$B, A36,'A. Population Info'!$C:$C) -> 0
A37: 33 | B37: 33.5 | C37: =COUNTIF('A. Population Info'!$B:$B, 'A. Age Profile'!A37) -> 0 | D37: =SUM($C$4:C37) -> 10 | E37: 0 | F37: 0 | G37: 0.2855867193 | H37: =SUMIF('A. Population Info'!$B:$B, A37,'A. Population Info'!$C:$C) -> 0
A38: 34 | B38: 34.5 | C38: =COUNTIF('A. Population Info'!$B:$B, 'A. Age Profile'!A38) -> 0 | D38: =SUM($C$4:C38) -> 10 | E38: 0 | F38: 0 | G38: 0.4816506571 | H38: =SUMIF('A. Population Info'!$B:$B, A38,'A. Population Info'!$C:$C) -> 0
A39: 35 | B39: 35.5 | C39: =COUNTIF('A. Population Info'!$B:$B, 'A. Age Profile'!A39) -> 0 | D39: =SUM($C$4:C39) -> 10 | E39: 0 | F39: 0 | G39: 0.7896998128 | H39: =SUMIF('A. Population Info'!$B:$B, A39,'A. Population Info'!$C:$C) -> 0
A40: 36 | B40: 36.5 | C40: =COUNTIF('A. Population Info'!$B:$B, 'A. Age Profile'!A40) -> 0 | D40: =SUM($C$4:C40) -> 10 | E40: 0 | F40: 0 | G40: 1.258715677 | H40: =SUMIF('A. Population Info'!$B:$B, A40,'A. Population Info'!$C:$C) -> 0
A41: 37 | B41: 37.5 | C41: =COUNTIF('A. Population Info'!$B:$B, 'A. Age Profile'!A41) -> 0 | D41: =SUM($C$4:C41) -> 10 | E41: 0 | F41: 0 | G41: 1.950423745 | H41: =SUMIF('A. Population Info'!$B:$B, A41,'A. Population Info'!$C:$C) -> 0
A42: 38 | B42: 38.5 | C42: =COUNTIF('A. Population Info'!$B:$B, 'A. Age Profile'!A42) -> 0 | D42: =SUM($C$4:C42) -> 10 | E42: 0 | F42: 0 | G42: 2.938096381 | H42: =SUMIF('A. Population Info'!$B:$B, A42,'A. Population Info'!$C:$C) -> 0
A43: 39 | B43: 39.5 | C43: =COUNTIF('A. Population Info'!$B:$B, 'A. Age Profile'!A43) -> 4 | D43: =SUM($C$4:C43) -> 14 | E43: 158 | F43: 676.8917224 | G43: 4.302677834 | H43: =SUMIF('A. Population Info'!$B:$B, A43,'A. Population Info'!$C:$C) -> 4
A44: 40 | B44: 40.5 | C44: =COUNTIF('A. Population Info'!$B:$B, 'A. Age Profile'!A44) -> 26 | D44: =SUM($C$4:C44) -> 40 | E44: 1053 | F44: 3749.350482 | G44: 6.125581865 | H44: =SUMIF('A. Population Info'!$B:$B, A44,'A. Population Info'!$C:$C) -> 26
A45: 41 | B45: 41.5 | C45: =COUNTIF('A. Population Info'!$B:$B, 'A. Age Profile'!A45) -> 0 | D45: =SUM($C$4:C45) -> 40 | E45: 0 | F45: 0 | G45: 8.477964541 | H45: =SUMIF('A. Population Info'!$B:$B, A45,'A. Population Info'!$C:$C) -> 0
A46: 42 | B46: 42.5 | C46: =COUNTIF('A. Population Info'!$B:$B, 'A. Age Profile'!A46) -> 0 | D46: =SUM($C$4:C46) -> 40 | E46: 0 | F46: 0 | G46: 11.40700341 | H46: =SUMIF('A. Population Info'!$B:$B, A46,'A. Population Info'!$C:$C) -> 0
A47: 43 | B47: 43.5 | C47: =COUNTIF('A. Population Info'!$B:$B, 'A. Age Profile'!A47) -> 0 | D47: =SUM($C$4:C47) -> 40 | E47: 0 | F47: 0 | G47: 14.92063393 | H47: =SUMIF('A. Population Info'!$B:$B, A47,'A. Population Info'!$C:$C) -> 0
A48: 44 | B48: 44.5 | C48: =COUNTIF('A. Population Info'!$B:$B, 'A. Age Profile'!A48) -> 0 | D48: =SUM($C$4:C48) -> 40 | E48: 0 | F48: 0 | G48: 18.97311799 | H48: =SUMIF('A. Population Info'!$B:$B, A48,'A. Population Info'!$C:$C) -> 0
A49: 45 | B49: 45.5 | C49: =COUNTIF('A. Population Info'!$B:$B, 'A. Age Profile'!A49) -> 35 | D49: =SUM($C$4:C49) -> 75 | E49: 1592.5 | F49: 1719.202571 | G49: 23.4544832 | H49: =SUMIF('A. Population Info'!$B:$B, A49,'A. Population Info'!$C:$C) -> 35
A50: 46 | B50: 46.5 | C50: =COUNTIF('A. Population Info'!$B:$B, 'A. Age Profile'!A50) -> 30 | D50: =SUM($C$4:C50) -> 105 | E50: 1395 | F50: 1083.087918 | G50: 28.18699359 | H50: =SUMIF('A. Population Info'!$B:$B, A50,'A. Population Info'!$C:$C) -> 30
A51: 47 | B51: 47.5 | C51: =COUNTIF('A. Population Info'!$B:$B, 'A. Age Profile'!A51) -> 75 | D51: =SUM($C$4:C51) -> 180 | E51: 3562.5 | F51: 1881.434082 | G51: 32.93118613 | H51: =SUMIF('A. Population Info'!$B:$B, A51,'A. Population Info'!$C:$C) -> 75
A52: 48 | B52: 48.5 | C52: =COUNTIF('A. Population Info'!$B:$B, 'A. Age Profile'!A52) -> 0 | D52: =SUM($C$4:C52) -> 180 | E52: 0 | F52: 0 | G52: 37.40259363 | H52: =SUMIF('A. Population Info'!$B:$B, A52,'A. Population Info'!$C:$C) -> 0
A53: 49 | B53: 49.5 | C53: =COUNTIF('A. Population Info'!$B:$B, 'A. Age Profile'!A53) -> 0 | D53: =SUM($C$4:C53) -> 180 | E53: 0 | F53: 0 | G53: 41.29826363 | H53: =SUMIF('A. Population Info'!$B:$B, A53,'A. Population Info'!$C:$C) -> 0
A54: 50 | B54: 50.5 | C54: =COUNTIF('A. Population Info'!$B:$B, 'A. Age Profile'!A54) -> 80 | D54: =SUM($C$4:C54) -> 260 | E54: 4040 | F54: 322.7487347 | G54: 44.32998598 | H54: =SUMIF('A. Population Info'!$B:$B, A54,'A. Population Info'!$C:$C) -> 80
A55: 51 | B55: 51.5 | C55: =COUNTIF('A. Population Info'!$B:$B, 'A. Age Profile'!A55) -> 13 | D55: =SUM($C$4:C55) -> 273 | E55: 669.5 | F55: 13.22381224 | G55: 46.25930716 | H55: =SUMIF('A. Population Info'!$B:$B, A55,'A. Population Info'!$C:$C) -> 13
A56: 52 | B56: 52.5 | C56: =COUNTIF('A. Population Info'!$B:$B, 'A. Age Profile'!A56) -> 25 | D56: =SUM($C$4:C56) -> 298 | E56: 1312.5 | F56: 0.001836734694 | G56: 46.92846858 | H56: =SUMIF('A. Population Info'!$B:$B, A56,'A. Population Info'!$C:$C) -> 25
A57: 53 | B57: 53.5 | C57: =COUNTIF('A. Population Info'!$B:$B, 'A. Age Profile'!A57) -> 93 | D57: =SUM($C$4:C57) -> 391 | E57: 4975.5 | F57: 91.41254694 | G57: 46.281707 | H57: =SUMIF('A. Population Info'!$B:$B, A57,'A. Population Info'!$C:$C) -> 93
A58: 54 | B58: 54.5 | C58: =COUNTIF('A. Population Info'!$B:$B, 'A. Age Profile'!A58) -> 42 | D58: =SUM($C$4:C58) -> 433 | E58: 2289 | F58: 166.5630857 | G58: 44.37292761 | H58: =SUMIF('A. Population Info'!$B:$B, A58,'A. Population Info'!$C:$C) -> 42
A59: 55 | B59: 55.5 | C59: =COUNTIF('A. Population Info'!$B:$B, 'A. Age Profile'!A59) -> 0 | D59: =SUM($C$4:C59) -> 433 | E59: 0 | F59: 0 | G59: 41.35828544 | H59: =SUMIF('A. Population Info'!$B:$B, A59,'A. Population Info'!$C:$C) -> 0
A60: 56 | B60: 56.5 | C60: =COUNTIF('A. Population Info'!$B:$B, 'A. Age Profile'!A60) -> 89 | D60: =SUM($C$4:C60) -> 522 | E60: 5028.5 | F60: 1417.903682 | G60: 37.47509112 | H60: =SUMIF('A. Population Info'!$B:$B, A60,'A. Population Info'!$C:$C) -> 89
A61: 57 | B61: 57.5 | C61: =COUNTIF('A. Population Info'!$B:$B, 'A. Age Profile'!A61) -> 49 | D61: =SUM($C$4:C61) -> 571 | E61: 2817.5 | F61: 1220.8036 | G61: 33.01099364 | H61: =SUMIF('A. Population Info'!$B:$B, A61,'A. Population Info'!$C:$C) -> 49
A62: 58 | B62: 58.5 | C62: =COUNTIF('A. Population Info'!$B:$B, 'A. Age Profile'!A62) -> 91 | D62: =SUM($C$4:C62) -> 662 | E62: 5323.5 | F62: 3266.646686 | G62: 28.2689856 | H62: =SUMIF('A. Population Info'!$B:$B, A62,'A. Population Info'!$C:$C) -> 91
A63: 59 | B63: 59.5 | C63: =COUNTIF('A. Population Info'!$B:$B, 'A. Age Profile'!A63) -> 25 | D63: =SUM($C$4:C63) -> 687 | E63: 1487.5 | F63: 1222.001837 | G63: 23.53409925 | H63: =SUMIF('A. Population Info'!$B:$B, A63,'A. Population Info'!$C:$C) -> 25
A64: 60 | B64: 60.5 | C64: =COUNTIF('A. Population Info'!$B:$B, 'A. Age Profile'!A64) -> 13 | D64: =SUM($C$4:C64) -> 700 | E64: 786.5 | F64: 830.218098 | G64: 19.0467405 | H64: =SUMIF('A. Population Info'!$B:$B, A64,'A. Population Info'!$C:$C) -> 13
A65: 61 | B65: 61.5 | C65: =COUNTIF('A. Population Info'!$B:$B, 'A. Age Profile'!A65) -> 0 | D65: =SUM($C$4:C65) -> 700 | E65: 0 | F65: 0 | G65: 14.9857843 | H65: =SUMIF('A. Population Info'!$B:$B, A65,'A. Population Info'!$C:$C) -> 0
A66: 62 | B66: 62.5 | C66: =COUNTIF('A. Population Info'!$B:$B, 'A. Age Profile'!A66) -> 0 | D66: =SUM($C$4:C66) -> 700 | E66: 0 | F66: 0 | G66: 11.46235931 | H66: =SUMIF('A. Population Info'!$B:$B, A66,'A. Population Info'!$C:$C) -> 0
A67: 63 | B67: 63.5 | C67: =COUNTIF('A. Population Info'!$B:$B, 'A. Age Profile'!A67) -> 0 | D67: =SUM($C$4:C67) -> 700 | E67: 0 | F67: 0 | G67: 8.52323155 | H67: =SUMIF('A. Population Info'!$B:$B, A67,'A. Population Info'!$C:$C) -> 0
A68: 64 | B68: 64.5 | C68: =COUNTIF('A. Population Info'!$B:$B, 'A. Age Profile'!A68) -> 0 | D68: =SUM($C$4:C68) -> 700 | E68: 0 | F68: =(B68-$L$6)^2*C68 -> 0 | G68: 6.161270615 | H68: =SUMIF('A. Population Info'!$B:$B, A68,'A. Population Info'!$C:$C) -> 0
A69: 65 | B69: 65.5 | C69: =COUNTIF('A. Population Info'!$B:$B, 'A. Age Profile'!A69) -> 0 | D69: =SUM($C$4:C69) -> 700 | E69: 0 | F69: 0 | G69: =_xlfn.NORM.DIST(B69,$L$6,$L$7,FALSE)*$L$4 -> 4.32984161 | H69: =SUMIF('A. Population Info'!$B:$B, A69,'A. Population Info'!$C:$C) -> 0
A70: 66 | B70: 66.5 | C70: =COUNTIF('A. Population Info'!$B:$B, 'A. Age Profile'!A70) -> 0 | D70: =SUM($C$4:C70) -> 700 | E70: =B70*C70 -> 0 | F70: 0 | G70: 2.958076924 | H70: =SUMIF('A. Population Info'!$B:$B, A70,'A. Population Info'!$C:$C) -> 0
A71: 67 | B71: 67.5 | C71: =COUNTIF('A. Population Info'!$B:$B, 'A. Age Profile'!A71) -> 0 | D71: =SUM($C$4:C71) -> 700 | E71: 0 | F71: 0 | G71: 1.964638478 | H71: =SUMIF('A. Population Info'!$B:$B, A71,'A. Population Info'!$C:$C) -> 0
A72: 68 | B72: 68.5 | C72: =COUNTIF('A. Population Info'!$B:$B, 'A. Age Profile'!A72) -> 0 | D72: =SUM($C$4:C72) -> 700 | E72: 0 | F72: 0 | G72: 1.268503167 | H72: =SUMIF('A. Population Info'!$B:$B, A72,'A. Population Info'!$C:$C) -> 0
A73: 69 | B73: 69.5 | C73: =COUNTIF('A. Population Info'!$B:$B, 'A. Age Profile'!A73) -> 0 | D73: =SUM($C$4:C73) -> 700 | E73: 0 | F73: 0 | G73: 0.7962257054 | H73: =SUMIF('A. Population Info'!$B:$B, A73,'A. Population Info'!$C:$C) -> 0
A74: 70 | B74: 70.5 | C74: =COUNTIF('A. Population Info'!$B:$B, 'A. Age Profile'!A74) -> 0 | D74: =SUM($C$4:C74) -> 700 | E74: 0 | F74: 0 | G74: 0.4858660582 | H74: =SUMIF('A. Population Info'!$B:$B, A74,'A. Population Info'!$C:$C) -> 0
A75: 71 | B75: 71.5 | C75: =COUNTIF('A. Population Info'!$B:$B, 'A. Age Profile'!A75) -> 0 | D75: =SUM($C$4:C75) -> 700 | E75: 0 | F75: 0 | G75: 0.2882256691 | H75: =SUMIF('A. Population Info'!$B:$B, A75,'A. Population Info'!$C:$C) -> 0
A76: 72 | B76: 72.5 | C76: =COUNTIF('A. Population Info'!$B:$B, 'A. Age Profile'!A76) -> 0 | D76: =SUM($C$4:C76) -> 700 | E76: 0 | F76: 0 | G76: 0.1662204598 | H76: =SUMIF('A. Population Info'!$B:$B, A76,'A. Population Info'!$C:$C) -> 0
A77: 73 | B77: 73.5 | C77: =COUNTIF('A. Population Info'!$B:$B, 'A. Age Profile'!A77) -> 0 | D77: =SUM($C$4:C77) -> 700 | E77: 0 | F77: 0 | G77: 0.09319058345 | H77: =SUMIF('A. Population Info'!$B:$B, A77,'A. Population Info'!$C:$C) -> 0
A78: 74 | B78: 74.5 | C78: =COUNTIF('A. Population Info'!$B:$B, 'A. Age Profile'!A78) -> 0 | D78: =SUM($C$4:C78) -> 700 | E78: 0 | F78: 0 | G78: 0.05079199959 | H78: =SUMIF('A. Population Info'!$B:$B, A78,'A. Population Info'!$C:$C) -> 0
A79: 75 | B79: 75.5 | C79: =COUNTIF('A. Population Info'!$B:$B, 'A. Age Profile'!A79) -> 0 | D79: =SUM($C$4:C79) -> 700 | E79: 0 | F79: 0 | G79: 0.02691251709 | H79: =SUMIF('A. Population Info'!$B:$B, A79,'A. Population Info'!$C:$C) -> 0
A80: 76 | B80: 76.5 | C80: =COUNTIF('A. Population Info'!$B:$B, 'A. Age Profile'!A80) -> 0 | D80: =SUM($C$4:C80) -> 700 | E80: 0 | F80: 0 | G80: 0.01386273926 | H80: =SUMIF('A. Population Info'!$B:$B, A80,'A. Population Info'!$C:$C) -> 0
A81: 77 | B81: 77.5 | C81: =COUNTIF('A. Population Info'!$B:$B, 'A. Age Profile'!A81) -> 0 | D81: =SUM($C$4:C81) -> 700 | E81: 0 | F81: 0 | G81: 0.00694191864 | H81: =SUMIF('A. Population Info'!$B:$B, A81,'A. Population Info'!$C:$C) -> 0
A82: 78 | B82: 78.5 | C82: =COUNTIF('A. Population Info'!$B:$B, 'A. Age Profile'!A82) -> 0 | D82: =SUM($C$4:C82) -> 700 | E82: 0 | F82: 0 | G82: 0.003379447563 | H82: =SUMIF('A. Population Info'!$B:$B, A82,'A. Population Info'!$C:$C) -> 0
A83: 79 | B83: 79.5 | C83: =COUNTIF('A. Population Info'!$B:$B, 'A. Age Profile'!A83) -> 0 | D83: =SUM($C$4:C83) -> 700 | E83: 0 | F83: 0 | G83: 0.001599365167 | H83: =SUMIF('A. Population Info'!$B:$B, A83,'A. Population Info'!$C:$C) -> 0
A84: 80 | B84: 80.5 | C84: =COUNTIF('A. Population Info'!$B:$B, 'A. Age Profile'!A84) -> 0 | D84: =SUM($C$4:C84) -> 700 | E84: 0 | F84: 0 | G84: 0.0007358432027 | H84: =SUMIF('A. Population Info'!$B:$B, A84,'A. Population Info'!$C:$C) -> 0
A85: 81 | B85: 81.5 | C85: =COUNTIF('A. Population Info'!$B:$B, 'A. Age Profile'!A85) -> 0 | D85: =SUM($C$4:C85) -> 700 | E85: 0 | F85: 0 | G85: 0.0003291233236 | H85: =SUMIF('A. Population Info'!$B:$B, A85,'A. Population Info'!$C:$C) -> 0
A86: 82 | B86: 82.5 | C86: =COUNTIF('A. Population Info'!$B:$B, 'A. Age Profile'!A86) -> 0 | D86: =SUM($C$4:C86) -> 700 | E86: 0 | F86: 0 | G86: 0.0001431092698 | H86: =SUMIF('A. Population Info'!$B:$B, A86,'A. Population Info'!$C:$C) -> 0
A87: 83 | B87: 83.5 | C87: =COUNTIF('A. Population Info'!$B:$B, 'A. Age Profile'!A87) -> 0 | D87: =SUM($C$4:C87) -> 700 | E87: 0 | F87: 0 | G87: 6.049404149e-05 | H87: =SUMIF('A. Population Info'!$B:$B, A87,'A. Population Info'!$C:$C) -> 0
A88: 84 | B88: 84.5 | C88: =COUNTIF('A. Population Info'!$B:$B, 'A. Age Profile'!A88) -> 0 | D88: =SUM($C$4:C88) -> 700 | E88: 0 | F88: 0 | G88: 2.485954423e-05 | H88: =SUMIF('A. Population Info'!$B:$B, A88,'A. Population Info'!$C:$C) -> 0
A89: 85 | B89: 85.5 | C89: =COUNTIF('A. Population Info'!$B:$B, 'A. Age Profile'!A89) -> 0 | D89: =SUM($C$4:C89) -> 700 | E89: 0 | F89: 0 | G89: 9.931376644e-06 | H89: =SUMIF('A. Population Info'!$B:$B, A89,'A. Population Info'!$C:$C) -> 0
A90: 86 | B90: 86.5 | C90: =COUNTIF('A. Population Info'!$B:$B, 'A. Age Profile'!A90) -> 0 | D90: =SUM($C$4:C90) -> 700 | E90: 0 | F90: 0 | G90: 3.857105088e-06 | H90: =SUMIF('A. Population Info'!$B:$B, A90,'A. Population Info'!$C:$C) -> 0
A91: 87 | B91: 87.5 | C91: =COUNTIF('A. Population Info'!$B:$B, 'A. Age Profile'!A91) -> 0 | D91: =SUM($C$4:C91) -> 700 | E91: 0 | F91: 0 | G91: 1.456294531e-06 | H91: =SUMIF('A. Population Info'!$B:$B, A91,'A. Population Info'!$C:$C) -> 0
A92: 88 | B92: 88.5 | C92: =COUNTIF('A. Population Info'!$B:$B, 'A. Age Profile'!A92) -> 0 | D92: =SUM($C$4:C92) -> 700 | E92: 0 | F92: 0 | G92: 5.345307499e-07 | H92: =SUMIF('A. Population Info'!$B:$B, A92,'A. Population Info'!$C:$C) -> 0
A93: 89 | B93: 89.5 | C93: =COUNTIF('A. Population Info'!$B:$B, 'A. Age Profile'!A93) -> 0 | D93: =SUM($C$4:C93) -> 700 | E93: 0 | F93: 0 | G93: 1.907356604e-07 | H93: =SUMIF('A. Population Info'!$B:$B, A93,'A. Population Info'!$C:$C) -> 0
A94: 90 | B94: 90.5 | C94: =COUNTIF('A. Population Info'!$B:$B, 'A. Age Profile'!A94) -> 0 | D94: =SUM($C$4:C94) -> 700 | E94: =B94*C94 -> 0 | F94: 0 | G94: 6.616477336e-08 | H94: =SUMIF('A. Population Info'!$B:$B, A94,'A. Population Info'!$C:$C) -> 0
A95: 91 | B95: 91.5 | C95: =COUNTIF('A. Population Info'!$B:$B, 'A. Age Profile'!A95) -> 0 | D95: =SUM($C$4:C95) -> 700 | E95: =B95*C95 -> 0 | F95: 0 | G95: 2.231297554e-08 | H95: =SUMIF('A. Population Info'!$B:$B, A95,'A. Population Info'!$C:$C) -> 0
A96: 92 | B96: 92.5 | C96: =COUNTIF('A. Population Info'!$B:$B, 'A. Age Profile'!A96) -> 0 | D96: =SUM($C$4:C96) -> 700 | E96: 0 | F96: 0 | G96: 7.315160808e-09 | H96: =SUMIF('A. Population Info'!$B:$B, A96,'A. Population Info'!$C:$C) -> 0
A97: 93 | B97: 93.5 | C97: =COUNTIF('A. Population Info'!$B:$B, 'A. Age Profile'!A97) -> 0 | D97: =SUM($C$4:C97) -> 700 | E97: 0 | F97: 0 | G97: 2.331449399e-09 | H97: =SUMIF('A. Population Info'!$B:$B, A97,'A. Population Info'!$C:$C) -> 0
A98: 94 | B98: 94.5 | C98: =COUNTIF('A. Population Info'!$B:$B, 'A. Age Profile'!A98) -> 0 | D98: =SUM($C$4:C98) -> 700 | E98: 0 | F98: 0 | G98: 7.223768821e-10 | H98: =SUMIF('A. Population Info'!$B:$B, A98,'A. Population Info'!$C:$C) -> 0
A99: 95 | B99: 95.5 | C99: =COUNTIF('A. Population Info'!$B:$B, 'A. Age Profile'!A99) -> 0 | D99: =SUM($C$4:C99) -> 700 | E99: 0 | F99: 0 | G99: 2.175892384e-10 | H99: =SUMIF('A. Population Info'!$B:$B, A99,'A. Population Info'!$C:$C) -> 0
A100: 96 | B100: 96.5 | C100: =COUNTIF('A. Population Info'!$B:$B, 'A. Age Profile'!A100) -> 0 | D100: =SUM($C$4:C100) -> 700 | E100: 0 | F100: 0 | G100: 6.371573736e-11 | H100: =SUMIF('A. Population Info'!$B:$B, A100,'A. Population Info'!$C:$C) -> 0
A101: 97 | B101: 97.5 | C101: =COUNTIF('A. Population Info'!$B:$B, 'A. Age Profile'!A101) -> 0 | D101: =SUM($C$4:C101) -> 700 | E101: 0 | F101: 0 | G101: 1.813809796e-11 | H101: =SUMIF('A. Population Info'!$B:$B, A101,'A. Population Info'!$C:$C) -> 0
A102: 98 | B102: 98.5 | C102: =COUNTIF('A. Population Info'!$B:$B, 'A. Age Profile'!A102) -> 0 | D102: =SUM($C$4:C102) -> 700 | E102: 0 | F102: 0 | G102: 5.019639185e-12 | H102: =SUMIF('A. Population Info'!$B:$B, A102,'A. Population Info'!$C:$C) -> 0
A103: 99 | B103: 99.5 | C103: =COUNTIF('A. Population Info'!$B:$B, 'A. Age Profile'!A103) -> 0 | D103: =SUM($C$4:C103) -> 700 | E103: 0 | F103: 0 | G103: 1.350482581e-12 | H103: =SUMIF('A. Population Info'!$B:$B, A103,'A. Population Info'!$C:$C) -> 0
A104: 100 | B104: 100.5 | C104: =COUNTIF('A. Population Info'!$B:$B, 'A. Age Profile'!A104) -> 0 | D104: =SUM($C$4:C104) -> 700 | E104: 0 | F104: 0 | G104: 3.532166777e-13 | H104: =SUMIF('A. Population Info'!$B:$B, A104,'A. Population Info'!$C:$C) -> 0

Sheet A. Initial PoF
B1: Initial Probability of Failure
A3: Age Label | B3: No. of Asset Units | C3: PoFpoor (Upper 95%) | D3: PoFavg | E3: PoFgood (Lower 95%)
A4: 0 | B4: 1 | C4: =IF('B. PoF Summary Stats & Params'!$C$12="C", B4*'B. PoF Summary Stats & Params'!$I$8*'B. PoF Summary Stats & Params'!$I$10*A4^('B. PoF Summary Stats & Params'!$I$10-1), IF('B. PoF Summary Stats & Params'!$C$12="W", B4*(('B. PoF Summary Stats & Params'!$M$14/'B. PoF Summary Stats & Params'!$O$14)*((A4)/'B. PoF Summary Stats & Params'!$O$14)^('B. PoF Summary Stats & Params'!$M$14-1)), "Choose Model")) -> 0 | D4: =IF('B. PoF Summary Stats & Params'!$C$12="C", B4*'B. PoF Summary Stats & Params'!$I$8*'B. PoF Summary Stats & Params'!$I$6*A4^('B. PoF Summary Stats & Params'!$I$6-1), IF('B. PoF Summary Stats & Params'!$C$12="W", B4*(('B. PoF Summary Stats & Params'!$M$6/'B. PoF Summary Stats & Params'!$M$8)*((A4)/'B. PoF Summary Stats & Params'!$M$8)^('B. PoF Summary Stats & Params'!$M$6-1)), "Choose Model")) -> 0 | E4: =IF('B. PoF Summary Stats & Params'!$C$12="C", B4*'B. PoF Summary Stats & Params'!$I$8*'B. PoF Summary Stats & Params'!$I$12*A4^('B. PoF Summary Stats & Params'!$I$12-1), IF('B. PoF Summary Stats & Params'!$C$12="W", B4*(('B. PoF Summary Stats & Params'!$M$12/'B. PoF Summary Stats & Params'!$O$12)*((A4)/'B. PoF Summary Stats & Params'!$O$12)^('B. PoF Summary Stats & Params'!$M$12-1)), "Choose Model")) -> 0
A5: 1 | B5: 1 | C5: =IF('B. PoF Summary Stats & Params'!$C$12="C", B5*'B. PoF Summary Stats & Params'!$I$8*'B. PoF Summary Stats & Params'!$I$10*A5^('B. PoF Summary Stats & Params'!$I$10-1), IF('B. PoF Summary Stats & Params'!$C$12="W", B5*(('B. PoF Summary Stats & Params'!$M$14/'B. PoF Summary Stats & Params'!$O$14)*((A5)/'B. PoF Summary Stats & Params'!$O$14)^('B. PoF Summary Stats & Params'!$M$14-1)), "Choose Model")) -> 3.404151998e-25 | D5: =IF('B. PoF Summary Stats & Params'!$C$12="C", B5*'B. PoF Summary Stats & Params'!$I$8*'B. PoF Summary Stats & Params'!$I$6*A5^('B. PoF Summary Stats & Params'!$I$6-1), IF('B. PoF Summary Stats & Params'!$C$12="W", B5*(('B. PoF Summary Stats & Params'!$M$6/'B. PoF Summary Stats & Params'!$M$8)*((A5)/'B. PoF Summary Stats & Params'!$M$8)^('B. PoF Summary Stats & Params'!$M$6-1)), "Choose Model")) -> 3.31405779e-25 | E5: =IF('B. PoF Summary Stats & Params'!$C$12="C", B5*'B. PoF Summary Stats & Params'!$I$8*'B. PoF Summary Stats & Params'!$I$12*A5^('B. PoF Summary Stats & Params'!$I$12-1), IF('B. PoF Summary Stats & Params'!$C$12="W", B5*(('B. PoF Summary Stats & Params'!$M$12/'B. PoF Summary Stats & Params'!$O$12)*((A5)/'B. PoF Summary Stats & Params'!$O$12)^('B. PoF Summary Stats & Params'!$M$12-1)), "Choose Model")) -> 3.223963581e-25
A6: 2 | B6: 1 | C6: =IF('B. PoF Summary Stats & Params'!$C$12="C", B6*'B. PoF Summary Stats & Params'!$I$8*'B. PoF Summary Stats & Params'!$I$10*A6^('B. PoF Summary Stats & Params'!$I$10-1), IF('B. PoF Summary Stats & Params'!$C$12="W", B6*(('B. PoF Summary Stats & Params'!$M$14/'B. PoF Summary Stats & Params'!$O$14)*((A6)/'B. PoF Summary Stats & Params'!$O$14)^('B. PoF Summary Stats & Params'!$M$14-1)), "Choose Model")) -> 4.425178281e-21 | D6: =IF('B. PoF Summary Stats & Params'!$C$12="C", B6*'B. PoF Summary Stats & Params'!$I$8*'B. PoF Summary Stats & Params'!$I$6*A6^('B. PoF Summary Stats & Params'!$I$6-1), IF('B. PoF Summary Stats & Params'!$C$12="W", B6*(('B. PoF Summary Stats & Params'!$M$6/'B. PoF Summary Stats & Params'!$M$8)*((A6)/'B. PoF Summary Stats & Params'!$M$8)^('B. PoF Summary Stats & Params'!$M$6-1)), "Choose Model")) -> 3.291818582e-21 | E6: =IF('B. PoF Summary Stats & Params'!$C$12="C", B6*'B. PoF Summary Stats & Params'!$I$8*'B. PoF Summary Stats & Params'!$I$12*A6^('B. PoF Summary Stats & Params'!$I$12-1), IF('B. PoF Summary Stats & Params'!$C$12="W", B6*(('B. PoF Summary Stats & Params'!$M$12/'B. PoF Summary Stats & Params'!$O$12)*((A6)/'B. PoF Summary Stats & Params'!$O$12)^('B. PoF Summary Stats & Params'!$M$12-1)), "Choose Model")) -> 2.446920892e-21
A7: 3 | B7: 1 | C7: =IF('B. PoF Summary Stats & Params'!$C$12="C", B7*'B. PoF Summary Stats & Params'!$I$8*'B. PoF Summary Stats & Params'!$I$10*A7^('B. PoF Summary Stats & Params'!$I$10-1), IF('B. PoF Summary Stats & Params'!$C$12="W", B7*(('B. PoF Summary Stats & Params'!$M$14/'B. PoF Summary Stats & Params'!$O$14)*((A7)/'B. PoF Summary Stats & Params'!$O$14)^('B. PoF Summary Stats & Params'!$M$14-1)), "Choose Model")) -> 1.128290088e-18 | D7: =IF('B. PoF Summary Stats & Params'!$C$12="C", B7*'B. PoF Summary Stats & Params'!$I$8*'B. PoF Summary Stats & Params'!$I$6*A7^('B. PoF Summary Stats & Params'!$I$6-1), IF('B. PoF Summary Stats & Params'!$C$12="W", B7*(('B. PoF Summary Stats & Params'!$M$6/'B. PoF Summary Stats & Params'!$M$8)*((A7)/'B. PoF Summary Stats & Params'!$M$8)^('B. PoF Summary Stats & Params'!$M$6-1)), "Choose Model")) -> 7.170927916e-19 | E7: =IF('B. PoF Summary Stats & Params'!$C$12="C", B7*'B. PoF Summary Stats & Params'!$I$8*'B. PoF Summary Stats & Params'!$I$12*A7^('B. PoF Summary Stats & Params'!$I$12-1), IF('B. PoF Summary Stats & Params'!$C$12="W", B7*(('B. PoF Summary Stats & Params'!$M$12/'B. PoF Summary Stats & Params'!$O$12)*((A7)/'B. PoF Summary Stats & Params'!$O$12)^('B. PoF Summary Stats & Params'!$M$12-1)), "Choose Model")) -> 4.554166004e-19
A8: 4 | B8: 1 | C8: =IF('B. PoF Summary Stats & Params'!$C$12="C", B8*'B. PoF Summary Stats & Params'!$I$8*'B. PoF Summary Stats & Params'!$I$10*A8^('B. PoF Summary Stats & Params'!$I$10-1), IF('B. PoF Summary Stats & Params'!$C$12="W", B8*(('B. PoF Summary Stats & Params'!$M$14/'B. PoF Summary Stats & Params'!$O$14)*((A8)/'B. PoF Summary Stats & Params'!$O$14)^('B. PoF Summary Stats & Params'!$M$14-1)), "Choose Model")) -> 5.752446667e-17 | D8: =IF('B. PoF Summary Stats & Params'!$C$12="C", B8*'B. PoF Summary Stats & Params'!$I$8*'B. PoF Summary Stats & Params'!$I$6*A8^('B. PoF Summary Stats & Params'!$I$6-1), IF('B. PoF Summary Stats & Params'!$C$12="W", B8*(('B. PoF Summary Stats & Params'!$M$6/'B. PoF Summary Stats & Params'!$M$8)*((A8)/'B. PoF Summary Stats & Params'!$M$8)^('B. PoF Summary Stats & Params'!$M$6-1)), "Choose Model")) -> 3.269728612e-17 | E8: =IF('B. PoF Summary Stats & Params'!$C$12="C", B8*'B. PoF Summary Stats & Params'!$I$8*'B. PoF Summary Stats & Params'!$I$12*A8^('B. PoF Summary Stats & Params'!$I$12-1), IF('B. PoF Summary Stats & Params'!$C$12="W", B8*(('B. PoF Summary Stats & Params'!$M$12/'B. PoF Summary Stats & Params'!$O$12)*((A8)/'B. PoF Summary Stats & Params'!$O$12)^('B. PoF Summary Stats & Params'!$M$12-1)), "Choose Model")) -> 1.857161751e-17
A9: 5 | B9: 1 | C9: =IF('B. PoF Summary Stats & Params'!$C$12="C", B9*'B. PoF Summary Stats & Params'!$I$8*'B. PoF Summary Stats & Params'!$I$10*A9^('B. PoF Summary Stats & Params'!$I$10-1), IF('B. PoF Summary Stats & Params'!$C$12="W", B9*(('B. PoF Summary Stats & Params'!$M$14/'B. PoF Summary Stats & Params'!$O$14)*((A9)/'B. PoF Summary Stats & Params'!$O$14)^('B. PoF Summary Stats & Params'!$M$14-1)), "Choose Model")) -> 1.21405851e-15 | D9: =IF('B. PoF Summary Stats & Params'!$C$12="C", B9*'B. PoF Summary Stats & Params'!$I$8*'B. PoF Summary Stats & Params'!$I$6*A9^('B. PoF Summary Stats & Params'!$I$6-1), IF('B. PoF Summary Stats & Params'!$C$12="W", B9*(('B. PoF Summary Stats & Params'!$M$6/'B. PoF Summary Stats & Params'!$M$8)*((A9)/'B. PoF Summary Stats & Params'!$M$8)^('B. PoF Summary Stats & Params'!$M$6-1)), "Choose Model")) -> 6.328236625e-16 | E9: =IF('B. PoF Summary Stats & Params'!$C$12="C", B9*'B. PoF Summary Stats & Params'!$I$8*'B. PoF Summary Stats & Params'!$I$12*A9^('B. PoF Summary Stats & Params'!$I$12-1), IF('B. PoF Summary Stats & Params'!$C$12="W", B9*(('B. PoF Summary Stats & Params'!$M$12/'B. PoF Summary Stats & Params'!$O$12)*((A9)/'B. PoF Summary Stats & Params'!$O$12)^('B. PoF Summary Stats & Params'!$M$12-1)), "Choose Model")) -> 3.296132932e-16
A10: 6 | B10: 1 | C10: =IF('B. PoF Summary Stats & Params'!$C$12="C", B10*'B. PoF Summary Stats & Params'!$I$8*'B. PoF Summary Stats & Params'!$I$10*A10^('B. PoF Summary Stats & Params'!$I$10-1), IF('B. PoF Summary Stats & Params'!$C$12="W", B10*(('B. PoF Summary Stats & Params'!$M$14/'B. PoF Summary Stats & Params'!$O$14)*((A10)/'B. PoF Summary Stats & Params'!$O$14)^('B. PoF Summary Stats & Params'!$M$14-1)), "Choose Model")) -> 1.466704423e-14 | D10: =IF('B. PoF Summary Stats & Params'!$C$12="C", B10*'B. PoF Summary Stats & Params'!$I$8*'B. PoF Summary Stats & Params'!$I$6*A10^('B. PoF Summary Stats & Params'!$I$6-1), IF('B. PoF Summary Stats & Params'!$C$12="W", B10*(('B. PoF Summary Stats & Params'!$M$6/'B. PoF Summary Stats & Params'!$M$8)*((A10)/'B. PoF Summary Stats & Params'!$M$8)^('B. PoF Summary Stats & Params'!$M$6-1)), "Choose Model")) -> 7.122806921e-15 | E10: =IF('B. PoF Summary Stats & Params'!$C$12="C", B10*'B. PoF Summary Stats & Params'!$I$8*'B. PoF Summary Stats & Params'!$I$12*A10^('B. PoF Summary Stats & Params'!$I$12-1), IF('B. PoF Summary Stats & Params'!$C$12="W", B10*(('B. PoF Summary Stats & Params'!$M$12/'B. PoF Summary Stats & Params'!$O$12)*((A10)/'B. PoF Summary Stats & Params'!$O$12)^('B. PoF Summary Stats & Params'!$M$12-1)), "Choose Model")) -> 3.456516694e-15
A11: 7 | B11: 1 | C11: =IF('B. PoF Summary Stats & Params'!$C$12="C", B11*'B. PoF Summary Stats & Params'!$I$8*'B. PoF Summary Stats & Params'!$I$10*A11^('B. PoF Summary Stats & Params'!$I$10-1), IF('B. PoF Summary Stats & Params'!$C$12="W", B11*(('B. PoF Summary Stats & Params'!$M$14/'B. PoF Summary Stats & Params'!$O$14)*((A11)/'B. PoF Summary Stats & Params'!$O$14)^('B. PoF Summary Stats & Params'!$M$14-1)), "Choose Model")) -> 1.205723257e-13 | D11: =IF('B. PoF Summary Stats & Params'!$C$12="C", B11*'B. PoF Summary Stats & Params'!$I$8*'B. PoF Summary Stats & Params'!$I$6*A11^('B. PoF Summary Stats & Params'!$I$6-1), IF('B. PoF Summary Stats & Params'!$C$12="W", B11*(('B. PoF Summary Stats & Params'!$M$6/'B. PoF Summary Stats & Params'!$M$8)*((A11)/'B. PoF Summary Stats & Params'!$M$8)^('B. PoF Summary Stats & Params'!$M$6-1)), "Choose Model")) -> 5.515317784e-14 | E11: =IF('B. PoF Summary Stats & Params'!$C$12="C", B11*'B. PoF Summary Stats & Params'!$I$8*'B. PoF Summary Stats & Params'!$I$12*A11^('B. PoF Summary Stats & Params'!$I$12-1), IF('B. PoF Summary Stats & Params'!$C$12="W", B11*(('B. PoF Summary Stats & Params'!$M$12/'B. PoF Summary Stats & Params'!$O$12)*((A11)/'B. PoF Summary Stats & Params'!$O$12)^('B. PoF Summary Stats & Params'!$M$12-1)), "Choose Model")) -> 2.520997179e-14
A12: 8 | B12: 1 | C12: =IF('B. PoF Summary Stats & Params'!$C$12="C", B12*'B. PoF Summary Stats & Params'!$I$8*'B. PoF Summary Stats & Params'!$I$10*A12^('B. PoF Summary Stats & Params'!$I$10-1), IF('B. PoF Summary Stats & Params'!$C$12="W", B12*(('B. PoF Summary Stats & Params'!$M$14/'B. PoF Summary Stats & Params'!$O$14)*((A12)/'B. PoF Summary Stats & Params'!$O$14)^('B. PoF Summary Stats & Params'!$M$14-1)), "Choose Model")) -> 7.477810057e-13 | D12: =IF('B. PoF Summary Stats & Params'!$C$12="C", B12*'B. PoF Summary Stats & Params'!$I$8*'B. PoF Summary Stats & Params'!$I$6*A12^('B. PoF Summary Stats & Params'!$I$6-1), IF('B. PoF Summary Stats & Params'!$C$12="W", B12*(('B. PoF Summary Stats & Params'!$M$6/'B. PoF Summary Stats & Params'!$M$8)*((A12)/'B. PoF Summary Stats & Params'!$M$8)^('B. PoF Summary Stats & Params'!$M$6-1)), "Choose Model")) -> 3.247786878e-13 | E12: =IF('B. PoF Summary Stats & Params'!$C$12="C", B12*'B. PoF Summary Stats & Params'!$I$8*'B. PoF Summary Stats & Params'!$I$12*A12^('B. PoF Summary Stats & Params'!$I$12-1), IF('B. PoF Summary Stats & Params'!$C$12="W", B12*(('B. PoF Summary Stats & Params'!$M$12/'B. PoF Summary Stats & Params'!$O$12)*((A12)/'B. PoF Summary Stats & Params'!$O$12)^('B. PoF Summary Stats & Params'!$M$12-1)), "Choose Model")) -> 1.409546905e-13
A13: 9 | B13: 1 | C13: =IF('B. PoF Summary Stats & Params'!$C$12="C", B13*'B. PoF Summary Stats & Params'!$I$8*'B. PoF Summary Stats & Params'!$I$10*A13^('B. PoF Summary Stats & Params'!$I$10-1), IF('B. PoF Summary Stats & Params'!$C$12="W", B13*(('B. PoF Summary Stats & Params'!$M$14/'B. PoF Summary Stats & Params'!$O$14)*((A13)/'B. PoF Summary Stats & Params'!$O$14)^('B. PoF Summary Stats & Params'!$M$14-1)), "Choose Model")) -> 3.73966416e-12 | D13: =IF('B. PoF Summary Stats & Params'!$C$12="C", B13*'B. PoF Summary Stats & Params'!$I$8*'B. PoF Summary Stats & Params'!$I$6*A13^('B. PoF Summary Stats & Params'!$I$6-1), IF('B. PoF Summary Stats & Params'!$C$12="W", B13*(('B. PoF Summary Stats & Params'!$M$6/'B. PoF Summary Stats & Params'!$M$8)*((A13)/'B. PoF Summary Stats & Params'!$M$8)^('B. PoF Summary Stats & Params'!$M$6-1)), "Choose Model")) -> 1.55163882e-12 | E13: =IF('B. PoF Summary Stats & Params'!$C$12="C", B13*'B. PoF Summary Stats & Params'!$I$8*'B. PoF Summary Stats & Params'!$I$12*A13^('B. PoF Summary Stats & Params'!$I$12-1), IF('B. PoF Summary Stats & Params'!$C$12="W", B13*(('B. PoF Summary Stats & Params'!$M$12/'B. PoF Summary Stats & Params'!$O$12)*((A13)/'B. PoF Summary Stats & Params'!$O$12)^('B. PoF Summary Stats & Params'!$M$12-1)), "Choose Model")) -> 6.433207905e-13
A14: 10 | B14: 1 | C14: =IF('B. PoF Summary Stats & Params'!$C$12="C", B14*'B. PoF Summary Stats & Params'!$I$8*'B. PoF Summary Stats & Params'!$I$10*A14^('B. PoF Summary Stats & Params'!$I$10-1), IF('B. PoF Summary Stats & Params'!$C$12="W", B14*(('B. PoF Summary Stats & Params'!$M$14/'B. PoF Summary Stats & Params'!$O$14)*((A14)/'B. PoF Summary Stats & Params'!$O$14)^('B. PoF Summary Stats & Params'!$M$14-1)), "Choose Model")) -> 1.578197846e-11 | D14: =IF('B. PoF Summary Stats & Params'!$C$12="C", B14*'B. PoF Summary Stats & Params'!$I$8*'B. PoF Summary Stats & Params'!$I$6*A14^('B. PoF Summary Stats & Params'!$I$6-1), IF('B. PoF Summary Stats & Params'!$C$12="W", B14*(('B. PoF Summary Stats & Params'!$M$6/'B. PoF Summary Stats & Params'!$M$8)*((A14)/'B. PoF Summary Stats & Params'!$M$8)^('B. PoF Summary Stats & Params'!$M$6-1)), "Choose Model")) -> 6.285770568e-12 | E14: =IF('B. PoF Summary Stats & Params'!$C$12="C", B14*'B. PoF Summary Stats & Params'!$I$8*'B. PoF Summary Stats & Params'!$I$12*A14^('B. PoF Summary Stats & Params'!$I$12-1), IF('B. PoF Summary Stats & Params'!$C$12="W", B14*(('B. PoF Summary Stats & Params'!$M$12/'B. PoF Summary Stats & Params'!$O$12)*((A14)/'B. PoF Summary Stats & Params'!$O$12)^('B. PoF Summary Stats & Params'!$M$12-1)), "Choose Model")) -> 2.501695919e-12
A15: 11 | B15: 1 | C15: =IF('B. PoF Summary Stats & Params'!$C$12="C", B15*'B. PoF Summary Stats & Params'!$I$8*'B. PoF Summary Stats & Params'!$I$10*A15^('B. PoF Summary Stats & Params'!$I$10-1), IF('B. PoF Summary Stats & Params'!$C$12="W", B15*(('B. PoF Summary Stats & Params'!$M$14/'B. PoF Summary Stats & Params'!$O$14)*((A15)/'B. PoF Summary Stats & Params'!$O$14)^('B. PoF Summary Stats & Params'!$M$14-1)), "Choose Model")) -> 5.80550755e-11 | D15: =IF('B. PoF Summary Stats & Params'!$C$12="C", B15*'B. PoF Summary Stats & Params'!$I$8*'B. PoF Summary Stats & Params'!$I$6*A15^('B. PoF Summary Stats & Params'!$I$6-1), IF('B. PoF Summary Stats & Params'!$C$12="W", B15*(('B. PoF Summary Stats & Params'!$M$6/'B. PoF Summary Stats & Params'!$M$8)*((A15)/'B. PoF Summary Stats & Params'!$M$8)^('B. PoF Summary Stats & Params'!$M$6-1)), "Choose Model")) -> 2.228283962e-11 | E15: =IF('B. PoF Summary Stats & Params'!$C$12="C", B15*'B. PoF Summary Stats & Params'!$I$8*'B. PoF Summary Stats & Params'!$I$12*A15^('B. PoF Summary Stats & Params'!$I$12-1), IF('B. PoF Summary Stats & Params'!$C$12="W", B15*(('B. PoF Summary Stats & Params'!$M$12/'B. PoF Summary Stats & Params'!$O$12)*((A15)/'B. PoF Summary Stats & Params'!$O$12)^('B. PoF Summary Stats & Params'!$M$12-1)), "Choose Model")) -> 8.546332607e-12
A16: 12 | B16: 1 | C16: =IF('B. PoF Summary Stats & Params'!$C$12="C", B16*'B. PoF Summary Stats & Params'!$I$8*'B. PoF Summary Stats & Params'!$I$10*A16^('B. PoF Summary Stats & Params'!$I$10-1), IF('B. PoF Summary Stats & Params'!$C$12="W", B16*(('B. PoF Summary Stats & Params'!$M$14/'B. PoF Summary Stats & Params'!$O$14)*((A16)/'B. PoF Summary Stats & Params'!$O$14)^('B. PoF Summary Stats & Params'!$M$14-1)), "Choose Model")) -> 1.906621255e-10 | D16: =IF('B. PoF Summary Stats & Params'!$C$12="C", B16*'B. PoF Summary Stats & Params'!$I$8*'B. PoF Summary Stats & Params'!$I$6*A16^('B. PoF Summary Stats & Params'!$I$6-1), IF('B. PoF Summary Stats & Params'!$C$12="W", B16*(('B. PoF Summary Stats & Params'!$M$6/'B. PoF Summary Stats & Params'!$M$8)*((A16)/'B. PoF Summary Stats & Params'!$M$8)^('B. PoF Summary Stats & Params'!$M$6-1)), "Choose Model")) -> 7.075008846e-11 | E16: =IF('B. PoF Summary Stats & Params'!$C$12="C", B16*'B. PoF Summary Stats & Params'!$I$8*'B. PoF Summary Stats & Params'!$I$12*A16^('B. PoF Summary Stats & Params'!$I$12-1), IF('B. PoF Summary Stats & Params'!$C$12="W", B16*(('B. PoF Summary Stats & Params'!$M$12/'B. PoF Summary Stats & Params'!$O$12)*((A16)/'B. PoF Summary Stats & Params'!$O$12)^('B. PoF Summary Stats & Params'!$M$12-1)), "Choose Model")) -> 2.623423838e-11
A17: 13 | B17: 1 | C17: =IF('B. PoF Summary Stats & Params'!$C$12="C", B17*'B. PoF Summary Stats & Params'!$I$8*'B. PoF Summary Stats & Params'!$I$10*A17^('B. PoF Summary Stats & Params'!$I$10-1), IF('B. PoF Summary Stats & Params'!$C$12="W", B17*(('B. PoF Summary Stats & Params'!$M$14/'B. PoF Summary Stats & Params'!$O$14)*((A17)/'B. PoF Summary Stats & Params'!$O$14)^('B. PoF Summary Stats & Params'!$M$14-1)), "Choose Model")) -> 5.692836037e-10 | D17: =IF('B. PoF Summary Stats & Params'!$C$12="C", B17*'B. PoF Summary Stats & Params'!$I$8*'B. PoF Summary Stats & Params'!$I$6*A17^('B. PoF Summary Stats & Params'!$I$6-1), IF('B. PoF Summary Stats & Params'!$C$12="W", B17*(('B. PoF Summary Stats & Params'!$M$6/'B. PoF Summary Stats & Params'!$M$8)*((A17)/'B. PoF Summary Stats & Params'!$M$8)^('B. PoF Summary Stats & Params'!$M$6-1)), "Choose Model")) -> 2.047850178e-10 | E17: =IF('B. PoF Summary Stats & Params'!$C$12="C", B17*'B. PoF Summary Stats & Params'!$I$8*'B. PoF Summary Stats & Params'!$I$12*A17^('B. PoF Summary Stats & Params'!$I$12-1), IF('B. PoF Summary Stats & Params'!$C$12="W", B17*(('B. PoF Summary Stats & Params'!$M$12/'B. PoF Summary Stats & Params'!$O$12)*((A17)/'B. PoF Summary Stats & Params'!$O$12)^('B. PoF Summary Stats & Params'!$M$12-1)), "Choose Model")) -> 7.36116582e-11
A18: 14 | B18: 1 | C18: =IF('B. PoF Summary Stats & Params'!$C$12="C", B18*'B. PoF Summary Stats & Params'!$I$8*'B. PoF Summary Stats & Params'!$I$10*A18^('B. PoF Summary Stats & Params'!$I$10-1), IF('B. PoF Summary Stats & Params'!$C$12="W", B18*(('B. PoF Summary Stats & Params'!$M$14/'B. PoF Summary Stats & Params'!$O$14)*((A18)/'B. PoF Summary Stats & Params'!$O$14)^('B. PoF Summary Stats & Params'!$M$14-1)), "Choose Model")) -> 1.567362554e-09 | D18: =IF('B. PoF Summary Stats & Params'!$C$12="C", B18*'B. PoF Summary Stats & Params'!$I$8*'B. PoF Summary Stats & Params'!$I$6*A18^('B. PoF Summary Stats & Params'!$I$6-1), IF('B. PoF Summary Stats & Params'!$C$12="W", B18*(('B. PoF Summary Stats & Params'!$M$6/'B. PoF Summary Stats & Params'!$M$8)*((A18)/'B. PoF Summary Stats & Params'!$M$8)^('B. PoF Summary Stats & Params'!$M$6-1)), "Choose Model")) -> 5.478306873e-10 | E18: =IF('B. PoF Summary Stats & Params'!$C$12="C", B18*'B. PoF Summary Stats & Params'!$I$8*'B. PoF Summary Stats & Params'!$I$12*A18^('B. PoF Summary Stats & Params'!$I$12-1), IF('B. PoF Summary Stats & Params'!$C$12="W", B18*(('B. PoF Summary Stats & Params'!$M$12/'B. PoF Summary Stats & Params'!$O$12)*((A18)/'B. PoF Summary Stats & Params'!$O$12)^('B. PoF Summary Stats & Params'!$M$12-1)), "Choose Model")) -> 1.913384103e-10
A19: 15 | B19: 1 | C19: =IF('B. PoF Summary Stats & Params'!$C$12="C", B19*'B. PoF Summary Stats & Params'!$I$8*'B. PoF Summary Stats & Params'!$I$10*A19^('B. PoF Summary Stats & Params'!$I$10-1), IF('B. PoF Summary Stats & Params'!$C$12="W", B19*(('B. PoF Summary Stats & Params'!$M$14/'B. PoF Summary Stats & Params'!$O$14)*((A19)/'B. PoF Summary Stats & Params'!$O$14)^('B. PoF Summary Stats & Params'!$M$14-1)), "Choose Model")) -> 4.023939542e-09 | D19: =IF('B. PoF Summary Stats & Params'!$C$12="C", B19*'B. PoF Summary Stats & Params'!$I$8*'B. PoF Summary Stats & Params'!$I$6*A19^('B. PoF Summary Stats & Params'!$I$6-1), IF('B. PoF Summary Stats & Params'!$C$12="W", B19*(('B. PoF Summary Stats & Params'!$M$6/'B. PoF Summary Stats & Params'!$M$8)*((A19)/'B. PoF Summary Stats & Params'!$M$8)^('B. PoF Summary Stats & Params'!$M$6-1)), "Choose Model")) -> 1.369298049e-09 | E19: =IF('B. PoF Summary Stats & Params'!$C$12="C", B19*'B. PoF Summary Stats & Params'!$I$8*'B. PoF Summary Stats & Params'!$I$12*A19^('B. PoF Summary Stats & Params'!$I$12-1), IF('B. PoF Summary Stats & Params'!$C$12="W", B19*(('B. PoF Summary Stats & Params'!$M$12/'B. PoF Summary Stats & Params'!$O$12)*((A19)/'B. PoF Summary Stats & Params'!$O$12)^('B. PoF Summary Stats & Params'!$M$12-1)), "Choose Model")) -> 4.656112319e-10
A20: 16 | B20: 1 | C20: =IF('B. PoF Summary Stats & Params'!$C$12="C", B20*'B. PoF Summary Stats & Params'!$I$8*'B. PoF Summary Stats & Params'!$I$10*A20^('B. PoF Summary Stats & Params'!$I$10-1), IF('B. PoF Summary Stats & Params'!$C$12="W", B20*(('B. PoF Summary Stats & Params'!$M$14/'B. PoF Summary Stats & Params'!$O$14)*((A20)/'B. PoF Summary Stats & Params'!$O$14)^('B. PoF Summary Stats & Params'!$M$14-1)), "Choose Model")) -> 9.720671306e-09 | D20: =IF('B. PoF Summary Stats & Params'!$C$12="C", B20*'B. PoF Summary Stats & Params'!$I$8*'B. PoF Summary Stats & Params'!$I$6*A20^('B. PoF Summary Stats & Params'!$I$6-1), IF('B. PoF Summary Stats & Params'!$C$12="W", B20*(('B. PoF Summary Stats & Params'!$M$6/'B. PoF Summary Stats & Params'!$M$8)*((A20)/'B. PoF Summary Stats & Params'!$M$8)^('B. PoF Summary Stats & Params'!$M$6-1)), "Choose Model")) -> 3.225992386e-09 | E20: =IF('B. PoF Summary Stats & Params'!$C$12="C", B20*'B. PoF Summary Stats & Params'!$I$8*'B. PoF Summary Stats & Params'!$I$12*A20^('B. PoF Summary Stats & Params'!$I$12-1), IF('B. PoF Summary Stats & Params'!$C$12="W", B20*(('B. PoF Summary Stats & Params'!$M$12/'B. PoF Summary Stats & Params'!$O$12)*((A20)/'B. PoF Summary Stats & Params'!$O$12)^('B. PoF Summary Stats & Params'!$M$12-1)), "Choose Model")) -> 1.069816604e-09
A21: 17 | B21: 1 | C21: =IF('B. PoF Summary Stats & Params'!$C$12="C", B21*'B. PoF Summary Stats & Params'!$I$8*'B. PoF Summary Stats & Params'!$I$10*A21^('B. PoF Summary Stats & Params'!$I$10-1), IF('B. PoF Summary Stats & Params'!$C$12="W", B21*(('B. PoF Summary Stats & Params'!$M$14/'B. PoF Summary Stats & Params'!$O$14)*((A21)/'B. PoF Summary Stats & Params'!$O$14)^('B. PoF Summary Stats & Params'!$M$14-1)), "Choose Model")) -> 2.225930242e-08 | D21: =IF('B. PoF Summary Stats & Params'!$C$12="C", B21*'B. PoF Summary Stats & Params'!$I$8*'B. PoF Summary Stats & Params'!$I$6*A21^('B. PoF Summary Stats & Params'!$I$6-1), IF('B. PoF Summary Stats & Params'!$C$12="W", B21*(('B. PoF Summary Stats & Params'!$M$6/'B. PoF Summary Stats & Params'!$M$8)*((A21)/'B. PoF Summary Stats & Params'!$M$8)^('B. PoF Summary Stats & Params'!$M$6-1)), "Choose Model")) -> 7.215375634e-09 | E21: =IF('B. PoF Summary Stats & Params'!$C$12="C", B21*'B. PoF Summary Stats & Params'!$I$8*'B. PoF Summary Stats & Params'!$I$12*A21^('B. PoF Summary Stats & Params'!$I$12-1), IF('B. PoF Summary Stats & Params'!$C$12="W", B21*(('B. PoF Summary Stats & Params'!$M$12/'B. PoF Summary Stats & Params'!$O$12)*((A21)/'B. PoF Summary Stats & Params'!$O$12)^('B. PoF Summary Stats & Params'!$M$12-1)), "Choose Model")) -> 2.337142845e-09
A22: 18 | B22: 1 | C22: =IF('B. PoF Summary Stats & Params'!$C$12="C", B22*'B. PoF Summary Stats & Params'!$I$8*'B. PoF Summary Stats & Params'!$I$10*A22^('B. PoF Summary Stats & Params'!$I$10-1), IF('B. PoF Summary Stats & Params'!$C$12="W", B22*(('B. PoF Summary Stats & Params'!$M$14/'B. PoF Summary Stats & Params'!$O$14)*((A22)/'B. PoF Summary Stats & Params'!$O$14)^('B. PoF Summary Stats & Params'!$M$14-1)), "Choose Model")) -> 4.861322475e-08 | D22: =IF('B. PoF Summary Stats & Params'!$C$12="C", B22*'B. PoF Summary Stats & Params'!$I$8*'B. PoF Summary Stats & Params'!$I$6*A22^('B. PoF Summary Stats & Params'!$I$6-1), IF('B. PoF Summary Stats & Params'!$C$12="W", B22*(('B. PoF Summary Stats & Params'!$M$6/'B. PoF Summary Stats & Params'!$M$8)*((A22)/'B. PoF Summary Stats & Params'!$M$8)^('B. PoF Summary Stats & Params'!$M$6-1)), "Choose Model")) -> 1.541226443e-08 | E22: =IF('B. PoF Summary Stats & Params'!$C$12="C", B22*'B. PoF Summary Stats & Params'!$I$8*'B. PoF Summary Stats & Params'!$I$12*A22^('B. PoF Summary Stats & Params'!$I$12-1), IF('B. PoF Summary Stats & Params'!$C$12="W", B22*(('B. PoF Summary Stats & Params'!$M$12/'B. PoF Summary Stats & Params'!$O$12)*((A22)/'B. PoF Summary Stats & Params'!$O$12)^('B. PoF Summary Stats & Params'!$M$12-1)), "Choose Model")) -> 4.882670175e-09
A23: 19 | B23: 1 | C23: =IF('B. PoF Summary Stats & Params'!$C$12="C", B23*'B. PoF Summary Stats & Params'!$I$8*'B. PoF Summary Stats & Params'!$I$10*A23^('B. PoF Summary Stats & Params'!$I$10-1), IF('B. PoF Summary Stats & Params'!$C$12="W", B23*(('B. PoF Summary Stats & Params'!$M$14/'B. PoF Summary Stats & Params'!$O$14)*((A23)/'B. PoF Summary Stats & Params'!$O$14)^('B. PoF Summary Stats & Params'!$M$14-1)), "Choose Model")) -> 1.017772396e-07 | D23: =IF('B. PoF Summary Stats & Params'!$C$12="C", B23*'B. PoF Summary Stats & Params'!$I$8*'B. PoF Summary Stats & Params'!$I$6*A23^('B. PoF Summary Stats & Params'!$I$6-1), IF('B. PoF Summary Stats & Params'!$C$12="W", B23*(('B. PoF Summary Stats & Params'!$M$6/'B. PoF Summary Stats & Params'!$M$8)*((A23)/'B. PoF Summary Stats & Params'!$M$8)^('B. PoF Summary Stats & Params'!$M$6-1)), "Choose Model")) -> 3.159718594e-08 | E23: =IF('B. PoF Summary Stats & Params'!$C$12="C", B23*'B. PoF Summary Stats & Params'!$I$8*'B. PoF Summary Stats & Params'!$I$12*A23^('B. PoF Summary Stats & Params'!$I$12-1), IF('B. PoF Summary Stats & Params'!$C$12="W", B23*(('B. PoF Summary Stats & Params'!$M$12/'B. PoF Summary Stats & Params'!$O$12)*((A23)/'B. PoF Summary Stats & Params'!$O$12)^('B. PoF Summary Stats & Params'!$M$12-1)), "Choose Model")) -> 9.802233874e-09
A24: 20 | B24: 1 | C24: =IF('B. PoF Summary Stats & Params'!$C$12="C", B24*'B. PoF Summary Stats & Params'!$I$8*'B. PoF Summary Stats & Params'!$I$10*A24^('B. PoF Summary Stats & Params'!$I$10-1), IF('B. PoF Summary Stats & Params'!$C$12="W", B24*(('B. PoF Summary Stats & Params'!$M$14/'B. PoF Summary Stats & Params'!$O$14)*((A24)/'B. PoF Summary Stats & Params'!$O$14)^('B. PoF Summary Stats & Params'!$M$14-1)), "Choose Model")) -> 2.051555522e-07 | D24: =IF('B. PoF Summary Stats & Params'!$C$12="C", B24*'B. PoF Summary Stats & Params'!$I$8*'B. PoF Summary Stats & Params'!$I$6*A24^('B. PoF Summary Stats & Params'!$I$6-1), IF('B. PoF Summary Stats & Params'!$C$12="W", B24*(('B. PoF Summary Stats & Params'!$M$6/'B. PoF Summary Stats & Params'!$M$8)*((A24)/'B. PoF Summary Stats & Params'!$M$8)^('B. PoF Summary Stats & Params'!$M$6-1)), "Choose Model")) -> 6.243589481e-08 | E24: =IF('B. PoF Summary Stats & Params'!$C$12="C", B24*'B. PoF Summary Stats & Params'!$I$8*'B. PoF Summary Stats & Params'!$I$12*A24^('B. PoF Summary Stats & Params'!$I$12-1), IF('B. PoF Summary Stats & Params'!$C$12="W", B24*(('B. PoF Summary Stats & Params'!$M$12/'B. PoF Summary Stats & Params'!$O$12)*((A24)/'B. PoF Summary Stats & Params'!$O$12)^('B. PoF Summary Stats & Params'!$M$12-1)), "Choose Model")) -> 1.89873485e-08
A25: 21 | B25: 1 | C25: =IF('B. PoF Summary Stats & Params'!$C$12="C", B25*'B. PoF Summary Stats & Params'!$I$8*'B. PoF Summary Stats & Params'!$I$10*A25^('B. PoF Summary Stats & Params'!$I$10-1), IF('B. PoF Summary Stats & Params'!$C$12="W", B25*(('B. PoF Summary Stats & Params'!$M$14/'B. PoF Summary Stats & Params'!$O$14)*((A25)/'B. PoF Summary Stats & Params'!$O$14)^('B. PoF Summary Stats & Params'!$M$14-1)), "Choose Model")) -> 3.99631274e-07 | D25: =IF('B. PoF Summary Stats & Params'!$C$12="C", B25*'B. PoF Summary Stats & Params'!$I$8*'B. PoF Summary Stats & Params'!$I$6*A25^('B. PoF Summary Stats & Params'!$I$6-1), IF('B. PoF Summary Stats & Params'!$C$12="W", B25*(('B. PoF Summary Stats & Params'!$M$6/'B. PoF Summary Stats & Params'!$M$8)*((A25)/'B. PoF Summary Stats & Params'!$M$8)^('B. PoF Summary Stats & Params'!$M$6-1)), "Choose Model")) -> 1.193399414e-07 | E25: =IF('B. PoF Summary Stats & Params'!$C$12="C", B25*'B. PoF Summary Stats & Params'!$I$8*'B. PoF Summary Stats & Params'!$I$12*A25^('B. PoF Summary Stats & Params'!$I$12-1), IF('B. PoF Summary Stats & Params'!$C$12="W", B25*(('B. PoF Summary Stats & Params'!$M$12/'B. PoF Summary Stats & Params'!$O$12)*((A25)/'B. PoF Summary Stats & Params'!$O$12)^('B. PoF Summary Stats & Params'!$M$12-1)), "Choose Model")) -> 3.561156744e-08
A26: 22 | B26: 1 | C26: =IF('B. PoF Summary Stats & Params'!$C$12="C", B26*'B. PoF Summary Stats & Params'!$I$8*'B. PoF Summary Stats & Params'!$I$10*A26^('B. PoF Summary Stats & Params'!$I$10-1), IF('B. PoF Summary Stats & Params'!$C$12="W", B26*(('B. PoF Summary Stats & Params'!$M$14/'B. PoF Summary Stats & Params'!$O$14)*((A26)/'B. PoF Summary Stats & Params'!$O$14)^('B. PoF Summary Stats & Params'!$M$14-1)), "Choose Model")) -> 7.546785787e-07 | D26: =IF('B. PoF Summary Stats & Params'!$C$12="C", B26*'B. PoF Summary Stats & Params'!$I$8*'B. PoF Summary Stats & Params'!$I$6*A26^('B. PoF Summary Stats & Params'!$I$6-1), IF('B. PoF Summary Stats & Params'!$C$12="W", B26*(('B. PoF Summary Stats & Params'!$M$6/'B. PoF Summary Stats & Params'!$M$8)*((A26)/'B. PoF Summary Stats & Params'!$M$8)^('B. PoF Summary Stats & Params'!$M$6-1)), "Choose Model")) -> 2.213330912e-07 | E26: =IF('B. PoF Summary Stats & Params'!$C$12="C", B26*'B. PoF Summary Stats & Params'!$I$8*'B. PoF Summary Stats & Params'!$I$12*A26^('B. PoF Summary Stats & Params'!$I$12-1), IF('B. PoF Summary Stats & Params'!$C$12="W", B26*(('B. PoF Summary Stats & Params'!$M$12/'B. PoF Summary Stats & Params'!$O$12)*((A26)/'B. PoF Summary Stats & Params'!$O$12)^('B. PoF Summary Stats & Params'!$M$12-1)), "Choose Model")) -> 6.486487603e-08
A27: 23 | B27: 1 | C27: =IF('B. PoF Summary Stats & Params'!$C$12="C", B27*'B. PoF Summary Stats & Params'!$I$8*'B. PoF Summary Stats & Params'!$I$10*A27^('B. PoF Summary Stats & Params'!$I$10-1), IF('B. PoF Summary Stats & Params'!$C$12="W", B27*(('B. PoF Summary Stats & Params'!$M$14/'B. PoF Summary Stats & Params'!$O$14)*((A27)/'B. PoF Summary Stats & Params'!$O$14)^('B. PoF Summary Stats & Params'!$M$14-1)), "Choose Model")) -> 1.385444771e-06 | D27: =IF('B. PoF Summary Stats & Params'!$C$12="C", B27*'B. PoF Summary Stats & Params'!$I$8*'B. PoF Summary Stats & Params'!$I$6*A27^('B. PoF Summary Stats & Params'!$I$6-1), IF('B. PoF Summary Stats & Params'!$C$12="W", B27*(('B. PoF Summary Stats & Params'!$M$6/'B. PoF Summary Stats & Params'!$M$8)*((A27)/'B. PoF Summary Stats & Params'!$M$8)^('B. PoF Summary Stats & Params'!$M$6-1)), "Choose Model")) -> 3.993743515e-07 | E27: =IF('B. PoF Summary Stats & Params'!$C$12="C", B27*'B. PoF Summary Stats & Params'!$I$8*'B. PoF Summary Stats & Params'!$I$12*A27^('B. PoF Summary Stats & Params'!$I$12-1), IF('B. PoF Summary Stats & Params'!$C$12="W", B27*(('B. PoF Summary Stats & Params'!$M$12/'B. PoF Summary Stats & Params'!$O$12)*((A27)/'B. PoF Summary Stats & Params'!$O$12)^('B. PoF Summary Stats & Params'!$M$12-1)), "Choose Model")) -> 1.150403088e-07
A28: 24 | B28: 1 | C28: =IF('B. PoF Summary Stats & Params'!$C$12="C", B28*'B. PoF Summary Stats & Params'!$I$8*'B. PoF Summary Stats & Params'!$I$10*A28^('B. PoF Summary Stats & Params'!$I$10-1), IF('B. PoF Summary Stats & Params'!$C$12="W", B28*(('B. PoF Summary Stats & Params'!$M$14/'B. PoF Summary Stats & Params'!$O$14)*((A28)/'B. PoF Summary Stats & Params'!$O$14)^('B. PoF Summary Stats & Params'!$M$14-1)), "Choose Model")) -> 2.478484795e-06 | D28: =IF('B. PoF Summary Stats & Params'!$C$12="C", B28*'B. PoF Summary Stats & Params'!$I$8*'B. PoF Summary Stats & Params'!$I$6*A28^('B. PoF Summary Stats & Params'!$I$6-1), IF('B. PoF Summary Stats & Params'!$C$12="W", B28*(('B. PoF Summary Stats & Params'!$M$6/'B. PoF Summary Stats & Params'!$M$8)*((A28)/'B. PoF Summary Stats & Params'!$M$8)^('B. PoF Summary Stats & Params'!$M$6-1)), "Choose Model")) -> 7.027531523e-07 | E28: =IF('B. PoF Summary Stats & Params'!$C$12="C", B28*'B. PoF Summary Stats & Params'!$I$8*'B. PoF Summary Stats & Params'!$I$12*A28^('B. PoF Summary Stats & Params'!$I$12-1), IF('B. PoF Summary Stats & Params'!$C$12="W", B28*(('B. PoF Summary Stats & Params'!$M$12/'B. PoF Summary Stats & Params'!$O$12)*((A28)/'B. PoF Summary Stats & Params'!$O$12)^('B. PoF Summary Stats & Params'!$M$12-1)), "Choose Model")) -> 1.991123793e-07
A29: 25 | B29: 1 | C29: =IF('B. PoF Summary Stats & Params'!$C$12="C", B29*'B. PoF Summary Stats & Params'!$I$8*'B. PoF Summary Stats & Params'!$I$10*A29^('B. PoF Summary Stats & Params'!$I$10-1), IF('B. PoF Summary Stats & Params'!$C$12="W", B29*(('B. PoF Summary Stats & Params'!$M$14/'B. PoF Summary Stats & Params'!$O$14)*((A29)/'B. PoF Summary Stats & Params'!$O$14)^('B. PoF Summary Stats & Params'!$M$14-1)), "Choose Model")) -> 4.329824483e-06 | D29: =IF('B. PoF Summary Stats & Params'!$C$12="C", B29*'B. PoF Summary Stats & Params'!$I$8*'B. PoF Summary Stats & Params'!$I$6*A29^('B. PoF Summary Stats & Params'!$I$6-1), IF('B. PoF Summary Stats & Params'!$C$12="W", B29*(('B. PoF Summary Stats & Params'!$M$6/'B. PoF Summary Stats & Params'!$M$8)*((A29)/'B. PoF Summary Stats & Params'!$M$8)^('B. PoF Summary Stats & Params'!$M$6-1)), "Choose Model")) -> 1.208385047e-06 | E29: =IF('B. PoF Summary Stats & Params'!$C$12="C", B29*'B. PoF Summary Stats & Params'!$I$8*'B. PoF Summary Stats & Params'!$I$12*A29^('B. PoF Summary Stats & Params'!$I$12-1), IF('B. PoF Summary Stats & Params'!$C$12="W", B29*(('B. PoF Summary Stats & Params'!$M$12/'B. PoF Summary Stats & Params'!$O$12)*((A29)/'B. PoF Summary Stats & Params'!$O$12)^('B. PoF Summary Stats & Params'!$M$12-1)), "Choose Model")) -> 3.369917815e-07
A30: 26 | B30: 1 | C30: =IF('B. PoF Summary Stats & Params'!$C$12="C", B30*'B. PoF Summary Stats & Params'!$I$8*'B. PoF Summary Stats & Params'!$I$10*A30^('B. PoF Summary Stats & Params'!$I$10-1), IF('B. PoF Summary Stats & Params'!$C$12="W", B30*(('B. PoF Summary Stats & Params'!$M$14/'B. PoF Summary Stats & Params'!$O$14)*((A30)/'B. PoF Summary Stats & Params'!$O$14)^('B. PoF Summary Stats & Params'!$M$14-1)), "Choose Model")) -> 7.40032008e-06 | D30: =IF('B. PoF Summary Stats & Params'!$C$12="C", B30*'B. PoF Summary Stats & Params'!$I$8*'B. PoF Summary Stats & Params'!$I$6*A30^('B. PoF Summary Stats & Params'!$I$6-1), IF('B. PoF Summary Stats & Params'!$C$12="W", B30*(('B. PoF Summary Stats & Params'!$M$6/'B. PoF Summary Stats & Params'!$M$8)*((A30)/'B. PoF Summary Stats & Params'!$M$8)^('B. PoF Summary Stats & Params'!$M$6-1)), "Choose Model")) -> 2.034107941e-06 | E30: =IF('B. PoF Summary Stats & Params'!$C$12="C", B30*'B. PoF Summary Stats & Params'!$I$8*'B. PoF Summary Stats & Params'!$I$12*A30^('B. PoF Summary Stats & Params'!$I$12-1), IF('B. PoF Summary Stats & Params'!$C$12="W", B30*(('B. PoF Summary Stats & Params'!$M$12/'B. PoF Summary Stats & Params'!$O$12)*((A30)/'B. PoF Summary Stats & Params'!$O$12)^('B. PoF Summary Stats & Params'!$M$12-1)), "Choose Model")) -> 5.586970813e-07
A31: 27 | B31: 1 | C31: =IF('B. PoF Summary Stats & Params'!$C$12="C", B31*'B. PoF Summary Stats & Params'!$I$8*'B. PoF Summary Stats & Params'!$I$10*A31^('B. PoF Summary Stats & Params'!$I$10-1), IF('B. PoF Summary Stats & Params'!$C$12="W", B31*(('B. PoF Summary Stats & Params'!$M$14/'B. PoF Summary Stats & Params'!$O$14)*((A31)/'B. PoF Summary Stats & Params'!$O$14)^('B. PoF Summary Stats & Params'!$M$14-1)), "Choose Model")) -> 1.239494008e-05 | D31: =IF('B. PoF Summary Stats & Params'!$C$12="C", B31*'B. PoF Summary Stats & Params'!$I$8*'B. PoF Summary Stats & Params'!$I$6*A31^('B. PoF Summary Stats & Params'!$I$6-1), IF('B. PoF Summary Stats & Params'!$C$12="W", B31*(('B. PoF Summary Stats & Params'!$M$6/'B. PoF Summary Stats & Params'!$M$8)*((A31)/'B. PoF Summary Stats & Params'!$M$8)^('B. PoF Summary Stats & Params'!$M$6-1)), "Choose Model")) -> 3.357421878e-06 | E31: =IF('B. PoF Summary Stats & Params'!$C$12="C", B31*'B. PoF Summary Stats & Params'!$I$8*'B. PoF Summary Stats & Params'!$I$12*A31^('B. PoF Summary Stats & Params'!$I$12-1), IF('B. PoF Summary Stats & Params'!$C$12="W", B31*(('B. PoF Summary Stats & Params'!$M$12/'B. PoF Summary Stats & Params'!$O$12)*((A31)/'B. PoF Summary Stats & Params'!$O$12)^('B. PoF Summary Stats & Params'!$M$12-1)), "Choose Model")) -> 9.087539608e-07
A32: 28 | B32: 1 | C32: =IF('B. PoF Summary Stats & Params'!$C$12="C", B32*'B. PoF Summary Stats & Params'!$I$8*'B. PoF Summary Stats & Params'!$I$10*A32^('B. PoF Summary Stats & Params'!$I$10-1), IF('B. PoF Summary Stats & Params'!$C$12="W", B32*(('B. PoF Summary Stats & Params'!$M$14/'B. PoF Summary Stats & Params'!$O$14)*((A32)/'B. PoF Summary Stats & Params'!$O$14)^('B. PoF Summary Stats & Params'!$M$14-1)), "Choose Model")) -> 2.037470341e-05 | D32: =IF('B. PoF Summary Stats & Params'!$C$12="C", B32*'B. PoF Summary Stats & Params'!$I$8*'B. PoF Summary Stats & Params'!$I$6*A32^('B. PoF Summary Stats & Params'!$I$6-1), IF('B. PoF Summary Stats & Params'!$C$12="W", B32*(('B. PoF Summary Stats & Params'!$M$6/'B. PoF Summary Stats & Params'!$M$8)*((A32)/'B. PoF Summary Stats & Params'!$M$8)^('B. PoF Summary Stats & Params'!$M$6-1)), "Choose Model")) -> 5.441544326e-06 | E32: =IF('B. PoF Summary Stats & Params'!$C$12="C", B32*'B. PoF Summary Stats & Params'!$I$8*'B. PoF Summary Stats & Params'!$I$12*A32^('B. PoF Summary Stats & Params'!$I$12-1), IF('B. PoF Summary Stats & Params'!$C$12="W", B32*(('B. PoF Summary Stats & Params'!$M$12/'B. PoF Summary Stats & Params'!$O$12)*((A32)/'B. PoF Summary Stats & Params'!$O$12)^('B. PoF Summary Stats & Params'!$M$12-1)), "Choose Model")) -> 1.452218493e-06
A33: 29 | B33: 1 | C33: =IF('B. PoF Summary Stats & Params'!$C$12="C", B33*'B. PoF Summary Stats & Params'!$I$8*'B. PoF Summary Stats & Params'!$I$10*A33^('B. PoF Summary Stats & Params'!$I$10-1), IF('B. PoF Summary Stats & Params'!$C$12="W", B33*(('B. PoF Summary Stats & Params'!$M$14/'B. PoF Summary Stats & Params'!$O$14)*((A33)/'B. PoF Summary Stats & Params'!$O$14)^('B. PoF Summary Stats & Params'!$M$14-1)), "Choose Model")) -> 3.291266146e-05 | D33: =IF('B. PoF Summary Stats & Params'!$C$12="C", B33*'B. PoF Summary Stats & Params'!$I$8*'B. PoF Summary Stats & Params'!$I$6*A33^('B. PoF Summary Stats & Params'!$I$6-1), IF('B. PoF Summary Stats & Params'!$C$12="W", B33*(('B. PoF Summary Stats & Params'!$M$6/'B. PoF Summary Stats & Params'!$M$8)*((A33)/'B. PoF Summary Stats & Params'!$M$8)^('B. PoF Summary Stats & Params'!$M$6-1)), "Choose Model")) -> 8.67118443e-06 | E33: =IF('B. PoF Summary Stats & Params'!$C$12="C", B33*'B. PoF Summary Stats & Params'!$I$8*'B. PoF Summary Stats & Params'!$I$12*A33^('B. PoF Summary Stats & Params'!$I$12-1), IF('B. PoF Summary Stats & Params'!$C$12="W", B33*(('B. PoF Summary Stats & Params'!$M$12/'B. PoF Summary Stats & Params'!$O$12)*((A33)/'B. PoF Summary Stats & Params'!$O$12)^('B. PoF Summary Stats & Params'!$M$12-1)), "Choose Model")) -> 2.282825738e-06
A34: 30 | B34: 1 | C34: =IF('B. PoF Summary Stats & Params'!$C$12="C", B34*'B. PoF Summary Stats & Params'!$I$8*'B. PoF Summary Stats & Params'!$I$10*A34^('B. PoF Summary Stats & Params'!$I$10-1), IF('B. PoF Summary Stats & Params'!$C$12="W", B34*(('B. PoF Summary Stats & Params'!$M$14/'B. PoF Summary Stats & Params'!$O$14)*((A34)/'B. PoF Summary Stats & Params'!$O$14)^('B. PoF Summary Stats & Params'!$M$14-1)), "Choose Model")) -> 5.230862157e-05 | D34: =IF('B. PoF Summary Stats & Params'!$C$12="C", B34*'B. PoF Summary Stats & Params'!$I$8*'B. PoF Summary Stats & Params'!$I$6*A34^('B. PoF Summary Stats & Params'!$I$6-1), IF('B. PoF Summary Stats & Params'!$C$12="W", B34*(('B. PoF Summary Stats & Params'!$M$6/'B. PoF Summary Stats & Params'!$M$8)*((A34)/'B. PoF Summary Stats & Params'!$M$8)^('B. PoF Summary Stats & Params'!$M$6-1)), "Choose Model")) -> 1.360109283e-05 | E34: =IF('B. PoF Summary Stats & Params'!$C$12="C", B34*'B. PoF Summary Stats & Params'!$I$8*'B. PoF Summary Stats & Params'!$I$12*A34^('B. PoF Summary Stats & Params'!$I$12-1), IF('B. PoF Summary Stats & Params'!$C$12="W", B34*(('B. PoF Summary Stats & Params'!$M$12/'B. PoF Summary Stats & Params'!$O$12)*((A34)/'B. PoF Summary Stats & Params'!$O$12)^('B. PoF Summary Stats & Params'!$M$12-1)), "Choose Model")) -> 3.533891813e-06
A35: 31 | B35: 1 | C35: =IF('B. PoF Summary Stats & Params'!$C$12="C", B35*'B. PoF Summary Stats & Params'!$I$8*'B. PoF Summary Stats & Params'!$I$10*A35^('B. PoF Summary Stats & Params'!$I$10-1), IF('B. PoF Summary Stats & Params'!$C$12="W", B35*(('B. PoF Summary Stats & Params'!$M$14/'B. PoF Summary Stats & Params'!$O$14)*((A35)/'B. PoF Summary Stats & Params'!$O$14)^('B. PoF Summary Stats & Params'!$M$14-1)), "Choose Model")) -> 8.188140542e-05 | D35: =IF('B. PoF Summary Stats & Params'!$C$12="C", B35*'B. PoF Summary Stats & Params'!$I$8*'B. PoF Summary Stats & Params'!$I$6*A35^('B. PoF Summary Stats & Params'!$I$6-1), IF('B. PoF Summary Stats & Params'!$C$12="W", B35*(('B. PoF Summary Stats & Params'!$M$6/'B. PoF Summary Stats & Params'!$M$8)*((A35)/'B. PoF Summary Stats & Params'!$M$8)^('B. PoF Summary Stats & Params'!$M$6-1)), "Choose Model")) -> 2.102124012e-05 | E35: =IF('B. PoF Summary Stats & Params'!$C$12="C", B35*'B. PoF Summary Stats & Params'!$I$8*'B. PoF Summary Stats & Params'!$I$12*A35^('B. PoF Summary Stats & Params'!$I$12-1), IF('B. PoF Summary Stats & Params'!$C$12="W", B35*(('B. PoF Summary Stats & Params'!$M$12/'B. PoF Summary Stats & Params'!$O$12)*((A35)/'B. PoF Summary Stats & Params'!$O$12)^('B. PoF Summary Stats & Params'!$M$12-1)), "Choose Model")) -> 5.392750083e-06
A36: 32 | B36: 1 | C36: =IF('B. PoF Summary Stats & Params'!$C$12="C", B36*'B. PoF Summary Stats & Params'!$I$8*'B. PoF Summary Stats & Params'!$I$10*A36^('B. PoF Summary Stats & Params'!$I$10-1), IF('B. PoF Summary Stats & Params'!$C$12="W", B36*(('B. PoF Summary Stats & Params'!$M$14/'B. PoF Summary Stats & Params'!$O$14)*((A36)/'B. PoF Summary Stats & Params'!$O$14)^('B. PoF Summary Stats & Params'!$M$14-1)), "Choose Model")) -> 0.0001263624643 | D36: =IF('B. PoF Summary Stats & Params'!$C$12="C", B36*'B. PoF Summary Stats & Params'!$I$8*'B. PoF Summary Stats & Params'!$I$6*A36^('B. PoF Summary Stats & Params'!$I$6-1), IF('B. PoF Summary Stats & Params'!$C$12="W", B36*(('B. PoF Summary Stats & Params'!$M$6/'B. PoF Summary Stats & Params'!$M$8)*((A36)/'B. PoF Summary Stats & Params'!$M$8)^('B. PoF Summary Stats & Params'!$M$6-1)), "Choose Model")) -> 3.204344147e-05 | E36: =IF('B. PoF Summary Stats & Params'!$C$12="C", B36*'B. PoF Summary Stats & Params'!$I$8*'B. PoF Summary Stats & Params'!$I$12*A36^('B. PoF Summary Stats & Params'!$I$12-1), IF('B. PoF Summary Stats & Params'!$C$12="W", B36*(('B. PoF Summary Stats & Params'!$M$12/'B. PoF Summary Stats & Params'!$O$12)*((A36)/'B. PoF Summary Stats & Params'!$O$12)^('B. PoF Summary Stats & Params'!$M$12-1)), "Choose Model")) -> 8.119684146e-06
A37: 33 | B37: 1 | C37: =IF('B. PoF Summary Stats & Params'!$C$12="C", B37*'B. PoF Summary Stats & Params'!$I$8*'B. PoF Summary Stats & Params'!$I$10*A37^('B. PoF Summary Stats & Params'!$I$10-1), IF('B. PoF Summary Stats & Params'!$C$12="W", B37*(('B. PoF Summary Stats & Params'!$M$14/'B. PoF Summary Stats & Params'!$O$14)*((A37)/'B. PoF Summary Stats & Params'!$O$14)^('B. PoF Summary Stats & Params'!$M$14-1)), "Choose Model")) -> 0.0001924208034 | D37: =IF('B. PoF Summary Stats & Params'!$C$12="C", B37*'B. PoF Summary Stats & Params'!$I$8*'B. PoF Summary Stats & Params'!$I$6*A37^('B. PoF Summary Stats & Params'!$I$6-1), IF('B. PoF Summary Stats & Params'!$C$12="W", B37*(('B. PoF Summary Stats & Params'!$M$6/'B. PoF Summary Stats & Params'!$M$8)*((A37)/'B. PoF Summary Stats & Params'!$M$8)^('B. PoF Summary Stats & Params'!$M$6-1)), "Choose Model")) -> 4.821540443e-05 | E37: =IF('B. PoF Summary Stats & Params'!$C$12="C", B37*'B. PoF Summary Stats & Params'!$I$8*'B. PoF Summary Stats & Params'!$I$12*A37^('B. PoF Summary Stats & Params'!$I$12-1), IF('B. PoF Summary Stats & Params'!$C$12="W", B37*(('B. PoF Summary Stats & Params'!$M$12/'B. PoF Summary Stats & Params'!$O$12)*((A37)/'B. PoF Summary Stats & Params'!$O$12)^('B. PoF Summary Stats & Params'!$M$12-1)), "Choose Model")) -> 1.207253632e-05
A38: 34 | B38: 1 | C38: =IF('B. PoF Summary Stats & Params'!$C$12="C", B38*'B. PoF Summary Stats & Params'!$I$8*'B. PoF Summary Stats & Params'!$I$10*A38^('B. PoF Summary Stats & Params'!$I$10-1), IF('B. PoF Summary Stats & Params'!$C$12="W", B38*(('B. PoF Summary Stats & Params'!$M$14/'B. PoF Summary Stats & Params'!$O$14)*((A38)/'B. PoF Summary Stats & Params'!$O$14)^('B. PoF Summary Stats & Params'!$M$14-1)), "Choose Model")) -> 0.0002893565906 | D38: =IF('B. PoF Summary Stats & Params'!$C$12="C", B38*'B. PoF Summary Stats & Params'!$I$8*'B. PoF Summary Stats & Params'!$I$6*A38^('B. PoF Summary Stats & Params'!$I$6-1), IF('B. PoF Summary Stats & Params'!$C$12="W", B38*(('B. PoF Summary Stats & Params'!$M$6/'B. PoF Summary Stats & Params'!$M$8)*((A38)/'B. PoF Summary Stats & Params'!$M$8)^('B. PoF Summary Stats & Params'!$M$6-1)), "Choose Model")) -> 7.16695637e-05 | E38: =IF('B. PoF Summary Stats & Params'!$C$12="C", B38*'B. PoF Summary Stats & Params'!$I$8*'B. PoF Summary Stats & Params'!$I$12*A38^('B. PoF Summary Stats & Params'!$I$12-1), IF('B. PoF Summary Stats & Params'!$C$12="W", B38*(('B. PoF Summary Stats & Params'!$M$12/'B. PoF Summary Stats & Params'!$O$12)*((A38)/'B. PoF Summary Stats & Params'!$O$12)^('B. PoF Summary Stats & Params'!$M$12-1)), "Choose Model")) -> 1.773842511e-05
A39: 35 | B39: 1 | C39: =IF('B. PoF Summary Stats & Params'!$C$12="C", B39*'B. PoF Summary Stats & Params'!$I$8*'B. PoF Summary Stats & Params'!$I$10*A39^('B. PoF Summary Stats & Params'!$I$10-1), IF('B. PoF Summary Stats & Params'!$C$12="W", B39*(('B. PoF Summary Stats & Params'!$M$14/'B. PoF Summary Stats & Params'!$O$14)*((A39)/'B. PoF Summary Stats & Params'!$O$14)^('B. PoF Summary Stats & Params'!$M$14-1)), "Choose Model")) -> 0.0004300097594 | D39: =IF('B. PoF Summary Stats & Params'!$C$12="C", B39*'B. PoF Summary Stats & Params'!$I$8*'B. PoF Summary Stats & Params'!$I$6*A39^('B. PoF Summary Stats & Params'!$I$6-1), IF('B. PoF Summary Stats & Params'!$C$12="W", B39*(('B. PoF Summary Stats & Params'!$M$6/'B. PoF Summary Stats & Params'!$M$8)*((A39)/'B. PoF Summary Stats & Params'!$M$8)^('B. PoF Summary Stats & Params'!$M$6-1)), "Choose Model")) -> 0.0001053157133 | E39: =IF('B. PoF Summary Stats & Params'!$C$12="C", B39*'B. PoF Summary Stats & Params'!$I$8*'B. PoF Summary Stats & Params'!$I$12*A39^('B. PoF Summary Stats & Params'!$I$12-1), IF('B. PoF Summary Stats & Params'!$C$12="W", B39*(('B. PoF Summary Stats & Params'!$M$12/'B. PoF Summary Stats & Params'!$O$12)*((A39)/'B. PoF Summary Stats & Params'!$O$12)^('B. PoF Summary Stats & Params'!$M$12-1)), "Choose Model")) -> 2.577430425e-05
A40: 36 | B40: 1 | C40: =IF('B. PoF Summary Stats & Params'!$C$12="C", B40*'B. PoF Summary Stats & Params'!$I$8*'B. PoF Summary Stats & Params'!$I$10*A40^('B. PoF Summary Stats & Params'!$I$10-1), IF('B. PoF Summary Stats & Params'!$C$12="W", B40*(('B. PoF Summary Stats & Params'!$M$14/'B. PoF Summary Stats & Params'!$O$14)*((A40)/'B. PoF Summary Stats & Params'!$O$14)^('B. PoF Summary Stats & Params'!$M$14-1)), "Choose Model")) -> 0.000631940602 | D40: =IF('B. PoF Summary Stats & Params'!$C$12="C", B40*'B. PoF Summary Stats & Params'!$I$8*'B. PoF Summary Stats & Params'!$I$6*A40^('B. PoF Summary Stats & Params'!$I$6-1), IF('B. PoF Summary Stats & Params'!$C$12="W", B40*(('B. PoF Summary Stats & Params'!$M$6/'B. PoF Summary Stats & Params'!$M$8)*((A40)/'B. PoF Summary Stats & Params'!$M$8)^('B. PoF Summary Stats & Params'!$M$6-1)), "Choose Model")) -> 0.0001530883939 | E40: =IF('B. PoF Summary Stats & Params'!$C$12="C", B40*'B. PoF Summary Stats & Params'!$I$8*'B. PoF Summary Stats & Params'!$I$12*A40^('B. PoF Summary Stats & Params'!$I$12-1), IF('B. PoF Summary Stats & Params'!$C$12="W", B40*(('B. PoF Summary Stats & Params'!$M$12/'B. PoF Summary Stats & Params'!$O$12)*((A40)/'B. PoF Summary Stats & Params'!$O$12)^('B. PoF Summary Stats & Params'!$M$12-1)), "Choose Model")) -> 3.705844485e-05
A41: 37 | B41: 1 | C41: =IF('B. PoF Summary Stats & Params'!$C$12="C", B41*'B. PoF Summary Stats & Params'!$I$8*'B. PoF Summary Stats & Params'!$I$10*A41^('B. PoF Summary Stats & Params'!$I$10-1), IF('B. PoF Summary Stats & Params'!$C$12="W", B41*(('B. PoF Summary Stats & Params'!$M$14/'B. PoF Summary Stats & Params'!$O$14)*((A41)/'B. PoF Summary Stats & Params'!$O$14)^('B. PoF Summary Stats & Params'!$M$14-1)), "Choose Model")) -> 0.0009189520688 | D41: =IF('B. PoF Summary Stats & Params'!$C$12="C", B41*'B. PoF Summary Stats & Params'!$I$8*'B. PoF Summary Stats & Params'!$I$6*A41^('B. PoF Summary Stats & Params'!$I$6-1), IF('B. PoF Summary Stats & Params'!$C$12="W", B41*(('B. PoF Summary Stats & Params'!$M$6/'B. PoF Summary Stats & Params'!$M$8)*((A41)/'B. PoF Summary Stats & Params'!$M$8)^('B. PoF Summary Stats & Params'!$M$6-1)), "Choose Model")) -> 0.0002202622825 | E41: =IF('B. PoF Summary Stats & Params'!$C$12="C", B41*'B. PoF Summary Stats & Params'!$I$8*'B. PoF Summary Stats & Params'!$I$12*A41^('B. PoF Summary Stats & Params'!$I$12-1), IF('B. PoF Summary Stats & Params'!$C$12="W", B41*(('B. PoF Summary Stats & Params'!$M$12/'B. PoF Summary Stats & Params'!$O$12)*((A41)/'B. PoF Summary Stats & Params'!$O$12)^('B. PoF Summary Stats & Params'!$M$12-1)), "Choose Model")) -> 5.275532793e-05
A42: 38 | B42: 1 | C42: =IF('B. PoF Summary Stats & Params'!$C$12="C", B42*'B. PoF Summary Stats & Params'!$I$8*'B. PoF Summary Stats & Params'!$I$10*A42^('B. PoF Summary Stats & Params'!$I$10-1), IF('B. PoF Summary Stats & Params'!$C$12="W", B42*(('B. PoF Summary Stats & Params'!$M$14/'B. PoF Summary Stats & Params'!$O$14)*((A42)/'B. PoF Summary Stats & Params'!$O$14)^('B. PoF Summary Stats & Params'!$M$14-1)), "Choose Model")) -> 0.001323038543 | D42: =IF('B. PoF Summary Stats & Params'!$C$12="C", B42*'B. PoF Summary Stats & Params'!$I$8*'B. PoF Summary Stats & Params'!$I$6*A42^('B. PoF Summary Stats & Params'!$I$6-1), IF('B. PoF Summary Stats & Params'!$C$12="W", B42*(('B. PoF Summary Stats & Params'!$M$6/'B. PoF Summary Stats & Params'!$M$8)*((A42)/'B. PoF Summary Stats & Params'!$M$8)^('B. PoF Summary Stats & Params'!$M$6-1)), "Choose Model")) -> 0.000313851509 | E42: =IF('B. PoF Summary Stats & Params'!$C$12="C", B42*'B. PoF Summary Stats & Params'!$I$8*'B. PoF Summary Stats & Params'!$I$12*A42^('B. PoF Summary Stats & Params'!$I$12-1), IF('B. PoF Summary Stats & Params'!$C$12="W", B42*(('B. PoF Summary Stats & Params'!$M$12/'B. PoF Summary Stats & Params'!$O$12)*((A42)/'B. PoF Summary Stats & Params'!$O$12)^('B. PoF Summary Stats & Params'!$M$12-1)), "Choose Model")) -> 7.439690383e-05
A43: 39 | B43: 1 | C43: =IF('B. PoF Summary Stats & Params'!$C$12="C", B43*'B. PoF Summary Stats & Params'!$I$8*'B. PoF Summary Stats & Params'!$I$10*A43^('B. PoF Summary Stats & Params'!$I$10-1), IF('B. PoF Summary Stats & Params'!$C$12="W", B43*(('B. PoF Summary Stats & Params'!$M$14/'B. PoF Summary Stats & Params'!$O$14)*((A43)/'B. PoF Summary Stats & Params'!$O$14)^('B. PoF Summary Stats & Params'!$M$14-1)), "Choose Model")) -> 0.001886863594 | D43: =IF('B. PoF Summary Stats & Params'!$C$12="C", B43*'B. PoF Summary Stats & Params'!$I$8*'B. PoF Summary Stats & Params'!$I$6*A43^('B. PoF Summary Stats & Params'!$I$6-1), IF('B. PoF Summary Stats & Params'!$C$12="W", B43*(('B. PoF Summary Stats & Params'!$M$6/'B. PoF Summary Stats & Params'!$M$8)*((A43)/'B. PoF Summary Stats & Params'!$M$8)^('B. PoF Summary Stats & Params'!$M$6-1)), "Choose Model")) -> 0.0004431119473 | E43: =IF('B. PoF Summary Stats & Params'!$C$12="C", B43*'B. PoF Summary Stats & Params'!$I$8*'B. PoF Summary Stats & Params'!$I$12*A43^('B. PoF Summary Stats & Params'!$I$12-1), IF('B. PoF Summary Stats & Params'!$C$12="W", B43*(('B. PoF Summary Stats & Params'!$M$12/'B. PoF Summary Stats & Params'!$O$12)*((A43)/'B. PoF Summary Stats & Params'!$O$12)^('B. PoF Summary Stats & Params'!$M$12-1)), "Choose Model")) -> 0.0001039837153
A44: 40 | B44: 1 | C44: =IF('B. PoF Summary Stats & Params'!$C$12="C", B44*'B. PoF Summary Stats & Params'!$I$8*'B. PoF Summary Stats & Params'!$I$10*A44^('B. PoF Summary Stats & Params'!$I$10-1), IF('B. PoF Summary Stats & Params'!$C$12="W", B44*(('B. PoF Summary Stats & Params'!$M$14/'B. PoF Summary Stats & Params'!$O$14)*((A44)/'B. PoF Summary Stats & Params'!$O$14)^('B. PoF Summary Stats & Params'!$M$14-1)), "Choose Model")) -> 0.002666890005 | D44: =IF('B. PoF Summary Stats & Params'!$C$12="C", B44*'B. PoF Summary Stats & Params'!$I$8*'B. PoF Summary Stats & Params'!$I$6*A44^('B. PoF Summary Stats & Params'!$I$6-1), IF('B. PoF Summary Stats & Params'!$C$12="W", B44*(('B. PoF Summary Stats & Params'!$M$6/'B. PoF Summary Stats & Params'!$M$8)*((A44)/'B. PoF Summary Stats & Params'!$M$8)^('B. PoF Summary Stats & Params'!$M$6-1)), "Choose Model")) -> 0.0006201691454 | E44: =IF('B. PoF Summary Stats & Params'!$C$12="C", B44*'B. PoF Summary Stats & Params'!$I$8*'B. PoF Summary Stats & Params'!$I$12*A44^('B. PoF Summary Stats & Params'!$I$12-1), IF('B. PoF Summary Stats & Params'!$C$12="W", B44*(('B. PoF Summary Stats & Params'!$M$12/'B. PoF Summary Stats & Params'!$O$12)*((A44)/'B. PoF Summary Stats & Params'!$O$12)^('B. PoF Summary Stats & Params'!$M$12-1)), "Choose Model")) -> 0.0001441100017
A45: 41 | B45: 1 | C45: =IF('B. PoF Summary Stats & Params'!$C$12="C", B45*'B. PoF Summary Stats & Params'!$I$8*'B. PoF Summary Stats & Params'!$I$10*A45^('B. PoF Summary Stats & Params'!$I$10-1), IF('B. PoF Summary Stats & Params'!$C$12="W", B45*(('B. PoF Summary Stats & Params'!$M$14/'B. PoF Summary Stats & Params'!$O$14)*((A45)/'B. PoF Summary Stats & Params'!$O$14)^('B. PoF Summary Stats & Params'!$M$14-1)), "Choose Model")) -> 0.003737309661 | D45: =IF('B. PoF Summary Stats & Params'!$C$12="C", B45*'B. PoF Summary Stats & Params'!$I$8*'B. PoF Summary Stats & Params'!$I$6*A45^('B. PoF Summary Stats & Params'!$I$6-1), IF('B. PoF Summary Stats & Params'!$C$12="W", B45*(('B. PoF Summary Stats & Params'!$M$6/'B. PoF Summary Stats & Params'!$M$8)*((A45)/'B. PoF Summary Stats & Params'!$M$8)^('B. PoF Summary Stats & Params'!$M$6-1)), "Choose Model")) -> 0.0008607987417 | E45: =IF('B. PoF Summary Stats & Params'!$C$12="C", B45*'B. PoF Summary Stats & Params'!$I$8*'B. PoF Summary Stats & Params'!$I$12*A45^('B. PoF Summary Stats & Params'!$I$12-1), IF('B. PoF Summary Stats & Params'!$C$12="W", B45*(('B. PoF Summary Stats & Params'!$M$12/'B. PoF Summary Stats & Params'!$O$12)*((A45)/'B. PoF Summary Stats & Params'!$O$12)^('B. PoF Summary Stats & Params'!$M$12-1)), "Choose Model")) -> 0.0001981176097
A46: 42 | B46: 1 | C46: =IF('B. PoF Summary Stats & Params'!$C$12="C", B46*'B. PoF Summary Stats & Params'!$I$8*'B. PoF Summary Stats & Params'!$I$10*A46^('B. PoF Summary Stats & Params'!$I$10-1), IF('B. PoF Summary Stats & Params'!$C$12="W", B46*(('B. PoF Summary Stats & Params'!$M$14/'B. PoF Summary Stats & Params'!$O$14)*((A46)/'B. PoF Summary Stats & Params'!$O$14)^('B. PoF Summary Stats & Params'!$M$14-1)), "Choose Model")) -> 0.005194949094 | D46: =IF('B. PoF Summary Stats & Params'!$C$12="C", B46*'B. PoF Summary Stats & Params'!$I$8*'B. PoF Summary Stats & Params'!$I$6*A46^('B. PoF Summary Stats & Params'!$I$6-1), IF('B. PoF Summary Stats & Params'!$C$12="W", B46*(('B. PoF Summary Stats & Params'!$M$6/'B. PoF Summary Stats & Params'!$M$8)*((A46)/'B. PoF Summary Stats & Params'!$M$8)^('B. PoF Summary Stats & Params'!$M$6-1)), "Choose Model")) -> 0.001185391027 | E46: =IF('B. PoF Summary Stats & Params'!$C$12="C", B46*'B. PoF Summary Stats & Params'!$I$8*'B. PoF Summary Stats & Params'!$I$12*A46^('B. PoF Summary Stats & Params'!$I$12-1), IF('B. PoF Summary Stats & Params'!$C$12="W", B46*(('B. PoF Summary Stats & Params'!$M$12/'B. PoF Summary Stats & Params'!$O$12)*((A46)/'B. PoF Summary Stats & Params'!$O$12)^('B. PoF Summary Stats & Params'!$M$12-1)), "Choose Model")) -> 0.0002702843446
A47: 43 | B47: 1 | C47: =IF('B. PoF Summary Stats & Params'!$C$12="C", B47*'B. PoF Summary Stats & Params'!$I$8*'B. PoF Summary Stats & Params'!$I$10*A47^('B. PoF Summary Stats & Params'!$I$10-1), IF('B. PoF Summary Stats & Params'!$C$12="W", B47*(('B. PoF Summary Stats & Params'!$M$14/'B. PoF Summary Stats & Params'!$O$14)*((A47)/'B. PoF Summary Stats & Params'!$O$14)^('B. PoF Summary Stats & Params'!$M$14-1)), "Choose Model")) -> 0.007165359192 | D47: =IF('B. PoF Summary Stats & Params'!$C$12="C", B47*'B. PoF Summary Stats & Params'!$I$8*'B. PoF Summary Stats & Params'!$I$6*A47^('B. PoF Summary Stats & Params'!$I$6-1), IF('B. PoF Summary Stats & Params'!$C$12="W", B47*(('B. PoF Summary Stats & Params'!$M$6/'B. PoF Summary Stats & Params'!$M$8)*((A47)/'B. PoF Summary Stats & Params'!$M$8)^('B. PoF Summary Stats & Params'!$M$6-1)), "Choose Model")) -> 0.001620136831 | E47: =IF('B. PoF Summary Stats & Params'!$C$12="C", B47*'B. PoF Summary Stats & Params'!$I$8*'B. PoF Summary Stats & Params'!$I$12*A47^('B. PoF Summary Stats & Params'!$I$12-1), IF('B. PoF Summary Stats & Params'!$C$12="W", B47*(('B. PoF Summary Stats & Params'!$M$12/'B. PoF Summary Stats & Params'!$O$12)*((A47)/'B. PoF Summary Stats & Params'!$O$12)^('B. PoF Summary Stats & Params'!$M$12-1)), "Choose Model")) -> 0.0003660533116
A48: 44 | B48: 1 | C48: =IF('B. PoF Summary Stats & Params'!$C$12="C", B48*'B. PoF Summary Stats & Params'!$I$8*'B. PoF Summary Stats & Params'!$I$10*A48^('B. PoF Summary Stats & Params'!$I$10-1), IF('B. PoF Summary Stats & Params'!$C$12="W", B48*(('B. PoF Summary Stats & Params'!$M$14/'B. PoF Summary Stats & Params'!$O$14)*((A48)/'B. PoF Summary Stats & Params'!$O$14)^('B. PoF Summary Stats & Params'!$M$14-1)), "Choose Model")) -> 0.009810335311 | D48: =IF('B. PoF Summary Stats & Params'!$C$12="C", B48*'B. PoF Summary Stats & Params'!$I$8*'B. PoF Summary Stats & Params'!$I$6*A48^('B. PoF Summary Stats & Params'!$I$6-1), IF('B. PoF Summary Stats & Params'!$C$12="W", B48*(('B. PoF Summary Stats & Params'!$M$6/'B. PoF Summary Stats & Params'!$M$8)*((A48)/'B. PoF Summary Stats & Params'!$M$8)^('B. PoF Summary Stats & Params'!$M$6-1)), "Choose Model")) -> 0.002198478206 | E48: =IF('B. PoF Summary Stats & Params'!$C$12="C", B48*'B. PoF Summary Stats & Params'!$I$8*'B. PoF Summary Stats & Params'!$I$12*A48^('B. PoF Summary Stats & Params'!$I$12-1), IF('B. PoF Summary Stats & Params'!$C$12="W", B48*(('B. PoF Summary Stats & Params'!$M$12/'B. PoF Summary Stats & Params'!$O$12)*((A48)/'B. PoF Summary Stats & Params'!$O$12)^('B. PoF Summary Stats & Params'!$M$12-1)), "Choose Model")) -> 0.0004923108351
A49: 45 | B49: 1 | C49: =IF('B. PoF Summary Stats & Params'!$C$12="C", B49*'B. PoF Summary Stats & Params'!$I$8*'B. PoF Summary Stats & Params'!$I$10*A49^('B. PoF Summary Stats & Params'!$I$10-1), IF('B. PoF Summary Stats & Params'!$C$12="W", B49*(('B. PoF Summary Stats & Params'!$M$14/'B. PoF Summary Stats & Params'!$O$14)*((A49)/'B. PoF Summary Stats & Params'!$O$14)^('B. PoF Summary Stats & Params'!$M$14-1)), "Choose Model")) -> 0.01333715739 | D49: =IF('B. PoF Summary Stats & Params'!$C$12="C", B49*'B. PoF Summary Stats & Params'!$I$8*'B. PoF Summary Stats & Params'!$I$6*A49^('B. PoF Summary Stats & Params'!$I$6-1), IF('B. PoF Summary Stats & Params'!$C$12="W", B49*(('B. PoF Summary Stats & Params'!$M$6/'B. PoF Summary Stats & Params'!$M$8)*((A49)/'B. PoF Summary Stats & Params'!$M$8)^('B. PoF Summary Stats & Params'!$M$6-1)), "Choose Model")) -> 0.002962874588 | E49: =IF('B. PoF Summary Stats & Params'!$C$12="C", B49*'B. PoF Summary Stats & Params'!$I$8*'B. PoF Summary Stats & Params'!$I$12*A49^('B. PoF Summary Stats & Params'!$I$12-1), IF('B. PoF Summary Stats & Params'!$C$12="W", B49*(('B. PoF Summary Stats & Params'!$M$12/'B. PoF Summary Stats & Params'!$O$12)*((A49)/'B. PoF Summary Stats & Params'!$O$12)^('B. PoF Summary Stats & Params'!$M$12-1)), "Choose Model")) -> 0.0006577217112
A50: 46 | B50: 1 | C50: =IF('B. PoF Summary Stats & Params'!$C$12="C", B50*'B. PoF Summary Stats & Params'!$I$8*'B. PoF Summary Stats & Params'!$I$10*A50^('B. PoF Summary Stats & Params'!$I$10-1), IF('B. PoF Summary Stats & Params'!$C$12="W", B50*(('B. PoF Summary Stats & Params'!$M$14/'B. PoF Summary Stats & Params'!$O$14)*((A50)/'B. PoF Summary Stats & Params'!$O$14)^('B. PoF Summary Stats & Params'!$M$14-1)), "Choose Model")) -> 0.01800988943 | D50: =IF('B. PoF Summary Stats & Params'!$C$12="C", B50*'B. PoF Summary Stats & Params'!$I$8*'B. PoF Summary Stats & Params'!$I$6*A50^('B. PoF Summary Stats & Params'!$I$6-1), IF('B. PoF Summary Stats & Params'!$C$12="W", B50*(('B. PoF Summary Stats & Params'!$M$6/'B. PoF Summary Stats & Params'!$M$8)*((A50)/'B. PoF Summary Stats & Params'!$M$8)^('B. PoF Summary Stats & Params'!$M$6-1)), "Choose Model")) -> 0.00396694323 | E50: =IF('B. PoF Summary Stats & Params'!$C$12="C", B50*'B. PoF Summary Stats & Params'!$I$8*'B. PoF Summary Stats & Params'!$I$12*A50^('B. PoF Summary Stats & Params'!$I$12-1), IF('B. PoF Summary Stats & Params'!$C$12="W", B50*(('B. PoF Summary Stats & Params'!$M$12/'B. PoF Summary Stats & Params'!$O$12)*((A50)/'B. PoF Summary Stats & Params'!$O$12)^('B. PoF Summary Stats & Params'!$M$12-1)), "Choose Model")) -> 0.0008731318698
A51: 47 | B51: 1 | C51: =IF('B. PoF Summary Stats & Params'!$C$12="C", B51*'B. PoF Summary Stats & Params'!$I$8*'B. PoF Summary Stats & Params'!$I$10*A51^('B. PoF Summary Stats & Params'!$I$10-1), IF('B. PoF Summary Stats & Params'!$C$12="W", B51*(('B. PoF Summary Stats & Params'!$M$14/'B. PoF Summary Stats & Params'!$O$14)*((A51)/'B. PoF Summary Stats & Params'!$O$14)^('B. PoF Summary Stats & Params'!$M$14-1)), "Choose Model")) -> 0.02416313441 | D51: =IF('B. PoF Summary Stats & Params'!$C$12="C", B51*'B. PoF Summary Stats & Params'!$I$8*'B. PoF Summary Stats & Params'!$I$6*A51^('B. PoF Summary Stats & Params'!$I$6-1), IF('B. PoF Summary Stats & Params'!$C$12="W", B51*(('B. PoF Summary Stats & Params'!$M$6/'B. PoF Summary Stats & Params'!$M$8)*((A51)/'B. PoF Summary Stats & Params'!$M$8)^('B. PoF Summary Stats & Params'!$M$6-1)), "Choose Model")) -> 0.005278041973 | E51: =IF('B. PoF Summary Stats & Params'!$C$12="C", B51*'B. PoF Summary Stats & Params'!$I$8*'B. PoF Summary Stats & Params'!$I$12*A51^('B. PoF Summary Stats & Params'!$I$12-1), IF('B. PoF Summary Stats & Params'!$C$12="W", B51*(('B. PoF Summary Stats & Params'!$M$12/'B. PoF Summary Stats & Params'!$O$12)*((A51)/'B. PoF Summary Stats & Params'!$O$12)^('B. PoF Summary Stats & Params'!$M$12-1)), "Choose Model")) -> 0.001152049993
A52: 48 | B52: 1 | C52: =IF('B. PoF Summary Stats & Params'!$C$12="C", B52*'B. PoF Summary Stats & Params'!$I$8*'B. PoF Summary Stats & Params'!$I$10*A52^('B. PoF Summary Stats & Params'!$I$10-1), IF('B. PoF Summary Stats & Params'!$C$12="W", B52*(('B. PoF Summary Stats & Params'!$M$14/'B. PoF Summary Stats & Params'!$O$14)*((A52)/'B. PoF Summary Stats & Params'!$O$14)^('B. PoF Summary Stats & Params'!$M$14-1)), "Choose Model")) -> 0.03221870553 | D52: =IF('B. PoF Summary Stats & Params'!$C$12="C", B52*'B. PoF Summary Stats & Params'!$I$8*'B. PoF Summary Stats & Params'!$I$6*A52^('B. PoF Summary Stats & Params'!$I$6-1), IF('B. PoF Summary Stats & Params'!$C$12="W", B52*(('B. PoF Summary Stats & Params'!$M$6/'B. PoF Summary Stats & Params'!$M$8)*((A52)/'B. PoF Summary Stats & Params'!$M$8)^('B. PoF Summary Stats & Params'!$M$6-1)), "Choose Model")) -> 0.0069803728 | E52: =IF('B. PoF Summary Stats & Params'!$C$12="C", B52*'B. PoF Summary Stats & Params'!$I$8*'B. PoF Summary Stats & Params'!$I$12*A52^('B. PoF Summary Stats & Params'!$I$12-1), IF('B. PoF Summary Stats & Params'!$C$12="W", B52*(('B. PoF Summary Stats & Params'!$M$12/'B. PoF Summary Stats & Params'!$O$12)*((A52)/'B. PoF Summary Stats & Params'!$O$12)^('B. PoF Summary Stats & Params'!$M$12-1)), "Choose Model")) -> 0.001511221292
A53: 49 | B53: 1 | C53: =IF('B. PoF Summary Stats & Params'!$C$12="C", B53*'B. PoF Summary Stats & Params'!$I$8*'B. PoF Summary Stats & Params'!$I$10*A53^('B. PoF Summary Stats & Params'!$I$10-1), IF('B. PoF Summary Stats & Params'!$C$12="W", B53*(('B. PoF Summary Stats & Params'!$M$14/'B. PoF Summary Stats & Params'!$O$14)*((A53)/'B. PoF Summary Stats & Params'!$O$14)^('B. PoF Summary Stats & Params'!$M$14-1)), "Choose Model")) -> 0.04270574798 | D53: =IF('B. PoF Summary Stats & Params'!$C$12="C", B53*'B. PoF Summary Stats & Params'!$I$8*'B. PoF Summary Stats & Params'!$I$6*A53^('B. PoF Summary Stats & Params'!$I$6-1), IF('B. PoF Summary Stats & Params'!$C$12="W", B53*(('B. PoF Summary Stats & Params'!$M$6/'B. PoF Summary Stats & Params'!$M$8)*((A53)/'B. PoF Summary Stats & Params'!$M$8)^('B. PoF Summary Stats & Params'!$M$6-1)), "Choose Model")) -> 0.009178696385 | E53: =IF('B. PoF Summary Stats & Params'!$C$12="C", B53*'B. PoF Summary Stats & Params'!$I$8*'B. PoF Summary Stats & Params'!$I$12*A53^('B. PoF Summary Stats & Params'!$I$12-1), IF('B. PoF Summary Stats & Params'!$C$12="W", B53*(('B. PoF Summary Stats & Params'!$M$12/'B. PoF Summary Stats & Params'!$O$12)*((A53)/'B. PoF Summary Stats & Params'!$O$12)^('B. PoF Summary Stats & Params'!$M$12-1)), "Choose Model")) -> 0.001971308489
A54: 50 | B54: 1 | C54: =IF('B. PoF Summary Stats & Params'!$C$12="C", B54*'B. PoF Summary Stats & Params'!$I$8*'B. PoF Summary Stats & Params'!$I$10*A54^('B. PoF Summary Stats & Params'!$I$10-1), IF('B. PoF Summary Stats & Params'!$C$12="W", B54*(('B. PoF Summary Stats & Params'!$M$14/'B. PoF Summary Stats & Params'!$O$14)*((A54)/'B. PoF Summary Stats & Params'!$O$14)^('B. PoF Summary Stats & Params'!$M$14-1)), "Choose Model")) -> 0.05628492873 | D54: =IF('B. PoF Summary Stats & Params'!$C$12="C", B54*'B. PoF Summary Stats & Params'!$I$8*'B. PoF Summary Stats & Params'!$I$6*A54^('B. PoF Summary Stats & Params'!$I$6-1), IF('B. PoF Summary Stats & Params'!$C$12="W", B54*(('B. PoF Summary Stats & Params'!$M$6/'B. PoF Summary Stats & Params'!$M$8)*((A54)/'B. PoF Summary Stats & Params'!$M$8)^('B. PoF Summary Stats & Params'!$M$6-1)), "Choose Model")) -> 0.01200276098 | E54: =IF('B. PoF Summary Stats & Params'!$C$12="C", B54*'B. PoF Summary Stats & Params'!$I$8*'B. PoF Summary Stats & Params'!$I$12*A54^('B. PoF Summary Stats & Params'!$I$12-1), IF('B. PoF Summary Stats & Params'!$C$12="W", B54*(('B. PoF Summary Stats & Params'!$M$12/'B. PoF Summary Stats & Params'!$O$12)*((A54)/'B. PoF Summary Stats & Params'!$O$12)^('B. PoF Summary Stats & Params'!$M$12-1)), "Choose Model")) -> 0.002557697101
A55: 51 | B55: 1 | C55: =IF('B. PoF Summary Stats & Params'!$C$12="C", B55*'B. PoF Summary Stats & Params'!$I$8*'B. PoF Summary Stats & Params'!$I$10*A55^('B. PoF Summary Stats & Params'!$I$10-1), IF('B. PoF Summary Stats & Params'!$C$12="W", B55*(('B. PoF Summary Stats & Params'!$M$14/'B. PoF Summary Stats & Params'!$O$14)*((A55)/'B. PoF Summary Stats & Params'!$O$14)^('B. PoF Summary Stats & Params'!$M$14-1)), "Choose Model")) -> 0.07377740564 | D55: =IF('B. PoF Summary Stats & Params'!$C$12="C", B55*'B. PoF Summary Stats & Params'!$I$8*'B. PoF Summary Stats & Params'!$I$6*A55^('B. PoF Summary Stats & Params'!$I$6-1), IF('B. PoF Summary Stats & Params'!$C$12="W", B55*(('B. PoF Summary Stats & Params'!$M$6/'B. PoF Summary Stats & Params'!$M$8)*((A55)/'B. PoF Summary Stats & Params'!$M$8)^('B. PoF Summary Stats & Params'!$M$6-1)), "Choose Model")) -> 0.01561256376 | E55: =IF('B. PoF Summary Stats & Params'!$C$12="C", B55*'B. PoF Summary Stats & Params'!$I$8*'B. PoF Summary Stats & Params'!$I$12*A55^('B. PoF Summary Stats & Params'!$I$12-1), IF('B. PoF Summary Stats & Params'!$C$12="W", B55*(('B. PoF Summary Stats & Params'!$M$12/'B. PoF Summary Stats & Params'!$O$12)*((A55)/'B. PoF Summary Stats & Params'!$O$12)^('B. PoF Summary Stats & Params'!$M$12-1)), "Choose Model")) -> 0.003301444394
A56: 52 | B56: 1 | C56: =IF('B. PoF Summary Stats & Params'!$C$12="C", B56*'B. PoF Summary Stats & Params'!$I$8*'B. PoF Summary Stats & Params'!$I$10*A56^('B. PoF Summary Stats & Params'!$I$10-1), IF('B. PoF Summary Stats & Params'!$C$12="W", B56*(('B. PoF Summary Stats & Params'!$M$14/'B. PoF Summary Stats & Params'!$O$14)*((A56)/'B. PoF Summary Stats & Params'!$O$14)^('B. PoF Summary Stats & Params'!$M$14-1)), "Choose Model")) -> 0.09619939328 | D56: =IF('B. PoF Summary Stats & Params'!$C$12="C", B56*'B. PoF Summary Stats & Params'!$I$8*'B. PoF Summary Stats & Params'!$I$6*A56^('B. PoF Summary Stats & Params'!$I$6-1), IF('B. PoF Summary Stats & Params'!$C$12="W", B56*(('B. PoF Summary Stats & Params'!$M$6/'B. PoF Summary Stats & Params'!$M$8)*((A56)/'B. PoF Summary Stats & Params'!$M$8)^('B. PoF Summary Stats & Params'!$M$6-1)), "Choose Model")) -> 0.02020457923 | E56: =IF('B. PoF Summary Stats & Params'!$C$12="C", B56*'B. PoF Summary Stats & Params'!$I$8*'B. PoF Summary Stats & Params'!$I$12*A56^('B. PoF Summary Stats & Params'!$I$12-1), IF('B. PoF Summary Stats & Params'!$C$12="W", B56*(('B. PoF Summary Stats & Params'!$M$12/'B. PoF Summary Stats & Params'!$O$12)*((A56)/'B. PoF Summary Stats & Params'!$O$12)^('B. PoF Summary Stats & Params'!$M$12-1)), "Choose Model")) -> 0.004240393931
A57: 53 | B57: 1 | C57: =IF('B. PoF Summary Stats & Params'!$C$12="C", B57*'B. PoF Summary Stats & Params'!$I$8*'B. PoF Summary Stats & Params'!$I$10*A57^('B. PoF Summary Stats & Params'!$I$10-1), IF('B. PoF Summary Stats & Params'!$C$12="W", B57*(('B. PoF Summary Stats & Params'!$M$14/'B. PoF Summary Stats & Params'!$O$14)*((A57)/'B. PoF Summary Stats & Params'!$O$14)^('B. PoF Summary Stats & Params'!$M$14-1)), "Choose Model")) -> 0.1248032613 | D57: =IF('B. PoF Summary Stats & Params'!$C$12="C", B57*'B. PoF Summary Stats & Params'!$I$8*'B. PoF Summary Stats & Params'!$I$6*A57^('B. PoF Summary Stats & Params'!$I$6-1), IF('B. PoF Summary Stats & Params'!$C$12="W", B57*(('B. PoF Summary Stats & Params'!$M$6/'B. PoF Summary Stats & Params'!$M$8)*((A57)/'B. PoF Summary Stats & Params'!$M$8)^('B. PoF Summary Stats & Params'!$M$6-1)), "Choose Model")) -> 0.02601910762 | E57: =IF('B. PoF Summary Stats & Params'!$C$12="C", B57*'B. PoF Summary Stats & Params'!$I$8*'B. PoF Summary Stats & Params'!$I$12*A57^('B. PoF Summary Stats & Params'!$I$12-1), IF('B. PoF Summary Stats & Params'!$C$12="W", B57*(('B. PoF Summary Stats & Params'!$M$12/'B. PoF Summary Stats & Params'!$O$12)*((A57)/'B. PoF Summary Stats & Params'!$O$12)^('B. PoF Summary Stats & Params'!$M$12-1)), "Choose Model")) -> 0.005420480378
A58: 54 | B58: 1 | C58: =IF('B. PoF Summary Stats & Params'!$C$12="C", B58*'B. PoF Summary Stats & Params'!$I$8*'B. PoF Summary Stats & Params'!$I$10*A58^('B. PoF Summary Stats & Params'!$I$10-1), IF('B. PoF Summary Stats & Params'!$C$12="W", B58*(('B. PoF Summary Stats & Params'!$M$14/'B. PoF Summary Stats & Params'!$O$14)*((A58)/'B. PoF Summary Stats & Params'!$O$14)^('B. PoF Summary Stats & Params'!$M$14-1)), "Choose Model")) -> 0.1611262354 | D58: =IF('B. PoF Summary Stats & Params'!$C$12="C", B58*'B. PoF Summary Stats & Params'!$I$8*'B. PoF Summary Stats & Params'!$I$6*A58^('B. PoF Summary Stats & Params'!$I$6-1), IF('B. PoF Summary Stats & Params'!$C$12="W", B58*(('B. PoF Summary Stats & Params'!$M$6/'B. PoF Summary Stats & Params'!$M$8)*((A58)/'B. PoF Summary Stats & Params'!$M$8)^('B. PoF Summary Stats & Params'!$M$6-1)), "Choose Model")) -> 0.03334891672 | E58: =IF('B. PoF Summary Stats & Params'!$C$12="C", B58*'B. PoF Summary Stats & Params'!$I$8*'B. PoF Summary Stats & Params'!$I$12*A58^('B. PoF Summary Stats & Params'!$I$12-1), IF('B. PoF Summary Stats & Params'!$C$12="W", B58*(('B. PoF Summary Stats & Params'!$M$12/'B. PoF Summary Stats & Params'!$O$12)*((A58)/'B. PoF Summary Stats & Params'!$O$12)^('B. PoF Summary Stats & Params'!$M$12-1)), "Choose Model")) -> 0.006897252391
A59: 55 | B59: 1 | C59: =IF('B. PoF Summary Stats & Params'!$C$12="C", B59*'B. PoF Summary Stats & Params'!$I$8*'B. PoF Summary Stats & Params'!$I$10*A59^('B. PoF Summary Stats & Params'!$I$10-1), IF('B. PoF Summary Stats & Params'!$C$12="W", B59*(('B. PoF Summary Stats & Params'!$M$14/'B. PoF Summary Stats & Params'!$O$14)*((A59)/'B. PoF Summary Stats & Params'!$O$14)^('B. PoF Summary Stats & Params'!$M$14-1)), "Choose Model")) -> 0.2070479183 | D59: =IF('B. PoF Summary Stats & Params'!$C$12="C", B59*'B. PoF Summary Stats & Params'!$I$8*'B. PoF Summary Stats & Params'!$I$6*A59^('B. PoF Summary Stats & Params'!$I$6-1), IF('B. PoF Summary Stats & Params'!$C$12="W", B59*(('B. PoF Summary Stats & Params'!$M$6/'B. PoF Summary Stats & Params'!$M$8)*((A59)/'B. PoF Summary Stats & Params'!$M$8)^('B. PoF Summary Stats & Params'!$M$6-1)), "Choose Model")) -> 0.04254937322 | E59: =IF('B. PoF Summary Stats & Params'!$C$12="C", B59*'B. PoF Summary Stats & Params'!$I$8*'B. PoF Summary Stats & Params'!$I$12*A59^('B. PoF Summary Stats & Params'!$I$12-1), IF('B. PoF Summary Stats & Params'!$C$12="W", B59*(('B. PoF Summary Stats & Params'!$M$12/'B. PoF Summary Stats & Params'!$O$12)*((A59)/'B. PoF Summary Stats & Params'!$O$12)^('B. PoF Summary Stats & Params'!$M$12-1)), "Choose Model")) -> 0.008737644718
A60: 56 | B60: 1 | C60: =IF('B. PoF Summary Stats & Params'!$C$12="C", B60*'B. PoF Summary Stats & Params'!$I$8*'B. PoF Summary Stats & Params'!$I$10*A60^('B. PoF Summary Stats & Params'!$I$10-1), IF('B. PoF Summary Stats & Params'!$C$12="W", B60*(('B. PoF Summary Stats & Params'!$M$14/'B. PoF Summary Stats & Params'!$O$14)*((A60)/'B. PoF Summary Stats & Params'!$O$14)^('B. PoF Summary Stats & Params'!$M$14-1)), "Choose Model")) -> 0.2648580176 | D60: =IF('B. PoF Summary Stats & Params'!$C$12="C", B60*'B. PoF Summary Stats & Params'!$I$8*'B. PoF Summary Stats & Params'!$I$6*A60^('B. PoF Summary Stats & Params'!$I$6-1), IF('B. PoF Summary Stats & Params'!$C$12="W", B60*(('B. PoF Summary Stats & Params'!$M$6/'B. PoF Summary Stats & Params'!$M$8)*((A60)/'B. PoF Summary Stats & Params'!$M$8)^('B. PoF Summary Stats & Params'!$M$6-1)), "Choose Model")) -> 0.05405028476 | E60: =IF('B. PoF Summary Stats & Params'!$C$12="C", B60*'B. PoF Summary Stats & Params'!$I$8*'B. PoF Summary Stats & Params'!$I$12*A60^('B. PoF Summary Stats & Params'!$I$12-1), IF('B. PoF Summary Stats & Params'!$C$12="W", B60*(('B. PoF Summary Stats & Params'!$M$12/'B. PoF Summary Stats & Params'!$O$12)*((A60)/'B. PoF Summary Stats & Params'!$O$12)^('B. PoF Summary Stats & Params'!$M$12-1)), "Choose Model")) -> 0.01102203447
A61: 57 | B61: 1 | C61: =IF('B. PoF Summary Stats & Params'!$C$12="C", B61*'B. PoF Summary Stats & Params'!$I$8*'B. PoF Summary Stats & Params'!$I$10*A61^('B. PoF Summary Stats & Params'!$I$10-1), IF('B. PoF Summary Stats & Params'!$C$12="W", B61*(('B. PoF Summary Stats & Params'!$M$14/'B. PoF Summary Stats & Params'!$O$14)*((A61)/'B. PoF Summary Stats & Params'!$O$14)^('B. PoF Summary Stats & Params'!$M$14-1)), "Choose Model")) -> 0.3373358494 | D61: =IF('B. PoF Summary Stats & Params'!$C$12="C", B61*'B. PoF Summary Stats & Params'!$I$8*'B. PoF Summary Stats & Params'!$I$6*A61^('B. PoF Summary Stats & Params'!$I$6-1), IF('B. PoF Summary Stats & Params'!$C$12="W", B61*(('B. PoF Summary Stats & Params'!$M$6/'B. PoF Summary Stats & Params'!$M$8)*((A61)/'B. PoF Summary Stats & Params'!$M$8)^('B. PoF Summary Stats & Params'!$M$6-1)), "Choose Model")) -> 0.06836970176 | E61: =IF('B. PoF Summary Stats & Params'!$C$12="C", B61*'B. PoF Summary Stats & Params'!$I$8*'B. PoF Summary Stats & Params'!$I$12*A61^('B. PoF Summary Stats & Params'!$I$12-1), IF('B. PoF Summary Stats & Params'!$C$12="W", B61*(('B. PoF Summary Stats & Params'!$M$12/'B. PoF Summary Stats & Params'!$O$12)*((A61)/'B. PoF Summary Stats & Params'!$O$12)^('B. PoF Summary Stats & Params'!$M$12-1)), "Choose Model")) -> 0.01384662052
A62: 58 | B62: 1 | C62: =IF('B. PoF Summary Stats & Params'!$C$12="C", B62*'B. PoF Summary Stats & Params'!$I$8*'B. PoF Summary Stats & Params'!$I$10*A62^('B. PoF Summary Stats & Params'!$I$10-1), IF('B. PoF Summary Stats & Params'!$C$12="W", B62*(('B. PoF Summary Stats & Params'!$M$14/'B. PoF Summary Stats & Params'!$O$14)*((A62)/'B. PoF Summary Stats & Params'!$O$14)^('B. PoF Summary Stats & Params'!$M$14-1)), "Choose Model")) -> 0.4278433945 | D62: =IF('B. PoF Summary Stats & Params'!$C$12="C", B62*'B. PoF Summary Stats & Params'!$I$8*'B. PoF Summary Stats & Params'!$I$6*A62^('B. PoF Summary Stats & Params'!$I$6-1), IF('B. PoF Summary Stats & Params'!$C$12="W", B62*(('B. PoF Summary Stats & Params'!$M$6/'B. PoF Summary Stats & Params'!$M$8)*((A62)/'B. PoF Summary Stats & Params'!$M$8)^('B. PoF Summary Stats & Params'!$M$6-1)), "Choose Model")) -> 0.08612995864 | E62: =IF('B. PoF Summary Stats & Params'!$C$12="C", B62*'B. PoF Summary Stats & Params'!$I$8*'B. PoF Summary Stats & Params'!$I$12*A62^('B. PoF Summary Stats & Params'!$I$12-1), IF('B. PoF Summary Stats & Params'!$C$12="W", B62*(('B. PoF Summary Stats & Params'!$M$12/'B. PoF Summary Stats & Params'!$O$12)*((A62)/'B. PoF Summary Stats & Params'!$O$12)^('B. PoF Summary Stats & Params'!$M$12-1)), "Choose Model")) -> 0.01732616964
A63: 59 | B63: 1 | C63: =IF('B. PoF Summary Stats & Params'!$C$12="C", B63*'B. PoF Summary Stats & Params'!$I$8*'B. PoF Summary Stats & Params'!$I$10*A63^('B. PoF Summary Stats & Params'!$I$10-1), IF('B. PoF Summary Stats & Params'!$C$12="W", B63*(('B. PoF Summary Stats & Params'!$M$14/'B. PoF Summary Stats & Params'!$O$14)*((A63)/'B. PoF Summary Stats & Params'!$O$14)^('B. PoF Summary Stats & Params'!$M$14-1)), "Choose Model")) -> 0.5404339139 | D63: =IF('B. PoF Summary Stats & Params'!$C$12="C", B63*'B. PoF Summary Stats & Params'!$I$8*'B. PoF Summary Stats & Params'!$I$6*A63^('B. PoF Summary Stats & Params'!$I$6-1), IF('B. PoF Summary Stats & Params'!$C$12="W", B63*(('B. PoF Summary Stats & Params'!$M$6/'B. PoF Summary Stats & Params'!$M$8)*((A63)/'B. PoF Summary Stats & Params'!$M$8)^('B. PoF Summary Stats & Params'!$M$6-1)), "Choose Model")) -> 0.1080762679 | E63: =IF('B. PoF Summary Stats & Params'!$C$12="C", B63*'B. PoF Summary Stats & Params'!$I$8*'B. PoF Summary Stats & Params'!$I$12*A63^('B. PoF Summary Stats & Params'!$I$12-1), IF('B. PoF Summary Stats & Params'!$C$12="W", B63*(('B. PoF Summary Stats & Params'!$M$12/'B. PoF Summary Stats & Params'!$O$12)*((A63)/'B. PoF Summary Stats & Params'!$O$12)^('B. PoF Summary Stats & Params'!$M$12-1)), "Choose Model")) -> 0.02159717762
A64: 60 | B64: 1 | C64: =IF('B. PoF Summary Stats & Params'!$C$12="C", B64*'B. PoF Summary Stats & Params'!$I$8*'B. PoF Summary Stats & Params'!$I$10*A64^('B. PoF Summary Stats & Params'!$I$10-1), IF('B. PoF Summary Stats & Params'!$C$12="W", B64*(('B. PoF Summary Stats & Params'!$M$14/'B. PoF Summary Stats & Params'!$O$14)*((A64)/'B. PoF Summary Stats & Params'!$O$14)^('B. PoF Summary Stats & Params'!$M$14-1)), "Choose Model")) -> 0.6799783798 | D64: =IF('B. PoF Summary Stats & Params'!$C$12="C", B64*'B. PoF Summary Stats & Params'!$I$8*'B. PoF Summary Stats & Params'!$I$6*A64^('B. PoF Summary Stats & Params'!$I$6-1), IF('B. PoF Summary Stats & Params'!$C$12="W", B64*(('B. PoF Summary Stats & Params'!$M$6/'B. PoF Summary Stats & Params'!$M$8)*((A64)/'B. PoF Summary Stats & Params'!$M$8)^('B. PoF Summary Stats & Params'!$M$6-1)), "Choose Model")) -> 0.1350982178 | E64: =IF('B. PoF Summary Stats & Params'!$C$12="C", B64*'B. PoF Summary Stats & Params'!$I$8*'B. PoF Summary Stats & Params'!$I$12*A64^('B. PoF Summary Stats & Params'!$I$12-1), IF('B. PoF Summary Stats & Params'!$C$12="W", B64*(('B. PoF Summary Stats & Params'!$M$12/'B. PoF Summary Stats & Params'!$O$12)*((A64)/'B. PoF Summary Stats & Params'!$O$12)^('B. PoF Summary Stats & Params'!$M$12-1)), "Choose Model")) -> 0.02682149934
A65: 61 | B65: 1 | C65: =IF('B. PoF Summary Stats & Params'!$C$12="C", B65*'B. PoF Summary Stats & Params'!$I$8*'B. PoF Summary Stats & Params'!$I$10*A65^('B. PoF Summary Stats & Params'!$I$10-1), IF('B. PoF Summary Stats & Params'!$C$12="W", B65*(('B. PoF Summary Stats & Params'!$M$14/'B. PoF Summary Stats & Params'!$O$14)*((A65)/'B. PoF Summary Stats & Params'!$O$14)^('B. PoF Summary Stats & Params'!$M$14-1)), "Choose Model")) -> 0.8523122621 | D65: =IF('B. PoF Summary Stats & Params'!$C$12="C", B65*'B. PoF Summary Stats & Params'!$I$8*'B. PoF Summary Stats & Params'!$I$6*A65^('B. PoF Summary Stats & Params'!$I$6-1), IF('B. PoF Summary Stats & Params'!$C$12="W", B65*(('B. PoF Summary Stats & Params'!$M$6/'B. PoF Summary Stats & Params'!$M$8)*((A65)/'B. PoF Summary Stats & Params'!$M$8)^('B. PoF Summary Stats & Params'!$M$6-1)), "Choose Model")) -> 0.1682545647 | E65: =IF('B. PoF Summary Stats & Params'!$C$12="C", B65*'B. PoF Summary Stats & Params'!$I$8*'B. PoF Summary Stats & Params'!$I$12*A65^('B. PoF Summary Stats & Params'!$I$12-1), IF('B. PoF Summary Stats & Params'!$C$12="W", B65*(('B. PoF Summary Stats & Params'!$M$12/'B. PoF Summary Stats & Params'!$O$12)*((A65)/'B. PoF Summary Stats & Params'!$O$12)^('B. PoF Summary Stats & Params'!$M$12-1)), "Choose Model")) -> 0.03319050729
A66: 62 | B66: 1 | C66: =IF('B. PoF Summary Stats & Params'!$C$12="C", B66*'B. PoF Summary Stats & Params'!$I$8*'B. PoF Summary Stats & Params'!$I$10*A66^('B. PoF Summary Stats & Params'!$I$10-1), IF('B. PoF Summary Stats & Params'!$C$12="W", B66*(('B. PoF Summary Stats & Params'!$M$14/'B. PoF Summary Stats & Params'!$O$14)*((A66)/'B. PoF Summary Stats & Params'!$O$14)^('B. PoF Summary Stats & Params'!$M$14-1)), "Choose Model")) -> 1.064405517 | D66: =IF('B. PoF Summary Stats & Params'!$C$12="C", B66*'B. PoF Summary Stats & Params'!$I$8*'B. PoF Summary Stats & Params'!$I$6*A66^('B. PoF Summary Stats & Params'!$I$6-1), IF('B. PoF Summary Stats & Params'!$C$12="W", B66*(('B. PoF Summary Stats & Params'!$M$6/'B. PoF Summary Stats & Params'!$M$8)*((A66)/'B. PoF Summary Stats & Params'!$M$8)^('B. PoF Summary Stats & Params'!$M$6-1)), "Choose Model")) -> 0.2088017568 | E66: =IF('B. PoF Summary Stats & Params'!$C$12="C", B66*'B. PoF Summary Stats & Params'!$I$8*'B. PoF Summary Stats & Params'!$I$12*A66^('B. PoF Summary Stats & Params'!$I$12-1), IF('B. PoF Summary Stats & Params'!$C$12="W", B66*(('B. PoF Summary Stats & Params'!$M$12/'B. PoF Summary Stats & Params'!$O$12)*((A66)/'B. PoF Summary Stats & Params'!$O$12)^('B. PoF Summary Stats & Params'!$M$12-1)), "Choose Model")) -> 0.04092984461
A67: 63 | B67: 1 | C67: =IF('B. PoF Summary Stats & Params'!$C$12="C", B67*'B. PoF Summary Stats & Params'!$I$8*'B. PoF Summary Stats & Params'!$I$10*A67^('B. PoF Summary Stats & Params'!$I$10-1), IF('B. PoF Summary Stats & Params'!$C$12="W", B67*(('B. PoF Summary Stats & Params'!$M$14/'B. PoF Summary Stats & Params'!$O$14)*((A67)/'B. PoF Summary Stats & Params'!$O$14)^('B. PoF Summary Stats & Params'!$M$14-1)), "Choose Model")) -> 1.324558966 | D67: =IF('B. PoF Summary Stats & Params'!$C$12="C", B67*'B. PoF Summary Stats & Params'!$I$8*'B. PoF Summary Stats & Params'!$I$6*A67^('B. PoF Summary Stats & Params'!$I$6-1), IF('B. PoF Summary Stats & Params'!$C$12="W", B67*(('B. PoF Summary Stats & Params'!$M$6/'B. PoF Summary Stats & Params'!$M$8)*((A67)/'B. PoF Summary Stats & Params'!$M$8)^('B. PoF Summary Stats & Params'!$M$6-1)), "Choose Model")) -> 0.2582266731 | E67: =IF('B. PoF Summary Stats & Params'!$C$12="C", B67*'B. PoF Summary Stats & Params'!$I$8*'B. PoF Summary Stats & Params'!$I$12*A67^('B. PoF Summary Stats & Params'!$I$12-1), IF('B. PoF Summary Stats & Params'!$C$12="W", B67*(('B. PoF Summary Stats & Params'!$M$12/'B. PoF Summary Stats & Params'!$O$12)*((A67)/'B. PoF Summary Stats & Params'!$O$12)^('B. PoF Summary Stats & Params'!$M$12-1)), "Choose Model")) -> 0.05030484548
A68: 64 | B68: 1 | C68: =IF('B. PoF Summary Stats & Params'!$C$12="C", B68*'B. PoF Summary Stats & Params'!$I$8*'B. PoF Summary Stats & Params'!$I$10*A68^('B. PoF Summary Stats & Params'!$I$10-1), IF('B. PoF Summary Stats & Params'!$C$12="W", B68*(('B. PoF Summary Stats & Params'!$M$14/'B. PoF Summary Stats & Params'!$O$14)*((A68)/'B. PoF Summary Stats & Params'!$O$14)^('B. PoF Summary Stats & Params'!$M$14-1)), "Choose Model")) -> 1.642630625 | D68: =IF('B. PoF Summary Stats & Params'!$C$12="C", B68*'B. PoF Summary Stats & Params'!$I$8*'B. PoF Summary Stats & Params'!$I$6*A68^('B. PoF Summary Stats & Params'!$I$6-1), IF('B. PoF Summary Stats & Params'!$C$12="W", B68*(('B. PoF Summary Stats & Params'!$M$6/'B. PoF Summary Stats & Params'!$M$8)*((A68)/'B. PoF Summary Stats & Params'!$M$8)^('B. PoF Summary Stats & Params'!$M$6-1)), "Choose Model")) -> 0.318284118 | E68: =IF('B. PoF Summary Stats & Params'!$C$12="C", B68*'B. PoF Summary Stats & Params'!$I$8*'B. PoF Summary Stats & Params'!$I$12*A68^('B. PoF Summary Stats & Params'!$I$12-1), IF('B. PoF Summary Stats & Params'!$C$12="W", B68*(('B. PoF Summary Stats & Params'!$M$12/'B. PoF Summary Stats & Params'!$O$12)*((A68)/'B. PoF Summary Stats & Params'!$O$12)^('B. PoF Summary Stats & Params'!$M$12-1)), "Choose Model")) -> 0.06162670349
A69: 65 | B69: 1 | C69: =IF('B. PoF Summary Stats & Params'!$C$12="C", B69*'B. PoF Summary Stats & Params'!$I$8*'B. PoF Summary Stats & Params'!$I$10*A69^('B. PoF Summary Stats & Params'!$I$10-1), IF('B. PoF Summary Stats & Params'!$C$12="W", B69*(('B. PoF Summary Stats & Params'!$M$14/'B. PoF Summary Stats & Params'!$O$14)*((A69)/'B. PoF Summary Stats & Params'!$O$14)^('B. PoF Summary Stats & Params'!$M$14-1)), "Choose Model")) -> 2.030295957 | D69: =IF('B. PoF Summary Stats & Params'!$C$12="C", B69*'B. PoF Summary Stats & Params'!$I$8*'B. PoF Summary Stats & Params'!$I$6*A69^('B. PoF Summary Stats & Params'!$I$6-1), IF('B. PoF Summary Stats & Params'!$C$12="W", B69*(('B. PoF Summary Stats & Params'!$M$6/'B. PoF Summary Stats & Params'!$M$8)*((A69)/'B. PoF Summary Stats & Params'!$M$8)^('B. PoF Summary Stats & Params'!$M$6-1)), "Choose Model")) -> 0.3910396656 | E69: =IF('B. PoF Summary Stats & Params'!$C$12="C", B69*'B. PoF Summary Stats & Params'!$I$8*'B. PoF Summary Stats & Params'!$I$12*A69^('B. PoF Summary Stats & Params'!$I$12-1), IF('B. PoF Summary Stats & Params'!$C$12="W", B69*(('B. PoF Summary Stats & Params'!$M$12/'B. PoF Summary Stats & Params'!$O$12)*((A69)/'B. PoF Summary Stats & Params'!$O$12)^('B. PoF Summary Stats & Params'!$M$12-1)), "Choose Model")) -> 0.07525947631
A70: 66 | B70: 1 | C70: =IF('B. PoF Summary Stats & Params'!$C$12="C", B70*'B. PoF Summary Stats & Params'!$I$8*'B. PoF Summary Stats & Params'!$I$10*A70^('B. PoF Summary Stats & Params'!$I$10-1), IF('B. PoF Summary Stats & Params'!$C$12="W", B70*(('B. PoF Summary Stats & Params'!$M$14/'B. PoF Summary Stats & Params'!$O$14)*((A70)/'B. PoF Summary Stats & Params'!$O$14)^('B. PoF Summary Stats & Params'!$M$14-1)), "Choose Model")) -> 2.501346474 | D70: =IF('B. PoF Summary Stats & Params'!$C$12="C", B70*'B. PoF Summary Stats & Params'!$I$8*'B. PoF Summary Stats & Params'!$I$6*A70^('B. PoF Summary Stats & Params'!$I$6-1), IF('B. PoF Summary Stats & Params'!$C$12="W", B70*(('B. PoF Summary Stats & Params'!$M$6/'B. PoF Summary Stats & Params'!$M$8)*((A70)/'B. PoF Summary Stats & Params'!$M$8)^('B. PoF Summary Stats & Params'!$M$6-1)), "Choose Model")) -> 0.4789185171 | E70: =IF('B. PoF Summary Stats & Params'!$C$12="C", B70*'B. PoF Summary Stats & Params'!$I$8*'B. PoF Summary Stats & Params'!$I$12*A70^('B. PoF Summary Stats & Params'!$I$12-1), IF('B. PoF Summary Stats & Params'!$C$12="W", B70*(('B. PoF Summary Stats & Params'!$M$12/'B. PoF Summary Stats & Params'!$O$12)*((A70)/'B. PoF Summary Stats & Params'!$O$12)^('B. PoF Summary Stats & Params'!$M$12-1)), "Choose Model")) -> 0.09162802428
A71: 67 | B71: 1 | C71: =IF('B. PoF Summary Stats & Params'!$C$12="C", B71*'B. PoF Summary Stats & Params'!$I$8*'B. PoF Summary Stats & Params'!$I$10*A71^('B. PoF Summary Stats & Params'!$I$10-1), IF('B. PoF Summary Stats & Params'!$C$12="W", B71*(('B. PoF Summary Stats & Params'!$M$14/'B. PoF Summary Stats & Params'!$O$14)*((A71)/'B. PoF Summary Stats & Params'!$O$14)^('B. PoF Summary Stats & Params'!$M$14-1)), "Choose Model")) -> 3.072031601 | D71: =IF('B. PoF Summary Stats & Params'!$C$12="C", B71*'B. PoF Summary Stats & Params'!$I$8*'B. PoF Summary Stats & Params'!$I$6*A71^('B. PoF Summary Stats & Params'!$I$6-1), IF('B. PoF Summary Stats & Params'!$C$12="W", B71*(('B. PoF Summary Stats & Params'!$M$6/'B. PoF Summary Stats & Params'!$M$8)*((A71)/'B. PoF Summary Stats & Params'!$M$8)^('B. PoF Summary Stats & Params'!$M$6-1)), "Choose Model")) -> 0.5847610983 | E71: =IF('B. PoF Summary Stats & Params'!$C$12="C", B71*'B. PoF Summary Stats & Params'!$I$8*'B. PoF Summary Stats & Params'!$I$12*A71^('B. PoF Summary Stats & Params'!$I$12-1), IF('B. PoF Summary Stats & Params'!$C$12="W", B71*(('B. PoF Summary Stats & Params'!$M$12/'B. PoF Summary Stats & Params'!$O$12)*((A71)/'B. PoF Summary Stats & Params'!$O$12)^('B. PoF Summary Stats & Params'!$M$12-1)), "Choose Model")) -> 0.1112269898
A72: 68 | B72: 1 | C72: =IF('B. PoF Summary Stats & Params'!$C$12="C", B72*'B. PoF Summary Stats & Params'!$I$8*'B. PoF Summary Stats & Params'!$I$10*A72^('B. PoF Summary Stats & Params'!$I$10-1), IF('B. PoF Summary Stats & Params'!$C$12="W", B72*(('B. PoF Summary Stats & Params'!$M$14/'B. PoF Summary Stats & Params'!$O$14)*((A72)/'B. PoF Summary Stats & Params'!$O$14)^('B. PoF Summary Stats & Params'!$M$14-1)), "Choose Model")) -> 3.761449256 | D72: =IF('B. PoF Summary Stats & Params'!$C$12="C", B72*'B. PoF Summary Stats & Params'!$I$8*'B. PoF Summary Stats & Params'!$I$6*A72^('B. PoF Summary Stats & Params'!$I$6-1), IF('B. PoF Summary Stats & Params'!$C$12="W", B72*(('B. PoF Summary Stats & Params'!$M$6/'B. PoF Summary Stats & Params'!$M$8)*((A72)/'B. PoF Summary Stats & Params'!$M$8)^('B. PoF Summary Stats & Params'!$M$6-1)), "Choose Model")) -> 0.7118862027 | E72: =IF('B. PoF Summary Stats & Params'!$C$12="C", B72*'B. PoF Summary Stats & Params'!$I$8*'B. PoF Summary Stats & Params'!$I$12*A72^('B. PoF Summary Stats & Params'!$I$12-1), IF('B. PoF Summary Stats & Params'!$C$12="W", B72*(('B. PoF Summary Stats & Params'!$M$12/'B. PoF Summary Stats & Params'!$O$12)*((A72)/'B. PoF Summary Stats & Params'!$O$12)^('B. PoF Summary Stats & Params'!$M$12-1)), "Choose Model")) -> 0.1346309345
A73: 69 | B73: 1 | C73: =IF('B. PoF Summary Stats & Params'!$C$12="C", B73*'B. PoF Summary Stats & Params'!$I$8*'B. PoF Summary Stats & Params'!$I$10*A73^('B. PoF Summary Stats & Params'!$I$10-1), IF('B. PoF Summary Stats & Params'!$C$12="W", B73*(('B. PoF Summary Stats & Params'!$M$14/'B. PoF Summary Stats & Params'!$O$14)*((A73)/'B. PoF Summary Stats & Params'!$O$14)^('B. PoF Summary Stats & Params'!$M$14-1)), "Choose Model")) -> 4.591991201 | D73: =IF('B. PoF Summary Stats & Params'!$C$12="C", B73*'B. PoF Summary Stats & Params'!$I$8*'B. PoF Summary Stats & Params'!$I$6*A73^('B. PoF Summary Stats & Params'!$I$6-1), IF('B. PoF Summary Stats & Params'!$C$12="W", B73*(('B. PoF Summary Stats & Params'!$M$6/'B. PoF Summary Stats & Params'!$M$8)*((A73)/'B. PoF Summary Stats & Params'!$M$8)^('B. PoF Summary Stats & Params'!$M$6-1)), "Choose Model")) -> 0.8641625667 | E73: =IF('B. PoF Summary Stats & Params'!$C$12="C", B73*'B. PoF Summary Stats & Params'!$I$8*'B. PoF Summary Stats & Params'!$I$12*A73^('B. PoF Summary Stats & Params'!$I$12-1), IF('B. PoF Summary Stats & Params'!$C$12="W", B73*(('B. PoF Summary Stats & Params'!$M$12/'B. PoF Summary Stats & Params'!$O$12)*((A73)/'B. PoF Summary Stats & Params'!$O$12)^('B. PoF Summary Stats & Params'!$M$12-1)), "Choose Model")) -> 0.1625057636
A74: 70 | B74: 1 | C74: =IF('B. PoF Summary Stats & Params'!$C$12="C", B74*'B. PoF Summary Stats & Params'!$I$8*'B. PoF Summary Stats & Params'!$I$10*A74^('B. PoF Summary Stats & Params'!$I$10-1), IF('B. PoF Summary Stats & Params'!$C$12="W", B74*(('B. PoF Summary Stats & Params'!$M$14/'B. PoF Summary Stats & Params'!$O$14)*((A74)/'B. PoF Summary Stats & Params'!$O$14)^('B. PoF Summary Stats & Params'!$M$14-1)), "Choose Model")) -> 5.589849832 | D74: =IF('B. PoF Summary Stats & Params'!$C$12="C", B74*'B. PoF Summary Stats & Params'!$I$8*'B. PoF Summary Stats & Params'!$I$6*A74^('B. PoF Summary Stats & Params'!$I$6-1), IF('B. PoF Summary Stats & Params'!$C$12="W", B74*(('B. PoF Summary Stats & Params'!$M$6/'B. PoF Summary Stats & Params'!$M$8)*((A74)/'B. PoF Summary Stats & Params'!$M$8)^('B. PoF Summary Stats & Params'!$M$6-1)), "Choose Model")) -> 1.046089851 | E74: =IF('B. PoF Summary Stats & Params'!$C$12="C", B74*'B. PoF Summary Stats & Params'!$I$8*'B. PoF Summary Stats & Params'!$I$12*A74^('B. PoF Summary Stats & Params'!$I$12-1), IF('B. PoF Summary Stats & Params'!$C$12="W", B74*(('B. PoF Summary Stats & Params'!$M$12/'B. PoF Summary Stats & Params'!$O$12)*((A74)/'B. PoF Summary Stats & Params'!$O$12)^('B. PoF Summary Stats & Params'!$M$12-1)), "Choose Model")) -> 0.1956215756
A75: 71 | B75: 1 | C75: =IF('B. PoF Summary Stats & Params'!$C$12="C", B75*'B. PoF Summary Stats & Params'!$I$8*'B. PoF Summary Stats & Params'!$I$10*A75^('B. PoF Summary Stats & Params'!$I$10-1), IF('B. PoF Summary Stats & Params'!$C$12="W", B75*(('B. PoF Summary Stats & Params'!$M$14/'B. PoF Summary Stats & Params'!$O$14)*((A75)/'B. PoF Summary Stats & Params'!$O$14)^('B. PoF Summary Stats & Params'!$M$14-1)), "Choose Model")) -> 6.785593815 | D75: =IF('B. PoF Summary Stats & Params'!$C$12="C", B75*'B. PoF Summary Stats & Params'!$I$8*'B. PoF Summary Stats & Params'!$I$6*A75^('B. PoF Summary Stats & Params'!$I$6-1), IF('B. PoF Summary Stats & Params'!$C$12="W", B75*(('B. PoF Summary Stats & Params'!$M$6/'B. PoF Summary Stats & Params'!$M$8)*((A75)/'B. PoF Summary Stats & Params'!$M$8)^('B. PoF Summary Stats & Params'!$M$6-1)), "Choose Model")) -> 1.262890098 | E75: =IF('B. PoF Summary Stats & Params'!$C$12="C", B75*'B. PoF Summary Stats & Params'!$I$8*'B. PoF Summary Stats & Params'!$I$12*A75^('B. PoF Summary Stats & Params'!$I$12-1), IF('B. PoF Summary Stats & Params'!$C$12="W", B75*(('B. PoF Summary Stats & Params'!$M$12/'B. PoF Summary Stats & Params'!$O$12)*((A75)/'B. PoF Summary Stats & Params'!$O$12)^('B. PoF Summary Stats & Params'!$M$12-1)), "Choose Model")) -> 0.2348670933
A76: 72 | B76: 1 | C76: =IF('B. PoF Summary Stats & Params'!$C$12="C", B76*'B. PoF Summary Stats & Params'!$I$8*'B. PoF Summary Stats & Params'!$I$10*A76^('B. PoF Summary Stats & Params'!$I$10-1), IF('B. PoF Summary Stats & Params'!$C$12="W", B76*(('B. PoF Summary Stats & Params'!$M$14/'B. PoF Summary Stats & Params'!$O$14)*((A76)/'B. PoF Summary Stats & Params'!$O$14)^('B. PoF Summary Stats & Params'!$M$14-1)), "Choose Model")) -> 8.214820689 | D76: =IF('B. PoF Summary Stats & Params'!$C$12="C", B76*'B. PoF Summary Stats & Params'!$I$8*'B. PoF Summary Stats & Params'!$I$6*A76^('B. PoF Summary Stats & Params'!$I$6-1), IF('B. PoF Summary Stats & Params'!$C$12="W", B76*(('B. PoF Summary Stats & Params'!$M$6/'B. PoF Summary Stats & Params'!$M$8)*((A76)/'B. PoF Summary Stats & Params'!$M$8)^('B. PoF Summary Stats & Params'!$M$6-1)), "Choose Model")) -> 1.520610839 | E76: =IF('B. PoF Summary Stats & Params'!$C$12="C", B76*'B. PoF Summary Stats & Params'!$I$8*'B. PoF Summary Stats & Params'!$I$12*A76^('B. PoF Summary Stats & Params'!$I$12-1), IF('B. PoF Summary Stats & Params'!$C$12="W", B76*(('B. PoF Summary Stats & Params'!$M$12/'B. PoF Summary Stats & Params'!$O$12)*((A76)/'B. PoF Summary Stats & Params'!$O$12)^('B. PoF Summary Stats & Params'!$M$12-1)), "Choose Model")) -> 0.2812658413
A77: 73 | B77: 1 | C77: =IF('B. PoF Summary Stats & Params'!$C$12="C", B77*'B. PoF Summary Stats & Params'!$I$8*'B. PoF Summary Stats & Params'!$I$10*A77^('B. PoF Summary Stats & Params'!$I$10-1), IF('B. PoF Summary Stats & Params'!$C$12="W", B77*(('B. PoF Summary Stats & Params'!$M$14/'B. PoF Summary Stats & Params'!$O$14)*((A77)/'B. PoF Summary Stats & Params'!$O$14)^('B. PoF Summary Stats & Params'!$M$14-1)), "Choose Model")) -> 9.918895434 | D77: =IF('B. PoF Summary Stats & Params'!$C$12="C", B77*'B. PoF Summary Stats & Params'!$I$8*'B. PoF Summary Stats & Params'!$I$6*A77^('B. PoF Summary Stats & Params'!$I$6-1), IF('B. PoF Summary Stats & Params'!$C$12="W", B77*(('B. PoF Summary Stats & Params'!$M$6/'B. PoF Summary Stats & Params'!$M$8)*((A77)/'B. PoF Summary Stats & Params'!$M$8)^('B. PoF Summary Stats & Params'!$M$6-1)), "Choose Model")) -> 1.826241139 | E77: =IF('B. PoF Summary Stats & Params'!$C$12="C", B77*'B. PoF Summary Stats & Params'!$I$8*'B. PoF Summary Stats & Params'!$I$12*A77^('B. PoF Summary Stats & Params'!$I$12-1), IF('B. PoF Summary Stats & Params'!$C$12="W", B77*(('B. PoF Summary Stats & Params'!$M$12/'B. PoF Summary Stats & Params'!$O$12)*((A77)/'B. PoF Summary Stats & Params'!$O$12)^('B. PoF Summary Stats & Params'!$M$12-1)), "Choose Model")) -> 0.335994252
A78: 74 | B78: 1 | C78: =IF('B. PoF Summary Stats & Params'!$C$12="C", B78*'B. PoF Summary Stats & Params'!$I$8*'B. PoF Summary Stats & Params'!$I$10*A78^('B. PoF Summary Stats & Params'!$I$10-1), IF('B. PoF Summary Stats & Params'!$C$12="W", B78*(('B. PoF Summary Stats & Params'!$M$14/'B. PoF Summary Stats & Params'!$O$14)*((A78)/'B. PoF Summary Stats & Params'!$O$14)^('B. PoF Summary Stats & Params'!$M$14-1)), "Choose Model")) -> 11.94578485 | D78: =IF('B. PoF Summary Stats & Params'!$C$12="C", B78*'B. PoF Summary Stats & Params'!$I$8*'B. PoF Summary Stats & Params'!$I$6*A78^('B. PoF Summary Stats & Params'!$I$6-1), IF('B. PoF Summary Stats & Params'!$C$12="W", B78*(('B. PoF Summary Stats & Params'!$M$6/'B. PoF Summary Stats & Params'!$M$8)*((A78)/'B. PoF Summary Stats & Params'!$M$8)^('B. PoF Summary Stats & Params'!$M$6-1)), "Choose Model")) -> 2.187841976 | E78: =IF('B. PoF Summary Stats & Params'!$C$12="C", B78*'B. PoF Summary Stats & Params'!$I$8*'B. PoF Summary Stats & Params'!$I$12*A78^('B. PoF Summary Stats & Params'!$I$12-1), IF('B. PoF Summary Stats & Params'!$C$12="W", B78*(('B. PoF Summary Stats & Params'!$M$12/'B. PoF Summary Stats & Params'!$O$12)*((A78)/'B. PoF Summary Stats & Params'!$O$12)^('B. PoF Summary Stats & Params'!$M$12-1)), "Choose Model")) -> 0.4004018991
A79: 75 | B79: 1 | C79: =IF('B. PoF Summary Stats & Params'!$C$12="C", B79*'B. PoF Summary Stats & Params'!$I$8*'B. PoF Summary Stats & Params'!$I$10*A79^('B. PoF Summary Stats & Params'!$I$10-1), IF('B. PoF Summary Stats & Params'!$C$12="W", B79*(('B. PoF Summary Stats & Params'!$M$14/'B. PoF Summary Stats & Params'!$O$14)*((A79)/'B. PoF Summary Stats & Params'!$O$14)^('B. PoF Summary Stats & Params'!$M$14-1)), "Choose Model")) -> 14.35099857 | D79: =IF('B. PoF Summary Stats & Params'!$C$12="C", B79*'B. PoF Summary Stats & Params'!$I$8*'B. PoF Summary Stats & Params'!$I$6*A79^('B. PoF Summary Stats & Params'!$I$6-1), IF('B. PoF Summary Stats & Params'!$C$12="W", B79*(('B. PoF Summary Stats & Params'!$M$6/'B. PoF Summary Stats & Params'!$M$8)*((A79)/'B. PoF Summary Stats & Params'!$M$8)^('B. PoF Summary Stats & Params'!$M$6-1)), "Choose Model")) -> 2.614692506 | E79: =IF('B. PoF Summary Stats & Params'!$C$12="C", B79*'B. PoF Summary Stats & Params'!$I$8*'B. PoF Summary Stats & Params'!$I$12*A79^('B. PoF Summary Stats & Params'!$I$12-1), IF('B. PoF Summary Stats & Params'!$C$12="W", B79*(('B. PoF Summary Stats & Params'!$M$12/'B. PoF Summary Stats & Params'!$O$12)*((A79)/'B. PoF Summary Stats & Params'!$O$12)^('B. PoF Summary Stats & Params'!$M$12-1)), "Choose Model")) -> 0.4760340731
A80: 76 | B80: 1 | C80: =IF('B. PoF Summary Stats & Params'!$C$12="C", B80*'B. PoF Summary Stats & Params'!$I$8*'B. PoF Summary Stats & Params'!$I$10*A80^('B. PoF Summary Stats & Params'!$I$10-1), IF('B. PoF Summary Stats & Params'!$C$12="W", B80*(('B. PoF Summary Stats & Params'!$M$14/'B. PoF Summary Stats & Params'!$O$14)*((A80)/'B. PoF Summary Stats & Params'!$O$14)^('B. PoF Summary Stats & Params'!$M$14-1)), "Choose Model")) -> 17.19864867 | D80: =IF('B. PoF Summary Stats & Params'!$C$12="C", B80*'B. PoF Summary Stats & Params'!$I$8*'B. PoF Summary Stats & Params'!$I$6*A80^('B. PoF Summary Stats & Params'!$I$6-1), IF('B. PoF Summary Stats & Params'!$C$12="W", B80*(('B. PoF Summary Stats & Params'!$M$6/'B. PoF Summary Stats & Params'!$M$8)*((A80)/'B. PoF Summary Stats & Params'!$M$8)^('B. PoF Summary Stats & Params'!$M$6-1)), "Choose Model")) -> 3.117453873 | E80: =IF('B. PoF Summary Stats & Params'!$C$12="C", B80*'B. PoF Summary Stats & Params'!$I$8*'B. PoF Summary Stats & Params'!$I$12*A80^('B. PoF Summary Stats & Params'!$I$12-1), IF('B. PoF Summary Stats & Params'!$C$12="W", B80*(('B. PoF Summary Stats & Params'!$M$12/'B. PoF Summary Stats & Params'!$O$12)*((A80)/'B. PoF Summary Stats & Params'!$O$12)^('B. PoF Summary Stats & Params'!$M$12-1)), "Choose Model")) -> 0.5646569313
A81: 77 | B81: 1 | C81: =IF('B. PoF Summary Stats & Params'!$C$12="C", B81*'B. PoF Summary Stats & Params'!$I$8*'B. PoF Summary Stats & Params'!$I$10*A81^('B. PoF Summary Stats & Params'!$I$10-1), IF('B. PoF Summary Stats & Params'!$C$12="W", B81*(('B. PoF Summary Stats & Params'!$M$14/'B. PoF Summary Stats & Params'!$O$14)*((A81)/'B. PoF Summary Stats & Params'!$O$14)^('B. PoF Summary Stats & Params'!$M$14-1)), "Choose Model")) -> 20.56264079 | D81: =IF('B. PoF Summary Stats & Params'!$C$12="C", B81*'B. PoF Summary Stats & Params'!$I$8*'B. PoF Summary Stats & Params'!$I$6*A81^('B. PoF Summary Stats & Params'!$I$6-1), IF('B. PoF Summary Stats & Params'!$C$12="W", B81*(('B. PoF Summary Stats & Params'!$M$6/'B. PoF Summary Stats & Params'!$M$8)*((A81)/'B. PoF Summary Stats & Params'!$M$8)^('B. PoF Summary Stats & Params'!$M$6-1)), "Choose Model")) -> 3.708352401 | E81: =IF('B. PoF Summary Stats & Params'!$C$12="C", B81*'B. PoF Summary Stats & Params'!$I$8*'B. PoF Summary Stats & Params'!$I$12*A81^('B. PoF Summary Stats & Params'!$I$12-1), IF('B. PoF Summary Stats & Params'!$C$12="W", B81*(('B. PoF Summary Stats & Params'!$M$12/'B. PoF Summary Stats & Params'!$O$12)*((A81)/'B. PoF Summary Stats & Params'!$O$12)^('B. PoF Summary Stats & Params'!$M$12-1)), "Choose Model")) -> 0.6682854769
A82: 78 | B82: 1 | C82: =IF('B. PoF Summary Stats & Params'!$C$12="C", B82*'B. PoF Summary Stats & Params'!$I$8*'B. PoF Summary Stats & Params'!$I$10*A82^('B. PoF Summary Stats & Params'!$I$10-1), IF('B. PoF Summary Stats & Params'!$C$12="W", B82*(('B. PoF Summary Stats & Params'!$M$14/'B. PoF Summary Stats & Params'!$O$14)*((A82)/'B. PoF Summary Stats & Params'!$O$14)^('B. PoF Summary Stats & Params'!$M$14-1)), "Choose Model")) -> 24.52801108 | D82: =IF('B. PoF Summary Stats & Params'!$C$12="C", B82*'B. PoF Summary Stats & Params'!$I$8*'B. PoF Summary Stats & Params'!$I$6*A82^('B. PoF Summary Stats & Params'!$I$6-1), IF('B. PoF Summary Stats & Params'!$C$12="W", B82*(('B. PoF Summary Stats & Params'!$M$6/'B. PoF Summary Stats & Params'!$M$8)*((A82)/'B. PoF Summary Stats & Params'!$M$8)^('B. PoF Summary Stats & Params'!$M$6-1)), "Choose Model")) -> 4.401384148 | E82: =IF('B. PoF Summary Stats & Params'!$C$12="C", B82*'B. PoF Summary Stats & Params'!$I$8*'B. PoF Summary Stats & Params'!$I$12*A82^('B. PoF Summary Stats & Params'!$I$12-1), IF('B. PoF Summary Stats & Params'!$C$12="W", B82*(('B. PoF Summary Stats & Params'!$M$12/'B. PoF Summary Stats & Params'!$O$12)*((A82)/'B. PoF Summary Stats & Params'!$O$12)^('B. PoF Summary Stats & Params'!$M$12-1)), "Choose Model")) -> 0.7892146391
A83: 79 | B83: 1 | C83: =IF('B. PoF Summary Stats & Params'!$C$12="C", B83*'B. PoF Summary Stats & Params'!$I$8*'B. PoF Summary Stats & Params'!$I$10*A83^('B. PoF Summary Stats & Params'!$I$10-1), IF('B. PoF Summary Stats & Params'!$C$12="W", B83*(('B. PoF Summary Stats & Params'!$M$14/'B. PoF Summary Stats & Params'!$O$14)*((A83)/'B. PoF Summary Stats & Params'!$O$14)^('B. PoF Summary Stats & Params'!$M$14-1)), "Choose Model")) -> 29.19242456 | D83: =IF('B. PoF Summary Stats & Params'!$C$12="C", B83*'B. PoF Summary Stats & Params'!$I$8*'B. PoF Summary Stats & Params'!$I$6*A83^('B. PoF Summary Stats & Params'!$I$6-1), IF('B. PoF Summary Stats & Params'!$C$12="W", B83*(('B. PoF Summary Stats & Params'!$M$6/'B. PoF Summary Stats & Params'!$M$8)*((A83)/'B. PoF Summary Stats & Params'!$M$8)^('B. PoF Summary Stats & Params'!$M$6-1)), "Choose Model")) -> 5.212542992 | E83: =IF('B. PoF Summary Stats & Params'!$C$12="C", B83*'B. PoF Summary Stats & Params'!$I$8*'B. PoF Summary Stats & Params'!$I$12*A83^('B. PoF Summary Stats & Params'!$I$12-1), IF('B. PoF Summary Stats & Params'!$C$12="W", B83*(('B. PoF Summary Stats & Params'!$M$12/'B. PoF Summary Stats & Params'!$O$12)*((A83)/'B. PoF Summary Stats & Params'!$O$12)^('B. PoF Summary Stats & Params'!$M$12-1)), "Choose Model")) -> 0.9300537529
A84: 80 | B84: 1 | C84: =IF('B. PoF Summary Stats & Params'!$C$12="C", B84*'B. PoF Summary Stats & Params'!$I$8*'B. PoF Summary Stats & Params'!$I$10*A84^('B. PoF Summary Stats & Params'!$I$10-1), IF('B. PoF Summary Stats & Params'!$C$12="W", B84*(('B. PoF Summary Stats & Params'!$M$14/'B. PoF Summary Stats & Params'!$O$14)*((A84)/'B. PoF Summary Stats & Params'!$O$14)^('B. PoF Summary Stats & Params'!$M$14-1)), "Choose Model")) -> 34.66785188 | D84: =IF('B. PoF Summary Stats & Params'!$C$12="C", B84*'B. PoF Summary Stats & Params'!$I$8*'B. PoF Summary Stats & Params'!$I$6*A84^('B. PoF Summary Stats & Params'!$I$6-1), IF('B. PoF Summary Stats & Params'!$C$12="W", B84*(('B. PoF Summary Stats & Params'!$M$6/'B. PoF Summary Stats & Params'!$M$8)*((A84)/'B. PoF Summary Stats & Params'!$M$8)^('B. PoF Summary Stats & Params'!$M$6-1)), "Choose Model")) -> 6.160074586 | E84: =IF('B. PoF Summary Stats & Params'!$C$12="C", B84*'B. PoF Summary Stats & Params'!$I$8*'B. PoF Summary Stats & Params'!$I$12*A84^('B. PoF Summary Stats & Params'!$I$12-1), IF('B. PoF Summary Stats & Params'!$C$12="W", B84*(('B. PoF Summary Stats & Params'!$M$12/'B. PoF Summary Stats & Params'!$O$12)*((A84)/'B. PoF Summary Stats & Params'!$O$12)^('B. PoF Summary Stats & Params'!$M$12-1)), "Choose Model")) -> 1.093764756
A85: 81 | B85: 1 | C85: =IF('B. PoF Summary Stats & Params'!$C$12="C", B85*'B. PoF Summary Stats & Params'!$I$8*'B. PoF Summary Stats & Params'!$I$10*A85^('B. PoF Summary Stats & Params'!$I$10-1), IF('B. PoF Summary Stats & Params'!$C$12="W", B85*(('B. PoF Summary Stats & Params'!$M$14/'B. PoF Summary Stats & Params'!$O$14)*((A85)/'B. PoF Summary Stats & Params'!$O$14)^('B. PoF Summary Stats & Params'!$M$14-1)), "Choose Model")) -> 41.08244295 | D85: =IF('B. PoF Summary Stats & Params'!$C$12="C", B85*'B. PoF Summary Stats & Params'!$I$8*'B. PoF Summary Stats & Params'!$I$6*A85^('B. PoF Summary Stats & Params'!$I$6-1), IF('B. PoF Summary Stats & Params'!$C$12="W", B85*(('B. PoF Summary Stats & Params'!$M$6/'B. PoF Summary Stats & Params'!$M$8)*((A85)/'B. PoF Summary Stats & Params'!$M$8)^('B. PoF Summary Stats & Params'!$M$6-1)), "Choose Model")) -> 7.264758732 | E85: =IF('B. PoF Summary Stats & Params'!$C$12="C", B85*'B. PoF Summary Stats & Params'!$I$8*'B. PoF Summary Stats & Params'!$I$12*A85^('B. PoF Summary Stats & Params'!$I$12-1), IF('B. PoF Summary Stats & Params'!$C$12="W", B85*(('B. PoF Summary Stats & Params'!$M$12/'B. PoF Summary Stats & Params'!$O$12)*((A85)/'B. PoF Summary Stats & Params'!$O$12)^('B. PoF Summary Stats & Params'!$M$12-1)), "Choose Model")) -> 1.28370445
A86: 82 | B86: 1 | C86: =IF('B. PoF Summary Stats & Params'!$C$12="C", B86*'B. PoF Summary Stats & Params'!$I$8*'B. PoF Summary Stats & Params'!$I$10*A86^('B. PoF Summary Stats & Params'!$I$10-1), IF('B. PoF Summary Stats & Params'!$C$12="W", B86*(('B. PoF Summary Stats & Params'!$M$14/'B. PoF Summary Stats & Params'!$O$14)*((A86)/'B. PoF Summary Stats & Params'!$O$14)^('B. PoF Summary Stats & Params'!$M$14-1)), "Choose Model")) -> 48.58261778 | D86: =IF('B. PoF Summary Stats & Params'!$C$12="C", B86*'B. PoF Summary Stats & Params'!$I$8*'B. PoF Summary Stats & Params'!$I$6*A86^('B. PoF Summary Stats & Params'!$I$6-1), IF('B. PoF Summary Stats & Params'!$C$12="W", B86*(('B. PoF Summary Stats & Params'!$M$6/'B. PoF Summary Stats & Params'!$M$8)*((A86)/'B. PoF Summary Stats & Params'!$M$8)^('B. PoF Summary Stats & Params'!$M$6-1)), "Choose Model")) -> 8.550222938 | E86: =IF('B. PoF Summary Stats & Params'!$C$12="C", B86*'B. PoF Summary Stats & Params'!$I$8*'B. PoF Summary Stats & Params'!$I$12*A86^('B. PoF Summary Stats & Params'!$I$12-1), IF('B. PoF Summary Stats & Params'!$C$12="W", B86*(('B. PoF Summary Stats & Params'!$M$12/'B. PoF Summary Stats & Params'!$O$12)*((A86)/'B. PoF Summary Stats & Params'!$O$12)^('B. PoF Summary Stats & Params'!$M$12-1)), "Choose Model")) -> 1.503671198
A87: 83 | B87: 1 | C87: =IF('B. PoF Summary Stats & Params'!$C$12="C", B87*'B. PoF Summary Stats & Params'!$I$8*'B. PoF Summary Stats & Params'!$I$10*A87^('B. PoF Summary Stats & Params'!$I$10-1), IF('B. PoF Summary Stats & Params'!$C$12="W", B87*(('B. PoF Summary Stats & Params'!$M$14/'B. PoF Summary Stats & Params'!$O$14)*((A87)/'B. PoF Summary Stats & Params'!$O$14)^('B. PoF Summary Stats & Params'!$M$14-1)), "Choose Model")) -> 57.33539631 | D87: =IF('B. PoF Summary Stats & Params'!$C$12="C", B87*'B. PoF Summary Stats & Params'!$I$8*'B. PoF Summary Stats & Params'!$I$6*A87^('B. PoF Summary Stats & Params'!$I$6-1), IF('B. PoF Summary Stats & Params'!$C$12="W", B87*(('B. PoF Summary Stats & Params'!$M$6/'B. PoF Summary Stats & Params'!$M$8)*((A87)/'B. PoF Summary Stats & Params'!$M$8)^('B. PoF Summary Stats & Params'!$M$6-1)), "Choose Model")) -> 10.04329014 | E87: =IF('B. PoF Summary Stats & Params'!$C$12="C", B87*'B. PoF Summary Stats & Params'!$I$8*'B. PoF Summary Stats & Params'!$I$12*A87^('B. PoF Summary Stats & Params'!$I$12-1), IF('B. PoF Summary Stats & Params'!$C$12="W", B87*(('B. PoF Summary Stats & Params'!$M$12/'B. PoF Summary Stats & Params'!$O$12)*((A87)/'B. PoF Summary Stats & Params'!$O$12)^('B. PoF Summary Stats & Params'!$M$12-1)), "Choose Model")) -> 1.757956464
A88: 84 | B88: 1 | C88: =IF('B. PoF Summary Stats & Params'!$C$12="C", B88*'B. PoF Summary Stats & Params'!$I$8*'B. PoF Summary Stats & Params'!$I$10*A88^('B. PoF Summary Stats & Params'!$I$10-1), IF('B. PoF Summary Stats & Params'!$C$12="W", B88*(('B. PoF Summary Stats & Params'!$M$14/'B. PoF Summary Stats & Params'!$O$14)*((A88)/'B. PoF Summary Stats & Params'!$O$14)^('B. PoF Summary Stats & Params'!$M$14-1)), "Choose Model")) -> 67.5309913 | D88: =IF('B. PoF Summary Stats & Params'!$C$12="C", B88*'B. PoF Summary Stats & Params'!$I$8*'B. PoF Summary Stats & Params'!$I$6*A88^('B. PoF Summary Stats & Params'!$I$6-1), IF('B. PoF Summary Stats & Params'!$C$12="W", B88*(('B. PoF Summary Stats & Params'!$M$6/'B. PoF Summary Stats & Params'!$M$8)*((A88)/'B. PoF Summary Stats & Params'!$M$8)^('B. PoF Summary Stats & Params'!$M$6-1)), "Choose Model")) -> 11.77436381 | E88: =IF('B. PoF Summary Stats & Params'!$C$12="C", B88*'B. PoF Summary Stats & Params'!$I$8*'B. PoF Summary Stats & Params'!$I$12*A88^('B. PoF Summary Stats & Params'!$I$12-1), IF('B. PoF Summary Stats & Params'!$C$12="W", B88*(('B. PoF Summary Stats & Params'!$M$12/'B. PoF Summary Stats & Params'!$O$12)*((A88)/'B. PoF Summary Stats & Params'!$O$12)^('B. PoF Summary Stats & Params'!$M$12-1)), "Choose Model")) -> 2.051401614
A89: 85 | B89: 1 | C89: =IF('B. PoF Summary Stats & Params'!$C$12="C", B89*'B. PoF Summary Stats & Params'!$I$8*'B. PoF Summary Stats & Params'!$I$10*A89^('B. PoF Summary Stats & Params'!$I$10-1), IF('B. PoF Summary Stats & Params'!$C$12="W", B89*(('B. PoF Summary Stats & Params'!$M$14/'B. PoF Summary Stats & Params'!$O$14)*((A89)/'B. PoF Summary Stats & Params'!$O$14)^('B. PoF Summary Stats & Params'!$M$14-1)), "Choose Model")) -> 79.38569005 | D89: =IF('B. PoF Summary Stats & Params'!$C$12="C", B89*'B. PoF Summary Stats & Params'!$I$8*'B. PoF Summary Stats & Params'!$I$6*A89^('B. PoF Summary Stats & Params'!$I$6-1), IF('B. PoF Summary Stats & Params'!$C$12="W", B89*(('B. PoF Summary Stats & Params'!$M$6/'B. PoF Summary Stats & Params'!$M$8)*((A89)/'B. PoF Summary Stats & Params'!$M$8)^('B. PoF Summary Stats & Params'!$M$6-1)), "Choose Model")) -> 13.77785399 | E89: =IF('B. PoF Summary Stats & Params'!$C$12="C", B89*'B. PoF Summary Stats & Params'!$I$8*'B. PoF Summary Stats & Params'!$I$12*A89^('B. PoF Summary Stats & Params'!$I$12-1), IF('B. PoF Summary Stats & Params'!$C$12="W", B89*(('B. PoF Summary Stats & Params'!$M$12/'B. PoF Summary Stats & Params'!$O$12)*((A89)/'B. PoF Summary Stats & Params'!$O$12)^('B. PoF Summary Stats & Params'!$M$12-1)), "Choose Model")) -> 2.389460459
A90: 86 | B90: 1 | C90: =IF('B. PoF Summary Stats & Params'!$C$12="C", B90*'B. PoF Summary Stats & Params'!$I$8*'B. PoF Summary Stats & Params'!$I$10*A90^('B. PoF Summary Stats & Params'!$I$10-1), IF('B. PoF Summary Stats & Params'!$C$12="W", B90*(('B. PoF Summary Stats & Params'!$M$14/'B. PoF Summary Stats & Params'!$O$14)*((A90)/'B. PoF Summary Stats & Params'!$O$14)^('B. PoF Summary Stats & Params'!$M$14-1)), "Choose Model")) -> 93.14505312 | D90: =IF('B. PoF Summary Stats & Params'!$C$12="C", B90*'B. PoF Summary Stats & Params'!$I$8*'B. PoF Summary Stats & Params'!$I$6*A90^('B. PoF Summary Stats & Params'!$I$6-1), IF('B. PoF Summary Stats & Params'!$C$12="W", B90*(('B. PoF Summary Stats & Params'!$M$6/'B. PoF Summary Stats & Params'!$M$8)*((A90)/'B. PoF Summary Stats & Params'!$M$8)^('B. PoF Summary Stats & Params'!$M$6-1)), "Choose Model")) -> 16.09264794 | E90: =IF('B. PoF Summary Stats & Params'!$C$12="C", B90*'B. PoF Summary Stats & Params'!$I$8*'B. PoF Summary Stats & Params'!$I$12*A90^('B. PoF Summary Stats & Params'!$I$12-1), IF('B. PoF Summary Stats & Params'!$C$12="W", B90*(('B. PoF Summary Stats & Params'!$M$12/'B. PoF Summary Stats & Params'!$O$12)*((A90)/'B. PoF Summary Stats & Params'!$O$12)^('B. PoF Summary Stats & Params'!$M$12-1)), "Choose Model")) -> 2.778268033
A91: 87 | B91: 1 | C91: =IF('B. PoF Summary Stats & Params'!$C$12="C", B91*'B. PoF Summary Stats & Params'!$I$8*'B. PoF Summary Stats & Params'!$I$10*A91^('B. PoF Summary Stats & Params'!$I$10-1), IF('B. PoF Summary Stats & Params'!$C$12="W", B91*(('B. PoF Summary Stats & Params'!$M$14/'B. PoF Summary Stats & Params'!$O$14)*((A91)/'B. PoF Summary Stats & Params'!$O$14)^('B. PoF Summary Stats & Params'!$M$14-1)), "Choose Model")) -> 109.0874606 | D91: =IF('B. PoF Summary Stats & Params'!$C$12="C", B91*'B. PoF Summary Stats & Params'!$I$8*'B. PoF Summary Stats & Params'!$I$6*A91^('B. PoF Summary Stats & Params'!$I$6-1), IF('B. PoF Summary Stats & Params'!$C$12="W", B91*(('B. PoF Summary Stats & Params'!$M$6/'B. PoF Summary Stats & Params'!$M$8)*((A91)/'B. PoF Summary Stats & Params'!$M$8)^('B. PoF Summary Stats & Params'!$M$6-1)), "Choose Model")) -> 18.76262951 | E91: =IF('B. PoF Summary Stats & Params'!$C$12="C", B91*'B. PoF Summary Stats & Params'!$I$8*'B. PoF Summary Stats & Params'!$I$12*A91^('B. PoF Summary Stats & Params'!$I$12-1), IF('B. PoF Summary Stats & Params'!$C$12="W", B91*(('B. PoF Summary Stats & Params'!$M$12/'B. PoF Summary Stats & Params'!$O$12)*((A91)/'B. PoF Summary Stats & Params'!$O$12)^('B. PoF Summary Stats & Params'!$M$12-1)), "Choose Model")) -> 3.224716133
A92: 88 | B92: 1 | C92: =IF('B. PoF Summary Stats & Params'!$C$12="C", B92*'B. PoF Summary Stats & Params'!$I$8*'B. PoF Summary Stats & Params'!$I$10*A92^('B. PoF Summary Stats & Params'!$I$10-1), IF('B. PoF Summary Stats & Params'!$C$12="W", B92*(('B. PoF Summary Stats & Params'!$M$14/'B. PoF Summary Stats & Params'!$O$14)*((A92)/'B. PoF Summary Stats & Params'!$O$14)^('B. PoF Summary Stats & Params'!$M$14-1)), "Choose Model")) -> 127.5280386 | D92: =IF('B. PoF Summary Stats & Params'!$C$12="C", B92*'B. PoF Summary Stats & Params'!$I$8*'B. PoF Summary Stats & Params'!$I$6*A92^('B. PoF Summary Stats & Params'!$I$6-1), IF('B. PoF Summary Stats & Params'!$C$12="W", B92*(('B. PoF Summary Stats & Params'!$M$6/'B. PoF Summary Stats & Params'!$M$8)*((A92)/'B. PoF Summary Stats & Params'!$M$8)^('B. PoF Summary Stats & Params'!$M$6-1)), "Choose Model")) -> 21.8372517 | E92: =IF('B. PoF Summary Stats & Params'!$C$12="C", B92*'B. PoF Summary Stats & Params'!$I$8*'B. PoF Summary Stats & Params'!$I$12*A92^('B. PoF Summary Stats & Params'!$I$12-1), IF('B. PoF Summary Stats & Params'!$C$12="W", B92*(('B. PoF Summary Stats & Params'!$M$12/'B. PoF Summary Stats & Params'!$O$12)*((A92)/'B. PoF Summary Stats & Params'!$O$12)^('B. PoF Summary Stats & Params'!$M$12-1)), "Choose Model")) -> 3.736536214
A93: 89 | B93: 1 | C93: =IF('B. PoF Summary Stats & Params'!$C$12="C", B93*'B. PoF Summary Stats & Params'!$I$8*'B. PoF Summary Stats & Params'!$I$10*A93^('B. PoF Summary Stats & Params'!$I$10-1), IF('B. PoF Summary Stats & Params'!$C$12="W", B93*(('B. PoF Summary Stats & Params'!$M$14/'B. PoF Summary Stats & Params'!$O$14)*((A93)/'B. PoF Summary Stats & Params'!$O$14)^('B. PoF Summary Stats & Params'!$M$14-1)), "Choose Model")) -> 148.8230024 | D93: =IF('B. PoF Summary Stats & Params'!$C$12="C", B93*'B. PoF Summary Stats & Params'!$I$8*'B. PoF Summary Stats & Params'!$I$6*A93^('B. PoF Summary Stats & Params'!$I$6-1), IF('B. PoF Summary Stats & Params'!$C$12="W", B93*(('B. PoF Summary Stats & Params'!$M$6/'B. PoF Summary Stats & Params'!$M$8)*((A93)/'B. PoF Summary Stats & Params'!$M$8)^('B. PoF Summary Stats & Params'!$M$6-1)), "Choose Model")) -> 25.37216691 | E93: =IF('B. PoF Summary Stats & Params'!$C$12="C", B93*'B. PoF Summary Stats & Params'!$I$8*'B. PoF Summary Stats & Params'!$I$12*A93^('B. PoF Summary Stats & Params'!$I$12-1), IF('B. PoF Summary Stats & Params'!$C$12="W", B93*(('B. PoF Summary Stats & Params'!$M$12/'B. PoF Summary Stats & Params'!$O$12)*((A93)/'B. PoF Summary Stats & Params'!$O$12)^('B. PoF Summary Stats & Params'!$M$12-1)), "Choose Model")) -> 4.322390239
A94: 90 | B94: 1 | C94: =IF('B. PoF Summary Stats & Params'!$C$12="C", B94*'B. PoF Summary Stats & Params'!$I$8*'B. PoF Summary Stats & Params'!$I$10*A94^('B. PoF Summary Stats & Params'!$I$10-1), IF('B. PoF Summary Stats & Params'!$C$12="W", B94*(('B. PoF Summary Stats & Params'!$M$14/'B. PoF Summary Stats & Params'!$O$14)*((A94)/'B. PoF Summary Stats & Params'!$O$14)^('B. PoF Summary Stats & Params'!$M$14-1)), "Choose Model")) -> 173.3744535 | D94: =IF('B. PoF Summary Stats & Params'!$C$12="C", B94*'B. PoF Summary Stats & Params'!$I$8*'B. PoF Summary Stats & Params'!$I$6*A94^('B. PoF Summary Stats & Params'!$I$6-1), IF('B. PoF Summary Stats & Params'!$C$12="W", B94*(('B. PoF Summary Stats & Params'!$M$6/'B. PoF Summary Stats & Params'!$M$8)*((A94)/'B. PoF Summary Stats & Params'!$M$8)^('B. PoF Summary Stats & Params'!$M$6-1)), "Choose Model")) -> 29.42992018 | E94: =IF('B. PoF Summary Stats & Params'!$C$12="C", B94*'B. PoF Summary Stats & Params'!$I$8*'B. PoF Summary Stats & Params'!$I$12*A94^('B. PoF Summary Stats & Params'!$I$12-1), IF('B. PoF Summary Stats & Params'!$C$12="W", B94*(('B. PoF Summary Stats & Params'!$M$12/'B. PoF Summary Stats & Params'!$O$12)*((A94)/'B. PoF Summary Stats & Params'!$O$12)^('B. PoF Summary Stats & Params'!$M$12-1)), "Choose Model")) -> 4.991970149
A95: 91 | B95: 1 | C95: =IF('B. PoF Summary Stats & Params'!$C$12="C", B95*'B. PoF Summary Stats & Params'!$I$8*'B. PoF Summary Stats & Params'!$I$10*A95^('B. PoF Summary Stats & Params'!$I$10-1), IF('B. PoF Summary Stats & Params'!$C$12="W", B95*(('B. PoF Summary Stats & Params'!$M$14/'B. PoF Summary Stats & Params'!$O$14)*((A95)/'B. PoF Summary Stats & Params'!$O$14)^('B. PoF Summary Stats & Params'!$M$14-1)), "Choose Model")) -> 201.6356736 | D95: =IF('B. PoF Summary Stats & Params'!$C$12="C", B95*'B. PoF Summary Stats & Params'!$I$8*'B. PoF Summary Stats & Params'!$I$6*A95^('B. PoF Summary Stats & Params'!$I$6-1), IF('B. PoF Summary Stats & Params'!$C$12="W", B95*(('B. PoF Summary Stats & Params'!$M$6/'B. PoF Summary Stats & Params'!$M$8)*((A95)/'B. PoF Summary Stats & Params'!$M$8)^('B. PoF Summary Stats & Params'!$M$6-1)), "Choose Model")) -> 34.08071078 | E95: =IF('B. PoF Summary Stats & Params'!$C$12="C", B95*'B. PoF Summary Stats & Params'!$I$8*'B. PoF Summary Stats & Params'!$I$12*A95^('B. PoF Summary Stats & Params'!$I$12-1), IF('B. PoF Summary Stats & Params'!$C$12="W", B95*(('B. PoF Summary Stats & Params'!$M$12/'B. PoF Summary Stats & Params'!$O$12)*((A95)/'B. PoF Summary Stats & Params'!$O$12)^('B. PoF Summary Stats & Params'!$M$12-1)), "Choose Model")) -> 5.756106667
A96: 92 | B96: 1 | C96: =IF('B. PoF Summary Stats & Params'!$C$12="C", B96*'B. PoF Summary Stats & Params'!$I$8*'B. PoF Summary Stats & Params'!$I$10*A96^('B. PoF Summary Stats & Params'!$I$10-1), IF('B. PoF Summary Stats & Params'!$C$12="W", B96*(('B. PoF Summary Stats & Params'!$M$14/'B. PoF Summary Stats & Params'!$O$14)*((A96)/'B. PoF Summary Stats & Params'!$O$14)^('B. PoF Summary Stats & Params'!$M$14-1)), "Choose Model")) -> 234.1169595 | D96: =IF('B. PoF Summary Stats & Params'!$C$12="C", B96*'B. PoF Summary Stats & Params'!$I$8*'B. PoF Summary Stats & Params'!$I$6*A96^('B. PoF Summary Stats & Params'!$I$6-1), IF('B. PoF Summary Stats & Params'!$C$12="W", B96*(('B. PoF Summary Stats & Params'!$M$6/'B. PoF Summary Stats & Params'!$M$8)*((A96)/'B. PoF Summary Stats & Params'!$M$8)^('B. PoF Summary Stats & Params'!$M$6-1)), "Choose Model")) -> 39.40322791 | E96: =IF('B. PoF Summary Stats & Params'!$C$12="C", B96*'B. PoF Summary Stats & Params'!$I$8*'B. PoF Summary Stats & Params'!$I$12*A96^('B. PoF Summary Stats & Params'!$I$12-1), IF('B. PoF Summary Stats & Params'!$C$12="W", B96*(('B. PoF Summary Stats & Params'!$M$12/'B. PoF Summary Stats & Params'!$O$12)*((A96)/'B. PoF Summary Stats & Params'!$O$12)^('B. PoF Summary Stats & Params'!$M$12-1)), "Choose Model")) -> 6.626888175
A97: 93 | B97: 1 | C97: =IF('B. PoF Summary Stats & Params'!$C$12="C", B97*'B. PoF Summary Stats & Params'!$I$8*'B. PoF Summary Stats & Params'!$I$10*A97^('B. PoF Summary Stats & Params'!$I$10-1), IF('B. PoF Summary Stats & Params'!$C$12="W", B97*(('B. PoF Summary Stats & Params'!$M$14/'B. PoF Summary Stats & Params'!$O$14)*((A97)/'B. PoF Summary Stats & Params'!$O$14)^('B. PoF Summary Stats & Params'!$M$14-1)), "Choose Model")) -> 271.3920476 | D97: =IF('B. PoF Summary Stats & Params'!$C$12="C", B97*'B. PoF Summary Stats & Params'!$I$8*'B. PoF Summary Stats & Params'!$I$6*A97^('B. PoF Summary Stats & Params'!$I$6-1), IF('B. PoF Summary Stats & Params'!$C$12="W", B97*(('B. PoF Summary Stats & Params'!$M$6/'B. PoF Summary Stats & Params'!$M$8)*((A97)/'B. PoF Summary Stats & Params'!$M$8)^('B. PoF Summary Stats & Params'!$M$6-1)), "Choose Model")) -> 45.485567 | E97: =IF('B. PoF Summary Stats & Params'!$C$12="C", B97*'B. PoF Summary Stats & Params'!$I$8*'B. PoF Summary Stats & Params'!$I$12*A97^('B. PoF Summary Stats & Params'!$I$12-1), IF('B. PoF Summary Stats & Params'!$C$12="W", B97*(('B. PoF Summary Stats & Params'!$M$12/'B. PoF Summary Stats & Params'!$O$12)*((A97)/'B. PoF Summary Stats & Params'!$O$12)^('B. PoF Summary Stats & Params'!$M$12-1)), "Choose Model")) -> 7.617790486
A98: 94 | B98: 1 | C98: =IF('B. PoF Summary Stats & Params'!$C$12="C", B98*'B. PoF Summary Stats & Params'!$I$8*'B. PoF Summary Stats & Params'!$I$10*A98^('B. PoF Summary Stats & Params'!$I$10-1), IF('B. PoF Summary Stats & Params'!$C$12="W", B98*(('B. PoF Summary Stats & Params'!$M$14/'B. PoF Summary Stats & Params'!$O$14)*((A98)/'B. PoF Summary Stats & Params'!$O$14)^('B. PoF Summary Stats & Params'!$M$14-1)), "Choose Model")) -> 314.1051799 | D98: =IF('B. PoF Summary Stats & Params'!$C$12="C", B98*'B. PoF Summary Stats & Params'!$I$8*'B. PoF Summary Stats & Params'!$I$6*A98^('B. PoF Summary Stats & Params'!$I$6-1), IF('B. PoF Summary Stats & Params'!$C$12="W", B98*(('B. PoF Summary Stats & Params'!$M$6/'B. PoF Summary Stats & Params'!$M$8)*((A98)/'B. PoF Summary Stats & Params'!$M$8)^('B. PoF Summary Stats & Params'!$M$6-1)), "Choose Model")) -> 52.42623317 | E98: =IF('B. PoF Summary Stats & Params'!$C$12="C", B98*'B. PoF Summary Stats & Params'!$I$8*'B. PoF Summary Stats & Params'!$I$12*A98^('B. PoF Summary Stats & Params'!$I$12-1), IF('B. PoF Summary Stats & Params'!$C$12="W", B98*(('B. PoF Summary Stats & Params'!$M$12/'B. PoF Summary Stats & Params'!$O$12)*((A98)/'B. PoF Summary Stats & Params'!$O$12)^('B. PoF Summary Stats & Params'!$M$12-1)), "Choose Model")) -> 8.743818361
A99: 95 | B99: 1 | C99: =IF('B. PoF Summary Stats & Params'!$C$12="C", B99*'B. PoF Summary Stats & Params'!$I$8*'B. PoF Summary Stats & Params'!$I$10*A99^('B. PoF Summary Stats & Params'!$I$10-1), IF('B. PoF Summary Stats & Params'!$C$12="W", B99*(('B. PoF Summary Stats & Params'!$M$14/'B. PoF Summary Stats & Params'!$O$14)*((A99)/'B. PoF Summary Stats & Params'!$O$14)^('B. PoF Summary Stats & Params'!$M$14-1)), "Choose Model")) -> 362.9788679 | D99: =IF('B. PoF Summary Stats & Params'!$C$12="C", B99*'B. PoF Summary Stats & Params'!$I$8*'B. PoF Summary Stats & Params'!$I$6*A99^('B. PoF Summary Stats & Params'!$I$6-1), IF('B. PoF Summary Stats & Params'!$C$12="W", B99*(('B. PoF Summary Stats & Params'!$M$6/'B. PoF Summary Stats & Params'!$M$8)*((A99)/'B. PoF Summary Stats & Params'!$M$8)^('B. PoF Summary Stats & Params'!$M$6-1)), "Choose Model")) -> 60.33523916 | E99: =IF('B. PoF Summary Stats & Params'!$C$12="C", B99*'B. PoF Summary Stats & Params'!$I$8*'B. PoF Summary Stats & Params'!$I$12*A99^('B. PoF Summary Stats & Params'!$I$12-1), IF('B. PoF Summary Stats & Params'!$C$12="W", B99*(('B. PoF Summary Stats & Params'!$M$12/'B. PoF Summary Stats & Params'!$O$12)*((A99)/'B. PoF Summary Stats & Params'!$O$12)^('B. PoF Summary Stats & Params'!$M$12-1)), "Choose Model")) -> 10.0216597
A100: 96 | B100: 1 | C100: =IF('B. PoF Summary Stats & Params'!$C$12="C", B100*'B. PoF Summary Stats & Params'!$I$8*'B. PoF Summary Stats & Params'!$I$10*A100^('B. PoF Summary Stats & Params'!$I$10-1), IF('B. PoF Summary Stats & Params'!$C$12="W", B100*(('B. PoF Summary Stats & Params'!$M$14/'B. PoF Summary Stats & Params'!$O$14)*((A100)/'B. PoF Summary Stats & Params'!$O$14)^('B. PoF Summary Stats & Params'!$M$14-1)), "Choose Model")) -> 418.8224145 | D100: =IF('B. PoF Summary Stats & Params'!$C$12="C", B100*'B. PoF Summary Stats & Params'!$I$8*'B. PoF Summary Stats & Params'!$I$6*A100^('B. PoF Summary Stats & Params'!$I$6-1), IF('B. PoF Summary Stats & Params'!$C$12="W", B100*(('B. PoF Summary Stats & Params'!$M$6/'B. PoF Summary Stats & Params'!$M$8)*((A100)/'B. PoF Summary Stats & Params'!$M$8)^('B. PoF Summary Stats & Params'!$M$6-1)), "Choose Model")) -> 69.33530539 | E100: =IF('B. PoF Summary Stats & Params'!$C$12="C", B100*'B. PoF Summary Stats & Params'!$I$8*'B. PoF Summary Stats & Params'!$I$12*A100^('B. PoF Summary Stats & Params'!$I$12-1), IF('B. PoF Summary Stats & Params'!$C$12="W", B100*(('B. PoF Summary Stats & Params'!$M$12/'B. PoF Summary Stats & Params'!$O$12)*((A100)/'B. PoF Summary Stats & Params'!$O$12)^('B. PoF Summary Stats & Params'!$M$12-1)), "Choose Model")) -> 11.46985336
A101: 97 | B101: 1 | C101: =IF('B. PoF Summary Stats & Params'!$C$12="C", B101*'B. PoF Summary Stats & Params'!$I$8*'B. PoF Summary Stats & Params'!$I$10*A101^('B. PoF Summary Stats & Params'!$I$10-1), IF('B. PoF Summary Stats & Params'!$C$12="W", B101*(('B. PoF Summary Stats & Params'!$M$14/'B. PoF Summary Stats & Params'!$O$14)*((A101)/'B. PoF Summary Stats & Params'!$O$14)^('B. PoF Summary Stats & Params'!$M$14-1)), "Choose Model")) -> 482.5412582 | D101: =IF('B. PoF Summary Stats & Params'!$C$12="C", B101*'B. PoF Summary Stats & Params'!$I$8*'B. PoF Summary Stats & Params'!$I$6*A101^('B. PoF Summary Stats & Params'!$I$6-1), IF('B. PoF Summary Stats & Params'!$C$12="W", B101*(('B. PoF Summary Stats & Params'!$M$6/'B. PoF Summary Stats & Params'!$M$8)*((A101)/'B. PoF Summary Stats & Params'!$M$8)^('B. PoF Summary Stats & Params'!$M$6-1)), "Choose Model")) -> 79.56317052 | E101: =IF('B. PoF Summary Stats & Params'!$C$12="C", B101*'B. PoF Summary Stats & Params'!$I$8*'B. PoF Summary Stats & Params'!$I$12*A101^('B. PoF Summary Stats & Params'!$I$12-1), IF('B. PoF Summary Stats & Params'!$C$12="W", B101*(('B. PoF Summary Stats & Params'!$M$12/'B. PoF Summary Stats & Params'!$O$12)*((A101)/'B. PoF Summary Stats & Params'!$O$12)^('B. PoF Summary Stats & Params'!$M$12-1)), "Choose Model")) -> 13.1089717
A102: 98 | B102: 1 | C102: =IF('B. PoF Summary Stats & Params'!$C$12="C", B102*'B. PoF Summary Stats & Params'!$I$8*'B. PoF Summary Stats & Params'!$I$10*A102^('B. PoF Summary Stats & Params'!$I$10-1), IF('B. PoF Summary Stats & Params'!$C$12="W", B102*(('B. PoF Summary Stats & Params'!$M$14/'B. PoF Summary Stats & Params'!$O$14)*((A102)/'B. PoF Summary Stats & Params'!$O$14)^('B. PoF Summary Stats & Params'!$M$14-1)), "Choose Model")) -> 555.14721 | D102: =IF('B. PoF Summary Stats & Params'!$C$12="C", B102*'B. PoF Summary Stats & Params'!$I$8*'B. PoF Summary Stats & Params'!$I$6*A102^('B. PoF Summary Stats & Params'!$I$6-1), IF('B. PoF Summary Stats & Params'!$C$12="W", B102*(('B. PoF Summary Stats & Params'!$M$6/'B. PoF Summary Stats & Params'!$M$8)*((A102)/'B. PoF Summary Stats & Params'!$M$8)^('B. PoF Summary Stats & Params'!$M$6-1)), "Choose Model")) -> 91.17102125 | E102: =IF('B. PoF Summary Stats & Params'!$C$12="C", B102*'B. PoF Summary Stats & Params'!$I$8*'B. PoF Summary Stats & Params'!$I$12*A102^('B. PoF Summary Stats & Params'!$I$12-1), IF('B. PoF Summary Stats & Params'!$C$12="W", B102*(('B. PoF Summary Stats & Params'!$M$12/'B. PoF Summary Stats & Params'!$O$12)*((A102)/'B. PoF Summary Stats & Params'!$O$12)^('B. PoF Summary Stats & Params'!$M$12-1)), "Choose Model")) -> 14.9618189
A103: 99 | B103: 1 | C103: =IF('B. PoF Summary Stats & Params'!$C$12="C", B103*'B. PoF Summary Stats & Params'!$I$8*'B. PoF Summary Stats & Params'!$I$10*A103^('B. PoF Summary Stats & Params'!$I$10-1), IF('B. PoF Summary Stats & Params'!$C$12="W", B103*(('B. PoF Summary Stats & Params'!$M$14/'B. PoF Summary Stats & Params'!$O$14)*((A103)/'B. PoF Summary Stats & Params'!$O$14)^('B. PoF Summary Stats & Params'!$M$14-1)), "Choose Model")) -> 637.7696567 | D103: =IF('B. PoF Summary Stats & Params'!$C$12="C", B103*'B. PoF Summary Stats & Params'!$I$8*'B. PoF Summary Stats & Params'!$I$6*A103^('B. PoF Summary Stats & Params'!$I$6-1), IF('B. PoF Summary Stats & Params'!$C$12="W", B103*(('B. PoF Summary Stats & Params'!$M$6/'B. PoF Summary Stats & Params'!$M$8)*((A103)/'B. PoF Summary Stats & Params'!$M$8)^('B. PoF Summary Stats & Params'!$M$6-1)), "Choose Model")) -> 104.3280508 | E103: =IF('B. PoF Summary Stats & Params'!$C$12="C", B103*'B. PoF Summary Stats & Params'!$I$8*'B. PoF Summary Stats & Params'!$I$12*A103^('B. PoF Summary Stats & Params'!$I$12-1), IF('B. PoF Summary Stats & Params'!$C$12="W", B103*(('B. PoF Summary Stats & Params'!$M$12/'B. PoF Summary Stats & Params'!$O$12)*((A103)/'B. PoF Summary Stats & Params'!$O$12)^('B. PoF Summary Stats & Params'!$M$12-1)), "Choose Model")) -> 17.05364626
A104: 100 | B104: 1 | C104: =IF('B. PoF Summary Stats & Params'!$C$12="C", B104*'B. PoF Summary Stats & Params'!$I$8*'B. PoF Summary Stats & Params'!$I$10*A104^('B. PoF Summary Stats & Params'!$I$10-1), IF('B. PoF Summary Stats & Params'!$C$12="W", B104*(('B. PoF Summary Stats & Params'!$M$14/'B. PoF Summary Stats & Params'!$O$14)*((A104)/'B. PoF Summary Stats & Params'!$O$14)^('B. PoF Summary Stats & Params'!$M$14-1)), "Choose Model")) -> 731.6678111 | D104: =IF('B. PoF Summary Stats & Params'!$C$12="C", B104*'B. PoF Summary Stats & Params'!$I$8*'B. PoF Summary Stats & Params'!$I$6*A104^('B. PoF Summary Stats & Params'!$I$6-1), IF('B. PoF Summary Stats & Params'!$C$12="W", B104*(('B. PoF Summary Stats & Params'!$M$6/'B. PoF Summary Stats & Params'!$M$8)*((A104)/'B. PoF Summary Stats & Params'!$M$8)^('B. PoF Summary Stats & Params'!$M$6-1)), "Choose Model")) -> 119.2221564 | E104: =IF('B. PoF Summary Stats & Params'!$C$12="C", B104*'B. PoF Summary Stats & Params'!$I$8*'B. PoF Summary Stats & Params'!$I$12*A104^('B. PoF Summary Stats & Params'!$I$12-1), IF('B. PoF Summary Stats & Params'!$C$12="W", B104*(('B. PoF Summary Stats & Params'!$M$12/'B. PoF Summary Stats & Params'!$O$12)*((A104)/'B. PoF Summary Stats & Params'!$O$12)^('B. PoF Summary Stats & Params'!$M$12-1)), "Choose Model")) -> 19.41238575

Sheet B. PoF Summary Stats & Params
C1: PoF Summary Statistics and Parameters
B3: Summary Statisitics | E3: Failure Model Parameters | H3: Crow-AMSAA Parameters | L3: Weibull Parameters | R3: Health Index Parameters
B5: Number of PoF Adjustment Factors | C5: =COUNTIF('B. Population PoF Scores'!$O$5:$S$5,">"&0) -> 4
B6: Min Score | C6: =C5*1 -> 4 | E6: βavg | F6: =IF($C$12="C", I6, IF($C$12="W", M6, "Choose Model")) -> 14.27799845 | H6: βavg | L6: βavg | M6: 14.27799845 | S6: Earliest Age Asset Considered (Years) | V6: 0.5 | X6: Min PoF | Y6: =IF($C$12="C", I8*I12*V6^(I12-1), IF($C$12="W", (($M12/$O12)*((V6)/$O12)^(M12-1)), "Choose Model")) -> 4.247763469e-29
B7: Max Score | C7: =C5*5 -> 20 | E7: 95%CI Adj (β) | F7: =(F6-F14)/F6 -> 0.02718546696 | S7: Asset Standard Life (Years) | V7: 54.5 | X7: Max PoF | Y7: =IF($C$12="C", I8*I10*V9^(I10-1), IF($C$12="W", (($M14/$O14)*((V9)/$O14)^(M14-1)), "Choose Model")) -> 0.6799783798
B8: No. of Z-Scores | C8: =5^C5 -> 625 | F8: =F6*F7 -> 0.388154055 | H8: λavg | L8: havg | M8: 62.42681864 | S8: Asset Standard Life Addition (%) | V8: 0.1 | X8: HI Categories | Y8: 10
E9: Std. Dev | F9: =SQRT(_xlfn.STDEV.P(({1;2;3;4;5}*'B. Population PoF Scores'!O5))^2+_xlfn.STDEV.P(({1;2;3;4;5}*'B. Population PoF Scores'!P5))^2+_xlfn.STDEV.P(({1;2;3;4;5}*'B. Population PoF Scores'!Q5))^2+_xlfn.STDEV.P(({1;2;3;4;5}*'B. Population PoF Scores'!R5))^2+_xlfn.STDEV.P(({1;2;3;4;5}*'B. Population PoF Scores'!S5))^2) -> 2.263846285 | S9: Asset Standard Life + Addition (%) | V9: =ROUND(V7*(1+V8), 0) -> 60 | X9: Delta per Cat. | Y9: =(Y7-Y6)/Y8 -> 0.06799783798
B10: Reference Date | C10: 2018 | E10: Max Std. Dev | F10: =(SUM('B. Population PoF Scores'!O5:S5)-F11)/F9*-1 -> 2.694529236 | H10: βpoor | L10: b | M10: -59.02517375
E11: Average PoF Factor Score | F11: =SUM('B. Population PoF Scores'!O5:S5)*3 -> 9.15
B12: Crow-AMSAA or Weibull Failure Model | C12: W | E12: β ZCF Scalar | F12: =F8/F10 -> 0.1440526419 | H12: βgood | L12: βgood | M12: 13.88984439 | N12: hgood | O12: 70.07178095 | S12: HEALTH INDEX | T12: PoF Range
S13: 1 | T13: 0 | U13: =$Y$6+S13*$Y$9 -> 0.06799783798
B14: Replacement Type | C14: New Model | E14: βgood | F14: =IF($C$12="C", I12, IF($C$12="W", M12, "Choose Model")) -> 13.88984439 | L14: βpoor | M14: 14.6661525 | N14: hpoor | O14: 55.95706796 | S14: 2 | T14: =U13 -> 0.06799783798 | U14: 0.135995676
E15: βpoor | F15: =IF($C$12="C", I10, IF($C$12="W", M14, "Choose Model")) -> 14.6661525 | S15: 3 | T15: 0.135995676 | U15: 0.2039935139
E16: λpopulation | F16: =IF($C$12="C", I8, "Not Applicable") -> Not Applicable | S16: 4 | T16: 0.2039935139 | U16: 0.2719913519
S17: 5 | T17: 0.2719913519 | U17: 0.3399891899
E18: havg | F18: =IF($C$12="C", "Not Applicable", M8) -> 62.42681864 | S18: 6 | T18: 0.3399891899 | U18: 0.4079870279
E19: Intercept (b) | F19: =IF($C$12="C", "Not Applicable", M10) -> -59.02517375 | S19: 7 | T19: 0.4079870279 | U19: 0.4759848659
E20: hgood | F20: =IF($C$12="C", "Not Applicable", O12) -> 70.07178095 | S20: 8 | T20: 0.4759848659 | U20: 0.5439827038
E21: 95%CI Adj (hgood) | F21: =IF($C$12="C", "Not Applicable", (F20-M8)/M8) -> 0.1224627889 | S21: 9 | T21: 0.5439827038 | U21: 0.6119805418
S22: 10 | T22: 0.6119805418 | U22: 0.6799783798
E23: hpoor | F23: =IF($C$12="C", "Not Applicable", O14) -> 55.95706796
E24: 95%CI Adj (hpoor) | F24: =IF($C$12="C", "Not Applicable", (F23-M8)/M8) -> -0.1036373601
E26: Replacement Asset PoF | F26: =IF($C$14="Like-for-like",IF($C$12="C",I8*I6*V6^(I12-1),IF($C$12="W",(($M6/$M8)*((V6)/$M8)^(M6-1)),"Choose Model")),IF($C$14="New model",IF($C$12="C", I8*I12*V6^(I12-1), IF($C$12="W", (($M12/$O12)*((V6)/$O12)^(M12-1)), "Choose Model")))) -> 4.247763469e-29

Sheet B. PoF Adj Factor Scoring
C1: PoF Adjustment Factors and Scores
B3: PoF Affect | C3: PoF Score | E3: CONSAC to HDPE Joint | H3: Ground Condition | K3: Standard Life | N3: Factor 4 | Q3: Factor 5 | T3: ='B. Population PoF Scores'!B4 -> DS4 | V3: ='B. Population PoF Scores'!C4 -> 0 | X3: ='B. Population PoF Scores'!D4 -> Utilisation | Z3: ='B. Population PoF Scores'!E4 -> Proximity to Saltwater | AB3: ='B. Population PoF Scores'!F4 -> M7's Completed in last 7 years
H4: Ground Condition (No. Failures) | K4: Maximum Age of CONSAC Cable in Distributor | N4: Factor 4 - Description | Q4: Factor 5 - Description | T4: Factor Value | U4: PoF Score | V4: Factor Value | W4: PoF Score | X4: Factor Value | Y4: PoF Score | Z4: Factor Value | AA4: PoF Score | AB4: Factor Value | AC4: PoF Score
T5: DTO | U5: =IF(T5=$E$13,$F$13,IF(T5=$E$8,$F$8,$F$6)) -> 1 | V5: Medium | W5: =IF(V5=$H$13,$I$13,VLOOKUP(V5,$H$6:$I$10,2,FALSE)) -> 3 | X5: 0 | Y5: =IF(X5=$K$13,$L$13,VLOOKUP(X5,$K$6:$L$10,2,TRUE)) -> 3 | Z5: 18.18991309 | AA5: =IF(Z5=$N$13,$O$13,VLOOKUP(Z5,$N$6:$O$10,2,TRUE)) -> 2 | AB5: 2 | AC5: =IF(AB5=$Q$13,$R$13,VLOOKUP(AB5,$Q$6:$R$10,2,TRUE)) -> 4
B6: Insignificant | C6: 1 | F6: 1 | H6: Low | I6: 1 | K6: 0 | L6: 1 | N6: 0.001 | O6: 5 | Q6: 1 | R6: 5 | T6: DTO | U6: =IF(T6=$E$13,$F$13,IF(T6=$E$8,$F$8,$F$6)) -> 1 | V6: Medium | W6: =IF(V6=$H$13,$I$13,VLOOKUP(V6,$H$6:$I$10,2,FALSE)) -> 3 | X6: 0 | Y6: =IF(X6=$K$13,$L$13,VLOOKUP(X6,$K$6:$L$10,2,TRUE)) -> 3 | Z6: 17.93998344 | AA6: =IF(Z6=$N$13,$O$13,VLOOKUP(Z6,$N$6:$O$10,2,TRUE)) -> 2 | AB6: 4 | AC6: =IF(AB6=$Q$13,$R$13,VLOOKUP(AB6,$Q$6:$R$10,2,TRUE)) -> 2
B7: Minor | C7: 2 | F7: 3 | I7: 2 | K7: 50 | L7: 2 | N7: 0.75 | O7: 4 | Q7: 2 | R7: 4 | T7: DTD | U7: 1 | V7: Medium | W7: 3 | X7: 0 | Y7: 3 | Z7: 18.09756834 | AA7: 2 | AB7: 0 | AC7: 3
B8: Moderate | C8: 3 | E8: DS4 | F8: 5 | H8: Medium | I8: 3 | K8: 75 | L8: 3 | N8: 2 | O8: 3 | Q8: 3 | R8: 3 | T8: DSC | U8: 1 | V8: Medium | W8: 3 | X8: 0 | Y8: 3 | Z8: 17.96287326 | AA8: 2 | AB8: 0 | AC8: 3
B9: Major | C9: 4 | I9: 4 | K9: 100 | L9: 4 | N9: 5 | O9: 2 | Q9: 4 | R9: 2 | T9: DTO | U9: 1 | V9: Medium | W9: 3 | X9: 0 | Y9: 3 | Z9: 18.3212292 | AA9: 2 | AB9: 0 | AC9: 3
B10: Severe | C10: 5 | H10: High | I10: 5 | K10: 150 | L10: 5 | N10: 20 | O10: 1 | Q10: 5 | R10: 1 | T10: DSM | U10: =IF(T10=$E$13,$F$13,IF(T10=$E$8,$F$8,$F$6)) -> 1 | V10: High | W10: 5 | X10: 0 | Y10: 3 | Z10: 19.00175135 | AA10: 2 | AB10: 1 | AC10: 5
T11: DTO | U11: 1 | V11: High | W11: 5 | X11: 0 | Y11: 3 | Z11: 19.55857975 | AA11: 2 | AB11: 0 | AC11: 3
E12: Empty or No Data | H12: Empty or No Data | K12: Empty or No Data | N12: Empty or No Data | Q12: Empty or No Data | T12: DTO | U12: 1 | V12: High | W12: 5 | X12: 0 | Y12: 3 | Z12: 19.90743733 | AA12: 2 | AB12: 0 | AC12: 3
F13: 3 | H13: No Data | I13: 3 | K13: 0 | L13: 3 | N13: No Data | O13: 3 | Q13: 0 | R13: 3 | T13: DTO | U13: 1 | V13: High | W13: 5 | X13: 0 | Y13: 3 | Z13: 20.2228928 | AA13: 1 | AB13: 1 | AC13: 5
T14: DTO | U14: 1 | V14: High | W14: 5 | X14: 0 | Y14: 3 | Z14: 18.77024702 | AA14: 2 | AB14: 0 | AC14: 3
T15: DTN | U15: 1 | V15: High | W15: 5 | X15: 0 | Y15: 3 | Z15: 18.43283798 | AA15: 2 | AB15: 0 | AC15: 3
T16: DSM | U16: 1 | V16: High | W16: 5 | X16: 0 | Y16: 3 | Z16: 19.28718182 | AA16: 2 | AB16: 0 | AC16: 3
T17: DTO | U17: 1 | V17: High | W17: 5 | X17: 0 | Y17: 3 | Z17: 19.99117503 | AA17: 2 | AB17: 0 | AC17: 3
T18: DTO | U18: 1 | V18: High | W18: 5 | X18: 0 | Y18: 3 | Z18: 18.71673335 | AA18: 2 | AB18: 0 | AC18: 3
T19: DTO | U19: 1 | V19: High | W19: 5 | X19: 0 | Y19: 3 | Z19: 18.43841952 | AA19: 2 | AB19: 0 | AC19: 3
T20: DTO | U20: 1 | V20: High | W20: 5 | X20: 0 | Y20: 3 | Z20: 18.34089489 | AA20: 2 | AB20: 1 | AC20: 5
T21: DTO2 | U21: 1 | V21: High | W21: 5 | X21: 0 | Y21: 3 | Z21: 24.0802887 | AA21: 1 | AB21: 0 | AC21: 3
T22: DTM2 | U22: 1 | V22: High | W22: 5 | X22: 0 | Y22: 3 | Z22: 23.83016101 | AA22: 1 | AB22: 0 | AC22: 3
T23: DTN2 | U23: 1 | V23: High | W23: 5 | X23: 0 | Y23: 3 | Z23: 23.52188104 | AA23: 1 | AB23: 0 | AC23: 3
T24: DTN2 | U24: 1 | V24: High | W24: 5 | X24: 0 | Y24: 3 | Z24: 23.6492653 | AA24: 1 | AB24: 0 | AC24: 3
T25: DSM2 | U25: 1 | V25: High | W25: 5 | X25: 0 | Y25: 3 | Z25: 23.67107942 | AA25: 1 | AB25: 0 | AC25: 3
T26: DSM2 | U26: 1 | V26: High | W26: 5 | X26: 0 | Y26: 3 | Z26: 23.86385792 | AA26: 1 | AB26: 0 | AC26: 3
T27: DTM2 | U27: 1 | V27: High | W27: 5 | X27: 0 | Y27: 3 | Z27: 24.12471489 | AA27: 1 | AB27: 0 | AC27: 3
T28: DSM2 | U28: =IF(T28=$E$13,$F$13,IF(T28=$E$8,$F$8,$F$6)) -> 1 | V28: High | W28: 5 | X28: 0 | Y28: 3 | Z28: 24.28172634 | AA28: 1 | AB28: 0 | AC28: 3
T29: DSM2 | U29: 1 | V29: High | W29: 5 | X29: 0 | Y29: 3 | Z29: 24.8241436 | AA29: 1 | AB29: 0 | AC29: 3
T30: DSM2 | U30: 1 | V30: High | W30: 5 | X30: 0 | Y30: 3 | Z30: 25.29056646 | AA30: 1 | AB30: 0 | AC30: 3
T31: DTN2 | U31: 1 | V31: High | W31: 5 | X31: 0 | Y31: 3 | Z31: 25.52530762 | AA31: 1 | AB31: 0 | AC31: 3
T32: DSM2 | U32: 1 | V32: High | W32: 5 | X32: 0 | Y32: 3 | Z32: 25.62086087 | AA32: 1 | AB32: 0 | AC32: 3
T33: DTO2 | U33: 1 | V33: High | W33: 5 | X33: 0 | Y33: 3 | Z33: 25.81743607 | AA33: 1 | AB33: 0 | AC33: 3
T34: R | U34: 1 | V34: High | W34: 5 | X34: 0 | Y34: 3 | Z34: 12.25396223 | AA34: 2 | AB34: 0 | AC34: 3
T35: R | U35: 1 | V35: High | W35: 5 | X35: 0 | Y35: 3 | Z35: 12.31218075 | AA35: 2 | AB35: 0 | AC35: 3
T36: N | U36: 1 | V36: High | W36: 5 | X36: 0 | Y36: 3 | Z36: 12.11051278 | AA36: 2 | AB36: 0 | AC36: 3
T37: T | U37: 1 | V37: High | W37: 5 | X37: 0 | Y37: 3 | Z37: 11.80213251 | AA37: 2 | AB37: 1 | AC37: 5
T38: N | U38: 1 | V38: High | W38: 5 | X38: 0 | Y38: 3 | Z38: 11.9736288 | AA38: 2 | AB38: 1 | AC38: 5
T39: DT6 | U39: 1 | V39: High | W39: 5 | X39: 0 | Y39: 3 | Z39: 15.23576661 | AA39: 2 | AB39: 0 | AC39: 3
T40: DS4 | U40: 5 | V40: High | W40: 5 | X40: 0 | Y40: 3 | Z40: 14.4417815 | AA40: 2 | AB40: 1 | AC40: 5
T41: DT6 | U41: 1 | V41: High | W41: 5 | X41: 0 | Y41: 3 | Z41: 13.86907822 | AA41: 2 | AB41: 0 | AC41: 3
T42: DT6 | U42: 1 | V42: High | W42: 5 | X42: 0 | Y42: 3 | Z42: 12.6531829 | AA42: 2 | AB42: 0 | AC42: 3
T43: R | U43: 1 | V43: High | W43: 5 | X43: 0 | Y43: 3 | Z43: 13.6090118 | AA43: 2 | AB43: 0 | AC43: 3
T44: N | U44: 1 | V44: High | W44: 5 | X44: 0 | Y44: 3 | Z44: 13.28406731 | AA44: 2 | AB44: 0 | AC44: 3
T45: P | U45: 1 | V45: High | W45: 5 | X45: 0 | Y45: 3 | Z45: 13.43253551 | AA45: 2 | AB45: 0 | AC45: 3
T46: P | U46: 1 | V46: High | W46: 5 | X46: 0 | Y46: 3 | Z46: 13.59050085 | AA46: 2 | AB46: 0 | AC46: 3
T47: T | U47: 1 | V47: High | W47: 5 | X47: 0 | Y47: 3 | Z47: 13.77399825 | AA47: 2 | AB47: 0 | AC47: 3
T48: R | U48: 1 | V48: High | W48: 5 | X48: 0 | Y48: 3 | Z48: 14.43221093 | AA48: 2 | AB48: 0 | AC48: 3
T49: T | U49: 1 | V49: High | W49: 5 | X49: 0 | Y49: 3 | Z49: 13.24095863 | AA49: 2 | AB49: 0 | AC49: 3
T50: R | U50: 1 | V50: Low | W50: 1 | X50: 0 | Y50: 3 | Z50: 12.7128338 | AA50: 2 | AB50: 0 | AC50: 3
T51: P | U51: 1 | V51: Low | W51: 1 | X51: 0 | Y51: 3 | Z51: 12.24533666 | AA51: 2 | AB51: 0 | AC51: 3
T52: N | U52: 1 | V52: Low | W52: 1 | X52: 0 | Y52: 3 | Z52: 12.11008748 | AA52: 2 | AB52: 0 | AC52: 3
T53: R | U53: 1 | V53: Low | W53: 1 | X53: 0 | Y53: 3 | Z53: 11.75427807 | AA53: 2 | AB53: 0 | AC53: 3
T54: R | U54: 1 | V54: Low | W54: 1 | X54: 0 | Y54: 3 | Z54: 11.41061684 | AA54: 2 | AB54: 0 | AC54: 3
T55: R | U55: 1 | V55: Low | W55: 1 | X55: 0 | Y55: 3 | Z55: 11.30782036 | AA55: 2 | AB55: 1 | AC55: 5
T56: R | U56: 1 | V56: Low | W56: 1 | X56: 0 | Y56: 3 | Z56: 11.22171356 | AA56: 2 | AB56: 0 | AC56: 3
T57: N | U57: 1 | V57: Low | W57: 1 | X57: 0 | Y57: 3 | Z57: 10.85833359 | AA57: 2 | AB57: 0 | AC57: 3
T58: R | U58: 1 | V58: Low | W58: 1 | X58: 0 | Y58: 3 | Z58: 10.97025911 | AA58: 2 | AB58: 0 | AC58: 3
T59: N | U59: 1 | V59: Low | W59: 1 | X59: 0 | Y59: 3 | Z59: 10.73195752 | AA59: 2 | AB59: 0 | AC59: 3
T60: R | U60: 1 | V60: Low | W60: 1 | X60: 0 | Y60: 3 | Z60: 10.52882432 | AA60: 2 | AB60: 1 | AC60: 5
T61: N | U61: 1 | V61: Low | W61: 1 | X61: 0 | Y61: 3 | Z61: 13.01846038 | AA61: 2 | AB61: 0 | AC61: 3
T62: T | U62: 1 | V62: Low | W62: 1 | X62: 0 | Y62: 3 | Z62: 13.12008341 | AA62: 2 | AB62: 0 | AC62: 3
T63: R | U63: 1 | V63: Medium | W63: 3 | X63: 117 | Y63: 4 | Z63: 7.499103636 | AA63: 2 | AB63: 0 | AC63: 3
T64: R | U64: 1 | V64: Low | W64: 1 | X64: 0 | Y64: 3 | Z64: 10.1438843 | AA64: 2 | AB64: 0 | AC64: 3
T65: P | U65: 1 | V65: Low | W65: 1 | X65: 0 | Y65: 3 | Z65: 9.901556087 | AA65: 2 | AB65: 0 | AC65: 3
T66: N | U66: 1 | V66: Low | W66: 1 | X66: 0 | Y66: 3 | Z66: 9.63207967 | AA66: 2 | AB66: 0 | AC66: 3
T67: N | U67: 1 | V67: Low | W67: 1 | X67: 0 | Y67: 3 | Z67: 9.481724586 | AA67: 2 | AB67: 1 | AC67: 5
T68: P | U68: 1 | V68: Low | W68: 1 | X68: 0 | Y68: 3 | Z68: 9.2310991 | AA68: 2 | AB68: 0 | AC68: 3
T69: N | U69: 1 | V69: Low | W69: 1 | X69: 0 | Y69: 3 | Z69: 9.014919197 | AA69: 2 | AB69: 0 | AC69: 3
T70: R | U70: =IF(T70=$E$13,$F$13,IF(T70=$E$8,$F$8,$F$6)) -> 1 | V70: Low | W70: =IF(V70=$H$13,$I$13,VLOOKUP(V70,$H$6:$I$10,2,FALSE)) -> 1 | X70: 0 | Y70: =IF(X70=$K$13,$L$13,VLOOKUP(X70,$K$6:$L$10,2,TRUE)) -> 3 | Z70: 8.847505123 | AA70: =IF(Z70=$N$13,$O$13,VLOOKUP(Z70,$N$6:$O$10,2,TRUE)) -> 2 | AB70: 0 | AC70: =IF(AB70=$Q$13,$R$13,VLOOKUP(AB70,$Q$6:$R$10,2,TRUE)) -> 3
T71: P | U71: 1 | V71: Low | W71: 1 | X71: 0 | Y71: 3 | Z71: 8.481745878 | AA71: 2 | AB71: 1 | AC71: 5
T72: N | U72: 1 | V72: Low | W72: 1 | X72: 0 | Y72: 3 | Z72: 8.250864014 | AA72: 2 | AB72: 0 | AC72: 3
T73: P | U73: 1 | V73: Low | W73: 1 | X73: 0 | Y73: 3 | Z73: 8.102047335 | AA73: 2 | AB73: 0 | AC73: 3
T74: P | U74: 1 | V74: Low | W74: 1 | X74: 0 | Y74: 3 | Z74: 7.745987658 | AA74: 2 | AB74: 0 | AC74: 3
T75: T | U75: 1 | V75: Low | W75: 1 | X75: 0 | Y75: 3 | Z75: 7.593329421 | AA75: 2 | AB75: 0 | AC75: 3
T76: R | U76: 1 | V76: Low | W76: 1 | X76: 0 | Y76: 3 | Z76: 7.535961662 | AA76: 2 | AB76: 0 | AC76: 3
T77: R | U77: 1 | V77: Low | W77: 1 | X77: 0 | Y77: 3 | Z77: 7.390527201 | AA77: 2 | AB77: 0 | AC77: 3
T78: N | U78: 1 | V78: Low | W78: 1 | X78: 0 | Y78: 3 | Z78: 7.287335864 | AA78: 2 | AB78: 0 | AC78: 3
T79: T | U79: 1 | V79: Low | W79: 1 | X79: 0 | Y79: 3 | Z79: 7.261295831 | AA79: 2 | AB79: 0 | AC79: 3
T80: RS | U80: 1 | V80: Low | W80: 1 | X80: 0 | Y80: 3 | Z80: 7.081413687 | AA80: 2 | AB80: 0 | AC80: 3
T81: R | U81: 1 | V81: Low | W81: 1 | X81: 0 | Y81: 3 | Z81: 7.241274637 | AA81: 2 | AB81: 0 | AC81: 3
T82: P | U82: 1 | V82: Low | W82: 1 | X82: 0 | Y82: 3 | Z82: 7.188834959 | AA82: 2 | AB82: 0 | AC82: 3
T83: P | U83: 1 | V83: Low | W83: 1 | X83: 107 | Y83: 4 | Z83: 7.016621349 | AA83: 2 | AB83: 0 | AC83: 3
T84: P | U84: 1 | V84: Low | W84: 1 | X84: 0 | Y84: 3 | Z84: 10.24628359 | AA84: 2 | AB84: 1 | AC84: 5
T85: RS | U85: 1 | V85: Low | W85: 1 | X85: 0 | Y85: 3 | Z85: 6.986844273 | AA85: 2 | AB85: 0 | AC85: 3
T86: DTO | U86: 1 | V86: High | W86: 5 | X86: 104 | Y86: 4 | Z86: 18.45663079 | AA86: 2 | AB86: 1 | AC86: 5
T87: DTO | U87: 1 | V87: High | W87: 5 | X87: 0 | Y87: 3 | Z87: 18.76675666 | AA87: 2 | AB87: 0 | AC87: 3
T88: DSM | U88: 1 | V88: High | W88: 5 | X88: 0 | Y88: 3 | Z88: 18.75632683 | AA88: 2 | AB88: 1 | AC88: 5
T89: DTO | U89: 1 | V89: High | W89: 5 | X89: 0 | Y89: 3 | Z89: 18.75523197 | AA89: 2 | AB89: 0 | AC89: 3
T90: DTZ | U90: 1 | V90: High | W90: 5 | X90: 0 | Y90: 3 | Z90: 19.28190492 | AA90: 2 | AB90: 0 | AC90: 3
T91: DTO | U91: 1 | V91: High | W91: 5 | X91: 0 | Y91: 3 | Z91: 18.77787444 | AA91: 2 | AB91: 0 | AC91: 3
T92: DTO | U92: 1 | V92: High | W92: 5 | X92: 0 | Y92: 3 | Z92: 18.73385085 | AA92: 2 | AB92: 0 | AC92: 3
T93: DTO | U93: 1 | V93: High | W93: 5 | X93: 0 | Y93: 3 | Z93: 18.41814919 | AA93: 2 | AB93: 0 | AC93: 3
T94: DTO | U94: 1 | V94: High | W94: 5 | X94: 0 | Y94: 3 | Z94: 19.09480122 | AA94: 2 | AB94: 0 | AC94: 3
T95: DTO | U95: 1 | V95: High | W95: 5 | X95: 0 | Y95: 3 | Z95: 18.7443445 | AA95: 2 | AB95: 0 | AC95: 3
T96: DSM | U96: 1 | V96: High | W96: 5 | X96: 0 | Y96: 3 | Z96: 18.75891318 | AA96: 2 | AB96: 1 | AC96: 5
T97: DTO | U97: 1 | V97: High | W97: 5 | X97: 0 | Y97: 3 | Z97: 18.75440461 | AA97: 2 | AB97: 1 | AC97: 5
T98: DTO | U98: 1 | V98: High | W98: 5 | X98: 0 | Y98: 3 | Z98: 19.00869013 | AA98: 2 | AB98: 0 | AC98: 3
T99: DTZ | U99: 1 | V99: High | W99: 5 | X99: 0 | Y99: 3 | Z99: 19.25255889 | AA99: 2 | AB99: 0 | AC99: 3
T100: DSM | U100: 1 | V100: High | W100: 5 | X100: 0 | Y100: 3 | Z100: 18.75291678 | AA100: 2 | AB100: 0 | AC100: 3
T101: DTO | U101: 1 | V101: High | W101: 5 | X101: 0 | Y101: 3 | Z101: 18.70581688 | AA101: 2 | AB101: 0 | AC101: 3
T102: DTO | U102: 1 | V102: High | W102: 5 | X102: 0 | Y102: 3 | Z102: 18.88218386 | AA102: 2 | AB102: 1 | AC102: 5
T103: DTO | U103: 1 | V103: High | W103: 5 | X103: 0 | Y103: 3 | Z103: 19.03627014 | AA103: 2 | AB103: 0 | AC103: 3
T104: K | U104: 1 | V104: High | W104: 5 | X104: 0 | Y104: 3 | Z104: 18.343903 | AA104: 2 | AB104: 1 | AC104: 5
T105: B | U105: 1 | V105: High | W105: 5 | X105: 0 | Y105: 3 | Z105: 18.62541586 | AA105: 2 | AB105: 0 | AC105: 3
T106: A | U106: 1 | V106: High | W106: 5 | X106: 0 | Y106: 3 | Z106: 18.75772547 | AA106: 2 | AB106: 0 | AC106: 3
T107: B | U107: 1 | V107: High | W107: 5 | X107: 0 | Y107: 3 | Z107: 18.76033004 | AA107: 2 | AB107: 0 | AC107: 3
T108: B | U108: 1 | V108: High | W108: 5 | X108: 0 | Y108: 3 | Z108: 18.7353955 | AA108: 2 | AB108: 0 | AC108: 3
T109: B | U109: 1 | V109: High | W109: 5 | X109: 0 | Y109: 3 | Z109: 18.55969005 | AA109: 2 | AB109: 0 | AC109: 3
T110: B | U110: 1 | V110: High | W110: 5 | X110: 0 | Y110: 3 | Z110: 18.39467845 | AA110: 2 | AB110: 1 | AC110: 5
T111: B | U111: 1 | V111: High | W111: 5 | X111: 0 | Y111: 3 | Z111: 17.96526525 | AA111: 2 | AB111: 0 | AC111: 3
T112: A | U112: 1 | V112: High | W112: 5 | X112: 0 | Y112: 3 | Z112: 17.912607 | AA112: 2 | AB112: 0 | AC112: 3
T113: B | U113: 1 | V113: High | W113: 5 | X113: 101 | Y113: 4 | Z113: 17.874554 | AA113: 2 | AB113: 0 | AC113: 3
T114: B | U114: 1 | V114: High | W114: 5 | X114: 117 | Y114: 4 | Z114: 17.84832824 | AA114: 2 | AB114: 0 | AC114: 3
T115: B | U115: 1 | V115: High | W115: 5 | X115: 0 | Y115: 3 | Z115: 17.6194408 | AA115: 2 | AB115: 0 | AC115: 3
T116: B | U116: 1 | V116: High | W116: 5 | X116: 0 | Y116: 3 | Z116: 17.3859282 | AA116: 2 | AB116: 0 | AC116: 3
T117: B | U117: 1 | V117: High | W117: 5 | X117: 113 | Y117: 4 | Z117: 16.98016149 | AA117: 2 | AB117: 0 | AC117: 3
T118: B | U118: 1 | V118: High | W118: 5 | X118: 0 | Y118: 3 | Z118: 17.01210878 | AA118: 2 | AB118: 0 | AC118: 3
T119: B | U119: 1 | V119: High | W119: 5 | X119: 0 | Y119: 3 | Z119: 14.25315875 | AA119: 2 | AB119: 0 | AC119: 3
T120: DT6 | U120: 1 | V120: High | W120: 5 | X120: 0 | Y120: 3 | Z120: 14.23227655 | AA120: 2 | AB120: 0 | AC120: 3
T121: DS4 | U121: 5 | V121: High | W121: 5 | X121: 0 | Y121: 3 | Z121: 15.43196761 | AA121: 2 | AB121: 1 | AC121: 5
T122: DS4 | U122: 5 | V122: High | W122: 5 | X122: 0 | Y122: 3 | Z122: 14.71467707 | AA122: 2 | AB122: 0 | AC122: 3
T123: A | U123: 1 | V123: High | W123: 5 | X123: 0 | Y123: 3 | Z123: 14.34354724 | AA123: 2 | AB123: 0 | AC123: 3
T124: DS4X | U124: 1 | V124: High | W124: 5 | X124: 0 | Y124: 3 | Z124: 14.49775487 | AA124: 2 | AB124: 0 | AC124: 3
T125: DS4X | U125: 1 | V125: High | W125: 5 | X125: 0 | Y125: 3 | Z125: 14.81913462 | AA125: 2 | AB125: 0 | AC125: 3
T126: DT6X | U126: 1 | V126: High | W126: 5 | X126: 0 | Y126: 3 | Z126: 15.12379073 | AA126: 2 | AB126: 1 | AC126: 5
T127: DT6 | U127: 1 | V127: High | W127: 5 | X127: 0 | Y127: 3 | Z127: 15.54636135 | AA127: 2 | AB127: 0 | AC127: 3
T128: B | U128: 1 | V128: High | W128: 5 | X128: 0 | Y128: 3 | Z128: 16.46824475 | AA128: 2 | AB128: 1 | AC128: 5
T129: DT6 | U129: 1 | V129: High | W129: 5 | X129: 0 | Y129: 3 | Z129: 16.22726265 | AA129: 2 | AB129: 0 | AC129: 3
T130: B | U130: 1 | V130: High | W130: 5 | X130: 0 | Y130: 3 | Z130: 16.70125984 | AA130: 2 | AB130: 1 | AC130: 5
T131: B | U131: 1 | V131: High | W131: 5 | X131: 0 | Y131: 3 | Z131: 16.54624865 | AA131: 2 | AB131: 0 | AC131: 3
T132: B | U132: 1 | V132: High | W132: 5 | X132: 0 | Y132: 3 | Z132: 17.96144209 | AA132: 2 | AB132: 0 | AC132: 3
T133: C | U133: 1 | V133: High | W133: 5 | X133: 100 | Y133: 4 | Z133: 18.05707581 | AA133: 2 | AB133: 1 | AC133: 5
T134: DS4 | U134: =IF(T134=$E$13,$F$13,IF(T134=$E$8,$F$8,$F$6)) -> 5 | V134: High | W134: =IF(V134=$H$13,$I$13,VLOOKUP(V134,$H$6:$I$10,2,FALSE)) -> 5 | X134: 0 | Y134: =IF(X134=$K$13,$L$13,VLOOKUP(X134,$K$6:$L$10,2,TRUE)) -> 3 | Z134: 15.15698626 | AA134: =IF(Z134=$N$13,$O$13,VLOOKUP(Z134,$N$6:$O$10,2,TRUE)) -> 2 | AB134: 0 | AC134: =IF(AB134=$Q$13,$R$13,VLOOKUP(AB134,$Q$6:$R$10,2,TRUE)) -> 3
T135: DTN2 | U135: 1 | V135: High | W135: 5 | X135: 0 | Y135: 3 | Z135: 17.99419066 | AA135: 2 | AB135: 0 | AC135: 3
T136: E | U136: 1 | V136: High | W136: 5 | X136: 0 | Y136: 3 | Z136: 17.72818435 | AA136: 2 | AB136: 0 | AC136: 3
T137: A | U137: 1 | V137: High | W137: 5 | X137: 0 | Y137: 3 | Z137: 17.37278046 | AA137: 2 | AB137: 1 | AC137: 5
T138: N | U138: 1 | V138: High | W138: 5 | X138: 0 | Y138: 3 | Z138: 16.95921321 | AA138: 2 | AB138: 1 | AC138: 5
T139: E | U139: 1 | V139: High | W139: 5 | X139: 0 | Y139: 3 | Z139: 16.18743911 | AA139: 2 | AB139: 1 | AC139: 5
T140: A | U140: 1 | V140: High | W140: 5 | X140: 0 | Y140: 3 | Z140: 15.51000659 | AA140: 2 | AB140: 1 | AC140: 5
T141: E | U141: 1 | V141: High | W141: 5 | X141: 0 | Y141: 3 | Z141: 14.2587059 | AA141: 2 | AB141: 0 | AC141: 3
T142: E | U142: 1 | V142: High | W142: 5 | X142: 0 | Y142: 3 | Z142: 15.00209196 | AA142: 2 | AB142: 1 | AC142: 5
T143: E | U143: 1 | V143: High | W143: 5 | X143: 0 | Y143: 3 | Z143: 14.57132657 | AA143: 2 | AB143: 2 | AC143: 4
T144: N | U144: 1 | V144: High | W144: 5 | X144: 0 | Y144: 3 | Z144: 13.67226052 | AA144: 2 | AB144: 1 | AC144: 5
T145: E | U145: 1 | V145: High | W145: 5 | X145: 0 | Y145: 3 | Z145: 13.26250305 | AA145: 2 | AB145: 2 | AC145: 4
T146: E | U146: 1 | V146: High | W146: 5 | X146: 0 | Y146: 3 | Z146: 12.69913349 | AA146: 2 | AB146: 0 | AC146: 3
T147: A | U147: 1 | V147: High | W147: 5 | X147: 0 | Y147: 3 | Z147: 12.99994175 | AA147: 2 | AB147: 1 | AC147: 5
T148: A | U148: 1 | V148: High | W148: 5 | X148: 0 | Y148: 3 | Z148: 13.14191076 | AA148: 2 | AB148: 0 | AC148: 3
T149: DTN | U149: 1 | V149: High | W149: 5 | X149: 0 | Y149: 3 | Z149: 18.42263727 | AA149: 2 | AB149: 0 | AC149: 3
T150: B | U150: 1 | V150: High | W150: 5 | X150: 129 | Y150: 4 | Z150: 18.486771 | AA150: 2 | AB150: 0 | AC150: 3
T151: DTO | U151: 1 | V151: High | W151: 5 | X151: 0 | Y151: 3 | Z151: 18.70940432 | AA151: 2 | AB151: 1 | AC151: 5
T152: DT6 | U152: 1 | V152: High | W152: 5 | X152: 0 | Y152: 3 | Z152: 18.29721123 | AA152: 2 | AB152: 1 | AC152: 5
T153: B | U153: 1 | V153: High | W153: 5 | X153: 0 | Y153: 3 | Z153: 18.46211037 | AA153: 2 | AB153: 0 | AC153: 3
T154: B | U154: 1 | V154: High | W154: 5 | X154: 144 | Y154: 4 | Z154: 18.75656464 | AA154: 2 | AB154: 0 | AC154: 3
T155: A | U155: 1 | V155: High | W155: 5 | X155: 0 | Y155: 3 | Z155: 18.75713005 | AA155: 2 | AB155: 0 | AC155: 3
T156: A | U156: 1 | V156: High | W156: 5 | X156: 0 | Y156: 3 | Z156: 18.75723745 | AA156: 2 | AB156: 0 | AC156: 3
T157: B | U157: 1 | V157: High | W157: 5 | X157: 0 | Y157: 3 | Z157: 18.25793722 | AA157: 2 | AB157: 0 | AC157: 3
T158: B | U158: 1 | V158: High | W158: 5 | X158: 0 | Y158: 3 | Z158: 18.08825881 | AA158: 2 | AB158: 0 | AC158: 3
T159: A | U159: 1 | V159: High | W159: 5 | X159: 0 | Y159: 3 | Z159: 17.88395216 | AA159: 2 | AB159: 0 | AC159: 3
T160: C | U160: 1 | V160: High | W160: 5 | X160: 100 | Y160: 4 | Z160: 17.80946524 | AA160: 2 | AB160: 0 | AC160: 3
T161: A | U161: 1 | V161: High | W161: 5 | X161: 0 | Y161: 3 | Z161: 17.80997114 | AA161: 2 | AB161: 0 | AC161: 3
T162: B | U162: 1 | V162: High | W162: 5 | X162: 111 | Y162: 4 | Z162: 17.73218597 | AA162: 2 | AB162: 0 | AC162: 3
T163: B | U163: 1 | V163: High | W163: 5 | X163: 0 | Y163: 3 | Z163: 17.4966943 | AA163: 2 | AB163: 0 | AC163: 3
T164: C | U164: 1 | V164: High | W164: 5 | X164: 0 | Y164: 3 | Z164: 17.27427325 | AA164: 2 | AB164: 0 | AC164: 3
T165: C | U165: 1 | V165: High | W165: 5 | X165: 0 | Y165: 3 | Z165: 17.10712296 | AA165: 2 | AB165: 0 | AC165: 3
T166: A | U166: 1 | V166: High | W166: 5 | X166: 0 | Y166: 3 | Z166: 16.84154933 | AA166: 2 | AB166: 1 | AC166: 5
T167: K | U167: 1 | V167: High | W167: 5 | X167: 0 | Y167: 3 | Z167: 14.09241587 | AA167: 2 | AB167: 0 | AC167: 3
T168: DT6 | U168: 1 | V168: High | W168: 5 | X168: 0 | Y168: 3 | Z168: 15.47902723 | AA168: 2 | AB168: 0 | AC168: 3
T169: DT6 | U169: 1 | V169: High | W169: 5 | X169: 0 | Y169: 3 | Z169: 15.35135643 | AA169: 2 | AB169: 0 | AC169: 3
T170: DT6 | U170: 1 | V170: High | W170: 5 | X170: 0 | Y170: 3 | Z170: 14.89527121 | AA170: 2 | AB170: 0 | AC170: 3
T171: DS4 | U171: 5 | V171: High | W171: 5 | X171: 0 | Y171: 3 | Z171: 14.49692423 | AA171: 2 | AB171: 0 | AC171: 3
T172: DTN | U172: 1 | V172: High | W172: 5 | X172: 0 | Y172: 3 | Z172: 14.42684256 | AA172: 2 | AB172: 0 | AC172: 3
T173: DS4X | U173: 1 | V173: High | W173: 5 | X173: 0 | Y173: 3 | Z173: 14.68362361 | AA173: 2 | AB173: 0 | AC173: 3
T174: DT6 | U174: 1 | V174: High | W174: 5 | X174: 0 | Y174: 3 | Z174: 15.02145855 | AA174: 2 | AB174: 1 | AC174: 5
T175: DT6X | U175: 1 | V175: High | W175: 5 | X175: 0 | Y175: 3 | Z175: 15.28778649 | AA175: 2 | AB175: 1 | AC175: 5
T176: DT6 | U176: 1 | V176: High | W176: 5 | X176: 0 | Y176: 3 | Z176: 15.82932481 | AA176: 2 | AB176: 2 | AC176: 4
T177: B | U177: 1 | V177: High | W177: 5 | X177: 135 | Y177: 4 | Z177: 16.4282273 | AA177: 2 | AB177: 1 | AC177: 5
T178: DS4X | U178: 1 | V178: High | W178: 5 | X178: 0 | Y178: 3 | Z178: 16.03308096 | AA178: 2 | AB178: 0 | AC178: 3
T179: B | U179: 1 | V179: High | W179: 5 | X179: 0 | Y179: 3 | Z179: 16.61439076 | AA179: 2 | AB179: 0 | AC179: 3
T180: B | U180: 1 | V180: High | W180: 5 | X180: 0 | Y180: 3 | Z180: 16.49510711 | AA180: 2 | AB180: 0 | AC180: 3
T181: N | U181: 1 | V181: High | W181: 5 | X181: 0 | Y181: 3 | Z181: 17.5327737 | AA181: 2 | AB181: 0 | AC181: 3
T182: N | U182: 1 | V182: High | W182: 5 | X182: 0 | Y182: 3 | Z182: 17.17617091 | AA182: 2 | AB182: 1 | AC182: 5
T183: N | U183: 1 | V183: High | W183: 5 | X183: 0 | Y183: 3 | Z183: 16.70611445 | AA183: 2 | AB183: 1 | AC183: 5
T184: A | U184: 1 | V184: High | W184: 5 | X184: 0 | Y184: 3 | Z184: 16.43928395 | AA184: 2 | AB184: 2 | AC184: 4
T185: A | U185: 1 | V185: High | W185: 5 | X185: 0 | Y185: 3 | Z185: 15.84449455 | AA185: 2 | AB185: 0 | AC185: 3
T186: A | U186: 1 | V186: High | W186: 5 | X186: 0 | Y186: 3 | Z186: 15.70966816 | AA186: 2 | AB186: 1 | AC186: 5
T187: A | U187: 1 | V187: High | W187: 5 | X187: 0 | Y187: 3 | Z187: 15.28517061 | AA187: 2 | AB187: 0 | AC187: 3
T188: A | U188: 1 | V188: High | W188: 5 | X188: 0 | Y188: 3 | Z188: 14.01448136 | AA188: 2 | AB188: 0 | AC188: 3
T189: A | U189: 1 | V189: High | W189: 5 | X189: 0 | Y189: 3 | Z189: 14.72692212 | AA189: 2 | AB189: 0 | AC189: 3
T190: A | U190: 1 | V190: High | W190: 5 | X190: 0 | Y190: 3 | Z190: 13.80986027 | AA190: 2 | AB190: 0 | AC190: 3
T191: A | U191: 1 | V191: High | W191: 5 | X191: 0 | Y191: 3 | Z191: 13.48282992 | AA191: 2 | AB191: 0 | AC191: 3
T192: A | U192: 1 | V192: High | W192: 5 | X192: 0 | Y192: 3 | Z192: 13.28200211 | AA192: 2 | AB192: 1 | AC192: 5
T193: A | U193: 1 | V193: High | W193: 5 | X193: 0 | Y193: 3 | Z193: 13.13414124 | AA193: 2 | AB193: 0 | AC193: 3
T194: N | U194: 1 | V194: High | W194: 5 | X194: 0 | Y194: 3 | Z194: 12.84919226 | AA194: 2 | AB194: 0 | AC194: 3
T195: E | U195: 1 | V195: High | W195: 5 | X195: 0 | Y195: 3 | Z195: 12.88965764 | AA195: 2 | AB195: 1 | AC195: 5
T196: E | U196: 1 | V196: High | W196: 5 | X196: 0 | Y196: 3 | Z196: 13.16733491 | AA196: 2 | AB196: 2 | AC196: 4
T197: DTN2 | U197: 1 | V197: High | W197: 5 | X197: 0 | Y197: 3 | Z197: 17.8888606 | AA197: 2 | AB197: 0 | AC197: 3
T198: DTO | U198: =IF(T198=$E$13,$F$13,IF(T198=$E$8,$F$8,$F$6)) -> 1 | V198: High | W198: =IF(V198=$H$13,$I$13,VLOOKUP(V198,$H$6:$I$10,2,FALSE)) -> 5 | X198: 0 | Y198: =IF(X198=$K$13,$L$13,VLOOKUP(X198,$K$6:$L$10,2,TRUE)) -> 3 | Z198: 18.66976429 | AA198: =IF(Z198=$N$13,$O$13,VLOOKUP(Z198,$N$6:$O$10,2,TRUE)) -> 2 | AB198: 0 | AC198: =IF(AB198=$Q$13,$R$13,VLOOKUP(AB198,$Q$6:$R$10,2,TRUE)) -> 3
T199: DTO | U199: 1 | V199: High | W199: 5 | X199: 0 | Y199: 3 | Z199: 18.30789413 | AA199: 2 | AB199: 0 | AC199: 3
T200: D | U200: 1 | V200: High | W200: 5 | X200: 0 | Y200: 3 | Z200: 12.60741713 | AA200: 2 | AB200: 1 | AC200: 5
T201: T | U201: 1 | V201: High | W201: 5 | X201: 0 | Y201: 3 | Z201: 12.22214528 | AA201: 2 | AB201: 1 | AC201: 5
... 503 more rows

Sheet B. Population PoF Scores
C1: Population PoF Scores
A3: Asset Identifier | B3: POF ADJUSTMENT FACTORS | G3: POF SCORES
B4: ='A. Population Info'!G5 -> DS4 | C4: ='A. Population Info'!H5 -> 0 | D4: ='A. Population Info'!I5 -> Utilisation | E4: ='A. Population Info'!J5 -> Proximity to Saltwater | F4: ='A. Population Info'!K5 -> M7's Completed in last 7 years | G4: =B4 -> DS4 | H4: =C4 -> 0 | I4: =D4 -> Utilisation | J4: =E4 -> Proximity to Saltwater | K4: =F4 -> M7's Completed in last 7 years | O4: =B4 -> DS4 | P4: =C4 -> 0 | Q4: =D4 -> Utilisation | R4: =E4 -> Proximity to Saltwater | S4: =F4 -> M7's Completed in last 7 years
G5: =O5 -> 1 | H5: =P5 -> 0 | I5: =Q5 -> 1 | J5: =R5 -> 0.6 | K5: =S5 -> 0.45 | N5: Weighting 1 | O5: 1 | P5: 0 | Q5: 1 | R5: 0.6 | S5: 0.45
A6: ='A. Population Info'!A6 -> T.F.000203/00.T01.SUP | B6: ='A. Population Info'!G6 -> DTO | C6: ='A. Population Info'!H6 -> 0 | D6: ='A. Population Info'!I6 -> 0 | E6: ='A. Population Info'!J6 -> 18.18991309 | F6: ='A. Population Info'!K6 -> 2 | G6: ='B. PoF Adj Factor Scoring'!U5 -> 1 | H6: ='B. PoF Adj Factor Scoring'!W5 -> 3 | I6: ='B. PoF Adj Factor Scoring'!Y5 -> 3 | J6: ='B. PoF Adj Factor Scoring'!AA5 -> 2 | K6: ='B. PoF Adj Factor Scoring'!AC5 -> 4
A7: ='A. Population Info'!A7 -> T.F.000203/00.T01.SUP | B7: ='A. Population Info'!G7 -> DTO | C7: ='A. Population Info'!H7 -> 0 | D7: ='A. Population Info'!I7 -> 0 | E7: ='A. Population Info'!J7 -> 17.93998344 | F7: ='A. Population Info'!K7 -> 4 | G7: ='B. PoF Adj Factor Scoring'!U6 -> 1 | H7: ='B. PoF Adj Factor Scoring'!W6 -> 3 | I7: ='B. PoF Adj Factor Scoring'!Y6 -> 3 | J7: ='B. PoF Adj Factor Scoring'!AA6 -> 2 | K7: ='B. PoF Adj Factor Scoring'!AC6 -> 2
A8: ='A. Population Info'!A8 -> T.F.000204/00.T01.SUP | B8: ='A. Population Info'!G8 -> DTD | C8: ='A. Population Info'!H8 -> 0 | D8: ='A. Population Info'!I8 -> 0 | E8: ='A. Population Info'!J8 -> 18.09756834 | F8: ='A. Population Info'!K8 -> 0 | G8: ='B. PoF Adj Factor Scoring'!U7 -> 1 | H8: ='B. PoF Adj Factor Scoring'!W7 -> 3 | I8: ='B. PoF Adj Factor Scoring'!Y7 -> 3 | J8: ='B. PoF Adj Factor Scoring'!AA7 -> 2 | K8: ='B. PoF Adj Factor Scoring'!AC7 -> 3
A9: ='A. Population Info'!A9 -> T.F.000204/00.T01.SUP | B9: ='A. Population Info'!G9 -> DSC | C9: ='A. Population Info'!H9 -> 0 | D9: ='A. Population Info'!I9 -> 0 | E9: ='A. Population Info'!J9 -> 17.96287326 | F9: ='A. Population Info'!K9 -> 0 | G9: ='B. PoF Adj Factor Scoring'!U8 -> 1 | H9: ='B. PoF Adj Factor Scoring'!W8 -> 3 | I9: ='B. PoF Adj Factor Scoring'!Y8 -> 3 | J9: ='B. PoF Adj Factor Scoring'!AA8 -> 2 | K9: ='B. PoF Adj Factor Scoring'!AC8 -> 3
A10: ='A. Population Info'!A10 -> T.F.000204/00.T01.SUP | B10: ='A. Population Info'!G10 -> DTO | C10: ='A. Population Info'!H10 -> 0 | D10: ='A. Population Info'!I10 -> 0 | E10: ='A. Population Info'!J10 -> 18.3212292 | F10: ='A. Population Info'!K10 -> 0 | G10: ='B. PoF Adj Factor Scoring'!U9 -> 1 | H10: ='B. PoF Adj Factor Scoring'!W9 -> 3 | I10: ='B. PoF Adj Factor Scoring'!Y9 -> 3 | J10: ='B. PoF Adj Factor Scoring'!AA9 -> 2 | K10: ='B. PoF Adj Factor Scoring'!AC9 -> 3
A11: ='A. Population Info'!A11 -> T.F.000240/00.T01.SUP | B11: ='A. Population Info'!G11 -> DSM | C11: ='A. Population Info'!H11 -> 0 | D11: ='A. Population Info'!I11 -> 0 | E11: ='A. Population Info'!J11 -> 19.00175135 | F11: ='A. Population Info'!K11 -> 1 | G11: ='B. PoF Adj Factor Scoring'!U10 -> 1 | H11: ='B. PoF Adj Factor Scoring'!W10 -> 5 | I11: ='B. PoF Adj Factor Scoring'!Y10 -> 3 | J11: ='B. PoF Adj Factor Scoring'!AA10 -> 2 | K11: ='B. PoF Adj Factor Scoring'!AC10 -> 5
A12: ='A. Population Info'!A12 -> T.F.000240/00.T01.SUP | B12: ='A. Population Info'!G12 -> DTO | C12: ='A. Population Info'!H12 -> 0 | D12: ='A. Population Info'!I12 -> 0 | E12: ='A. Population Info'!J12 -> 19.55857975 | F12: ='A. Population Info'!K12 -> 0 | G12: ='B. PoF Adj Factor Scoring'!U11 -> 1 | H12: ='B. PoF Adj Factor Scoring'!W11 -> 5 | I12: ='B. PoF Adj Factor Scoring'!Y11 -> 3 | J12: ='B. PoF Adj Factor Scoring'!AA11 -> 2 | K12: ='B. PoF Adj Factor Scoring'!AC11 -> 3
A13: ='A. Population Info'!A13 -> T.F.000240/00.T01.SUP | B13: ='A. Population Info'!G13 -> DTO | C13: ='A. Population Info'!H13 -> 0 | D13: ='A. Population Info'!I13 -> 0 | E13: ='A. Population Info'!J13 -> 19.90743733 | F13: ='A. Population Info'!K13 -> 0 | G13: ='B. PoF Adj Factor Scoring'!U12 -> 1 | H13: ='B. PoF Adj Factor Scoring'!W12 -> 5 | I13: ='B. PoF Adj Factor Scoring'!Y12 -> 3 | J13: ='B. PoF Adj Factor Scoring'!AA12 -> 2 | K13: ='B. PoF Adj Factor Scoring'!AC12 -> 3
A14: ='A. Population Info'!A14 -> T.F.000240/00.T01.SUP | B14: ='A. Population Info'!G14 -> DTO | C14: ='A. Population Info'!H14 -> 0 | D14: ='A. Population Info'!I14 -> 0 | E14: ='A. Population Info'!J14 -> 20.2228928 | F14: ='A. Population Info'!K14 -> 1 | G14: ='B. PoF Adj Factor Scoring'!U13 -> 1 | H14: ='B. PoF Adj Factor Scoring'!W13 -> 5 | I14: ='B. PoF Adj Factor Scoring'!Y13 -> 3 | J14: ='B. PoF Adj Factor Scoring'!AA13 -> 1 | K14: ='B. PoF Adj Factor Scoring'!AC13 -> 5
A15: ='A. Population Info'!A15 -> T.F.000240/00.T01.SUP | B15: ='A. Population Info'!G15 -> DTO | C15: ='A. Population Info'!H15 -> 0 | D15: ='A. Population Info'!I15 -> 0 | E15: ='A. Population Info'!J15 -> 18.77024702 | F15: ='A. Population Info'!K15 -> 0 | G15: ='B. PoF Adj Factor Scoring'!U14 -> 1 | H15: ='B. PoF Adj Factor Scoring'!W14 -> 5 | I15: ='B. PoF Adj Factor Scoring'!Y14 -> 3 | J15: ='B. PoF Adj Factor Scoring'!AA14 -> 2 | K15: ='B. PoF Adj Factor Scoring'!AC14 -> 3
A16: ='A. Population Info'!A16 -> T.F.000241/00.T01.SUP | B16: ='A. Population Info'!G16 -> DTN | C16: ='A. Population Info'!H16 -> 0 | D16: ='A. Population Info'!I16 -> 0 | E16: ='A. Population Info'!J16 -> 18.43283798 | F16: ='A. Population Info'!K16 -> 0 | G16: ='B. PoF Adj Factor Scoring'!U15 -> 1 | H16: ='B. PoF Adj Factor Scoring'!W15 -> 5 | I16: ='B. PoF Adj Factor Scoring'!Y15 -> 3 | J16: ='B. PoF Adj Factor Scoring'!AA15 -> 2 | K16: ='B. PoF Adj Factor Scoring'!AC15 -> 3
A17: ='A. Population Info'!A17 -> T.F.000241/00.T01.SUP | B17: ='A. Population Info'!G17 -> DSM | C17: ='A. Population Info'!H17 -> 0 | D17: ='A. Population Info'!I17 -> 0 | E17: ='A. Population Info'!J17 -> 19.28718182 | F17: ='A. Population Info'!K17 -> 0 | G17: ='B. PoF Adj Factor Scoring'!U16 -> 1 | H17: ='B. PoF Adj Factor Scoring'!W16 -> 5 | I17: ='B. PoF Adj Factor Scoring'!Y16 -> 3 | J17: ='B. PoF Adj Factor Scoring'!AA16 -> 2 | K17: ='B. PoF Adj Factor Scoring'!AC16 -> 3
A18: ='A. Population Info'!A18 -> T.F.000241/00.T01.SUP | B18: ='A. Population Info'!G18 -> DTO | C18: ='A. Population Info'!H18 -> 0 | D18: ='A. Population Info'!I18 -> 0 | E18: ='A. Population Info'!J18 -> 19.99117503 | F18: ='A. Population Info'!K18 -> 0 | G18: ='B. PoF Adj Factor Scoring'!U17 -> 1 | H18: ='B. PoF Adj Factor Scoring'!W17 -> 5 | I18: ='B. PoF Adj Factor Scoring'!Y17 -> 3 | J18: ='B. PoF Adj Factor Scoring'!AA17 -> 2 | K18: ='B. PoF Adj Factor Scoring'!AC17 -> 3
A19: ='A. Population Info'!A19 -> T.F.000241/00.T01.SUP | B19: ='A. Population Info'!G19 -> DTO | C19: ='A. Population Info'!H19 -> 0 | D19: ='A. Population Info'!I19 -> 0 | E19: ='A. Population Info'!J19 -> 18.71673335 | F19: ='A. Population Info'!K19 -> 0 | G19: ='B. PoF Adj Factor Scoring'!U18 -> 1 | H19: ='B. PoF Adj Factor Scoring'!W18 -> 5 | I19: ='B. PoF Adj Factor Scoring'!Y18 -> 3 | J19: ='B. PoF Adj Factor Scoring'!AA18 -> 2 | K19: ='B. PoF Adj Factor Scoring'!AC18 -> 3
A20: ='A. Population Info'!A20 -> T.F.000241/00.T01.SUP | B20: ='A. Population Info'!G20 -> DTO | C20: ='A. Population Info'!H20 -> 0 | D20: ='A. Population Info'!I20 -> 0 | E20: ='A. Population Info'!J20 -> 18.43841952 | F20: ='A. Population Info'!K20 -> 0 | G20: ='B. PoF Adj Factor Scoring'!U19 -> 1 | H20: ='B. PoF Adj Factor Scoring'!W19 -> 5 | I20: ='B. PoF Adj Factor Scoring'!Y19 -> 3 | J20: ='B. PoF Adj Factor Scoring'!AA19 -> 2 | K20: ='B. PoF Adj Factor Scoring'!AC19 -> 3
A21: ='A. Population Info'!A21 -> T.F.000241/00.T01.SUP | B21: ='A. Population Info'!G21 -> DTO | C21: ='A. Population Info'!H21 -> 0 | D21: ='A. Population Info'!I21 -> 0 | E21: ='A. Population Info'!J21 -> 18.34089489 | F21: ='A. Population Info'!K21 -> 1 | G21: ='B. PoF Adj Factor Scoring'!U20 -> 1 | H21: ='B. PoF Adj Factor Scoring'!W20 -> 5 | I21: ='B. PoF Adj Factor Scoring'!Y20 -> 3 | J21: ='B. PoF Adj Factor Scoring'!AA20 -> 2 | K21: ='B. PoF Adj Factor Scoring'!AC20 -> 5
A22: ='A. Population Info'!A22 -> T.F.000251/00.T01.SUP | B22: ='A. Population Info'!G22 -> DTO2 | C22: ='A. Population Info'!H22 -> 0 | D22: ='A. Population Info'!I22 -> 0 | E22: ='A. Population Info'!J22 -> 24.0802887 | F22: ='A. Population Info'!K22 -> 0 | G22: ='B. PoF Adj Factor Scoring'!U21 -> 1 | H22: ='B. PoF Adj Factor Scoring'!W21 -> 5 | I22: ='B. PoF Adj Factor Scoring'!Y21 -> 3 | J22: ='B. PoF Adj Factor Scoring'!AA21 -> 1 | K22: ='B. PoF Adj Factor Scoring'!AC21 -> 3
A23: ='A. Population Info'!A23 -> T.F.000251/00.T01.SUP | B23: ='A. Population Info'!G23 -> DTM2 | C23: ='A. Population Info'!H23 -> 0 | D23: ='A. Population Info'!I23 -> 0 | E23: ='A. Population Info'!J23 -> 23.83016101 | F23: ='A. Population Info'!K23 -> 0 | G23: ='B. PoF Adj Factor Scoring'!U22 -> 1 | H23: ='B. PoF Adj Factor Scoring'!W22 -> 5 | I23: ='B. PoF Adj Factor Scoring'!Y22 -> 3 | J23: ='B. PoF Adj Factor Scoring'!AA22 -> 1 | K23: ='B. PoF Adj Factor Scoring'!AC22 -> 3
A24: ='A. Population Info'!A24 -> T.F.000251/00.T01.SUP | B24: ='A. Population Info'!G24 -> DTN2 | C24: ='A. Population Info'!H24 -> 0 | D24: ='A. Population Info'!I24 -> 0 | E24: ='A. Population Info'!J24 -> 23.52188104 | F24: ='A. Population Info'!K24 -> 0 | G24: ='B. PoF Adj Factor Scoring'!U23 -> 1 | H24: ='B. PoF Adj Factor Scoring'!W23 -> 5 | I24: ='B. PoF Adj Factor Scoring'!Y23 -> 3 | J24: ='B. PoF Adj Factor Scoring'!AA23 -> 1 | K24: ='B. PoF Adj Factor Scoring'!AC23 -> 3
A25: ='A. Population Info'!A25 -> T.F.000251/00.T01.SUP | B25: ='A. Population Info'!G25 -> DTN2 | C25: ='A. Population Info'!H25 -> 0 | D25: ='A. Population Info'!I25 -> 0 | E25: ='A. Population Info'!J25 -> 23.6492653 | F25: ='A. Population Info'!K25 -> 0 | G25: ='B. PoF Adj Factor Scoring'!U24 -> 1 | H25: ='B. PoF Adj Factor Scoring'!W24 -> 5 | I25: ='B. PoF Adj Factor Scoring'!Y24 -> 3 | J25: ='B. PoF Adj Factor Scoring'!AA24 -> 1 | K25: ='B. PoF Adj Factor Scoring'!AC24 -> 3
A26: ='A. Population Info'!A26 -> T.F.000251/00.T01.SUP | B26: ='A. Population Info'!G26 -> DSM2 | C26: ='A. Population Info'!H26 -> 0 | D26: ='A. Population Info'!I26 -> 0 | E26: ='A. Population Info'!J26 -> 23.67107942 | F26: ='A. Population Info'!K26 -> 0 | G26: ='B. PoF Adj Factor Scoring'!U25 -> 1 | H26: ='B. PoF Adj Factor Scoring'!W25 -> 5 | I26: ='B. PoF Adj Factor Scoring'!Y25 -> 3 | J26: ='B. PoF Adj Factor Scoring'!AA25 -> 1 | K26: ='B. PoF Adj Factor Scoring'!AC25 -> 3
A27: ='A. Population Info'!A27 -> T.F.000251/00.T01.SUP | B27: ='A. Population Info'!G27 -> DSM2 | C27: ='A. Population Info'!H27 -> 0 | D27: ='A. Population Info'!I27 -> 0 | E27: ='A. Population Info'!J27 -> 23.86385792 | F27: ='A. Population Info'!K27 -> 0 | G27: ='B. PoF Adj Factor Scoring'!U26 -> 1 | H27: ='B. PoF Adj Factor Scoring'!W26 -> 5 | I27: ='B. PoF Adj Factor Scoring'!Y26 -> 3 | J27: ='B. PoF Adj Factor Scoring'!AA26 -> 1 | K27: ='B. PoF Adj Factor Scoring'!AC26 -> 3
A28: ='A. Population Info'!A28 -> T.F.000251/00.T01.SUP | B28: ='A. Population Info'!G28 -> DTM2 | C28: ='A. Population Info'!H28 -> 0 | D28: ='A. Population Info'!I28 -> 0 | E28: ='A. Population Info'!J28 -> 24.12471489 | F28: ='A. Population Info'!K28 -> 0 | G28: ='B. PoF Adj Factor Scoring'!U27 -> 1 | H28: ='B. PoF Adj Factor Scoring'!W27 -> 5 | I28: ='B. PoF Adj Factor Scoring'!Y27 -> 3 | J28: ='B. PoF Adj Factor Scoring'!AA27 -> 1 | K28: ='B. PoF Adj Factor Scoring'!AC27 -> 3
A29: ='A. Population Info'!A29 -> T.F.000251/00.T01.SUP | B29: ='A. Population Info'!G29 -> DSM2 | C29: ='A. Population Info'!H29 -> 0 | D29: ='A. Population Info'!I29 -> 0 | E29: ='A. Population Info'!J29 -> 24.28172634 | F29: ='A. Population Info'!K29 -> 0 | G29: ='B. PoF Adj Factor Scoring'!U28 -> 1 | H29: ='B. PoF Adj Factor Scoring'!W28 -> 5 | I29: ='B. PoF Adj Factor Scoring'!Y28 -> 3 | J29: ='B. PoF Adj Factor Scoring'!AA28 -> 1 | K29: ='B. PoF Adj Factor Scoring'!AC28 -> 3
A30: ='A. Population Info'!A30 -> T.F.000251/00.T01.SUP | B30: ='A. Population Info'!G30 -> DSM2 | C30: ='A. Population Info'!H30 -> 0 | D30: ='A. Population Info'!I30 -> 0 | E30: ='A. Population Info'!J30 -> 24.8241436 | F30: ='A. Population Info'!K30 -> 0 | G30: ='B. PoF Adj Factor Scoring'!U29 -> 1 | H30: ='B. PoF Adj Factor Scoring'!W29 -> 5 | I30: ='B. PoF Adj Factor Scoring'!Y29 -> 3 | J30: ='B. PoF Adj Factor Scoring'!AA29 -> 1 | K30: ='B. PoF Adj Factor Scoring'!AC29 -> 3
A31: ='A. Population Info'!A31 -> T.F.000251/00.T01.SUP | B31: ='A. Population Info'!G31 -> DSM2 | C31: ='A. Population Info'!H31 -> 0 | D31: ='A. Population Info'!I31 -> 0 | E31: ='A. Population Info'!J31 -> 25.29056646 | F31: ='A. Population Info'!K31 -> 0 | G31: ='B. PoF Adj Factor Scoring'!U30 -> 1 | H31: ='B. PoF Adj Factor Scoring'!W30 -> 5 | I31: ='B. PoF Adj Factor Scoring'!Y30 -> 3 | J31: ='B. PoF Adj Factor Scoring'!AA30 -> 1 | K31: ='B. PoF Adj Factor Scoring'!AC30 -> 3
A32: ='A. Population Info'!A32 -> T.F.000251/00.T01.SUP | B32: ='A. Population Info'!G32 -> DTN2 | C32: ='A. Population Info'!H32 -> 0 | D32: ='A. Population Info'!I32 -> 0 | E32: ='A. Population Info'!J32 -> 25.52530762 | F32: ='A. Population Info'!K32 -> 0 | G32: ='B. PoF Adj Factor Scoring'!U31 -> 1 | H32: ='B. PoF Adj Factor Scoring'!W31 -> 5 | I32: ='B. PoF Adj Factor Scoring'!Y31 -> 3 | J32: ='B. PoF Adj Factor Scoring'!AA31 -> 1 | K32: ='B. PoF Adj Factor Scoring'!AC31 -> 3
A33: ='A. Population Info'!A33 -> T.F.000251/00.T01.SUP | B33: ='A. Population Info'!G33 -> DSM2 | C33: ='A. Population Info'!H33 -> 0 | D33: ='A. Population Info'!I33 -> 0 | E33: ='A. Population Info'!J33 -> 25.62086087 | F33: ='A. Population Info'!K33 -> 0 | G33: ='B. PoF Adj Factor Scoring'!U32 -> 1 | H33: ='B. PoF Adj Factor Scoring'!W32 -> 5 | I33: ='B. PoF Adj Factor Scoring'!Y32 -> 3 | J33: ='B. PoF Adj Factor Scoring'!AA32 -> 1 | K33: ='B. PoF Adj Factor Scoring'!AC32 -> 3
A34: ='A. Population Info'!A34 -> T.F.000251/00.T01.SUP | B34: ='A. Population Info'!G34 -> DTO2 | C34: ='A. Population Info'!H34 -> 0 | D34: ='A. Population Info'!I34 -> 0 | E34: ='A. Population Info'!J34 -> 25.81743607 | F34: ='A. Population Info'!K34 -> 0 | G34: ='B. PoF Adj Factor Scoring'!U33 -> 1 | H34: ='B. PoF Adj Factor Scoring'!W33 -> 5 | I34: ='B. PoF Adj Factor Scoring'!Y33 -> 3 | J34: ='B. PoF Adj Factor Scoring'!AA33 -> 1 | K34: ='B. PoF Adj Factor Scoring'!AC33 -> 3
A35: ='A. Population Info'!A35 -> T.F.000284/00.T01.SUP | B35: ='A. Population Info'!G35 -> R | C35: ='A. Population Info'!H35 -> 0 | D35: ='A. Population Info'!I35 -> 0 | E35: ='A. Population Info'!J35 -> 12.25396223 | F35: ='A. Population Info'!K35 -> 0 | G35: ='B. PoF Adj Factor Scoring'!U34 -> 1 | H35: ='B. PoF Adj Factor Scoring'!W34 -> 5 | I35: ='B. PoF Adj Factor Scoring'!Y34 -> 3 | J35: ='B. PoF Adj Factor Scoring'!AA34 -> 2 | K35: ='B. PoF Adj Factor Scoring'!AC34 -> 3
A36: ='A. Population Info'!A36 -> T.F.000284/00.T01.SUP | B36: ='A. Population Info'!G36 -> R | C36: ='A. Population Info'!H36 -> 0 | D36: ='A. Population Info'!I36 -> 0 | E36: ='A. Population Info'!J36 -> 12.31218075 | F36: ='A. Population Info'!K36 -> 0 | G36: ='B. PoF Adj Factor Scoring'!U35 -> 1 | H36: ='B. PoF Adj Factor Scoring'!W35 -> 5 | I36: ='B. PoF Adj Factor Scoring'!Y35 -> 3 | J36: ='B. PoF Adj Factor Scoring'!AA35 -> 2 | K36: ='B. PoF Adj Factor Scoring'!AC35 -> 3
A37: ='A. Population Info'!A37 -> T.F.000284/00.T01.SUP | B37: ='A. Population Info'!G37 -> N | C37: ='A. Population Info'!H37 -> 0 | D37: ='A. Population Info'!I37 -> 0 | E37: ='A. Population Info'!J37 -> 12.11051278 | F37: ='A. Population Info'!K37 -> 0 | G37: ='B. PoF Adj Factor Scoring'!U36 -> 1 | H37: ='B. PoF Adj Factor Scoring'!W36 -> 5 | I37: ='B. PoF Adj Factor Scoring'!Y36 -> 3 | J37: ='B. PoF Adj Factor Scoring'!AA36 -> 2 | K37: ='B. PoF Adj Factor Scoring'!AC36 -> 3
A38: ='A. Population Info'!A38 -> T.F.000284/00.T01.SUP | B38: ='A. Population Info'!G38 -> T | C38: ='A. Population Info'!H38 -> 0 | D38: ='A. Population Info'!I38 -> 0 | E38: ='A. Population Info'!J38 -> 11.80213251 | F38: ='A. Population Info'!K38 -> 1 | G38: ='B. PoF Adj Factor Scoring'!U37 -> 1 | H38: ='B. PoF Adj Factor Scoring'!W37 -> 5 | I38: ='B. PoF Adj Factor Scoring'!Y37 -> 3 | J38: ='B. PoF Adj Factor Scoring'!AA37 -> 2 | K38: ='B. PoF Adj Factor Scoring'!AC37 -> 5
A39: ='A. Population Info'!A39 -> T.F.000284/00.T01.SUP | B39: ='A. Population Info'!G39 -> N | C39: ='A. Population Info'!H39 -> 0 | D39: ='A. Population Info'!I39 -> 0 | E39: ='A. Population Info'!J39 -> 11.9736288 | F39: ='A. Population Info'!K39 -> 1 | G39: ='B. PoF Adj Factor Scoring'!U38 -> 1 | H39: ='B. PoF Adj Factor Scoring'!W38 -> 5 | I39: ='B. PoF Adj Factor Scoring'!Y38 -> 3 | J39: ='B. PoF Adj Factor Scoring'!AA38 -> 2 | K39: ='B. PoF Adj Factor Scoring'!AC38 -> 5
A40: ='A. Population Info'!A40 -> T.F.000284/00.T01.SUP | B40: ='A. Population Info'!G40 -> DT6 | C40: ='A. Population Info'!H40 -> 0 | D40: ='A. Population Info'!I40 -> 0 | E40: ='A. Population Info'!J40 -> 15.23576661 | F40: ='A. Population Info'!K40 -> 0 | G40: ='B. PoF Adj Factor Scoring'!U39 -> 1 | H40: ='B. PoF Adj Factor Scoring'!W39 -> 5 | I40: ='B. PoF Adj Factor Scoring'!Y39 -> 3 | J40: ='B. PoF Adj Factor Scoring'!AA39 -> 2 | K40: ='B. PoF Adj Factor Scoring'!AC39 -> 3
A41: ='A. Population Info'!A41 -> T.F.000284/00.T01.SUP | B41: ='A. Population Info'!G41 -> DS4 | C41: ='A. Population Info'!H41 -> 0 | D41: ='A. Population Info'!I41 -> 0 | E41: ='A. Population Info'!J41 -> 14.4417815 | F41: ='A. Population Info'!K41 -> 1 | G41: ='B. PoF Adj Factor Scoring'!U40 -> 5 | H41: ='B. PoF Adj Factor Scoring'!W40 -> 5 | I41: ='B. PoF Adj Factor Scoring'!Y40 -> 3 | J41: ='B. PoF Adj Factor Scoring'!AA40 -> 2 | K41: ='B. PoF Adj Factor Scoring'!AC40 -> 5
A42: ='A. Population Info'!A42 -> T.F.000284/00.T01.SUP | B42: ='A. Population Info'!G42 -> DT6 | C42: ='A. Population Info'!H42 -> 0 | D42: ='A. Population Info'!I42 -> 0 | E42: ='A. Population Info'!J42 -> 13.86907822 | F42: ='A. Population Info'!K42 -> 0 | G42: ='B. PoF Adj Factor Scoring'!U41 -> 1 | H42: ='B. PoF Adj Factor Scoring'!W41 -> 5 | I42: ='B. PoF Adj Factor Scoring'!Y41 -> 3 | J42: ='B. PoF Adj Factor Scoring'!AA41 -> 2 | K42: ='B. PoF Adj Factor Scoring'!AC41 -> 3
A43: ='A. Population Info'!A43 -> T.F.000284/00.T01.SUP | B43: ='A. Population Info'!G43 -> DT6 | C43: ='A. Population Info'!H43 -> 0 | D43: ='A. Population Info'!I43 -> 0 | E43: ='A. Population Info'!J43 -> 12.6531829 | F43: ='A. Population Info'!K43 -> 0 | G43: ='B. PoF Adj Factor Scoring'!U42 -> 1 | H43: ='B. PoF Adj Factor Scoring'!W42 -> 5 | I43: ='B. PoF Adj Factor Scoring'!Y42 -> 3 | J43: ='B. PoF Adj Factor Scoring'!AA42 -> 2 | K43: ='B. PoF Adj Factor Scoring'!AC42 -> 3
A44: ='A. Population Info'!A44 -> T.F.000285/00.T04.SUP | B44: ='A. Population Info'!G44 -> R | C44: ='A. Population Info'!H44 -> 0 | D44: ='A. Population Info'!I44 -> 0 | E44: ='A. Population Info'!J44 -> 13.6090118 | F44: ='A. Population Info'!K44 -> 0 | G44: ='B. PoF Adj Factor Scoring'!U43 -> 1 | H44: ='B. PoF Adj Factor Scoring'!W43 -> 5 | I44: ='B. PoF Adj Factor Scoring'!Y43 -> 3 | J44: ='B. PoF Adj Factor Scoring'!AA43 -> 2 | K44: ='B. PoF Adj Factor Scoring'!AC43 -> 3
A45: ='A. Population Info'!A45 -> T.F.000285/00.T04.SUP | B45: ='A. Population Info'!G45 -> N | C45: ='A. Population Info'!H45 -> 0 | D45: ='A. Population Info'!I45 -> 0 | E45: ='A. Population Info'!J45 -> 13.28406731 | F45: ='A. Population Info'!K45 -> 0 | G45: ='B. PoF Adj Factor Scoring'!U44 -> 1 | H45: ='B. PoF Adj Factor Scoring'!W44 -> 5 | I45: ='B. PoF Adj Factor Scoring'!Y44 -> 3 | J45: ='B. PoF Adj Factor Scoring'!AA44 -> 2 | K45: ='B. PoF Adj Factor Scoring'!AC44 -> 3
A46: ='A. Population Info'!A46 -> T.F.000285/00.T04.SUP | B46: ='A. Population Info'!G46 -> P | C46: ='A. Population Info'!H46 -> 0 | D46: ='A. Population Info'!I46 -> 0 | E46: ='A. Population Info'!J46 -> 13.43253551 | F46: ='A. Population Info'!K46 -> 0 | G46: ='B. PoF Adj Factor Scoring'!U45 -> 1 | H46: ='B. PoF Adj Factor Scoring'!W45 -> 5 | I46: ='B. PoF Adj Factor Scoring'!Y45 -> 3 | J46: ='B. PoF Adj Factor Scoring'!AA45 -> 2 | K46: ='B. PoF Adj Factor Scoring'!AC45 -> 3
A47: ='A. Population Info'!A47 -> T.F.000285/00.T04.SUP | B47: ='A. Population Info'!G47 -> P | C47: ='A. Population Info'!H47 -> 0 | D47: ='A. Population Info'!I47 -> 0 | E47: ='A. Population Info'!J47 -> 13.59050085 | F47: ='A. Population Info'!K47 -> 0 | G47: ='B. PoF Adj Factor Scoring'!U46 -> 1 | H47: ='B. PoF Adj Factor Scoring'!W46 -> 5 | I47: ='B. PoF Adj Factor Scoring'!Y46 -> 3 | J47: ='B. PoF Adj Factor Scoring'!AA46 -> 2 | K47: ='B. PoF Adj Factor Scoring'!AC46 -> 3
A48: ='A. Population Info'!A48 -> T.F.000285/00.T04.SUP | B48: ='A. Population Info'!G48 -> T | C48: ='A. Population Info'!H48 -> 0 | D48: ='A. Population Info'!I48 -> 0 | E48: ='A. Population Info'!J48 -> 13.77399825 | F48: ='A. Population Info'!K48 -> 0 | G48: ='B. PoF Adj Factor Scoring'!U47 -> 1 | H48: ='B. PoF Adj Factor Scoring'!W47 -> 5 | I48: ='B. PoF Adj Factor Scoring'!Y47 -> 3 | J48: ='B. PoF Adj Factor Scoring'!AA47 -> 2 | K48: ='B. PoF Adj Factor Scoring'!AC47 -> 3
A49: ='A. Population Info'!A49 -> T.F.000285/00.T04.SUP | B49: ='A. Population Info'!G49 -> R | C49: ='A. Population Info'!H49 -> 0 | D49: ='A. Population Info'!I49 -> 0 | E49: ='A. Population Info'!J49 -> 14.43221093 | F49: ='A. Population Info'!K49 -> 0 | G49: ='B. PoF Adj Factor Scoring'!U48 -> 1 | H49: ='B. PoF Adj Factor Scoring'!W48 -> 5 | I49: ='B. PoF Adj Factor Scoring'!Y48 -> 3 | J49: ='B. PoF Adj Factor Scoring'!AA48 -> 2 | K49: ='B. PoF Adj Factor Scoring'!AC48 -> 3
A50: ='A. Population Info'!A50 -> T.F.000285/00.T04.SUP | B50: ='A. Population Info'!G50 -> T | C50: ='A. Population Info'!H50 -> 0 | D50: ='A. Population Info'!I50 -> 0 | E50: ='A. Population Info'!J50 -> 13.24095863 | F50: ='A. Population Info'!K50 -> 0 | G50: ='B. PoF Adj Factor Scoring'!U49 -> 1 | H50: ='B. PoF Adj Factor Scoring'!W49 -> 5 | I50: ='B. PoF Adj Factor Scoring'!Y49 -> 3 | J50: ='B. PoF Adj Factor Scoring'!AA49 -> 2 | K50: ='B. PoF Adj Factor Scoring'!AC49 -> 3
A51: ='A. Population Info'!A51 -> T.F.000286/00.T01.SUP | B51: ='A. Population Info'!G51 -> R | C51: ='A. Population Info'!H51 -> 0 | D51: ='A. Population Info'!I51 -> 0 | E51: ='A. Population Info'!J51 -> 12.7128338 | F51: ='A. Population Info'!K51 -> 0 | G51: ='B. PoF Adj Factor Scoring'!U50 -> 1 | H51: ='B. PoF Adj Factor Scoring'!W50 -> 1 | I51: ='B. PoF Adj Factor Scoring'!Y50 -> 3 | J51: ='B. PoF Adj Factor Scoring'!AA50 -> 2 | K51: ='B. PoF Adj Factor Scoring'!AC50 -> 3
A52: ='A. Population Info'!A52 -> T.F.000286/00.T01.SUP | B52: ='A. Population Info'!G52 -> P | C52: ='A. Population Info'!H52 -> 0 | D52: ='A. Population Info'!I52 -> 0 | E52: ='A. Population Info'!J52 -> 12.24533666 | F52: ='A. Population Info'!K52 -> 0 | G52: ='B. PoF Adj Factor Scoring'!U51 -> 1 | H52: ='B. PoF Adj Factor Scoring'!W51 -> 1 | I52: ='B. PoF Adj Factor Scoring'!Y51 -> 3 | J52: ='B. PoF Adj Factor Scoring'!AA51 -> 2 | K52: ='B. PoF Adj Factor Scoring'!AC51 -> 3
A53: ='A. Population Info'!A53 -> T.F.000286/00.T01.SUP | B53: ='A. Population Info'!G53 -> N | C53: ='A. Population Info'!H53 -> 0 | D53: ='A. Population Info'!I53 -> 0 | E53: ='A. Population Info'!J53 -> 12.11008748 | F53: ='A. Population Info'!K53 -> 0 | G53: ='B. PoF Adj Factor Scoring'!U52 -> 1 | H53: ='B. PoF Adj Factor Scoring'!W52 -> 1 | I53: ='B. PoF Adj Factor Scoring'!Y52 -> 3 | J53: ='B. PoF Adj Factor Scoring'!AA52 -> 2 | K53: ='B. PoF Adj Factor Scoring'!AC52 -> 3
A54: ='A. Population Info'!A54 -> T.F.000286/00.T01.SUP | B54: ='A. Population Info'!G54 -> R | C54: ='A. Population Info'!H54 -> 0 | D54: ='A. Population Info'!I54 -> 0 | E54: ='A. Population Info'!J54 -> 11.75427807 | F54: ='A. Population Info'!K54 -> 0 | G54: ='B. PoF Adj Factor Scoring'!U53 -> 1 | H54: ='B. PoF Adj Factor Scoring'!W53 -> 1 | I54: ='B. PoF Adj Factor Scoring'!Y53 -> 3 | J54: ='B. PoF Adj Factor Scoring'!AA53 -> 2 | K54: ='B. PoF Adj Factor Scoring'!AC53 -> 3
A55: ='A. Population Info'!A55 -> T.F.000286/00.T01.SUP | B55: ='A. Population Info'!G55 -> R | C55: ='A. Population Info'!H55 -> 0 | D55: ='A. Population Info'!I55 -> 0 | E55: ='A. Population Info'!J55 -> 11.41061684 | F55: ='A. Population Info'!K55 -> 0 | G55: ='B. PoF Adj Factor Scoring'!U54 -> 1 | H55: ='B. PoF Adj Factor Scoring'!W54 -> 1 | I55: ='B. PoF Adj Factor Scoring'!Y54 -> 3 | J55: ='B. PoF Adj Factor Scoring'!AA54 -> 2 | K55: ='B. PoF Adj Factor Scoring'!AC54 -> 3
A56: ='A. Population Info'!A56 -> T.F.000286/00.T01.SUP | B56: ='A. Population Info'!G56 -> R | C56: ='A. Population Info'!H56 -> 0 | D56: ='A. Population Info'!I56 -> 0 | E56: ='A. Population Info'!J56 -> 11.30782036 | F56: ='A. Population Info'!K56 -> 1 | G56: ='B. PoF Adj Factor Scoring'!U55 -> 1 | H56: ='B. PoF Adj Factor Scoring'!W55 -> 1 | I56: ='B. PoF Adj Factor Scoring'!Y55 -> 3 | J56: ='B. PoF Adj Factor Scoring'!AA55 -> 2 | K56: ='B. PoF Adj Factor Scoring'!AC55 -> 5
A57: ='A. Population Info'!A57 -> T.F.000286/00.T01.SUP | B57: ='A. Population Info'!G57 -> R | C57: ='A. Population Info'!H57 -> 0 | D57: ='A. Population Info'!I57 -> 0 | E57: ='A. Population Info'!J57 -> 11.22171356 | F57: ='A. Population Info'!K57 -> 0 | G57: ='B. PoF Adj Factor Scoring'!U56 -> 1 | H57: ='B. PoF Adj Factor Scoring'!W56 -> 1 | I57: ='B. PoF Adj Factor Scoring'!Y56 -> 3 | J57: ='B. PoF Adj Factor Scoring'!AA56 -> 2 | K57: ='B. PoF Adj Factor Scoring'!AC56 -> 3
A58: ='A. Population Info'!A58 -> T.F.000286/00.T01.SUP | B58: ='A. Population Info'!G58 -> N | C58: ='A. Population Info'!H58 -> 0 | D58: ='A. Population Info'!I58 -> 0 | E58: ='A. Population Info'!J58 -> 10.85833359 | F58: ='A. Population Info'!K58 -> 0 | G58: ='B. PoF Adj Factor Scoring'!U57 -> 1 | H58: ='B. PoF Adj Factor Scoring'!W57 -> 1 | I58: ='B. PoF Adj Factor Scoring'!Y57 -> 3 | J58: ='B. PoF Adj Factor Scoring'!AA57 -> 2 | K58: ='B. PoF Adj Factor Scoring'!AC57 -> 3
A59: ='A. Population Info'!A59 -> T.F.000286/00.T01.SUP | B59: ='A. Population Info'!G59 -> R | C59: ='A. Population Info'!H59 -> 0 | D59: ='A. Population Info'!I59 -> 0 | E59: ='A. Population Info'!J59 -> 10.97025911 | F59: ='A. Population Info'!K59 -> 0 | G59: ='B. PoF Adj Factor Scoring'!U58 -> 1 | H59: ='B. PoF Adj Factor Scoring'!W58 -> 1 | I59: ='B. PoF Adj Factor Scoring'!Y58 -> 3 | J59: ='B. PoF Adj Factor Scoring'!AA58 -> 2 | K59: ='B. PoF Adj Factor Scoring'!AC58 -> 3
A60: ='A. Population Info'!A60 -> T.F.000286/00.T01.SUP | B60: ='A. Population Info'!G60 -> N | C60: ='A. Population Info'!H60 -> 0 | D60: ='A. Population Info'!I60 -> 0 | E60: ='A. Population Info'!J60 -> 10.73195752 | F60: ='A. Population Info'!K60 -> 0 | G60: ='B. PoF Adj Factor Scoring'!U59 -> 1 | H60: ='B. PoF Adj Factor Scoring'!W59 -> 1 | I60: ='B. PoF Adj Factor Scoring'!Y59 -> 3 | J60: ='B. PoF Adj Factor Scoring'!AA59 -> 2 | K60: ='B. PoF Adj Factor Scoring'!AC59 -> 3
A61: ='A. Population Info'!A61 -> T.F.000286/00.T01.SUP | B61: ='A. Population Info'!G61 -> R | C61: ='A. Population Info'!H61 -> 0 | D61: ='A. Population Info'!I61 -> 0 | E61: ='A. Population Info'!J61 -> 10.52882432 | F61: ='A. Population Info'!K61 -> 1 | G61: ='B. PoF Adj Factor Scoring'!U60 -> 1 | H61: ='B. PoF Adj Factor Scoring'!W60 -> 1 | I61: ='B. PoF Adj Factor Scoring'!Y60 -> 3 | J61: ='B. PoF Adj Factor Scoring'!AA60 -> 2 | K61: ='B. PoF Adj Factor Scoring'!AC60 -> 5
A62: ='A. Population Info'!A62 -> T.F.000286/00.T01.SUP | B62: ='A. Population Info'!G62 -> N | C62: ='A. Population Info'!H62 -> 0 | D62: ='A. Population Info'!I62 -> 0 | E62: ='A. Population Info'!J62 -> 13.01846038 | F62: ='A. Population Info'!K62 -> 0 | G62: ='B. PoF Adj Factor Scoring'!U61 -> 1 | H62: ='B. PoF Adj Factor Scoring'!W61 -> 1 | I62: ='B. PoF Adj Factor Scoring'!Y61 -> 3 | J62: ='B. PoF Adj Factor Scoring'!AA61 -> 2 | K62: ='B. PoF Adj Factor Scoring'!AC61 -> 3
A63: ='A. Population Info'!A63 -> T.F.000286/00.T01.SUP | B63: ='A. Population Info'!G63 -> T | C63: ='A. Population Info'!H63 -> 0 | D63: ='A. Population Info'!I63 -> 0 | E63: ='A. Population Info'!J63 -> 13.12008341 | F63: ='A. Population Info'!K63 -> 0 | G63: ='B. PoF Adj Factor Scoring'!U62 -> 1 | H63: ='B. PoF Adj Factor Scoring'!W62 -> 1 | I63: ='B. PoF Adj Factor Scoring'!Y62 -> 3 | J63: ='B. PoF Adj Factor Scoring'!AA62 -> 2 | K63: ='B. PoF Adj Factor Scoring'!AC62 -> 3
A64: ='A. Population Info'!A64 -> T.F.000289/00.T03.SUP | B64: ='A. Population Info'!G64 -> R | C64: ='A. Population Info'!H64 -> 0 | D64: ='A. Population Info'!I64 -> 117 | E64: ='A. Population Info'!J64 -> 7.499103636 | F64: ='A. Population Info'!K64 -> 0 | G64: ='B. PoF Adj Factor Scoring'!U63 -> 1 | H64: ='B. PoF Adj Factor Scoring'!W63 -> 3 | I64: ='B. PoF Adj Factor Scoring'!Y63 -> 4 | J64: ='B. PoF Adj Factor Scoring'!AA63 -> 2 | K64: ='B. PoF Adj Factor Scoring'!AC63 -> 3
A65: ='A. Population Info'!A65 -> T.F.000747/00.T04.SUP | B65: ='A. Population Info'!G65 -> R | C65: ='A. Population Info'!H65 -> 0 | D65: ='A. Population Info'!I65 -> 0 | E65: ='A. Population Info'!J65 -> 10.1438843 | F65: ='A. Population Info'!K65 -> 0 | G65: ='B. PoF Adj Factor Scoring'!U64 -> 1 | H65: ='B. PoF Adj Factor Scoring'!W64 -> 1 | I65: ='B. PoF Adj Factor Scoring'!Y64 -> 3 | J65: ='B. PoF Adj Factor Scoring'!AA64 -> 2 | K65: ='B. PoF Adj Factor Scoring'!AC64 -> 3
A66: ='A. Population Info'!A66 -> T.F.000747/00.T04.SUP | B66: ='A. Population Info'!G66 -> P | C66: ='A. Population Info'!H66 -> 0 | D66: ='A. Population Info'!I66 -> 0 | E66: ='A. Population Info'!J66 -> 9.901556087 | F66: ='A. Population Info'!K66 -> 0 | G66: ='B. PoF Adj Factor Scoring'!U65 -> 1 | H66: ='B. PoF Adj Factor Scoring'!W65 -> 1 | I66: ='B. PoF Adj Factor Scoring'!Y65 -> 3 | J66: ='B. PoF Adj Factor Scoring'!AA65 -> 2 | K66: ='B. PoF Adj Factor Scoring'!AC65 -> 3
A67: ='A. Population Info'!A67 -> T.F.000747/00.T04.SUP | B67: ='A. Population Info'!G67 -> N | C67: ='A. Population Info'!H67 -> 0 | D67: ='A. Population Info'!I67 -> 0 | E67: ='A. Population Info'!J67 -> 9.63207967 | F67: ='A. Population Info'!K67 -> 0 | G67: ='B. PoF Adj Factor Scoring'!U66 -> 1 | H67: ='B. PoF Adj Factor Scoring'!W66 -> 1 | I67: ='B. PoF Adj Factor Scoring'!Y66 -> 3 | J67: ='B. PoF Adj Factor Scoring'!AA66 -> 2 | K67: ='B. PoF Adj Factor Scoring'!AC66 -> 3
A68: ='A. Population Info'!A68 -> T.F.000747/00.T04.SUP | B68: ='A. Population Info'!G68 -> N | C68: ='A. Population Info'!H68 -> 0 | D68: ='A. Population Info'!I68 -> 0 | E68: ='A. Population Info'!J68 -> 9.481724586 | F68: ='A. Population Info'!K68 -> 1 | G68: ='B. PoF Adj Factor Scoring'!U67 -> 1 | H68: ='B. PoF Adj Factor Scoring'!W67 -> 1 | I68: ='B. PoF Adj Factor Scoring'!Y67 -> 3 | J68: ='B. PoF Adj Factor Scoring'!AA67 -> 2 | K68: ='B. PoF Adj Factor Scoring'!AC67 -> 5
A69: ='A. Population Info'!A69 -> T.F.000747/00.T04.SUP | B69: ='A. Population Info'!G69 -> P | C69: ='A. Population Info'!H69 -> 0 | D69: ='A. Population Info'!I69 -> 0 | E69: ='A. Population Info'!J69 -> 9.2310991 | F69: ='A. Population Info'!K69 -> 0 | G69: ='B. PoF Adj Factor Scoring'!U68 -> 1 | H69: ='B. PoF Adj Factor Scoring'!W68 -> 1 | I69: ='B. PoF Adj Factor Scoring'!Y68 -> 3 | J69: ='B. PoF Adj Factor Scoring'!AA68 -> 2 | K69: ='B. PoF Adj Factor Scoring'!AC68 -> 3
A70: ='A. Population Info'!A70 -> T.F.000747/00.T04.SUP | B70: ='A. Population Info'!G70 -> N | C70: ='A. Population Info'!H70 -> 0 | D70: ='A. Population Info'!I70 -> 0 | E70: ='A. Population Info'!J70 -> 9.014919197 | F70: ='A. Population Info'!K70 -> 0 | G70: ='B. PoF Adj Factor Scoring'!U69 -> 1 | H70: ='B. PoF Adj Factor Scoring'!W69 -> 1 | I70: ='B. PoF Adj Factor Scoring'!Y69 -> 3 | J70: ='B. PoF Adj Factor Scoring'!AA69 -> 2 | K70: ='B. PoF Adj Factor Scoring'!AC69 -> 3
A71: ='A. Population Info'!A71 -> T.F.000747/00.T04.SUP | B71: ='A. Population Info'!G71 -> R | C71: ='A. Population Info'!H71 -> 0 | D71: ='A. Population Info'!I71 -> 0 | E71: ='A. Population Info'!J71 -> 8.847505123 | F71: ='A. Population Info'!K71 -> 0 | G71: ='B. PoF Adj Factor Scoring'!U70 -> 1 | H71: ='B. PoF Adj Factor Scoring'!W70 -> 1 | I71: ='B. PoF Adj Factor Scoring'!Y70 -> 3 | J71: ='B. PoF Adj Factor Scoring'!AA70 -> 2 | K71: ='B. PoF Adj Factor Scoring'!AC70 -> 3
A72: ='A. Population Info'!A72 -> T.F.000747/00.T04.SUP | B72: ='A. Population Info'!G72 -> P | C72: ='A. Population Info'!H72 -> 0 | D72: ='A. Population Info'!I72 -> 0 | E72: ='A. Population Info'!J72 -> 8.481745878 | F72: ='A. Population Info'!K72 -> 1 | G72: ='B. PoF Adj Factor Scoring'!U71 -> 1 | H72: ='B. PoF Adj Factor Scoring'!W71 -> 1 | I72: ='B. PoF Adj Factor Scoring'!Y71 -> 3 | J72: ='B. PoF Adj Factor Scoring'!AA71 -> 2 | K72: ='B. PoF Adj Factor Scoring'!AC71 -> 5
A73: ='A. Population Info'!A73 -> T.F.000747/00.T04.SUP | B73: ='A. Population Info'!G73 -> N | C73: ='A. Population Info'!H73 -> 0 | D73: ='A. Population Info'!I73 -> 0 | E73: ='A. Population Info'!J73 -> 8.250864014 | F73: ='A. Population Info'!K73 -> 0 | G73: ='B. PoF Adj Factor Scoring'!U72 -> 1 | H73: ='B. PoF Adj Factor Scoring'!W72 -> 1 | I73: ='B. PoF Adj Factor Scoring'!Y72 -> 3 | J73: ='B. PoF Adj Factor Scoring'!AA72 -> 2 | K73: ='B. PoF Adj Factor Scoring'!AC72 -> 3
A74: ='A. Population Info'!A74 -> T.F.000747/00.T04.SUP | B74: ='A. Population Info'!G74 -> P | C74: ='A. Population Info'!H74 -> 0 | D74: ='A. Population Info'!I74 -> 0 | E74: ='A. Population Info'!J74 -> 8.102047335 | F74: ='A. Population Info'!K74 -> 0 | G74: ='B. PoF Adj Factor Scoring'!U73 -> 1 | H74: ='B. PoF Adj Factor Scoring'!W73 -> 1 | I74: ='B. PoF Adj Factor Scoring'!Y73 -> 3 | J74: ='B. PoF Adj Factor Scoring'!AA73 -> 2 | K74: ='B. PoF Adj Factor Scoring'!AC73 -> 3
A75: ='A. Population Info'!A75 -> T.F.000747/00.T04.SUP | B75: ='A. Population Info'!G75 -> P | C75: ='A. Population Info'!H75 -> 0 | D75: ='A. Population Info'!I75 -> 0 | E75: ='A. Population Info'!J75 -> 7.745987658 | F75: ='A. Population Info'!K75 -> 0 | G75: ='B. PoF Adj Factor Scoring'!U74 -> 1 | H75: ='B. PoF Adj Factor Scoring'!W74 -> 1 | I75: ='B. PoF Adj Factor Scoring'!Y74 -> 3 | J75: ='B. PoF Adj Factor Scoring'!AA74 -> 2 | K75: ='B. PoF Adj Factor Scoring'!AC74 -> 3
A76: ='A. Population Info'!A76 -> T.F.000747/00.T04.SUP | B76: ='A. Population Info'!G76 -> T | C76: ='A. Population Info'!H76 -> 0 | D76: ='A. Population Info'!I76 -> 0 | E76: ='A. Population Info'!J76 -> 7.593329421 | F76: ='A. Population Info'!K76 -> 0 | G76: ='B. PoF Adj Factor Scoring'!U75 -> 1 | H76: ='B. PoF Adj Factor Scoring'!W75 -> 1 | I76: ='B. PoF Adj Factor Scoring'!Y75 -> 3 | J76: ='B. PoF Adj Factor Scoring'!AA75 -> 2 | K76: ='B. PoF Adj Factor Scoring'!AC75 -> 3
A77: ='A. Population Info'!A77 -> T.F.000747/00.T04.SUP | B77: ='A. Population Info'!G77 -> R | C77: ='A. Population Info'!H77 -> 0 | D77: ='A. Population Info'!I77 -> 0 | E77: ='A. Population Info'!J77 -> 7.535961662 | F77: ='A. Population Info'!K77 -> 0 | G77: ='B. PoF Adj Factor Scoring'!U76 -> 1 | H77: ='B. PoF Adj Factor Scoring'!W76 -> 1 | I77: ='B. PoF Adj Factor Scoring'!Y76 -> 3 | J77: ='B. PoF Adj Factor Scoring'!AA76 -> 2 | K77: ='B. PoF Adj Factor Scoring'!AC76 -> 3
A78: ='A. Population Info'!A78 -> T.F.000747/00.T04.SUP | B78: ='A. Population Info'!G78 -> R | C78: ='A. Population Info'!H78 -> 0 | D78: ='A. Population Info'!I78 -> 0 | E78: ='A. Population Info'!J78 -> 7.390527201 | F78: ='A. Population Info'!K78 -> 0 | G78: ='B. PoF Adj Factor Scoring'!U77 -> 1 | H78: ='B. PoF Adj Factor Scoring'!W77 -> 1 | I78: ='B. PoF Adj Factor Scoring'!Y77 -> 3 | J78: ='B. PoF Adj Factor Scoring'!AA77 -> 2 | K78: ='B. PoF Adj Factor Scoring'!AC77 -> 3
A79: ='A. Population Info'!A79 -> T.F.000747/00.T04.SUP | B79: ='A. Population Info'!G79 -> N | C79: ='A. Population Info'!H79 -> 0 | D79: ='A. Population Info'!I79 -> 0 | E79: ='A. Population Info'!J79 -> 7.287335864 | F79: ='A. Population Info'!K79 -> 0 | G79: ='B. PoF Adj Factor Scoring'!U78 -> 1 | H79: ='B. PoF Adj Factor Scoring'!W78 -> 1 | I79: ='B. PoF Adj Factor Scoring'!Y78 -> 3 | J79: ='B. PoF Adj Factor Scoring'!AA78 -> 2 | K79: ='B. PoF Adj Factor Scoring'!AC78 -> 3
A80: ='A. Population Info'!A80 -> T.F.000747/00.T04.SUP | B80: ='A. Population Info'!G80 -> T | C80: ='A. Population Info'!H80 -> 0 | D80: ='A. Population Info'!I80 -> 0 | E80: ='A. Population Info'!J80 -> 7.261295831 | F80: ='A. Population Info'!K80 -> 0 | G80: ='B. PoF Adj Factor Scoring'!U79 -> 1 | H80: ='B. PoF Adj Factor Scoring'!W79 -> 1 | I80: ='B. PoF Adj Factor Scoring'!Y79 -> 3 | J80: ='B. PoF Adj Factor Scoring'!AA79 -> 2 | K80: ='B. PoF Adj Factor Scoring'!AC79 -> 3
A81: ='A. Population Info'!A81 -> T.F.000747/00.T04.SUP | B81: ='A. Population Info'!G81 -> RS | C81: ='A. Population Info'!H81 -> 0 | D81: ='A. Population Info'!I81 -> 0 | E81: ='A. Population Info'!J81 -> 7.081413687 | F81: ='A. Population Info'!K81 -> 0 | G81: ='B. PoF Adj Factor Scoring'!U80 -> 1 | H81: ='B. PoF Adj Factor Scoring'!W80 -> 1 | I81: ='B. PoF Adj Factor Scoring'!Y80 -> 3 | J81: ='B. PoF Adj Factor Scoring'!AA80 -> 2 | K81: ='B. PoF Adj Factor Scoring'!AC80 -> 3
A82: ='A. Population Info'!A82 -> T.F.000747/00.T04.SUP | B82: ='A. Population Info'!G82 -> R | C82: ='A. Population Info'!H82 -> 0 | D82: ='A. Population Info'!I82 -> 0 | E82: ='A. Population Info'!J82 -> 7.241274637 | F82: ='A. Population Info'!K82 -> 0 | G82: ='B. PoF Adj Factor Scoring'!U81 -> 1 | H82: ='B. PoF Adj Factor Scoring'!W81 -> 1 | I82: ='B. PoF Adj Factor Scoring'!Y81 -> 3 | J82: ='B. PoF Adj Factor Scoring'!AA81 -> 2 | K82: ='B. PoF Adj Factor Scoring'!AC81 -> 3
A83: ='A. Population Info'!A83 -> T.F.000747/00.T04.SUP | B83: ='A. Population Info'!G83 -> P | C83: ='A. Population Info'!H83 -> 0 | D83: ='A. Population Info'!I83 -> 0 | E83: ='A. Population Info'!J83 -> 7.188834959 | F83: ='A. Population Info'!K83 -> 0 | G83: ='B. PoF Adj Factor Scoring'!U82 -> 1 | H83: ='B. PoF Adj Factor Scoring'!W82 -> 1 | I83: ='B. PoF Adj Factor Scoring'!Y82 -> 3 | J83: ='B. PoF Adj Factor Scoring'!AA82 -> 2 | K83: ='B. PoF Adj Factor Scoring'!AC82 -> 3
A84: ='A. Population Info'!A84 -> T.F.000747/00.T04.SUP | B84: ='A. Population Info'!G84 -> P | C84: ='A. Population Info'!H84 -> 0 | D84: ='A. Population Info'!I84 -> 107 | E84: ='A. Population Info'!J84 -> 7.016621349 | F84: ='A. Population Info'!K84 -> 0 | G84: ='B. PoF Adj Factor Scoring'!U83 -> 1 | H84: ='B. PoF Adj Factor Scoring'!W83 -> 1 | I84: ='B. PoF Adj Factor Scoring'!Y83 -> 4 | J84: ='B. PoF Adj Factor Scoring'!AA83 -> 2 | K84: ='B. PoF Adj Factor Scoring'!AC83 -> 3
A85: ='A. Population Info'!A85 -> T.F.000747/00.T04.SUP | B85: ='A. Population Info'!G85 -> P | C85: ='A. Population Info'!H85 -> 0 | D85: ='A. Population Info'!I85 -> 0 | E85: ='A. Population Info'!J85 -> 10.24628359 | F85: ='A. Population Info'!K85 -> 1 | G85: ='B. PoF Adj Factor Scoring'!U84 -> 1 | H85: ='B. PoF Adj Factor Scoring'!W84 -> 1 | I85: ='B. PoF Adj Factor Scoring'!Y84 -> 3 | J85: ='B. PoF Adj Factor Scoring'!AA84 -> 2 | K85: ='B. PoF Adj Factor Scoring'!AC84 -> 5
A86: ='A. Population Info'!A86 -> T.F.000747/00.T06.SUP | B86: ='A. Population Info'!G86 -> RS | C86: ='A. Population Info'!H86 -> 0 | D86: ='A. Population Info'!I86 -> 0 | E86: ='A. Population Info'!J86 -> 6.986844273 | F86: ='A. Population Info'!K86 -> 0 | G86: ='B. PoF Adj Factor Scoring'!U85 -> 1 | H86: ='B. PoF Adj Factor Scoring'!W85 -> 1 | I86: ='B. PoF Adj Factor Scoring'!Y85 -> 3 | J86: ='B. PoF Adj Factor Scoring'!AA85 -> 2 | K86: ='B. PoF Adj Factor Scoring'!AC85 -> 3
A87: ='A. Population Info'!A87 -> T.F.00090F/00.T01.SUP | B87: ='A. Population Info'!G87 -> DTO | C87: ='A. Population Info'!H87 -> 0 | D87: ='A. Population Info'!I87 -> 104 | E87: ='A. Population Info'!J87 -> 18.45663079 | F87: ='A. Population Info'!K87 -> 1 | G87: ='B. PoF Adj Factor Scoring'!U86 -> 1 | H87: ='B. PoF Adj Factor Scoring'!W86 -> 5 | I87: ='B. PoF Adj Factor Scoring'!Y86 -> 4 | J87: ='B. PoF Adj Factor Scoring'!AA86 -> 2 | K87: ='B. PoF Adj Factor Scoring'!AC86 -> 5
A88: ='A. Population Info'!A88 -> T.F.00090F/00.T01.SUP | B88: ='A. Population Info'!G88 -> DTO | C88: ='A. Population Info'!H88 -> 0 | D88: ='A. Population Info'!I88 -> 0 | E88: ='A. Population Info'!J88 -> 18.76675666 | F88: ='A. Population Info'!K88 -> 0 | G88: ='B. PoF Adj Factor Scoring'!U87 -> 1 | H88: ='B. PoF Adj Factor Scoring'!W87 -> 5 | I88: ='B. PoF Adj Factor Scoring'!Y87 -> 3 | J88: ='B. PoF Adj Factor Scoring'!AA87 -> 2 | K88: ='B. PoF Adj Factor Scoring'!AC87 -> 3
A89: ='A. Population Info'!A89 -> T.F.00090F/00.T01.SUP | B89: ='A. Population Info'!G89 -> DSM | C89: ='A. Population Info'!H89 -> 0 | D89: ='A. Population Info'!I89 -> 0 | E89: ='A. Population Info'!J89 -> 18.75632683 | F89: ='A. Population Info'!K89 -> 1 | G89: ='B. PoF Adj Factor Scoring'!U88 -> 1 | H89: ='B. PoF Adj Factor Scoring'!W88 -> 5 | I89: ='B. PoF Adj Factor Scoring'!Y88 -> 3 | J89: ='B. PoF Adj Factor Scoring'!AA88 -> 2 | K89: ='B. PoF Adj Factor Scoring'!AC88 -> 5
A90: ='A. Population Info'!A90 -> T.F.00090F/00.T01.SUP | B90: ='A. Population Info'!G90 -> DTO | C90: ='A. Population Info'!H90 -> 0 | D90: ='A. Population Info'!I90 -> 0 | E90: ='A. Population Info'!J90 -> 18.75523197 | F90: ='A. Population Info'!K90 -> 0 | G90: ='B. PoF Adj Factor Scoring'!U89 -> 1 | H90: ='B. PoF Adj Factor Scoring'!W89 -> 5 | I90: ='B. PoF Adj Factor Scoring'!Y89 -> 3 | J90: ='B. PoF Adj Factor Scoring'!AA89 -> 2 | K90: ='B. PoF Adj Factor Scoring'!AC89 -> 3
A91: ='A. Population Info'!A91 -> T.F.00090F/00.T01.SUP | B91: ='A. Population Info'!G91 -> DTZ | C91: ='A. Population Info'!H91 -> 0 | D91: ='A. Population Info'!I91 -> 0 | E91: ='A. Population Info'!J91 -> 19.28190492 | F91: ='A. Population Info'!K91 -> 0 | G91: ='B. PoF Adj Factor Scoring'!U90 -> 1 | H91: ='B. PoF Adj Factor Scoring'!W90 -> 5 | I91: ='B. PoF Adj Factor Scoring'!Y90 -> 3 | J91: ='B. PoF Adj Factor Scoring'!AA90 -> 2 | K91: ='B. PoF Adj Factor Scoring'!AC90 -> 3
A92: ='A. Population Info'!A92 -> T.F.00090F/00.T01.SUP | B92: ='A. Population Info'!G92 -> DTO | C92: ='A. Population Info'!H92 -> 0 | D92: ='A. Population Info'!I92 -> 0 | E92: ='A. Population Info'!J92 -> 18.77787444 | F92: ='A. Population Info'!K92 -> 0 | G92: ='B. PoF Adj Factor Scoring'!U91 -> 1 | H92: ='B. PoF Adj Factor Scoring'!W91 -> 5 | I92: ='B. PoF Adj Factor Scoring'!Y91 -> 3 | J92: ='B. PoF Adj Factor Scoring'!AA91 -> 2 | K92: ='B. PoF Adj Factor Scoring'!AC91 -> 3
A93: ='A. Population Info'!A93 -> T.F.00090F/00.T01.SUP | B93: ='A. Population Info'!G93 -> DTO | C93: ='A. Population Info'!H93 -> 0 | D93: ='A. Population Info'!I93 -> 0 | E93: ='A. Population Info'!J93 -> 18.73385085 | F93: ='A. Population Info'!K93 -> 0 | G93: ='B. PoF Adj Factor Scoring'!U92 -> 1 | H93: ='B. PoF Adj Factor Scoring'!W92 -> 5 | I93: ='B. PoF Adj Factor Scoring'!Y92 -> 3 | J93: ='B. PoF Adj Factor Scoring'!AA92 -> 2 | K93: ='B. PoF Adj Factor Scoring'!AC92 -> 3
A94: ='A. Population Info'!A94 -> T.F.00090F/00.T01.SUP | B94: ='A. Population Info'!G94 -> DTO | C94: ='A. Population Info'!H94 -> 0 | D94: ='A. Population Info'!I94 -> 0 | E94: ='A. Population Info'!J94 -> 18.41814919 | F94: ='A. Population Info'!K94 -> 0 | G94: ='B. PoF Adj Factor Scoring'!U93 -> 1 | H94: ='B. PoF Adj Factor Scoring'!W93 -> 5 | I94: ='B. PoF Adj Factor Scoring'!Y93 -> 3 | J94: ='B. PoF Adj Factor Scoring'!AA93 -> 2 | K94: ='B. PoF Adj Factor Scoring'!AC93 -> 3
A95: ='A. Population Info'!A95 -> T.F.00090F/00.T01.SUP | B95: ='A. Population Info'!G95 -> DTO | C95: ='A. Population Info'!H95 -> 0 | D95: ='A. Population Info'!I95 -> 0 | E95: ='A. Population Info'!J95 -> 19.09480122 | F95: ='A. Population Info'!K95 -> 0 | G95: ='B. PoF Adj Factor Scoring'!U94 -> 1 | H95: ='B. PoF Adj Factor Scoring'!W94 -> 5 | I95: ='B. PoF Adj Factor Scoring'!Y94 -> 3 | J95: ='B. PoF Adj Factor Scoring'!AA94 -> 2 | K95: ='B. PoF Adj Factor Scoring'!AC94 -> 3
A96: ='A. Population Info'!A96 -> T.F.00090J/00.T01.SUP | B96: ='A. Population Info'!G96 -> DTO | C96: ='A. Population Info'!H96 -> 0 | D96: ='A. Population Info'!I96 -> 0 | E96: ='A. Population Info'!J96 -> 18.7443445 | F96: ='A. Population Info'!K96 -> 0 | G96: ='B. PoF Adj Factor Scoring'!U95 -> 1 | H96: ='B. PoF Adj Factor Scoring'!W95 -> 5 | I96: ='B. PoF Adj Factor Scoring'!Y95 -> 3 | J96: ='B. PoF Adj Factor Scoring'!AA95 -> 2 | K96: ='B. PoF Adj Factor Scoring'!AC95 -> 3
A97: ='A. Population Info'!A97 -> T.F.00090J/00.T01.SUP | B97: ='A. Population Info'!G97 -> DSM | C97: ='A. Population Info'!H97 -> 0 | D97: ='A. Population Info'!I97 -> 0 | E97: ='A. Population Info'!J97 -> 18.75891318 | F97: ='A. Population Info'!K97 -> 1 | G97: ='B. PoF Adj Factor Scoring'!U96 -> 1 | H97: ='B. PoF Adj Factor Scoring'!W96 -> 5 | I97: ='B. PoF Adj Factor Scoring'!Y96 -> 3 | J97: ='B. PoF Adj Factor Scoring'!AA96 -> 2 | K97: ='B. PoF Adj Factor Scoring'!AC96 -> 5
A98: ='A. Population Info'!A98 -> T.F.00090J/00.T01.SUP | B98: ='A. Population Info'!G98 -> DTO | C98: ='A. Population Info'!H98 -> 0 | D98: ='A. Population Info'!I98 -> 0 | E98: ='A. Population Info'!J98 -> 18.75440461 | F98: ='A. Population Info'!K98 -> 1 | G98: ='B. PoF Adj Factor Scoring'!U97 -> 1 | H98: ='B. PoF Adj Factor Scoring'!W97 -> 5 | I98: ='B. PoF Adj Factor Scoring'!Y97 -> 3 | J98: ='B. PoF Adj Factor Scoring'!AA97 -> 2 | K98: ='B. PoF Adj Factor Scoring'!AC97 -> 5
A99: ='A. Population Info'!A99 -> T.F.00090J/00.T01.SUP | B99: ='A. Population Info'!G99 -> DTO | C99: ='A. Population Info'!H99 -> 0 | D99: ='A. Population Info'!I99 -> 0 | E99: ='A. Population Info'!J99 -> 19.00869013 | F99: ='A. Population Info'!K99 -> 0 | G99: ='B. PoF Adj Factor Scoring'!U98 -> 1 | H99: ='B. PoF Adj Factor Scoring'!W98 -> 5 | I99: ='B. PoF Adj Factor Scoring'!Y98 -> 3 | J99: ='B. PoF Adj Factor Scoring'!AA98 -> 2 | K99: ='B. PoF Adj Factor Scoring'!AC98 -> 3
A100: ='A. Population Info'!A100 -> T.F.00090J/00.T01.SUP | B100: ='A. Population Info'!G100 -> DTZ | C100: ='A. Population Info'!H100 -> 0 | D100: ='A. Population Info'!I100 -> 0 | E100: ='A. Population Info'!J100 -> 19.25255889 | F100: ='A. Population Info'!K100 -> 0 | G100: ='B. PoF Adj Factor Scoring'!U99 -> 1 | H100: ='B. PoF Adj Factor Scoring'!W99 -> 5 | I100: ='B. PoF Adj Factor Scoring'!Y99 -> 3 | J100: ='B. PoF Adj Factor Scoring'!AA99 -> 2 | K100: ='B. PoF Adj Factor Scoring'!AC99 -> 3
A101: ='A. Population Info'!A101 -> T.F.00090J/00.T01.SUP | B101: ='A. Population Info'!G101 -> DSM | C101: ='A. Population Info'!H101 -> 0 | D101: ='A. Population Info'!I101 -> 0 | E101: ='A. Population Info'!J101 -> 18.75291678 | F101: ='A. Population Info'!K101 -> 0 | G101: ='B. PoF Adj Factor Scoring'!U100 -> 1 | H101: ='B. PoF Adj Factor Scoring'!W100 -> 5 | I101: ='B. PoF Adj Factor Scoring'!Y100 -> 3 | J101: ='B. PoF Adj Factor Scoring'!AA100 -> 2 | K101: ='B. PoF Adj Factor Scoring'!AC100 -> 3
A102: ='A. Population Info'!A102 -> T.F.00090J/00.T01.SUP | B102: ='A. Population Info'!G102 -> DTO | C102: ='A. Population Info'!H102 -> 0 | D102: ='A. Population Info'!I102 -> 0 | E102: ='A. Population Info'!J102 -> 18.70581688 | F102: ='A. Population Info'!K102 -> 0 | G102: ='B. PoF Adj Factor Scoring'!U101 -> 1 | H102: ='B. PoF Adj Factor Scoring'!W101 -> 5 | I102: ='B. PoF Adj Factor Scoring'!Y101 -> 3 | J102: ='B. PoF Adj Factor Scoring'!AA101 -> 2 | K102: ='B. PoF Adj Factor Scoring'!AC101 -> 3
A103: ='A. Population Info'!A103 -> T.F.00090J/00.T01.SUP | B103: ='A. Population Info'!G103 -> DTO | C103: ='A. Population Info'!H103 -> 0 | D103: ='A. Population Info'!I103 -> 0 | E103: ='A. Population Info'!J103 -> 18.88218386 | F103: ='A. Population Info'!K103 -> 1 | G103: ='B. PoF Adj Factor Scoring'!U102 -> 1 | H103: ='B. PoF Adj Factor Scoring'!W102 -> 5 | I103: ='B. PoF Adj Factor Scoring'!Y102 -> 3 | J103: ='B. PoF Adj Factor Scoring'!AA102 -> 2 | K103: ='B. PoF Adj Factor Scoring'!AC102 -> 5
A104: ='A. Population Info'!A104 -> T.F.00090J/00.T01.SUP | B104: ='A. Population Info'!G104 -> DTO | C104: ='A. Population Info'!H104 -> 0 | D104: ='A. Population Info'!I104 -> 0 | E104: ='A. Population Info'!J104 -> 19.03627014 | F104: ='A. Population Info'!K104 -> 0 | G104: ='B. PoF Adj Factor Scoring'!U103 -> 1 | H104: ='B. PoF Adj Factor Scoring'!W103 -> 5 | I104: ='B. PoF Adj Factor Scoring'!Y103 -> 3 | J104: ='B. PoF Adj Factor Scoring'!AA103 -> 2 | K104: ='B. PoF Adj Factor Scoring'!AC103 -> 3
A105: ='A. Population Info'!A105 -> T.F.000910/00.T01.SUP | B105: ='A. Population Info'!G105 -> K | C105: ='A. Population Info'!H105 -> 0 | D105: ='A. Population Info'!I105 -> 0 | E105: ='A. Population Info'!J105 -> 18.343903 | F105: ='A. Population Info'!K105 -> 1 | G105: ='B. PoF Adj Factor Scoring'!U104 -> 1 | H105: ='B. PoF Adj Factor Scoring'!W104 -> 5 | I105: ='B. PoF Adj Factor Scoring'!Y104 -> 3 | J105: ='B. PoF Adj Factor Scoring'!AA104 -> 2 | K105: ='B. PoF Adj Factor Scoring'!AC104 -> 5
A106: ='A. Population Info'!A106 -> T.F.000910/00.T01.SUP | B106: ='A. Population Info'!G106 -> B | C106: ='A. Population Info'!H106 -> 0 | D106: ='A. Population Info'!I106 -> 0 | E106: ='A. Population Info'!J106 -> 18.62541586 | F106: ='A. Population Info'!K106 -> 0 | G106: ='B. PoF Adj Factor Scoring'!U105 -> 1 | H106: ='B. PoF Adj Factor Scoring'!W105 -> 5 | I106: ='B. PoF Adj Factor Scoring'!Y105 -> 3 | J106: ='B. PoF Adj Factor Scoring'!AA105 -> 2 | K106: ='B. PoF Adj Factor Scoring'!AC105 -> 3
A107: ='A. Population Info'!A107 -> T.F.000910/00.T01.SUP | B107: ='A. Population Info'!G107 -> A | C107: ='A. Population Info'!H107 -> 0 | D107: ='A. Population Info'!I107 -> 0 | E107: ='A. Population Info'!J107 -> 18.75772547 | F107: ='A. Population Info'!K107 -> 0 | G107: ='B. PoF Adj Factor Scoring'!U106 -> 1 | H107: ='B. PoF Adj Factor Scoring'!W106 -> 5 | I107: ='B. PoF Adj Factor Scoring'!Y106 -> 3 | J107: ='B. PoF Adj Factor Scoring'!AA106 -> 2 | K107: ='B. PoF Adj Factor Scoring'!AC106 -> 3
A108: ='A. Population Info'!A108 -> T.F.000910/00.T01.SUP | B108: ='A. Population Info'!G108 -> B | C108: ='A. Population Info'!H108 -> 0 | D108: ='A. Population Info'!I108 -> 0 | E108: ='A. Population Info'!J108 -> 18.76033004 | F108: ='A. Population Info'!K108 -> 0 | G108: ='B. PoF Adj Factor Scoring'!U107 -> 1 | H108: ='B. PoF Adj Factor Scoring'!W107 -> 5 | I108: ='B. PoF Adj Factor Scoring'!Y107 -> 3 | J108: ='B. PoF Adj Factor Scoring'!AA107 -> 2 | K108: ='B. PoF Adj Factor Scoring'!AC107 -> 3
A109: ='A. Population Info'!A109 -> T.F.000910/00.T01.SUP | B109: ='A. Population Info'!G109 -> B | C109: ='A. Population Info'!H109 -> 0 | D109: ='A. Population Info'!I109 -> 0 | E109: ='A. Population Info'!J109 -> 18.7353955 | F109: ='A. Population Info'!K109 -> 0 | G109: ='B. PoF Adj Factor Scoring'!U108 -> 1 | H109: ='B. PoF Adj Factor Scoring'!W108 -> 5 | I109: ='B. PoF Adj Factor Scoring'!Y108 -> 3 | J109: ='B. PoF Adj Factor Scoring'!AA108 -> 2 | K109: ='B. PoF Adj Factor Scoring'!AC108 -> 3
A110: ='A. Population Info'!A110 -> T.F.000910/00.T01.SUP | B110: ='A. Population Info'!G110 -> B | C110: ='A. Population Info'!H110 -> 0 | D110: ='A. Population Info'!I110 -> 0 | E110: ='A. Population Info'!J110 -> 18.55969005 | F110: ='A. Population Info'!K110 -> 0 | G110: ='B. PoF Adj Factor Scoring'!U109 -> 1 | H110: ='B. PoF Adj Factor Scoring'!W109 -> 5 | I110: ='B. PoF Adj Factor Scoring'!Y109 -> 3 | J110: ='B. PoF Adj Factor Scoring'!AA109 -> 2 | K110: ='B. PoF Adj Factor Scoring'!AC109 -> 3
A111: ='A. Population Info'!A111 -> T.F.000910/00.T01.SUP | B111: ='A. Population Info'!G111 -> B | C111: ='A. Population Info'!H111 -> 0 | D111: ='A. Population Info'!I111 -> 0 | E111: ='A. Population Info'!J111 -> 18.39467845 | F111: ='A. Population Info'!K111 -> 1 | G111: ='B. PoF Adj Factor Scoring'!U110 -> 1 | H111: ='B. PoF Adj Factor Scoring'!W110 -> 5 | I111: ='B. PoF Adj Factor Scoring'!Y110 -> 3 | J111: ='B. PoF Adj Factor Scoring'!AA110 -> 2 | K111: ='B. PoF Adj Factor Scoring'!AC110 -> 5
A112: ='A. Population Info'!A112 -> T.F.000910/00.T01.SUP | B112: ='A. Population Info'!G112 -> B | C112: ='A. Population Info'!H112 -> 0 | D112: ='A. Population Info'!I112 -> 0 | E112: ='A. Population Info'!J112 -> 17.96526525 | F112: ='A. Population Info'!K112 -> 0 | G112: ='B. PoF Adj Factor Scoring'!U111 -> 1 | H112: ='B. PoF Adj Factor Scoring'!W111 -> 5 | I112: ='B. PoF Adj Factor Scoring'!Y111 -> 3 | J112: ='B. PoF Adj Factor Scoring'!AA111 -> 2 | K112: ='B. PoF Adj Factor Scoring'!AC111 -> 3
A113: ='A. Population Info'!A113 -> T.F.000910/00.T01.SUP | B113: ='A. Population Info'!G113 -> A | C113: ='A. Population Info'!H113 -> 0 | D113: ='A. Population Info'!I113 -> 0 | E113: ='A. Population Info'!J113 -> 17.912607 | F113: ='A. Population Info'!K113 -> 0 | G113: ='B. PoF Adj Factor Scoring'!U112 -> 1 | H113: ='B. PoF Adj Factor Scoring'!W112 -> 5 | I113: ='B. PoF Adj Factor Scoring'!Y112 -> 3 | J113: ='B. PoF Adj Factor Scoring'!AA112 -> 2 | K113: ='B. PoF Adj Factor Scoring'!AC112 -> 3
A114: ='A. Population Info'!A114 -> T.F.000910/00.T01.SUP | B114: ='A. Population Info'!G114 -> B | C114: ='A. Population Info'!H114 -> 0 | D114: ='A. Population Info'!I114 -> 101 | E114: ='A. Population Info'!J114 -> 17.874554 | F114: ='A. Population Info'!K114 -> 0 | G114: ='B. PoF Adj Factor Scoring'!U113 -> 1 | H114: ='B. PoF Adj Factor Scoring'!W113 -> 5 | I114: ='B. PoF Adj Factor Scoring'!Y113 -> 4 | J114: ='B. PoF Adj Factor Scoring'!AA113 -> 2 | K114: ='B. PoF Adj Factor Scoring'!AC113 -> 3
A115: ='A. Population Info'!A115 -> T.F.000910/00.T01.SUP | B115: ='A. Population Info'!G115 -> B | C115: ='A. Population Info'!H115 -> 0 | D115: ='A. Population Info'!I115 -> 117 | E115: ='A. Population Info'!J115 -> 17.84832824 | F115: ='A. Population Info'!K115 -> 0 | G115: ='B. PoF Adj Factor Scoring'!U114 -> 1 | H115: ='B. PoF Adj Factor Scoring'!W114 -> 5 | I115: ='B. PoF Adj Factor Scoring'!Y114 -> 4 | J115: ='B. PoF Adj Factor Scoring'!AA114 -> 2 | K115: ='B. PoF Adj Factor Scoring'!AC114 -> 3
A116: ='A. Population Info'!A116 -> T.F.000910/00.T01.SUP | B116: ='A. Population Info'!G116 -> B | C116: ='A. Population Info'!H116 -> 0 | D116: ='A. Population Info'!I116 -> 0 | E116: ='A. Population Info'!J116 -> 17.6194408 | F116: ='A. Population Info'!K116 -> 0 | G116: ='B. PoF Adj Factor Scoring'!U115 -> 1 | H116: ='B. PoF Adj Factor Scoring'!W115 -> 5 | I116: ='B. PoF Adj Factor Scoring'!Y115 -> 3 | J116: ='B. PoF Adj Factor Scoring'!AA115 -> 2 | K116: ='B. PoF Adj Factor Scoring'!AC115 -> 3
A117: ='A. Population Info'!A117 -> T.F.000910/00.T01.SUP | B117: ='A. Population Info'!G117 -> B | C117: ='A. Population Info'!H117 -> 0 | D117: ='A. Population Info'!I117 -> 0 | E117: ='A. Population Info'!J117 -> 17.3859282 | F117: ='A. Population Info'!K117 -> 0 | G117: ='B. PoF Adj Factor Scoring'!U116 -> 1 | H117: ='B. PoF Adj Factor Scoring'!W116 -> 5 | I117: ='B. PoF Adj Factor Scoring'!Y116 -> 3 | J117: ='B. PoF Adj Factor Scoring'!AA116 -> 2 | K117: ='B. PoF Adj Factor Scoring'!AC116 -> 3
A118: ='A. Population Info'!A118 -> T.F.000910/00.T01.SUP | B118: ='A. Population Info'!G118 -> B | C118: ='A. Population Info'!H118 -> 0 | D118: ='A. Population Info'!I118 -> 113 | E118: ='A. Population Info'!J118 -> 16.98016149 | F118: ='A. Population Info'!K118 -> 0 | G118: ='B. PoF Adj Factor Scoring'!U117 -> 1 | H118: ='B. PoF Adj Factor Scoring'!W117 -> 5 | I118: ='B. PoF Adj Factor Scoring'!Y117 -> 4 | J118: ='B. PoF Adj Factor Scoring'!AA117 -> 2 | K118: ='B. PoF Adj Factor Scoring'!AC117 -> 3
A119: ='A. Population Info'!A119 -> T.F.000910/00.T01.SUP | B119: ='A. Population Info'!G119 -> B | C119: ='A. Population Info'!H119 -> 0 | D119: ='A. Population Info'!I119 -> 0 | E119: ='A. Population Info'!J119 -> 17.01210878 | F119: ='A. Population Info'!K119 -> 0 | G119: ='B. PoF Adj Factor Scoring'!U118 -> 1 | H119: ='B. PoF Adj Factor Scoring'!W118 -> 5 | I119: ='B. PoF Adj Factor Scoring'!Y118 -> 3 | J119: ='B. PoF Adj Factor Scoring'!AA118 -> 2 | K119: ='B. PoF Adj Factor Scoring'!AC118 -> 3
A120: ='A. Population Info'!A120 -> T.F.000910/00.T01.SUP | B120: ='A. Population Info'!G120 -> B | C120: ='A. Population Info'!H120 -> 0 | D120: ='A. Population Info'!I120 -> 0 | E120: ='A. Population Info'!J120 -> 14.25315875 | F120: ='A. Population Info'!K120 -> 0 | G120: ='B. PoF Adj Factor Scoring'!U119 -> 1 | H120: ='B. PoF Adj Factor Scoring'!W119 -> 5 | I120: ='B. PoF Adj Factor Scoring'!Y119 -> 3 | J120: ='B. PoF Adj Factor Scoring'!AA119 -> 2 | K120: ='B. PoF Adj Factor Scoring'!AC119 -> 3
A121: ='A. Population Info'!A121 -> T.F.000910/00.T01.SUP | B121: ='A. Population Info'!G121 -> DT6 | C121: ='A. Population Info'!H121 -> 0 | D121: ='A. Population Info'!I121 -> 0 | E121: ='A. Population Info'!J121 -> 14.23227655 | F121: ='A. Population Info'!K121 -> 0 | G121: ='B. PoF Adj Factor Scoring'!U120 -> 1 | H121: ='B. PoF Adj Factor Scoring'!W120 -> 5 | I121: ='B. PoF Adj Factor Scoring'!Y120 -> 3 | J121: ='B. PoF Adj Factor Scoring'!AA120 -> 2 | K121: ='B. PoF Adj Factor Scoring'!AC120 -> 3
A122: ='A. Population Info'!A122 -> T.F.000910/00.T01.SUP | B122: ='A. Population Info'!G122 -> DS4 | C122: ='A. Population Info'!H122 -> 0 | D122: ='A. Population Info'!I122 -> 0 | E122: ='A. Population Info'!J122 -> 15.43196761 | F122: ='A. Population Info'!K122 -> 1 | G122: ='B. PoF Adj Factor Scoring'!U121 -> 5 | H122: ='B. PoF Adj Factor Scoring'!W121 -> 5 | I122: ='B. PoF Adj Factor Scoring'!Y121 -> 3 | J122: ='B. PoF Adj Factor Scoring'!AA121 -> 2 | K122: ='B. PoF Adj Factor Scoring'!AC121 -> 5
A123: ='A. Population Info'!A123 -> T.F.000910/00.T01.SUP | B123: ='A. Population Info'!G123 -> DS4 | C123: ='A. Population Info'!H123 -> 0 | D123: ='A. Population Info'!I123 -> 0 | E123: ='A. Population Info'!J123 -> 14.71467707 | F123: ='A. Population Info'!K123 -> 0 | G123: ='B. PoF Adj Factor Scoring'!U122 -> 5 | H123: ='B. PoF Adj Factor Scoring'!W122 -> 5 | I123: ='B. PoF Adj Factor Scoring'!Y122 -> 3 | J123: ='B. PoF Adj Factor Scoring'!AA122 -> 2 | K123: ='B. PoF Adj Factor Scoring'!AC122 -> 3
A124: ='A. Population Info'!A124 -> T.F.000910/00.T01.SUP | B124: ='A. Population Info'!G124 -> A | C124: ='A. Population Info'!H124 -> 0 | D124: ='A. Population Info'!I124 -> 0 | E124: ='A. Population Info'!J124 -> 14.34354724 | F124: ='A. Population Info'!K124 -> 0 | G124: ='B. PoF Adj Factor Scoring'!U123 -> 1 | H124: ='B. PoF Adj Factor Scoring'!W123 -> 5 | I124: ='B. PoF Adj Factor Scoring'!Y123 -> 3 | J124: ='B. PoF Adj Factor Scoring'!AA123 -> 2 | K124: ='B. PoF Adj Factor Scoring'!AC123 -> 3
A125: ='A. Population Info'!A125 -> T.F.000910/00.T01.SUP | B125: ='A. Population Info'!G125 -> DS4X | C125: ='A. Population Info'!H125 -> 0 | D125: ='A. Population Info'!I125 -> 0 | E125: ='A. Population Info'!J125 -> 14.49775487 | F125: ='A. Population Info'!K125 -> 0 | G125: ='B. PoF Adj Factor Scoring'!U124 -> 1 | H125: ='B. PoF Adj Factor Scoring'!W124 -> 5 | I125: ='B. PoF Adj Factor Scoring'!Y124 -> 3 | J125: ='B. PoF Adj Factor Scoring'!AA124 -> 2 | K125: ='B. PoF Adj Factor Scoring'!AC124 -> 3
A126: ='A. Population Info'!A126 -> T.F.000910/00.T01.SUP | B126: ='A. Population Info'!G126 -> DS4X | C126: ='A. Population Info'!H126 -> 0 | D126: ='A. Population Info'!I126 -> 0 | E126: ='A. Population Info'!J126 -> 14.81913462 | F126: ='A. Population Info'!K126 -> 0 | G126: ='B. PoF Adj Factor Scoring'!U125 -> 1 | H126: ='B. PoF Adj Factor Scoring'!W125 -> 5 | I126: ='B. PoF Adj Factor Scoring'!Y125 -> 3 | J126: ='B. PoF Adj Factor Scoring'!AA125 -> 2 | K126: ='B. PoF Adj Factor Scoring'!AC125 -> 3
A127: ='A. Population Info'!A127 -> T.F.000910/00.T01.SUP | B127: ='A. Population Info'!G127 -> DT6X | C127: ='A. Population Info'!H127 -> 0 | D127: ='A. Population Info'!I127 -> 0 | E127: ='A. Population Info'!J127 -> 15.12379073 | F127: ='A. Population Info'!K127 -> 1 | G127: ='B. PoF Adj Factor Scoring'!U126 -> 1 | H127: ='B. PoF Adj Factor Scoring'!W126 -> 5 | I127: ='B. PoF Adj Factor Scoring'!Y126 -> 3 | J127: ='B. PoF Adj Factor Scoring'!AA126 -> 2 | K127: ='B. PoF Adj Factor Scoring'!AC126 -> 5
A128: ='A. Population Info'!A128 -> T.F.000910/00.T01.SUP | B128: ='A. Population Info'!G128 -> DT6 | C128: ='A. Population Info'!H128 -> 0 | D128: ='A. Population Info'!I128 -> 0 | E128: ='A. Population Info'!J128 -> 15.54636135 | F128: ='A. Population Info'!K128 -> 0 | G128: ='B. PoF Adj Factor Scoring'!U127 -> 1 | H128: ='B. PoF Adj Factor Scoring'!W127 -> 5 | I128: ='B. PoF Adj Factor Scoring'!Y127 -> 3 | J128: ='B. PoF Adj Factor Scoring'!AA127 -> 2 | K128: ='B. PoF Adj Factor Scoring'!AC127 -> 3
A129: ='A. Population Info'!A129 -> T.F.000910/00.T01.SUP | B129: ='A. Population Info'!G129 -> B | C129: ='A. Population Info'!H129 -> 0 | D129: ='A. Population Info'!I129 -> 0 | E129: ='A. Population Info'!J129 -> 16.46824475 | F129: ='A. Population Info'!K129 -> 1 | G129: ='B. PoF Adj Factor Scoring'!U128 -> 1 | H129: ='B. PoF Adj Factor Scoring'!W128 -> 5 | I129: ='B. PoF Adj Factor Scoring'!Y128 -> 3 | J129: ='B. PoF Adj Factor Scoring'!AA128 -> 2 | K129: ='B. PoF Adj Factor Scoring'!AC128 -> 5
A130: ='A. Population Info'!A130 -> T.F.000910/00.T01.SUP | B130: ='A. Population Info'!G130 -> DT6 | C130: ='A. Population Info'!H130 -> 0 | D130: ='A. Population Info'!I130 -> 0 | E130: ='A. Population Info'!J130 -> 16.22726265 | F130: ='A. Population Info'!K130 -> 0 | G130: ='B. PoF Adj Factor Scoring'!U129 -> 1 | H130: ='B. PoF Adj Factor Scoring'!W129 -> 5 | I130: ='B. PoF Adj Factor Scoring'!Y129 -> 3 | J130: ='B. PoF Adj Factor Scoring'!AA129 -> 2 | K130: ='B. PoF Adj Factor Scoring'!AC129 -> 3
A131: ='A. Population Info'!A131 -> T.F.000910/00.T01.SUP | B131: ='A. Population Info'!G131 -> B | C131: ='A. Population Info'!H131 -> 0 | D131: ='A. Population Info'!I131 -> 0 | E131: ='A. Population Info'!J131 -> 16.70125984 | F131: ='A. Population Info'!K131 -> 1 | G131: ='B. PoF Adj Factor Scoring'!U130 -> 1 | H131: ='B. PoF Adj Factor Scoring'!W130 -> 5 | I131: ='B. PoF Adj Factor Scoring'!Y130 -> 3 | J131: ='B. PoF Adj Factor Scoring'!AA130 -> 2 | K131: ='B. PoF Adj Factor Scoring'!AC130 -> 5
A132: ='A. Population Info'!A132 -> T.F.000910/00.T01.SUP | B132: ='A. Population Info'!G132 -> B | C132: ='A. Population Info'!H132 -> 0 | D132: ='A. Population Info'!I132 -> 0 | E132: ='A. Population Info'!J132 -> 16.54624865 | F132: ='A. Population Info'!K132 -> 0 | G132: ='B. PoF Adj Factor Scoring'!U131 -> 1 | H132: ='B. PoF Adj Factor Scoring'!W131 -> 5 | I132: ='B. PoF Adj Factor Scoring'!Y131 -> 3 | J132: ='B. PoF Adj Factor Scoring'!AA131 -> 2 | K132: ='B. PoF Adj Factor Scoring'!AC131 -> 3
A133: ='A. Population Info'!A133 -> T.F.000910/00.T01.SUP | B133: ='A. Population Info'!G133 -> B | C133: ='A. Population Info'!H133 -> 0 | D133: ='A. Population Info'!I133 -> 0 | E133: ='A. Population Info'!J133 -> 17.96144209 | F133: ='A. Population Info'!K133 -> 0 | G133: ='B. PoF Adj Factor Scoring'!U132 -> 1 | H133: ='B. PoF Adj Factor Scoring'!W132 -> 5 | I133: ='B. PoF Adj Factor Scoring'!Y132 -> 3 | J133: ='B. PoF Adj Factor Scoring'!AA132 -> 2 | K133: ='B. PoF Adj Factor Scoring'!AC132 -> 3
A134: ='A. Population Info'!A134 -> T.F.000910/00.T01.SUP | B134: ='A. Population Info'!G134 -> C | C134: ='A. Population Info'!H134 -> 0 | D134: ='A. Population Info'!I134 -> 100 | E134: ='A. Population Info'!J134 -> 18.05707581 | F134: ='A. Population Info'!K134 -> 1 | G134: ='B. PoF Adj Factor Scoring'!U133 -> 1 | H134: ='B. PoF Adj Factor Scoring'!W133 -> 5 | I134: ='B. PoF Adj Factor Scoring'!Y133 -> 4 | J134: ='B. PoF Adj Factor Scoring'!AA133 -> 2 | K134: ='B. PoF Adj Factor Scoring'!AC133 -> 5
A135: ='A. Population Info'!A135 -> T.F.000910/00.T01.SUP | B135: ='A. Population Info'!G135 -> DS4 | C135: ='A. Population Info'!H135 -> 0 | D135: ='A. Population Info'!I135 -> 0 | E135: ='A. Population Info'!J135 -> 15.15698626 | F135: ='A. Population Info'!K135 -> 0 | G135: ='B. PoF Adj Factor Scoring'!U134 -> 5 | H135: ='B. PoF Adj Factor Scoring'!W134 -> 5 | I135: ='B. PoF Adj Factor Scoring'!Y134 -> 3 | J135: ='B. PoF Adj Factor Scoring'!AA134 -> 2 | K135: ='B. PoF Adj Factor Scoring'!AC134 -> 3
A136: ='A. Population Info'!A136 -> T.F.000910/00.T02.SUP | B136: ='A. Population Info'!G136 -> DTN2 | C136: ='A. Population Info'!H136 -> 0 | D136: ='A. Population Info'!I136 -> 0 | E136: ='A. Population Info'!J136 -> 17.99419066 | F136: ='A. Population Info'!K136 -> 0 | G136: ='B. PoF Adj Factor Scoring'!U135 -> 1 | H136: ='B. PoF Adj Factor Scoring'!W135 -> 5 | I136: ='B. PoF Adj Factor Scoring'!Y135 -> 3 | J136: ='B. PoF Adj Factor Scoring'!AA135 -> 2 | K136: ='B. PoF Adj Factor Scoring'!AC135 -> 3
A137: ='A. Population Info'!A137 -> T.F.000910/00.T02.SUP | B137: ='A. Population Info'!G137 -> E | C137: ='A. Population Info'!H137 -> 0 | D137: ='A. Population Info'!I137 -> 0 | E137: ='A. Population Info'!J137 -> 17.72818435 | F137: ='A. Population Info'!K137 -> 0 | G137: ='B. PoF Adj Factor Scoring'!U136 -> 1 | H137: ='B. PoF Adj Factor Scoring'!W136 -> 5 | I137: ='B. PoF Adj Factor Scoring'!Y136 -> 3 | J137: ='B. PoF Adj Factor Scoring'!AA136 -> 2 | K137: ='B. PoF Adj Factor Scoring'!AC136 -> 3
A138: ='A. Population Info'!A138 -> T.F.000910/00.T02.SUP | B138: ='A. Population Info'!G138 -> A | C138: ='A. Population Info'!H138 -> 0 | D138: ='A. Population Info'!I138 -> 0 | E138: ='A. Population Info'!J138 -> 17.37278046 | F138: ='A. Population Info'!K138 -> 1 | G138: ='B. PoF Adj Factor Scoring'!U137 -> 1 | H138: ='B. PoF Adj Factor Scoring'!W137 -> 5 | I138: ='B. PoF Adj Factor Scoring'!Y137 -> 3 | J138: ='B. PoF Adj Factor Scoring'!AA137 -> 2 | K138: ='B. PoF Adj Factor Scoring'!AC137 -> 5
A139: ='A. Population Info'!A139 -> T.F.000910/00.T02.SUP | B139: ='A. Population Info'!G139 -> N | C139: ='A. Population Info'!H139 -> 0 | D139: ='A. Population Info'!I139 -> 0 | E139: ='A. Population Info'!J139 -> 16.95921321 | F139: ='A. Population Info'!K139 -> 1 | G139: ='B. PoF Adj Factor Scoring'!U138 -> 1 | H139: ='B. PoF Adj Factor Scoring'!W138 -> 5 | I139: ='B. PoF Adj Factor Scoring'!Y138 -> 3 | J139: ='B. PoF Adj Factor Scoring'!AA138 -> 2 | K139: ='B. PoF Adj Factor Scoring'!AC138 -> 5
A140: ='A. Population Info'!A140 -> T.F.000910/00.T02.SUP | B140: ='A. Population Info'!G140 -> E | C140: ='A. Population Info'!H140 -> 0 | D140: ='A. Population Info'!I140 -> 0 | E140: ='A. Population Info'!J140 -> 16.18743911 | F140: ='A. Population Info'!K140 -> 1 | G140: ='B. PoF Adj Factor Scoring'!U139 -> 1 | H140: ='B. PoF Adj Factor Scoring'!W139 -> 5 | I140: ='B. PoF Adj Factor Scoring'!Y139 -> 3 | J140: ='B. PoF Adj Factor Scoring'!AA139 -> 2 | K140: ='B. PoF Adj Factor Scoring'!AC139 -> 5
A141: ='A. Population Info'!A141 -> T.F.000910/00.T02.SUP | B141: ='A. Population Info'!G141 -> A | C141: ='A. Population Info'!H141 -> 0 | D141: ='A. Population Info'!I141 -> 0 | E141: ='A. Population Info'!J141 -> 15.51000659 | F141: ='A. Population Info'!K141 -> 1 | G141: ='B. PoF Adj Factor Scoring'!U140 -> 1 | H141: ='B. PoF Adj Factor Scoring'!W140 -> 5 | I141: ='B. PoF Adj Factor Scoring'!Y140 -> 3 | J141: ='B. PoF Adj Factor Scoring'!AA140 -> 2 | K141: ='B. PoF Adj Factor Scoring'!AC140 -> 5
A142: ='A. Population Info'!A142 -> T.F.000910/00.T02.SUP | B142: ='A. Population Info'!G142 -> E | C142: ='A. Population Info'!H142 -> 0 | D142: ='A. Population Info'!I142 -> 0 | E142: ='A. Population Info'!J142 -> 14.2587059 | F142: ='A. Population Info'!K142 -> 0 | G142: ='B. PoF Adj Factor Scoring'!U141 -> 1 | H142: ='B. PoF Adj Factor Scoring'!W141 -> 5 | I142: ='B. PoF Adj Factor Scoring'!Y141 -> 3 | J142: ='B. PoF Adj Factor Scoring'!AA141 -> 2 | K142: ='B. PoF Adj Factor Scoring'!AC141 -> 3
A143: ='A. Population Info'!A143 -> T.F.000910/00.T02.SUP | B143: ='A. Population Info'!G143 -> E | C143: ='A. Population Info'!H143 -> 0 | D143: ='A. Population Info'!I143 -> 0 | E143: ='A. Population Info'!J143 -> 15.00209196 | F143: ='A. Population Info'!K143 -> 1 | G143: ='B. PoF Adj Factor Scoring'!U142 -> 1 | H143: ='B. PoF Adj Factor Scoring'!W142 -> 5 | I143: ='B. PoF Adj Factor Scoring'!Y142 -> 3 | J143: ='B. PoF Adj Factor Scoring'!AA142 -> 2 | K143: ='B. PoF Adj Factor Scoring'!AC142 -> 5
A144: ='A. Population Info'!A144 -> T.F.000910/00.T02.SUP | B144: ='A. Population Info'!G144 -> E | C144: ='A. Population Info'!H144 -> 0 | D144: ='A. Population Info'!I144 -> 0 | E144: ='A. Population Info'!J144 -> 14.57132657 | F144: ='A. Population Info'!K144 -> 2 | G144: ='B. PoF Adj Factor Scoring'!U143 -> 1 | H144: ='B. PoF Adj Factor Scoring'!W143 -> 5 | I144: ='B. PoF Adj Factor Scoring'!Y143 -> 3 | J144: ='B. PoF Adj Factor Scoring'!AA143 -> 2 | K144: ='B. PoF Adj Factor Scoring'!AC143 -> 4
A145: ='A. Population Info'!A145 -> T.F.000910/00.T02.SUP | B145: ='A. Population Info'!G145 -> N | C145: ='A. Population Info'!H145 -> 0 | D145: ='A. Population Info'!I145 -> 0 | E145: ='A. Population Info'!J145 -> 13.67226052 | F145: ='A. Population Info'!K145 -> 1 | G145: ='B. PoF Adj Factor Scoring'!U144 -> 1 | H145: ='B. PoF Adj Factor Scoring'!W144 -> 5 | I145: ='B. PoF Adj Factor Scoring'!Y144 -> 3 | J145: ='B. PoF Adj Factor Scoring'!AA144 -> 2 | K145: ='B. PoF Adj Factor Scoring'!AC144 -> 5
A146: ='A. Population Info'!A146 -> T.F.000910/00.T02.SUP | B146: ='A. Population Info'!G146 -> E | C146: ='A. Population Info'!H146 -> 0 | D146: ='A. Population Info'!I146 -> 0 | E146: ='A. Population Info'!J146 -> 13.26250305 | F146: ='A. Population Info'!K146 -> 2 | G146: ='B. PoF Adj Factor Scoring'!U145 -> 1 | H146: ='B. PoF Adj Factor Scoring'!W145 -> 5 | I146: ='B. PoF Adj Factor Scoring'!Y145 -> 3 | J146: ='B. PoF Adj Factor Scoring'!AA145 -> 2 | K146: ='B. PoF Adj Factor Scoring'!AC145 -> 4
A147: ='A. Population Info'!A147 -> T.F.000910/00.T02.SUP | B147: ='A. Population Info'!G147 -> E | C147: ='A. Population Info'!H147 -> 0 | D147: ='A. Population Info'!I147 -> 0 | E147: ='A. Population Info'!J147 -> 12.69913349 | F147: ='A. Population Info'!K147 -> 0 | G147: ='B. PoF Adj Factor Scoring'!U146 -> 1 | H147: ='B. PoF Adj Factor Scoring'!W146 -> 5 | I147: ='B. PoF Adj Factor Scoring'!Y146 -> 3 | J147: ='B. PoF Adj Factor Scoring'!AA146 -> 2 | K147: ='B. PoF Adj Factor Scoring'!AC146 -> 3
A148: ='A. Population Info'!A148 -> T.F.000910/00.T02.SUP | B148: ='A. Population Info'!G148 -> A | C148: ='A. Population Info'!H148 -> 0 | D148: ='A. Population Info'!I148 -> 0 | E148: ='A. Population Info'!J148 -> 12.99994175 | F148: ='A. Population Info'!K148 -> 1 | G148: ='B. PoF Adj Factor Scoring'!U147 -> 1 | H148: ='B. PoF Adj Factor Scoring'!W147 -> 5 | I148: ='B. PoF Adj Factor Scoring'!Y147 -> 3 | J148: ='B. PoF Adj Factor Scoring'!AA147 -> 2 | K148: ='B. PoF Adj Factor Scoring'!AC147 -> 5
A149: ='A. Population Info'!A149 -> T.F.000910/00.T02.SUP | B149: ='A. Population Info'!G149 -> A | C149: ='A. Population Info'!H149 -> 0 | D149: ='A. Population Info'!I149 -> 0 | E149: ='A. Population Info'!J149 -> 13.14191076 | F149: ='A. Population Info'!K149 -> 0 | G149: ='B. PoF Adj Factor Scoring'!U148 -> 1 | H149: ='B. PoF Adj Factor Scoring'!W148 -> 5 | I149: ='B. PoF Adj Factor Scoring'!Y148 -> 3 | J149: ='B. PoF Adj Factor Scoring'!AA148 -> 2 | K149: ='B. PoF Adj Factor Scoring'!AC148 -> 3
